Workbook

Sheet Старт
S2: GMT +0 | T2: 4 | U2: =TODAY()-7 -> 2021-06-01 | V2: 8 | W2: flashscore.com (EN) | X2: 3
S3: GMT +1 | U3: =TODAY()-6 -> 2021-06-02 | W3: soccerstand.com (EN)
S4: GMT +2 | U4: =TODAY()-5 -> 2021-06-03 | W4: soccerstand.com (RU)
S5: GMT +3 | U5: =TODAY()-4 -> 2021-06-04 | W5: myscore.ru (RU)
S6: GMT +4 | U6: =TODAY()-3 -> 2021-06-05 | W6: myscore.com.ua (RU)
S7: GMT +5 | U7: =TODAY() -2 -> 2021-06-06
S8: GMT +6 | U8: Вчера
S9: GMT +7 | U9: Сегодня
S10: GMT +8 | U10: Завтра
S11: GMT +9 | U11: =TODAY()+2 -> 2021-06-10
S12: GMT +12 | U12: =TODAY()+5 -> 2021-06-13
S13: GMT +13 | U13: =TODAY()+6 -> 2021-06-14
U14: =TODAY()+7 -> 2021-06-15

Sheet Список
A1: Чемпионат | B1: Дата/Время | C1: Дома | D1: Гости | E1: Match_ID | F1: Country_ID | G1: home_ID | H1: away_ID | I1: Загрузить | J1: К1 | K1: К2 | L1: П1 текущий | M1: Х текущий | N1: П2 текущий | O1: П1 старт | P1: Х старт | Q1: П2 старт | R1: П1 прогруз | S1: Х прогруз | T1: П2 прогруз
A2: ИСЛАНДИЯ: Высшая лига | B2: 2021.06.07 23:00 | C2: Валюр | D2: Викингур Рейкьявик | E2: OfHJMwZe | F2: 92 | I2: Загрузить | J2: 1 | K2: 1 | L2: 1.89 | M2: 3.83 | N2: 3.58 | O2: 1.82 | P2: 4 | Q2: 3.5 | R2: =IF(L2="","",L2-O2) -> 0.07 | S2: =IF(M2="","",M2-P2) -> -0.17 | T2: =IF(N2="","",N2-Q2) -> 0.08
A3: ЧИЛИ: Примера Б | B3: 2021.06.08 01:00 | C3: Депортес Пуэрто-Монтт | D3: Депортес Темуко | E3: t0yUjqO7 | F3: 51 | I3: Загрузить | J3: 1 | K3: 0 | L3: 2.22 | M3: 3.22 | N3: 3.24 | O3: 2.12 | P3: 3.1 | Q3: 3.26 | R3: =IF(L3="","",L3-O3) -> 0.1 | S3: =IF(M3="","",M3-P3) -> 0.12 | T3: =IF(N3="","",N3-Q3) -> -0.02
A4: БРАЗИЛИЯ: Чемпионат Бразилии В | B4: 2021.06.08 02:00 | C4: Витория | D4: Наутико | E4: 4bYqjeFs | F4: 39 | I4: Загрузить | J4: 0 | K4: 1 | L4: 2.98 | M4: 2.61 | N4: 2.77 | O4: 2.54 | P4: 3.13 | Q4: 2.9 | R4: 0.44 | S4: -0.52 | T4: -0.13
A5: БРАЗИЛИЯ: Чемпионат Бразилии C - Первый этап | B5: 2021.06.08 02:00 | C5: Пайсанду | D5: Ботафого ПБ | E5: bg9IIx6t | F5: 39 | I5: Загрузить | J5: 0 | K5: 2 | L5: 2.09 | M5: 2.87 | N5: 4.04 | O5: 1.93 | P5: 2.9 | Q5: 4.54 | R5: 0.16 | S5: -0.03 | T5: -0.5
A6: США: Лига 2 ЮСЛ | B6: 2021.06.08 02:00 | C6: Lehigh Valley | D6: RC New Jersey | E6: U3djEotN | F6: 200 | I6: Загрузить | J6: 3 | K6: 1
A7: ЧИЛИ: Высший дивизион | B7: 2021.06.08 03:30 | C7: Нубленсе | D7: Аудакс Итальяно | E7: dbnKFtB6 | F7: 51 | I7: Загрузить | J7: 1 | K7: 0 | L7: 2.2 | M7: 3.25 | N7: 3.3 | O7: 2.37 | P7: 3.25 | Q7: 2.75 | R7: -0.17 | S7: 0 | T7: 0.55
A8: КИТАЙ: Первая лига - Первый этап | B8: 2021.06.08 11:00 | C8: Цзыбо Цуцзюй | D8: Шэньси Чанъань | E8: WIB85crK | F8: 52 | I8: Загрузить | J8: 1 | K8: 1 | L8: 8.3 | M8: 4.58 | N8: 1.37 | O8: 10 | P8: 4.74 | Q8: 1.26 | R8: -1.7 | S8: -0.16 | T8: 0.11
A9: АЛЖИР: Лига U21 | B9: 2021.06.08 12:00 | C9: Медеа U21 | D9: МК Алжир U21 | E9: xWWcxvy9 | F9: 18 | I9: Загрузить | J9: 1 | K9: 6 | L9: 2.43 | M9: 3.24 | N9: 2.66 | O9: 2.4 | P9: 3.3 | Q9: 2.65 | R9: 0.03 | S9: -0.06 | T9: 0.01
A10: АЛЖИР: Лига U21 | B10: 2021.06.08 12:00 | C10: Скикда U21 | D10: Белуиздад U21 | E10: WhW1ybjF | F10: 18 | I10: Загрузить | J10: 1 | K10: 3 | L10: 15 | M10: 5.95 | N10: 1.17 | O10: 9.6 | P10: 4.5 | Q10: 1.31 | R10: 5.4 | S10: 1.45 | T10: -0.14
A11: ВЬЕТНАМ: Национальная лига - Женщины | B11: 2021.06.08 12:00 | C11: Ханой 2 (Ж) | D11: TKS Viet Nam (Ж) | E11: dOZ7sprc | F11: 206 | I11: Загрузить
A12: МИР: Международные товарищеские матчи | B12: 2021.06.08 12:00 | C12: Босния и Герцеговина U19 | D12: Саудовская Аравия U20 | E12: jwq9lgdE | F12: 8 | I12: Загрузить | J12: 0 | K12: 1 | L12: 1.57 | M12: 4 | N12: 5.25 | O12: 1.51 | P12: 4 | Q12: 6.05 | R12: 0.06 | S12: 0 | T12: -0.8
A13: КИТАЙ: Первая лига - Первый этап | B13: 2021.06.08 13:00 | C13: Zhejiang Professional | D13: Хуакайер ФК | E13: vqBC4HcQ | F13: 52 | I13: Загрузить | L13: 1.2 | M13: 6.1 | N13: 13.8 | O13: 1.21 | P13: 5.5 | Q13: 10.5 | R13: -0.01 | S13: 0.6 | T13: 3.3
A14: МИР: Международные товарищеские матчи | B14: 2021.06.08 14:00 | C14: Португалия U18 | D14: Норвегия U18 | E14: zBUL0mE8 | F14: 8 | I14: Загрузить
A15: МИР: Международные товарищеские матчи | B15: 2021.06.08 15:00 | C15: Словакия U21 | D15: Финляндия U21 | E15: xGjH2RTk | F15: 8 | I15: Загрузить | L15: 1.8 | M15: 3.2 | N15: 4 | O15: 1.61 | P15: 3.4 | Q15: 5 | R15: 0.19 | S15: -0.2 | T15: -1
A16: СОМАЛИ: Чемпионат | B16: 2021.06.08 15:30 | C16: Декедда | D16: ЛЛПП | E16: 4C391jR9 | F16: 174 | I16: Загрузить
A17: ГРУЗИЯ: Лига Эровнули 2 | B17: 2021.06.08 16:00 | C17: FC Gareji Sagarejo | D17: Тбилиси | E17: 4G7wG9If | F17: 80 | I17: Загрузить | L17: 1.69 | M17: 3.28 | N17: 5.1 | O17: 2.3 | P17: 3.3 | Q17: 2.63 | R17: -0.61 | S17: -0.02 | T17: 2.47
A18: ГРУЗИЯ: Лига Эровнули 2 | B18: 2021.06.08 16:00 | C18: Сиони | D18: Мерани Мартвили | E18: dj4VHVmr | F18: 80 | I18: Загрузить | L18: 1.68 | M18: 3.62 | N18: 4.62 | O18: 2.02 | P18: 3.1 | Q18: 3.48 | R18: -0.34 | S18: 0.52 | T18: 1.14
A19: МИР: Международные товарищеские матчи | B19: 2021.06.08 16:30 | C19: Хорватия U18 | D19: Словения U18 | E19: KCwGxHOa | F19: 8 | I19: Загрузить
A20: ЛИВИЯ: Премьер-лига | B20: 2021.06.08 17:00 | C20: Аль-Ахли Триполи | D20: Абу-Салим | E20: MBdFb4kQ | F20: 114 | I20: Загрузить
A21: ЛИВИЯ: Премьер-лига | B21: 2021.06.08 17:00 | C21: Аль-Садака | D21: Шабааб Аль-Джабал | E21: UgF224ze | F21: 114 | I21: Загрузить
A22: ЛИВИЯ: Премьер-лига | B22: 2021.06.08 17:00 | C22: Аль-Таавун | D22: Аль-Ахдар | E22: rcJ61Ok1 | F22: 114 | I22: Загрузить
A23: ЛИВИЯ: Премьер-лига | B23: 2021.06.08 17:00 | C23: Аль-Хмес | D23: Рафик | E23: d4msfOcs | F23: 114 | I23: Загрузить
A24: ЛИВИЯ: Премьер-лига | B24: 2021.06.08 17:00 | C24: Ассвехли | D24: Аль-Атхад | E24: vTxngrDm | F24: 114 | I24: Загрузить
A25: ЛИВИЯ: Премьер-лига | B25: 2021.06.08 17:00 | C25: Олимпик Аззавейя | D25: Махалла Триполи | E25: IJyjh2Sg | F25: 114 | I25: Загрузить
A26: МИР: Международные товарищеские матчи | B26: 2021.06.08 17:00 | C26: Дания U21 | D26: Аргентина U23 | E26: vXI1aGRP | F26: 8 | I26: Загрузить
A27: МИР: Международные товарищеские матчи | B27: 2021.06.08 17:00 | C27: Косово | D27: Гвинея | E27: Wfw34JBA | F27: 8 | I27: Загрузить
A28: ИРАН: Первый дивизион | B28: 2021.06.08 17:10 | C28: Бадеран Тегеран | D28: Эстеглал Моласани | E28: 29bnCyUr | F28: 94 | I28: Загрузить | L28: 1.54 | M28: 3.76 | N28: 6.05 | O28: 1.64 | P28: 3.2 | Q28: 5.6 | R28: -0.1 | S28: 0.56 | T28: 0.45
A29: ИРАН: Первый дивизион | B29: 2021.06.08 17:10 | C29: Райка Баболь | D29: Шахин Бушехр | E29: pzTAVPU3 | F29: 94 | I29: Загрузить | L29: 3.24 | M29: 2.34 | N29: 2.84 | O29: 2.63 | P29: 2.7 | Q29: 2.75 | R29: 0.61 | S29: -0.36 | T29: 0.09
A30: ИРАН: Первый дивизион | B30: 2021.06.08 17:20 | C30: Чока Талеш | D30: Хуши-Талаи | E30: dWcjBeqk | F30: 94 | I30: Загрузить | L30: 3.48 | M30: 3.01 | N30: 2.17 | O30: 3.28 | P30: 2.5 | Q30: 2.52 | R30: 0.2 | S30: 0.51 | T30: -0.35
A31: ИРАН: Первый дивизион | B31: 2021.06.08 17:35 | C31: Арман Гохар | D31: Мес Керман | E31: G0O6W5Fc | F31: 94 | I31: Загрузить | L31: 3.58 | M31: 2.82 | N31: 2.24 | O31: 3.08 | P31: 2.63 | Q31: 2.52 | R31: 0.5 | S31: 0.19 | T31: -0.28
A32: ЕВРОПА: Чемпионат Европы до 21 года - Квалификация | B32: 2021.06.08 17:45 | C32: Швеция U21 | D32: Люксембург U21 | E32: tWqYOnEG | F32: 6 | I32: Загрузить | L32: 1.04 | M32: 14.5 | N32: 36 | O32: 1.04 | P32: 13 | Q32: 24 | R32: 0 | S32: 1.5 | T32: 12
A33: ИРАН: Первый дивизион | B33: 2021.06.08 17:55 | C33: Кашкай Шираз | D33: Гол Рейхан | E33: xAP2Xo0i | F33: 94 | I33: Загрузить | L33: 1.51 | M33: 3.82 | N33: 6.35 | O33: 1.64 | P33: 3.5 | Q33: 4.88 | R33: -0.13 | S33: 0.32 | T33: 1.47
A34: АЛЖИР: Coupe de la Ligue | B34: 2021.06.08 18:00 | C34: Магра | D34: УСМ Алжир | E34: x4bdYkPa | F34: 18 | I34: Загрузить | L34: 2.91 | M34: 3.05 | N34: 2.41 | O34: 3.08 | P34: 2.88 | Q34: 2.32 | R34: -0.17 | S34: 0.17 | T34: 0.09
A35: ИТАЛИЯ: Примавера 1 | B35: 2021.06.08 18:00 | C35: Аталанта U19 | D35: Дженоа U19 | E35: 0Kl4P1Uk | F35: 98 | I35: Загрузить | L35: 1.38 | M35: 5.15 | N35: 6.1 | O35: 1.41 | P35: 5.2 | Q35: 5.8 | R35: -0.03 | S35: -0.05 | T35: 0.3
A36: ИТАЛИЯ: Примавера 2 - Плей-офф | B36: 2021.06.08 18:00 | C36: Верона U19 | D36: Пескара U19 | E36: ve34OVPj | F36: 98 | I36: Загрузить | L36: 2.75 | M36: 3.54 | N36: 2.3 | O36: 2.81 | P36: 3.4 | Q36: 2.22 | R36: -0.06 | S36: 0.14 | T36: 0.08
A37: ПОЛЬША: Дивизион 3 - группа 1 - Чемпионшип - плей-офф | B37: 2021.06.08 18:00 | C37: Знич Бяла-Писка | D37: Ягеллония II | E37: QmTsdyeB | F37: 154 | I37: Загрузить | L37: 1.86 | M37: 3.88 | N37: 3.5 | O37: 2.21 | P37: 3.68 | Q37: 2.8 | R37: -0.35 | S37: 0.2 | T37: 0.7
A38: ИРАН: Первый дивизион | B38: 2021.06.08 18:20 | C38: Хейбар Хоррамабад | D38: Могхавемат | E38: OQREUqpA | F38: 94 | I38: Загрузить | L38: 2.06 | M38: 2.79 | N38: 4.22 | O38: 2.61 | P38: 2.92 | Q38: 2.76 | R38: -0.55 | S38: -0.13 | T38: 1.46
A39: ИРАН: Первый дивизион | B39: 2021.06.08 18:20 | C39: Эстеглал Хузестан | D39: Хавадар | E39: 6kHJT3aG | F39: 94 | I39: Загрузить | L39: 2.69 | M39: 2.46 | N39: 3.22 | O39: 3.08 | P39: 2.75 | Q39: 2.42 | R39: -0.39 | S39: -0.29 | T39: 0.8
A40: МИР: Международные товарищеские матчи | B40: 2021.06.08 18:30 | C40: Болгария U21 | D40: Албания U21 | E40: 0O88pPNd | F40: 8 | I40: Загрузить | L40: 1.8 | M40: 3.4 | N40: 3.75 | O40: 1.8 | P40: 3.4 | Q40: 3.75 | R40: 0 | S40: 0 | T40: 0
A41: ФИНЛЯНДИЯ: Второй дивизион - группа C | B41: 2021.06.08 18:30 | C41: РоПС 2 | D41: ГБК Коккола | E41: 0hlxeonF | F41: 76 | I41: Загрузить | L41: 1.08 | M41: 9.6 | N41: 20 | O41: 1.1 | P41: 9 | Q41: 14.5 | R41: -0.02 | S41: 0.6 | T41: 5.5
A42: АЛЖИР: Первый дивизион | B42: 2021.06.08 19:00 | C42: Медеа | D42: МК Алжир | E42: plt6RRrh | F42: 18 | I42: Загрузить | L42: 2.12 | M42: 3.02 | N42: 3.6 | O42: 2.12 | P42: 3 | Q42: 3.32 | R42: 0 | S42: 0.02 | T42: 0.28
A43: АЛЖИР: Первый дивизион | B43: 2021.06.08 19:00 | C43: Скикда | D43: Белуиздад | E43: 2PzBQobb | F43: 18 | I43: Загрузить | L43: 5.15 | M43: 3.38 | N43: 1.69 | O43: 5.35 | P43: 3.3 | Q43: 1.64 | R43: -0.2 | S43: 0.08 | T43: 0.05
A44: ГВИНЕЯ: Лига 1 | B44: 2021.06.08 19:00 | C44: Вакрия | D44: Ашанти ГБ | E44: zRx4V8Cl | F44: 86 | I44: Загрузить
A45: ИРАН: Первый дивизион | B45: 2021.06.08 19:00 | C45: Парс Джануби Джем | D45: Навад Урмия | E45: zNdfAFbe | F45: 94 | I45: Загрузить
A46: МИР: Международные товарищеские матчи | B46: 2021.06.08 19:00 | C46: Австрия U17 | D46: Швеция U17 | E46: ELeQ4bxP | F46: 8 | I46: Загрузить
A47: МИР: Международные товарищеские матчи | B47: 2021.06.08 19:00 | C47: Камерун | D47: Нигерия | E47: OSGByNhf | F47: 8 | I47: Загрузить | L47: 2.62 | M47: 3 | N47: 2.5 | O47: 2.5 | P47: 3 | Q47: 2.62 | R47: 0.12 | S47: 0 | T47: -0.12
A48: МИР: Международные товарищеские матчи | B48: 2021.06.08 19:00 | C48: Польша | D48: Исландия | E48: h2ZjsTNh | F48: 8 | I48: Загрузить | L48: 1.36 | M48: 4.75 | N48: 8.5 | O48: 1.55 | P48: 4 | Q48: 6 | R48: -0.19 | S48: 0.75 | T48: 2.5
A49: МИР: Клубные товарищеские матчи | B49: 2021.06.08 19:00 | C49: Рауфосс | D49: Конгсвингер | E49: UPXWFn8m | F49: 8 | I49: Загрузить | L49: 1.77 | M49: 4.04 | N49: 3.74 | O49: 1.85 | P49: 3.1 | Q49: 4.1 | R49: -0.08 | S49: 0.94 | T49: -0.36
A50: МИР: Международные товарищеские матчи - женщины | B50: 2021.06.08 19:00 | C50: Беларусь (Ж) | D50: Иран (Ж) | E50: nqa8p9wm | F50: 8 | I50: Загрузить
A51: СЬЕРРА-ЛЕОНЕ: Премьер-лига | B51: 2021.06.08 19:15 | C51: SLIFA | D51: Олд Эдвардианс | E51: AqVurcrk | F51: 169 | I51: Загрузить
A52: ЕВРОПА: Чемпионат Европы до 21 года - Квалификация | B52: 2021.06.08 19:30 | C52: Фарерские острова U21 | D52: Армения U21 | E52: rJhiums0 | F52: 6 | I52: Загрузить | L52: 2.24 | M52: 3.42 | N52: 3.12 | O52: 2.6 | P52: 3.4 | Q52: 2.3 | R52: -0.36 | S52: 0.02 | T52: 0.82
A53: АРГЕНТИНА: Торнео Федерал | B53: 2021.06.08 20:00 | C53: Чиполлетти | D53: Ферро Хенераль Пико | E53: prZBBrkM | F53: 22 | I53: Загрузить | L53: 1.77 | M53: 3.34 | N53: 4.62 | O53: 2.02 | P53: 2.88 | Q53: 3.84 | R53: -0.25 | S53: 0.46 | T53: 0.78
A54: МИР: Международные товарищеские матчи | B54: 2021.06.08 20:00 | C54: Гамбия | D54: Того | E54: rqYgSmPL | F54: 8 | I54: Загрузить | L54: 2.45 | M54: 2.8 | N54: 2.9 | O54: 2.7 | P54: 2.8 | Q54: 2.6 | R54: -0.25 | S54: 0 | T54: 0.3
A55: МИР: Международные товарищеские матчи | B55: 2021.06.08 20:00 | C55: Сербия U23 | D55: Бразилия U23 | E55: dp5gHLs9 | F55: 8 | I55: Загрузить | L55: 10.5 | M55: 5.1 | N55: 1.29 | O55: 8.2 | P55: 5.4 | Q55: 1.31 | R55: 2.3 | S55: -0.3 | T55: -0.02
A56: МИР: Клубные товарищеские матчи | B56: 2021.06.08 20:00 | C56: Войтсберг | D56: FC Trofaiach | E56: KYn1pRxM | F56: 8 | I56: Загрузить
A57: МИР: Клубные товарищеские матчи | B57: 2021.06.08 20:00 | C57: Гляйсдорф | D57: Унион Гнас | E57: WCC3GUO6 | F57: 8 | I57: Загрузить | L57: 1.14 | M57: 8 | N57: 12.5 | O57: 1.21 | P57: 6 | Q57: 9.3 | R57: -0.07 | S57: 2 | T57: 3.2
A58: ШВЕЦИЯ: Первая лига | B58: 2021.06.08 20:00 | C58: ГАИС | D58: Ландскруна | E58: 2sjuDXWA | F58: 181 | I58: Загрузить | L58: 2.15 | M58: 3.1 | N58: 3.6 | O58: 2 | P58: 3.5 | Q58: 3.4 | R58: 0.15 | S58: -0.4 | T58: 0.2
A59: ШВЕЦИЯ: Второй дивизион - Северный Геталенд | B59: 2021.06.08 20:00 | C59: Angered | D59: Grebbestads | E59: 2qVaRUB6 | F59: 181 | I59: Загрузить | L59: 4.66 | M59: 3.56 | N59: 1.63 | O59: 3.46 | P59: 3.4 | Q59: 1.93 | R59: 1.2 | S59: 0.16 | T59: -0.3
A60: ЕВРОПА: Чемпионат Европы до 21 года - Квалификация | B60: 2021.06.08 20:10 | C60: Австрия U21 | D60: Эстония U21 | E60: xQTbpQ5D | F60: 6 | I60: Загрузить | L60: 1 | M60: 24 | N60: 60 | O60: 1.05 | P60: 11 | Q60: 24 | R60: -0.05 | S60: 13 | T60: 36
A61: ШВЕЦИЯ: Второй дивизион - Западный Геталенд | B61: 2021.06.08 20:30 | C61: Улларед ИК | D61: Торсланда | E61: CIYdcl8m | F61: 181 | I61: Загрузить | L61: 2.29 | M61: 4.12 | N61: 2.33 | O61: 2.3 | P61: 4.2 | Q61: 2.25 | R61: -0.01 | S61: -0.08 | T61: 0.08
A62: АРГЕНТИНА: Торнео Федерал | B62: 2021.06.08 21:00 | C62: Крусеро Дель Норте | D62: Унион Сунчалес | E62: 2iPd4x6M | F62: 22 | I62: Загрузить | L62: 1.85 | M62: 2.97 | N62: 4.92 | O62: 2.42 | P62: 2.88 | Q62: 2.94 | R62: -0.57 | S62: 0.09 | T62: 1.98
A63: АРГЕНТИНА: Торнео Федерал | B63: 2021.06.08 21:00 | C63: Пеньяроль | D63: Сансинена | E63: tjEn5tSk | F63: 22 | I63: Загрузить | L63: 2.37 | M63: 2.98 | N63: 3.09 | O63: 2.5 | P63: 2.75 | Q63: 2.88 | R63: -0.13 | S63: 0.23 | T63: 0.21
A64: АРГЕНТИНА: Примера C - Апертура | B64: 2021.06.08 21:00 | C64: Архентино де Мерло | D64: Экскурсионистас | E64: EHRtfgXK | F64: 22 | I64: Загрузить | L64: 2.22 | M64: 2.94 | N64: 3.44 | O64: 2.07 | P64: 3.34 | Q64: 3.34 | R64: 0.15 | S64: -0.4 | T64: 0.1
A65: АРГЕНТИНА: Примера C - Апертура | B65: 2021.06.08 21:00 | C65: Итусаинго | D65: Сентраль Кордоба | E65: KfSxeZHE | F65: 22 | I65: Загрузить | L65: 1.94 | M65: 2.95 | N65: 4.4 | O65: 2.22 | P65: 2.97 | Q65: 3.4 | R65: -0.28 | S65: -0.02 | T65: 1
A66: АРГЕНТИНА: Примера C - Апертура | B66: 2021.06.08 21:00 | C66: Лаферрере | D66: Спортиво Итальяно | E66: 4npjXVP7 | F66: 22 | I66: Загрузить | L66: 1.95 | M66: 3.19 | N66: 3.92 | O66: 1.94 | P66: 3.3 | Q66: 3.82 | R66: 0.01 | S66: -0.11 | T66: 0.1
A67: АРГЕНТИНА: Примера C - Апертура | B67: 2021.06.08 21:00 | C67: Реал Пилар | D67: Депортиво Эспаньол | E67: WYorZiee | F67: 22 | I67: Загрузить | L67: 1.92 | M67: 3.32 | N67: 3.84 | O67: 1.77 | P67: 3.38 | Q67: 4.56 | R67: =IF(L67="","",L67-O67) -> 0.15 | S67: =IF(M67="","",M67-P67) -> -0.06 | T67: =IF(N67="","",N67-Q67) -> -0.72
A68: АРГЕНТИНА: Примера C - Апертура | B68: 2021.06.08 21:00 | C68: Хенераль Ламадрид | D68: Клуб Лухан | E68: IVsvzYuk | F68: 22 | I68: Загрузить | L68: 2.81 | M68: 2.79 | N68: 2.67 | O68: 2.33 | P68: 2.9 | Q68: 3.26 | R68: 0.48 | S68: -0.11 | T68: -0.59
A69: ЕВРОПА: Чемпионат Европы до 21 года - Квалификация | B69: 2021.06.08 21:00 | C69: Косово U21 | D69: Андорра U21 | E69: IBeurkcs | F69: 6 | I69: Загрузить | L69: 1.33 | M69: 5.15 | N69: 8.3 | O69: 1.41 | P69: 4.32 | Q69: 6.2 | R69: -0.08 | S69: 0.83 | T69: 2.1
A70: МИР: Международные товарищеские матчи | B70: 2021.06.08 21:00 | C70: Австралия U23 | D70: Румыния U23 | E70: MufJDx7E | F70: 8 | I70: Загрузить | L70: 2.4 | M70: 3.6 | N70: 2.4 | O70: 2.4 | P70: 3.6 | Q70: 2.4 | R70: 0 | S70: 0 | T70: 0
A71: МИР: Международные товарищеские матчи | B71: 2021.06.08 21:00 | C71: Бенин | D71: Замбия | E71: 6JOodsq6 | F71: 8 | I71: Загрузить | L71: 2.3 | M71: 3 | N71: 2.87 | O71: 2.37 | P71: 3 | Q71: 2.75 | R71: -0.07 | S71: 0 | T71: 0.12
A72: МИР: Международные товарищеские матчи | B72: 2021.06.08 21:00 | C72: Венгрия | D72: Ирландия | E72: OMuEVEI7 | F72: 8 | I72: Загрузить | L72: 2.15 | M72: 3 | N72: 3.75 | O72: 2.5 | P72: 3.2 | Q72: 2.62 | R72: -0.35 | S72: -0.2 | T72: 1.13
A73: МИР: Международные товарищеские матчи | B73: 2021.06.08 21:00 | C73: Мексика U23 | D73: Саудовская Аравия U23 | E73: v7J8eqC4 | F73: 8 | I73: Загрузить | L73: 1.45 | M73: 4 | N73: 5.75 | O73: 1.5 | P73: 4 | Q73: 5 | R73: -0.05 | S73: 0 | T73: 0.75
A74: ШВЕЦИЯ: Второй дивизион - Северный Свеаленд | B74: 2021.06.08 21:00 | C74: Кунгсангенс | D74: IFK Stocksund | E74: MomkfhGD | F74: 181 | I74: Загрузить | L74: 2.86 | M74: 3.5 | N74: 2.16 | O74: 2.63 | P74: 3.5 | Q74: 2.25 | R74: 0.23 | S74: 0 | T74: -0.09
A75: МИР: Международные товарищеские матчи | B75: 2021.06.08 21:15 | C75: Чехия | D75: Албания | E75: SSZ59kar | F75: 8 | I75: Загрузить | L75: 1.53 | M75: 3.6 | N75: 7 | O75: 1.5 | P75: 3.6 | Q75: 6.5 | R75: 0.03 | S75: 0 | T75: 0.5
A76: МИР: Международные товарищеские матчи | B76: 2021.06.08 21:45 | C76: Испания | D76: Литва | E76: dlstwoJg | F76: 8 | I76: Загрузить | L76: 1.36 | M76: 4.75 | N76: 6.5 | O76: 1.05 | P76: 13 | Q76: 26 | R76: 0.31 | S76: -8.25 | T76: -19.5
A77: МИР: Клубные товарищеские матчи | B77: 2021.06.08 21:45 | C77: Рочестер Юнайтед | D77: Лордсвуд | E77: lKFEGpsU | F77: 8 | I77: Загрузить | L77: 3.9 | M77: 3.9 | N77: 1.76 | O77: 3.8 | P77: 3.74 | Q77: 1.75 | R77: 0.1 | S77: 0.16 | T77: 0.01
A78: АРГЕНТИНА: Торнео Федерал | B78: 2021.06.08 22:00 | C78: Спортиво Лас-Парехас | D78: Хувентуд Унида Гуалегуайчу | E78: YLzfpHEj | F78: 22 | I78: Загрузить | L78: 1.77 | M78: 3.32 | N78: 4.66 | O78: 1.75 | P78: 3.3 | Q78: 4.42 | R78: 0.02 | S78: 0.02 | T78: 0.24
A79: МИР: Международные товарищеские матчи | B79: 2021.06.08 22:00 | C79: Марокко | D79: Гана | E79: pj9vWEK8 | F79: 8 | I79: Загрузить | L79: 1.83 | M79: 3.25 | N79: 4.5 | O79: 1.9 | P79: 3.1 | Q79: 3.75 | R79: -0.07 | S79: 0.15 | T79: 0.75
A80: МИР: Международные товарищеские матчи | B80: 2021.06.08 22:00 | C80: Сенегал | D80: Кабо-Верде | E80: thyjLzIs | F80: 8 | I80: Загрузить | L80: 1.45 | M80: 3.75 | N80: 7 | O80: 1.4 | P80: 4 | Q80: 6.5 | R80: 0.05 | S80: -0.25 | T80: 0.5
A81: МИР: Международные товарищеские матчи | B81: 2021.06.08 22:10 | C81: Франция | D81: Болгария | E81: dESFhJ6s | F81: 8 | I81: Загрузить | L81: 1.06 | M81: 12 | N81: 26 | O81: 1.1 | P81: 9 | Q81: 21 | R81: -0.04 | S81: 3 | T81: 5
A82: БРАЗИЛИЯ: Кубок Бразилии | B82: 2021.06.08 22:30 | C82: Сантос | D82: Сианорти | E82: fy10dH9g | F82: 39 | I82: Загрузить | L82: 1.16 | M82: 5.75 | N82: 13 | O82: 1.16 | P82: 7 | Q82: 9 | R82: 0 | S82: -1.25 | T82: 4
A83: СЕВЕРНАЯ И ЦЕНТРАЛЬНАЯ АМЕРИКА: Чемпионат мира - Квалификация - Первый этап | B83: 2021.06.08 23:00 | C83: Гайана | D83: Пуэрто-Рико | E83: dl3sjXyU | F83: 2 | I83: Загрузить
A84: СЕВЕРНАЯ И ЦЕНТРАЛЬНАЯ АМЕРИКА: Чемпионат мира - Квалификация - Первый этап | B84: 2021.06.08 23:00 | C84: Сент-Винсент и Гренадины | D84: Куба | E84: EDqsRP21 | F84: 2 | I84: Загрузить
A85: СЕВЕРНАЯ И ЦЕНТРАЛЬНАЯ АМЕРИКА: Чемпионат мира - Квалификация - Первый этап | B85: 2021.06.09 00:00 | C85: Гаити | D85: Никарагуа | E85: l8BBxE7U | F85: 2 | I85: Загрузить | L85: 1.5 | M85: 3.75 | N85: 5.5 | O85: 1.7 | P85: 3.4 | Q85: 4.33 | R85: -0.2 | S85: 0.35 | T85: 1.17
A86: СЕВЕРНАЯ И ЦЕНТРАЛЬНАЯ АМЕРИКА: Чемпионат мира - Квалификация - Первый этап | B86: 2021.06.09 00:00 | C86: Тринидад и Тобаго | D86: Сент-Китс и Невис | E86: bck9oipo | F86: 2 | I86: Загрузить
A87: ЮЖНАЯ АМЕРИКА: Чемпионат мира - Квалификация | B87: 2021.06.09 00:00 | C87: Эквадор | D87: Перу | E87: zk3r0MTG | F87: 3 | I87: Загрузить | L87: 1.4 | M87: 4.5 | N87: 8 | O87: 1.44 | P87: 4 | Q87: 8 | R87: -0.04 | S87: 0.5 | T87: 0
R131: =IF(L131="","",L131-O131) ->  | S131: =IF(M131="","",M131-P131) ->  | T131: =IF(N131="","",N131-Q131) -> 
R195: =IF(L195="","",L195-O195) ->  | S195: =IF(M195="","",M195-P195) ->  | T195: =IF(N195="","",N195-Q195) -> 
R259: =IF(L259="","",L259-O259) ->  | S259: =IF(M259="","",M259-P259) ->  | T259: =IF(N259="","",N259-Q259) -> 
R323: =IF(L323="","",L323-O323) ->  | S323: =IF(M323="","",M323-P323) ->  | T323: =IF(N323="","",N323-Q323) -> 
R387: =IF(L387="","",L387-O387) ->  | S387: =IF(M387="","",M387-P387) ->  | T387: =IF(N387="","",N387-Q387) -> 
R451: =IF(L451="","",L451-O451) ->  | S451: =IF(M451="","",M451-P451) ->  | T451: =IF(N451="","",N451-Q451) -> 
R515: =IF(L515="","",L515-O515) ->  | S515: =IF(M515="","",M515-P515) ->  | T515: =IF(N515="","",N515-Q515) -> 
R579: =IF(L579="","",L579-O579) ->  | S579: =IF(M579="","",M579-P579) ->  | T579: =IF(N579="","",N579-Q579) -> 
R643: =IF(L643="","",L643-O643) ->  | S643: =IF(M643="","",M643-P643) ->  | T643: =IF(N643="","",N643-Q643) -> 
R707: =IF(L707="","",L707-O707) ->  | S707: =IF(M707="","",M707-P707) ->  | T707: =IF(N707="","",N707-Q707) -> 
R771: =IF(L771="","",L771-O771) ->  | S771: =IF(M771="","",M771-P771) ->  | T771: =IF(N771="","",N771-Q771) -> 
R835: =IF(L835="","",L835-O835) ->  | S835: =IF(M835="","",M835-P835) ->  | T835: =IF(N835="","",N835-Q835) -> 
R899: =IF(L899="","",L899-O899) ->  | S899: =IF(M899="","",M899-P899) ->  | T899: =IF(N899="","",N899-Q899) -> 
R963: =IF(L963="","",L963-O963) ->  | S963: =IF(M963="","",M963-P963) ->  | T963: =IF(N963="","",N963-Q963) -> 

Sheet Дома (hidden)
A1: Чемпионат | B1: Дата/Время | C1: Дома | D1: Гости | E1: К1 в 1Т | F1: К2 в 1Т | G1: К1 во 2Т | H1: К2 во 2Т | I1: Где играли | J1: К1 Голов | K1: К2 Голов | L1: Забито | M1: Пропущено | N1: Результат | O1: Всего Игр | P1: Всего выиграно | Q1: Всего ничьих | R1: Всего проиграно | S1: Всего забито | T1: Всего пропущено | U1: Всего очков | V1: Дома игр | W1: Дома выиграно | X1: Дома ничьих | Y1: Дома проиграно | Z1: Дома забито | AA1: Дома пропущено | AB1: Дома очков | AC1: Гости игр | AD1: Гости выиграно | AE1: Гости ничьих | AF1: Гости проиграно | AG1: Гости забито | AH1: Гости пропущено | AI1: Гости очков | AJ1: Тотал | AL1: 1тз | AM1: 1тп | AN1: 2тз | AO1: 2тп | AP1: Мз | AQ1: Мп
A2: ИРАН: Первый дивизион | B2: 2021.06.01 18:15 | C2: Хуши-Талаи | D2: Бадеран Тегеран | E2: 0 | F2: 0 | G2: 2 | H2: 0 | I2: Гости | J2: =IF(I2="","",E2+G2) -> 2 | K2: =IF(I2="","",F2+H2) -> 0 | L2: =IF(I2="","",IF(I2="Дома",J2,K2)) -> 0 | M2: =IF(I2="","",IF(I2="Дома",K2,J2)) -> 2 | N2: =IF(I2="","",IF(I2="Дома",IF(J2>K2,"В",IF(J2=K2,"Н","П")),IF(J2<K2,"В",IF(J2=K2,"Н","П")))) -> П | O2: =IF(I2="","",1) -> 1 | P2: =IF(I2="","",IF(N2="В",1,0)) -> 0 | Q2: =IF(I2="","",IF(N2="Н",1,0)) -> 0 | R2: =IF(I2="","",IF(N2="П",1,0)) -> 1 | S2: =IF(I2="","",L2) -> 0 | T2: =IF(I2="","",M2) -> 2 | U2: =IF(I2="","",P2*3+Q2) -> 0 | V2: =IF(I2="","",IF(I2="Дома",1,0)) -> 0 | W2: =IF(I2="","",IF(I2="Дома",IF(N2="В",1,0),0)) -> 0 | X2: =IF(I2="","",IF(I2="Дома",IF(N2="Н",1,0),0)) -> 0 | Y2: =IF(I2="","",IF(I2="Дома",IF(N2="П",1,0),0)) -> 0 | Z2: =IF(I2="","",IF(I2="Дома",L2,0)) -> 0 | AA2: =IF(I2="","",IF(I2="Дома",M2,0)) -> 0 | AB2: =IF(I2="","",IF(I2="Дома",W2*3+X2,0)) -> 0 | AC2: =IF(I2="","",IF(I2="Гости",1,0)) -> 1 | AD2: =IF(I2="","",IF(I2="Гости",IF(N2="В",1,0),0)) -> 0 | AE2: =IF(I2="","",IF(I2="Гости",IF(N2="Н",1,0),0)) -> 0 | AF2: =IF(I2="","",IF(I2="Гости",IF(N2="П",1,0),0)) -> 1 | AG2: =IF(I2="","",IF(I2="Гости",L2,0)) -> 0 | AH2: =IF(I2="","",IF(I2="Гости",M2,0)) -> 2 | AI2: =IF(I2="","",IF(I2="Гости",AD2*3+AE2,0)) -> 0 | AJ2: =IF(I2="Дома",L2+M2,"") ->  | AL2: =IF(I2="","",IF(I2="Дома",E2,F2)) -> 0 | AM2: =IF(I2="","",IF(I2="Дома",F2,E2)) -> 0 | AN2: =IF(I2="","",IF(I2="Дома",G2,H2)) -> 0 | AO2: =IF(I2="","",IF(I2="Дома",H2,G2)) -> 2 | AP2: =L2 -> 0 | AQ2: =M2 -> 2
A3: ИРАН: Первый дивизион | B3: 2021.05.26 18:05 | C3: Бадеран Тегеран | D3: Навад Урмия | E3: 0 | F3: 0 | G3: 1 | H3: 0 | I3: Дома | J3: =IF(I3="","",E3+G3) -> 1 | K3: =IF(I3="","",F3+H3) -> 0 | L3: =IF(I3="","",IF(I3="Дома",J3,K3)) -> 1 | M3: =IF(I3="","",IF(I3="Дома",K3,J3)) -> 0 | N3: =IF(I3="","",IF(I3="Дома",IF(J3>K3,"В",IF(J3=K3,"Н","П")),IF(J3<K3,"В",IF(J3=K3,"Н","П")))) -> В | O3: =IF(I3="","",O2+1) -> 2 | P3: =IF(I3="","",IF(N3="В",P2+1,P2)) -> 1 | Q3: =IF(I3="","",IF(N3="Н",Q2+1,Q2)) -> 0 | R3: =IF(I3="","",IF(N3="П",R2+1,R2)) -> 1 | S3: =IF(I3="","",S2+L3) -> 1 | T3: =IF(I3="","",T2+M3) -> 2 | U3: =IF(I3="","",P3*3+Q3) -> 3 | V3: =IF(I3="","",IF(I3="Дома",V2+1,V2+0)) -> 1 | W3: =IF(I3="","",IF(I3="Дома",IF(N3="В",W2+1,W2),W2)) -> 1 | X3: =IF(I3="","",IF(I3="Дома",IF(N3="Н",X2+1,X2),X2)) -> 0 | Y3: =IF(I3="","",IF(I3="Дома",IF(N3="П",Y2+1,Y2),Y2)) -> 0 | Z3: =IF(I3="","",IF(I3="Дома",L3+Z2,Z2)) -> 1 | AA3: =IF(I3="","",IF(I3="Дома",M3+AA2,AA2)) -> 0 | AB3: =IF(I3="","",IF(I3="Дома",W3*3+X3,AB2)) -> 3 | AC3: =IF(I3="","",IF(I3="Гости",AC2+1,AC2+0)) -> 1 | AD3: =IF(I3="","",IF(I3="Гости",IF(N3="В",AD2+1,AD2),AD2)) -> 0 | AE3: =IF(I3="","",IF(I3="Гости",IF(N3="Н",AE2+1,AE2),AE2)) -> 0 | AF3: =IF(I3="","",IF(I3="Гости",IF(N3="П",AF2+1,AF2),AF2)) -> 1 | AG3: =IF(I3="","",IF(I3="Гости",L3+AG2,AG2)) -> 0 | AH3: =IF(I3="","",IF(I3="Гости",M3+AH2,AH2)) -> 2 | AI3: =IF(I3="","",IF(I3="Гости",AD3*3+AE3,AI2)) -> 0 | AJ3: =IF(I3="Дома",L3+M3,"") -> 1 | AL3: =IF(I3="","",IF(I3="Дома",E3,F3)) -> 0 | AM3: =IF(I3="","",IF(I3="Дома",F3,E3)) -> 0 | AN3: =IF(I3="","",IF(I3="Дома",G3,H3)) -> 1 | AO3: =IF(I3="","",IF(I3="Дома",H3,G3)) -> 0 | AP3: =L3 -> 1 | AQ3: =M3 -> 0
A4: ИРАН: Первый дивизион | B4: 2021.05.20 18:45 | C4: Шахин Бушехр | D4: Бадеран Тегеран | E4: 1 | F4: 1 | G4: 1 | H4: 0 | I4: Гости | J4: 2 | K4: 1 | L4: 1 | M4: 2 | N4: П | O4: 3 | P4: =IF(I4="","",IF(N4="В",P3+1,P3)) -> 1 | Q4: =IF(I4="","",IF(N4="Н",Q3+1,Q3)) -> 0 | R4: =IF(I4="","",IF(N4="П",R3+1,R3)) -> 2 | S4: =IF(I4="","",S3+L4) -> 2 | T4: =IF(I4="","",T3+M4) -> 4 | U4: 3 | V4: =IF(I4="","",IF(I4="Дома",V3+1,V3+0)) -> 1 | W4: =IF(I4="","",IF(I4="Дома",IF(N4="В",W3+1,W3),W3)) -> 1 | X4: =IF(I4="","",IF(I4="Дома",IF(N4="Н",X3+1,X3),X3)) -> 0 | Y4: =IF(I4="","",IF(I4="Дома",IF(N4="П",Y3+1,Y3),Y3)) -> 0 | Z4: =IF(I4="","",IF(I4="Дома",L4+Z3,Z3)) -> 1 | AA4: =IF(I4="","",IF(I4="Дома",M4+AA3,AA3)) -> 0 | AB4: =IF(I4="","",IF(I4="Дома",W4*3+X4,AB3)) -> 3 | AC4: =IF(I4="","",IF(I4="Гости",AC3+1,AC3+0)) -> 2 | AD4: =IF(I4="","",IF(I4="Гости",IF(N4="В",AD3+1,AD3),AD3)) -> 0 | AE4: =IF(I4="","",IF(I4="Гости",IF(N4="Н",AE3+1,AE3),AE3)) -> 0 | AF4: =IF(I4="","",IF(I4="Гости",IF(N4="П",AF3+1,AF3),AF3)) -> 2 | AG4: =IF(I4="","",IF(I4="Гости",L4+AG3,AG3)) -> 1 | AH4: =IF(I4="","",IF(I4="Гости",M4+AH3,AH3)) -> 4 | AI4: =IF(I4="","",IF(I4="Гости",AD4*3+AE4,AI3)) -> 0 | AL4: 1 | AM4: 1 | AN4: 0 | AO4: 1 | AP4: 1 | AQ4: 2
A5: ИРАН: Первый дивизион | B5: 2021.05.14 16:45 | C5: Бадеран Тегеран | D5: Гол Рейхан | E5: 2 | F5: 1 | G5: 0 | H5: 0 | I5: Дома | J5: 2 | K5: 1 | L5: 2 | M5: 1 | N5: В | O5: 4 | P5: 2 | Q5: 0 | R5: 2 | S5: 4 | T5: 5 | U5: 6 | V5: 2 | W5: 2 | X5: 0 | Y5: 0 | Z5: 3 | AA5: 1 | AB5: 6 | AC5: 2 | AD5: 0 | AE5: 0 | AF5: 2 | AG5: 1 | AH5: 4 | AI5: 0 | AJ5: 3 | AL5: 2 | AM5: 1 | AN5: 0 | AO5: 0 | AP5: 2 | AQ5: 1
A6: ИРАН: Первый дивизион | B6: 2021.05.08 18:45 | C6: Могхавемат | D6: Бадеран Тегеран | E6: 0 | F6: 1 | G6: 1 | H6: 1 | I6: Гости | J6: 1 | K6: 2 | L6: 2 | M6: 1 | N6: В | O6: 5 | P6: 3 | Q6: 0 | R6: 2 | S6: 6 | T6: 6 | U6: 9 | V6: 2 | W6: 2 | X6: 0 | Y6: 0 | Z6: 3 | AA6: 1 | AB6: 6 | AC6: 3 | AD6: 1 | AE6: 0 | AF6: 2 | AG6: 3 | AH6: 5 | AI6: 3 | AL6: 1 | AM6: 0 | AN6: 1 | AO6: 1 | AP6: 2 | AQ6: 1
A7: ИРАН: Первый дивизион | B7: 2021.04.26 18:45 | C7: Бадеран Тегеран | D7: Хавадар | E7: 0 | F7: 1 | G7: 0 | H7: 1 | I7: Дома | J7: 0 | K7: 2 | L7: 0 | M7: 2 | N7: П | O7: 6 | P7: 3 | Q7: 0 | R7: 3 | S7: 6 | T7: 8 | U7: 9 | V7: 3 | W7: 2 | X7: 0 | Y7: 1 | Z7: 3 | AA7: 3 | AB7: 6 | AC7: 3 | AD7: 1 | AE7: 0 | AF7: 2 | AG7: 3 | AH7: 5 | AI7: 3 | AJ7: 2
A8: ИРАН: Первый дивизион | B8: 2021.04.19 18:45 | C8: Астара | D8: Бадеран Тегеран | E8: 0 | F8: 1 | G8: 0 | H8: 2 | I8: Гости | J8: 0 | K8: 3 | L8: 3 | M8: 0 | N8: В | O8: 7 | P8: 4 | Q8: 0 | R8: 3 | S8: 9 | T8: 8 | U8: 12 | V8: 3 | W8: 2 | X8: 0 | Y8: 1 | Z8: 3 | AA8: 3 | AB8: 6 | AC8: 4 | AD8: 2 | AE8: 0 | AF8: 2 | AG8: 6 | AH8: 5 | AI8: 6 | AL8: =SUM(AL2:AL6)/5 -> 0.8 | AM8: =SUM(AM2:AM6)/5 -> 0.4 | AN8: 0.4 | AO8: 0.8 | AP8: 1.2 | AQ8: 1.2
A9: ИРАН: Первый дивизион | B9: 2021.04.13 15:00 | C9: Бадеран Тегеран | D9: Арман Гохар | E9: 2 | F9: 0 | G9: 0 | H9: 0 | I9: Дома | J9: 2 | K9: 0 | L9: 2 | M9: 0 | N9: =IF(I9="","",IF(I9="Дома",IF(J9>K9,"В",IF(J9=K9,"Н","П")),IF(J9<K9,"В",IF(J9=K9,"Н","П")))) -> В | O9: 8 | P9: 5 | Q9: 0 | R9: 3 | S9: 11 | T9: 8 | U9: 15 | V9: 4 | W9: 3 | X9: 0 | Y9: 1 | Z9: 5 | AA9: 3 | AB9: 9 | AC9: 4 | AD9: 2 | AE9: 0 | AF9: 2 | AG9: 6 | AH9: 5 | AI9: 6 | AJ9: 2
A10: ИРАН: Первый дивизион | B10: 2021.04.07 15:00 | C10: Хейбар Хоррамабад | D10: Бадеран Тегеран | E10: 0 | F10: 0 | G10: 1 | H10: 0 | I10: Гости | J10: 1 | K10: 0 | L10: 0 | M10: 1 | N10: =IF(I10="","",IF(I10="Дома",IF(J10>K10,"В",IF(J10=K10,"Н","П")),IF(J10<K10,"В",IF(J10=K10,"Н","П")))) -> П | O10: 9 | P10: 5 | Q10: 0 | R10: 4 | S10: 11 | T10: 9 | U10: 15 | V10: 4 | W10: 3 | X10: 0 | Y10: 1 | Z10: 5 | AA10: 3 | AB10: 9 | AC10: 5 | AD10: 2 | AE10: 0 | AF10: 3 | AG10: 6 | AH10: 6 | AI10: 6
A11: ИРАН: Первый дивизион | B11: 2021.03.14 14:30 | C11: Бадеран Тегеран | D11: Эстеглал Хузестан | E11: 0 | F11: 0 | G11: 0 | H11: 0 | I11: Дома | J11: 0 | K11: 0 | L11: 0 | M11: 0 | N11: Н | O11: 10 | P11: 5 | Q11: 1 | R11: 4 | S11: 11 | T11: 9 | U11: 16 | V11: 5 | W11: 3 | X11: 1 | Y11: 1 | Z11: 5 | AA11: 3 | AB11: 10 | AC11: 5 | AD11: 2 | AE11: 0 | AF11: 3 | AG11: 6 | AH11: 6 | AI11: 6 | AJ11: 0
A12: ИРАН: Первый дивизион | B12: 2021.03.07 14:15 | C12: Бадеран Тегеран | D12: Малаван | E12: 1 | F12: 0 | G12: 2 | H12: 0 | I12: Дома | J12: 3 | K12: 0 | L12: 3 | M12: 0 | N12: В | O12: 11 | P12: 6 | Q12: 1 | R12: 4 | S12: 14 | T12: 9 | U12: =IF(I12="","",P12*3+Q12) -> 19 | V12: 6 | W12: 4 | X12: 1 | Y12: 1 | Z12: 8 | AA12: 3 | AB12: 13 | AC12: 5 | AD12: 2 | AE12: 0 | AF12: 3 | AG12: 6 | AH12: 6 | AI12: 6 | AJ12: 3
A13: ИРАН: Первый дивизион | B13: 2021.03.02 14:00 | C13: Райка Баболь | D13: Бадеран Тегеран | E13: 0 | F13: 2 | G13: 3 | H13: 0 | I13: Гости | J13: 3 | K13: 2 | L13: 2 | M13: 3 | N13: П | O13: 12 | P13: 6 | Q13: 1 | R13: 5 | S13: 16 | T13: 12 | U13: 19 | V13: 6 | W13: 4 | X13: 1 | Y13: 1 | Z13: 8 | AA13: 3 | AB13: 13 | AC13: 6 | AD13: 2 | AE13: 0 | AF13: 4 | AG13: 8 | AH13: 9 | AI13: 6
A14: ИРАН: Первый дивизион | B14: 2021.02.20 14:00 | C14: Бадеран Тегеран | D14: Кашкай Шираз | E14: 1 | F14: 1 | G14: 0 | H14: 2 | I14: Дома | J14: 1 | K14: 3 | L14: 1 | M14: 3 | N14: П | O14: 13 | P14: 6 | Q14: 1 | R14: 6 | S14: 17 | T14: 15 | U14: 19 | V14: 7 | W14: 4 | X14: 1 | Y14: 2 | Z14: 9 | AA14: 6 | AB14: 13 | AC14: 6 | AD14: 2 | AE14: 0 | AF14: 4 | AG14: 8 | AH14: 9 | AI14: 6 | AJ14: 4
A15: ИРАН: Первый дивизион | B15: 2021.02.14 13:30 | C15: Чока Талеш | D15: Бадеран Тегеран | E15: 1 | F15: 1 | G15: 1 | H15: 3 | I15: Гости | J15: 2 | K15: 4 | L15: 4 | M15: 2 | N15: В | O15: 14 | P15: 7 | Q15: 1 | R15: 6 | S15: 21 | T15: 17 | U15: 22 | V15: 7 | W15: 4 | X15: 1 | Y15: 2 | Z15: 9 | AA15: 6 | AB15: 13 | AC15: 7 | AD15: 3 | AE15: 0 | AF15: 4 | AG15: 12 | AH15: 11 | AI15: 9
A16: ИРАН: Первый дивизион | B16: 2021.02.07 13:30 | C16: Бадеран Тегеран | D16: Парс Джануби Джем | E16: 0 | F16: 0 | G16: 1 | H16: 0 | I16: Дома | J16: 1 | K16: 0 | L16: 1 | M16: 0 | N16: В | O16: 15 | P16: 8 | Q16: 1 | R16: 6 | S16: 22 | T16: 17 | U16: 25 | V16: 8 | W16: 5 | X16: 1 | Y16: 2 | Z16: 10 | AA16: 6 | AB16: 16 | AC16: 7 | AD16: 3 | AE16: 0 | AF16: 4 | AG16: 12 | AH16: 11 | AI16: 9 | AJ16: 1
A17: ИРАН: Первый дивизион | B17: 2021.02.01 13:30 | C17: Бадеран Тегеран | D17: Мес Керман | E17: 1 | F17: 1 | G17: 1 | H17: 0 | I17: Дома | J17: 2 | K17: 1 | L17: 2 | M17: 1 | N17: В | O17: 16 | P17: 9 | Q17: 1 | R17: 6 | S17: 24 | T17: 18 | U17: 28 | V17: 9 | W17: 6 | X17: 1 | Y17: 2 | Z17: 12 | AA17: 7 | AB17: 19 | AC17: 7 | AD17: 3 | AE17: 0 | AF17: 4 | AG17: 12 | AH17: 11 | AI17: 9 | AJ17: 3
A18: ИРАН: Первый дивизион | B18: 2021.01.25 13:30 | C18: Эстеглал Моласани | D18: Бадеран Тегеран | E18: 1 | F18: 0 | G18: 0 | H18: 1 | I18: Гости | J18: 1 | K18: 1 | L18: 1 | M18: 1 | N18: Н | O18: 17 | P18: 9 | Q18: 2 | R18: 6 | S18: 25 | T18: 19 | U18: 29 | V18: 9 | W18: 6 | X18: 1 | Y18: 2 | Z18: 12 | AA18: 7 | AB18: 19 | AC18: 8 | AD18: 3 | AE18: 1 | AF18: 4 | AG18: 13 | AH18: 12 | AI18: 10
A19: ИРАН: Первый дивизион | B19: 2021.01.18 13:30 | C19: Бадеран Тегеран | D19: Хуши-Талаи | E19: 1 | F19: 1 | G19: 0 | H19: 0 | I19: Дома | J19: 1 | K19: 1 | L19: 1 | M19: 1 | N19: Н | O19: 18 | P19: 9 | Q19: 3 | R19: 6 | S19: 26 | T19: 20 | U19: 30 | V19: 10 | W19: 6 | X19: 2 | Y19: 2 | Z19: 13 | AA19: 8 | AB19: 20 | AC19: 8 | AD19: 3 | AE19: 1 | AF19: 4 | AG19: 13 | AH19: 12 | AI19: 10 | AJ19: 2
A20: ИРАН: Первый дивизион | B20: 2021.01.11 13:30 | C20: Навад Урмия | D20: Бадеран Тегеран | E20: 0 | F20: 0 | G20: 0 | H20: 2 | I20: Гости | J20: 0 | K20: 2 | L20: 2 | M20: 0 | N20: В | O20: 19 | P20: 10 | Q20: 3 | R20: 6 | S20: 28 | T20: 20 | U20: 33 | V20: 10 | W20: 6 | X20: 2 | Y20: 2 | Z20: 13 | AA20: 8 | AB20: 20 | AC20: 9 | AD20: 4 | AE20: 1 | AF20: 4 | AG20: 15 | AH20: 12 | AI20: 13
A21: ИРАН: Первый дивизион | B21: 2021.01.04 13:30 | C21: Бадеран Тегеран | D21: Шахин Бушехр | E21: 0 | F21: 0 | G21: 0 | H21: 0 | I21: Дома | J21: 0 | K21: 0 | L21: 0 | M21: 0 | N21: Н | O21: 20 | P21: 10 | Q21: 4 | R21: 6 | S21: 28 | T21: 20 | U21: 34 | V21: 11 | W21: 6 | X21: 3 | Y21: 2 | Z21: 13 | AA21: 8 | AB21: 21 | AC21: 9 | AD21: 4 | AE21: 1 | AF21: 4 | AG21: 15 | AH21: 12 | AI21: 13 | AJ21: 0
A22: ИРАН: Первый дивизион | B22: 2020.12.28 13:30 | C22: Гол Рейхан | D22: Бадеран Тегеран | E22: 1 | F22: 0 | G22: 0 | H22: 0 | I22: Гости | J22: 1 | K22: 0 | L22: 0 | M22: 1 | N22: П | O22: 21 | P22: 10 | Q22: 4 | R22: 7 | S22: 28 | T22: 21 | U22: 34 | V22: 11 | W22: 6 | X22: 3 | Y22: 2 | Z22: 13 | AA22: 8 | AB22: 21 | AC22: 10 | AD22: 4 | AE22: 1 | AF22: 5 | AG22: 15 | AH22: 13 | AI22: 13
A23: ИРАН: Первый дивизион | B23: 2020.12.22 13:30 | C23: Бадеран Тегеран | D23: Могхавемат | E23: 0 | F23: 0 | G23: 0 | H23: 1 | I23: Дома | J23: 0 | K23: 1 | L23: 0 | M23: 1 | N23: П | O23: 22 | P23: 10 | Q23: 4 | R23: 8 | S23: 28 | T23: 22 | U23: 34 | V23: 12 | W23: 6 | X23: 3 | Y23: 3 | Z23: 13 | AA23: 9 | AB23: 21 | AC23: 10 | AD23: 4 | AE23: 1 | AF23: 5 | AG23: 15 | AH23: 13 | AI23: 13 | AJ23: 1
A24: ИРАН: Первый дивизион | B24: 2020.12.16 13:30 | C24: Хавадар | D24: Бадеран Тегеран | E24: 1 | F24: 0 | G24: 0 | H24: 2 | I24: Гости | J24: 1 | K24: 2 | L24: 2 | M24: 1 | N24: В | O24: 23 | P24: 11 | Q24: 4 | R24: 8 | S24: 30 | T24: 23 | U24: 37 | V24: 12 | W24: 6 | X24: 3 | Y24: 3 | Z24: 13 | AA24: 9 | AB24: 21 | AC24: 11 | AD24: 5 | AE24: 1 | AF24: 5 | AG24: 17 | AH24: 14 | AI24: 16
A25: ИРАН: Первый дивизион | B25: 2020.12.10 13:30 | C25: Бадеран Тегеран | D25: Астара | E25: 0 | F25: 0 | G25: 1 | H25: 0 | I25: Дома | J25: 1 | K25: 0 | L25: 1 | M25: 0 | N25: В | O25: 24 | P25: 12 | Q25: 4 | R25: 8 | S25: 31 | T25: 23 | U25: 40 | V25: 13 | W25: 7 | X25: 3 | Y25: 3 | Z25: 14 | AA25: 9 | AB25: 24 | AC25: 11 | AD25: 5 | AE25: 1 | AF25: 5 | AG25: 17 | AH25: 14 | AI25: 16 | AJ25: 1
A26: ИРАН: Первый дивизион | B26: 2020.12.05 13:45 | C26: Арман Гохар | D26: Бадеран Тегеран | E26: 0 | F26: 0 | G26: 0 | H26: 0 | I26: Гости | J26: 0 | K26: 0 | L26: 0 | M26: 0 | N26: Н | O26: 25 | P26: 12 | Q26: 5 | R26: 8 | S26: 31 | T26: 23 | U26: 41 | V26: 13 | W26: 7 | X26: 3 | Y26: 3 | Z26: 14 | AA26: 9 | AB26: 24 | AC26: 12 | AD26: 5 | AE26: 2 | AF26: 5 | AG26: 17 | AH26: 14 | AI26: 17
A27: ИРАН: Первый дивизион | B27: 2020.11.29 14:15 | C27: Бадеран Тегеран | D27: Хейбар Хоррамабад | E27: 1 | F27: 0 | G27: 0 | H27: 0 | I27: Дома | J27: 1 | K27: 0 | L27: 1 | M27: 0 | N27: В | O27: 26 | P27: 13 | Q27: 5 | R27: 8 | S27: 32 | T27: 23 | U27: 44 | V27: 14 | W27: 8 | X27: 3 | Y27: 3 | Z27: 15 | AA27: 9 | AB27: 27 | AC27: 12 | AD27: 5 | AE27: 2 | AF27: 5 | AG27: 17 | AH27: 14 | AI27: 17 | AJ27: 1
A28: ИРАН: Первый дивизион | B28: 2020.11.22 15:00 | C28: Эстеглал Хузестан | D28: Бадеран Тегеран | E28: 0 | F28: 0 | G28: 1 | H28: 0 | I28: Гости | J28: 1 | K28: 0 | L28: 0 | M28: 1 | N28: П | O28: 27 | P28: 13 | Q28: 5 | R28: 9 | S28: 32 | T28: 24 | U28: 44 | V28: 14 | W28: 8 | X28: 3 | Y28: 3 | Z28: 15 | AA28: 9 | AB28: 27 | AC28: 13 | AD28: 5 | AE28: 2 | AF28: 6 | AG28: 17 | AH28: 15 | AI28: 17
A29: ИРАН: Первый дивизион | B29: 2020.08.16 18:30 | C29: Мес Рафсанжан | D29: Бадеран Тегеран | E29: 0 | F29: 1 | G29: 1 | H29: 0 | I29: Гости | J29: 1 | K29: 1 | L29: 1 | M29: 1 | N29: Н | O29: 28 | P29: 13 | Q29: 6 | R29: 9 | S29: 33 | T29: 25 | U29: 45 | V29: 14 | W29: 8 | X29: 3 | Y29: 3 | Z29: 15 | AA29: 9 | AB29: 27 | AC29: 14 | AD29: 5 | AE29: 3 | AF29: 6 | AG29: 18 | AH29: 16 | AI29: 18
A30: ИРАН: Первый дивизион | B30: 2020.08.08 18:30 | C30: Бадеран Тегеран | D30: Сепидруд Рашт | E30: 0 | F30: 0 | G30: 1 | H30: 0 | I30: Дома | J30: 1 | K30: 0 | L30: 1 | M30: 0 | N30: В | O30: 29 | P30: 14 | Q30: 6 | R30: 9 | S30: 34 | T30: 25 | U30: 48 | V30: 15 | W30: 9 | X30: 3 | Y30: 3 | Z30: 16 | AA30: 9 | AB30: 30 | AC30: 14 | AD30: 5 | AE30: 3 | AF30: 6 | AG30: 18 | AH30: 16 | AI30: 18 | AJ30: 1
A31: ИРАН: Первый дивизион | B31: 2020.08.02 18:00 | C31: Бадеран Тегеран | D31: Навад Урмия | E31: 1 | F31: 0 | G31: 1 | H31: 0 | I31: Дома | J31: 2 | K31: 0 | L31: 2 | M31: 0 | N31: В | O31: 30 | P31: 15 | Q31: 6 | R31: 9 | S31: 36 | T31: 25 | U31: 51 | V31: 16 | W31: 10 | X31: 3 | Y31: 3 | Z31: 18 | AA31: 9 | AB31: 33 | AC31: 14 | AD31: 5 | AE31: 3 | AF31: 6 | AG31: 18 | AH31: 16 | AI31: 18 | AJ31: 2
A32: ИРАН: Первый дивизион | B32: 2020.07.25 18:10 | C32: Гол Рейхан | D32: Бадеран Тегеран | E32: 0 | F32: 0 | G32: 1 | H32: 1 | I32: Гости | J32: 1 | K32: 1 | L32: 1 | M32: 1 | N32: Н | O32: 31 | P32: 15 | Q32: 7 | R32: 9 | S32: 37 | T32: 26 | U32: 52 | V32: 16 | W32: 10 | X32: 3 | Y32: 3 | Z32: 18 | AA32: 9 | AB32: 33 | AC32: 15 | AD32: 5 | AE32: 4 | AF32: 6 | AG32: 19 | AH32: 17 | AI32: 19
A33: ИРАН: Первый дивизион | B33: 2020.07.19 17:40 | C33: Бадеран Тегеран | D33: Могхавемат | E33: 1 | F33: 1 | G33: 2 | H33: 0 | I33: Дома | J33: 3 | K33: 1 | L33: 3 | M33: 1 | N33: В | O33: 32 | P33: 16 | Q33: 7 | R33: 9 | S33: 40 | T33: 27 | U33: 55 | V33: 17 | W33: 11 | X33: 3 | Y33: 3 | Z33: 21 | AA33: 10 | AB33: 36 | AC33: 15 | AD33: 5 | AE33: 4 | AF33: 6 | AG33: 19 | AH33: 17 | AI33: 19 | AJ33: 4
A34: ИРАН: Первый дивизион | B34: 2020.07.12 18:20 | C34: Хуши-Талаи | D34: Бадеран Тегеран | E34: 2 | F34: 1 | G34: 0 | H34: 2 | I34: Гости | J34: 2 | K34: 3 | L34: 3 | M34: 2 | N34: В | O34: 33 | P34: 17 | Q34: 7 | R34: 9 | S34: 43 | T34: 29 | U34: 58 | V34: 17 | W34: 11 | X34: 3 | Y34: 3 | Z34: 21 | AA34: 10 | AB34: 36 | AC34: 16 | AD34: 6 | AE34: 4 | AF34: 6 | AG34: 22 | AH34: 19 | AI34: 22
A35: ИРАН: Первый дивизион | B35: 2020.07.06 18:20 | C35: Бадеран Тегеран | D35: Мес Керман | E35: 0 | F35: 0 | G35: 1 | H35: 2 | I35: Дома | J35: 1 | K35: 2 | L35: 1 | M35: 2 | N35: П | O35: =IF(I35="","",O34+1) -> 34 | P35: 17 | Q35: 7 | R35: 10 | S35: 44 | T35: 31 | U35: 58 | V35: 18 | W35: 11 | X35: 3 | Y35: 4 | Z35: 22 | AA35: 12 | AB35: 36 | AC35: 16 | AD35: 6 | AE35: 4 | AF35: 6 | AG35: 22 | AH35: 19 | AI35: 22 | AJ35: 3
A36: ИРАН: Первый дивизион | B36: 2020.06.30 18:30 | C36: Малаван | D36: Бадеран Тегеран | E36: 0 | F36: 0 | G36: 2 | H36: 0 | I36: Гости | J36: 2 | K36: 0 | L36: 0 | M36: 2 | N36: П | O36: 35 | P36: 17 | Q36: 7 | R36: 11 | S36: 44 | T36: 33 | U36: 58 | V36: 18 | W36: 11 | X36: 3 | Y36: 4 | Z36: 22 | AA36: 12 | AB36: 36 | AC36: 17 | AD36: 6 | AE36: 4 | AF36: 7 | AG36: 22 | AH36: 21 | AI36: 22
A37: ИРАН: Первый дивизион | B37: 2020.02.28 12:00 | C37: Бадеран Тегеран | D37: Damash Gilan | E37: 1 | F37: 1 | G37: 1 | H37: 0 | I37: Дома | J37: 2 | K37: 1 | L37: 2 | M37: 1 | N37: В | O37: 36 | P37: 18 | Q37: 7 | R37: 11 | S37: 46 | T37: 34 | U37: 61 | V37: 19 | W37: 12 | X37: 3 | Y37: 4 | Z37: 24 | AA37: 13 | AB37: 39 | AC37: 17 | AD37: 6 | AE37: 4 | AF37: 7 | AG37: 22 | AH37: 21 | AI37: 22 | AJ37: 3
A38: ИРАН: Первый дивизион | B38: 2020.02.23 13:45 | C38: Алюминиум Арак | D38: Бадеран Тегеран | E38: 0 | F38: 0 | G38: 1 | H38: 0 | I38: Гости | J38: 1 | K38: 0 | L38: 0 | M38: 1 | N38: П | O38: 37 | P38: 18 | Q38: 7 | R38: 12 | S38: 46 | T38: 35 | U38: 61 | V38: 19 | W38: 12 | X38: 3 | Y38: 4 | Z38: 24 | AA38: 13 | AB38: 39 | AC38: 18 | AD38: 6 | AE38: 4 | AF38: 8 | AG38: 22 | AH38: 22 | AI38: 22
A39: ИРАН: Первый дивизион | B39: 2020.02.16 13:45 | C39: Бадеран Тегеран | D39: Кашкай Шираз | E39: 3 | F39: 0 | G39: 1 | H39: 3 | I39: Дома | J39: 4 | K39: 3 | L39: 4 | M39: 3 | N39: В | O39: 38 | P39: 19 | Q39: 7 | R39: 12 | S39: 50 | T39: 38 | U39: 64 | V39: 20 | W39: 13 | X39: 3 | Y39: 4 | Z39: 28 | AA39: 16 | AB39: 42 | AC39: 18 | AD39: 6 | AE39: 4 | AF39: 8 | AG39: 22 | AH39: 22 | AI39: 22 | AJ39: 7
A40: ИРАН: Первый дивизион | B40: 2020.02.08 13:30 | C40: Хавадар | D40: Бадеран Тегеран | E40: 0 | F40: 0 | G40: 2 | H40: 1 | I40: Гости | J40: 2 | K40: 1 | L40: 1 | M40: 2 | N40: П | O40: 39 | P40: 19 | Q40: 7 | R40: 13 | S40: 51 | T40: 40 | U40: 64 | V40: 20 | W40: 13 | X40: 3 | Y40: 4 | Z40: 28 | AA40: 16 | AB40: 42 | AC40: 19 | AD40: 6 | AE40: 4 | AF40: 9 | AG40: 23 | AH40: 24 | AI40: 22
A41: ИРАН: Первый дивизион | B41: 2020.02.02 13:30 | C41: Бадеран Тегеран | D41: Арман Гохар | E41: 1 | F41: 0 | G41: 3 | H41: 0 | I41: Дома | J41: 4 | K41: 0 | L41: 4 | M41: 0 | N41: В | O41: 40 | P41: 20 | Q41: 7 | R41: 13 | S41: 55 | T41: 40 | U41: 67 | V41: 21 | W41: 14 | X41: 3 | Y41: 4 | Z41: 32 | AA41: 16 | AB41: 45 | AC41: 19 | AD41: 6 | AE41: 4 | AF41: 9 | AG41: 23 | AH41: 24 | AI41: 22 | AJ41: 4
J67: =IF(I67="","",E67+G67) ->  | K67: =IF(I67="","",F67+H67) ->  | L67: =IF(I67="","",IF(I67="Дома",J67,K67)) ->  | M67: =IF(I67="","",IF(I67="Дома",K67,J67)) ->  | O67: =IF(I67="","",O66+1) ->  | U67: =IF(I67="","",P67*3+Q67) ->  | AJ67: =IF(I67="Дома",L67+M67,"") -> 
P68: =IF(I68="","",IF(N68="В",P67+1,P67)) ->  | Q68: =IF(I68="","",IF(N68="Н",Q67+1,Q67)) ->  | R68: =IF(I68="","",IF(N68="П",R67+1,R67)) ->  | S68: =IF(I68="","",S67+L68) ->  | T68: =IF(I68="","",T67+M68) ->  | V68: =IF(I68="","",IF(I68="Дома",V67+1,V67+0)) ->  | W68: =IF(I68="","",IF(I68="Дома",IF(N68="В",W67+1,W67),W67)) ->  | X68: =IF(I68="","",IF(I68="Дома",IF(N68="Н",X67+1,X67),X67)) ->  | Y68: =IF(I68="","",IF(I68="Дома",IF(N68="П",Y67+1,Y67),Y67)) ->  | Z68: =IF(I68="","",IF(I68="Дома",L68+Z67,Z67)) ->  | AA68: =IF(I68="","",IF(I68="Дома",M68+AA67,AA67)) ->  | AB68: =IF(I68="","",IF(I68="Дома",W68*3+X68,AB67)) ->  | AC68: =IF(I68="","",IF(I68="Гости",AC67+1,AC67+0)) ->  | AD68: =IF(I68="","",IF(I68="Гости",IF(N68="В",AD67+1,AD67),AD67)) ->  | AE68: =IF(I68="","",IF(I68="Гости",IF(N68="Н",AE67+1,AE67),AE67)) ->  | AF68: =IF(I68="","",IF(I68="Гости",IF(N68="П",AF67+1,AF67),AF67)) ->  | AG68: =IF(I68="","",IF(I68="Гости",L68+AG67,AG67)) ->  | AH68: =IF(I68="","",IF(I68="Гости",M68+AH67,AH67)) ->  | AI68: =IF(I68="","",IF(I68="Гости",AD68*3+AE68,AI67)) -> 
N74: =IF(I74="","",IF(I74="Дома",IF(J74>K74,"В",IF(J74=K74,"Н","П")),IF(J74<K74,"В",IF(J74=K74,"Н","П")))) -> 
O99: =IF(I99="","",O98+1) -> 
J131: =IF(I131="","",E131+G131) ->  | K131: =IF(I131="","",F131+H131) ->  | L131: =IF(I131="","",IF(I131="Дома",J131,K131)) ->  | M131: =IF(I131="","",IF(I131="Дома",K131,J131)) ->  | O131: =IF(I131="","",O130+1) ->  | U131: =IF(I131="","",P131*3+Q131) ->  | AJ131: =IF(I131="Дома",L131+M131,"") -> 
P132: =IF(I132="","",IF(N132="В",P131+1,P131)) ->  | Q132: =IF(I132="","",IF(N132="Н",Q131+1,Q131)) ->  | R132: =IF(I132="","",IF(N132="П",R131+1,R131)) ->  | S132: =IF(I132="","",S131+L132) ->  | T132: =IF(I132="","",T131+M132) ->  | V132: =IF(I132="","",IF(I132="Дома",V131+1,V131+0)) ->  | W132: =IF(I132="","",IF(I132="Дома",IF(N132="В",W131+1,W131),W131)) ->  | X132: =IF(I132="","",IF(I132="Дома",IF(N132="Н",X131+1,X131),X131)) ->  | Y132: =IF(I132="","",IF(I132="Дома",IF(N132="П",Y131+1,Y131),Y131)) ->  | Z132: =IF(I132="","",IF(I132="Дома",L132+Z131,Z131)) ->  | AA132: =IF(I132="","",IF(I132="Дома",M132+AA131,AA131)) ->  | AB132: =IF(I132="","",IF(I132="Дома",W132*3+X132,AB131)) ->  | AC132: =IF(I132="","",IF(I132="Гости",AC131+1,AC131+0)) ->  | AD132: =IF(I132="","",IF(I132="Гости",IF(N132="В",AD131+1,AD131),AD131)) ->  | AE132: =IF(I132="","",IF(I132="Гости",IF(N132="Н",AE131+1,AE131),AE131)) ->  | AF132: =IF(I132="","",IF(I132="Гости",IF(N132="П",AF131+1,AF131),AF131)) ->  | AG132: =IF(I132="","",IF(I132="Гости",L132+AG131,AG131)) ->  | AH132: =IF(I132="","",IF(I132="Гости",M132+AH131,AH131)) ->  | AI132: =IF(I132="","",IF(I132="Гости",AD132*3+AE132,AI131)) -> 
N138: =IF(I138="","",IF(I138="Дома",IF(J138>K138,"В",IF(J138=K138,"Н","П")),IF(J138<K138,"В",IF(J138=K138,"Н","П")))) -> 

Sheet Команда1 (hidden)
A1: Данные 10-и последних матчей 1 команды | N1: Всего | U1: Дома | AB1: В гостях | AI1: Забивают дома | AM1: Забивают в гостях
A2: Команда - 1 | D2: =IF(F3=F4,F3,IF(F3=G4,F3,G3)) -> Бадеран Тегеран | F2: Команда1 | G2: Команда2 | H2: Голы1 | I2: Голы2 | J2: Где играла | K2: Результат | L2: Забито | M2: Пропущено | N2: Игр | O2: В | P2: Н | Q2: П | R2: Забито | S2: Пропущено | T2: Очки | U2: Игр | V2: В | W2: Н | X2: П | Y2: Забито | Z2: Пропущено | AA2: Очки | AB2: Игр | AC2: В | AD2: Н | AE2: П | AF2: Забито | AG2: Пропущено | AH2: Очки | AI2: 0 | AJ2: 1 | AK2: 2 | AL2: 3+ | AM2: 0 | AN2: 1 | AO2: 2 | AP2: 3+ | AQ2: Забивают | AR2: Пропускают | AS2: Рейтинг | AT2: Серия | AU2: Тотал
A3: =Дома!B2 -> 2021.06.01 18:15 | B3: =Дома!A2 -> ИРАН: Первый дивизион | C3: =Дома!C2 -> Хуши-Талаи | D3: =Дома!D2 -> Бадеран Тегеран | E3: =CONCATENATE(Дома!E2,"-",Дома!F2) -> 0-0 | F3: =C3 -> Хуши-Талаи | G3: =D3 -> Бадеран Тегеран | H3: =VALUE(LEFT(E3,FIND("-",E3,1)-1)) -> 0 | I3: =VALUE(LEFT(RIGHT(E3,LEN(E3)-FIND("-",E3,1)),2)) -> 0 | J3: =IF(F3=$D$2,"Дома","В гостях") -> В гостях | K3: =IF(J3="Дома",IF(H3>I3,"В",IF(H3=I3,"Н","П")),IF(H3<I3,"В",IF(H3=I3,"Н","П"))) -> Н | L3: =IF(J3="Дома",H3,I3) -> 0 | M3: =IF(J3="Дома",I3,H3) -> 0 | N3: 1 | O3: =IF(K3="В",1,0) -> 0 | P3: =IF(K3="Н",1,0) -> 1 | Q3: =IF(K3="П",1,0) -> 0 | R3: =L3 -> 0 | S3: =M3 -> 0 | T3: =O3*3+P3 -> 1 | U3: =IF(J3="Дома",1,0) -> 0 | V3: =IF(J3="Дома",IF(K3="В",1,0),0) -> 0 | W3: =IF(J3="Дома",IF(K3="Н",1,0),0) -> 0 | X3: =IF(J3="Дома",IF(K3="П",1,0),0) -> 0 | Y3: =IF(J3="Дома",L3,0) -> 0 | Z3: =IF(J3="Дома",M3,0) -> 0 | AA3: =V3*3+W3 -> 0 | AB3: =IF(J3<>"Дома",1,0) -> 1 | AC3: =IF(J3<>"Дома",IF(K3="В",1,0),0) -> 0 | AD3: =IF(J3<>"Дома",IF(K3="Н",1,0),0) -> 1 | AE3: =IF(J3<>"Дома",IF(K3="П",1,0),0) -> 0 | AF3: =IF(J3<>"Дома",L3,0) -> 0 | AG3: =IF(J3<>"Дома",M3,0) -> 0 | AH3: =AC3*3+AD3 -> 1 | AI3: =IF(J3="Дома",IF(L3=0,1,0),0) -> 0 | AJ3: =IF(J3="Дома",IF(L3=1,1,0),0) -> 0 | AK3: =IF(J3="Дома",IF(L3=2,1,0),0) -> 0 | AL3: =IF(J3="Дома",IF(L3>=3,1,0),0) -> 0 | AM3: =IF(J3<>"Дома",IF(L3=0,1,0),0) -> 1 | AN3: =IF(J3<>"Дома",IF(L3=1,1,0),0) -> 0 | AO3: =IF(J3<>"Дома",IF(L3=2,1,0),0) -> 0 | AP3: =IF(J3<>"Дома",IF(L3>=3,1,0),0) -> 0 | AQ3: =R3/N3 -> 0 | AR3: =S3/N3 -> 0 | AS3: =(AA3/IF(U3<1,1,U3)+AH3/IF(AB3<1,1,AB3)*1.5+Y3/IF(U3<1,1,U3)+AF3/IF(AB3<1,1,AB3)*1.5-Z3/IF(U3<1,1,U3)*1.5-AG3/IF(AB3<1,1,AB3))/15 -> 0.1 | AT3: =IF(J3="Дома",IF(K3="В","В",IF(K3="Н","Н","П")),"") ->  | AU3: =IF(J3="Дома",L3+M3,"") -> 
A4: =Дома!B3 -> 2021.05.26 18:05 | B4: =Дома!A3 -> ИРАН: Первый дивизион | C4: =Дома!C3 -> Бадеран Тегеран | D4: =Дома!D3 -> Навад Урмия | E4: =CONCATENATE(Дома!E3,"-",Дома!F3) -> 0-0 | F4: Бадеран Тегеран | G4: Навад Урмия | H4: 0 | I4: 0 | J4: Дома | K4: Н | L4: 0 | M4: 0 | N4: =N3+1 -> 2 | O4: =IF(K4="В",O3+1,O3+0) -> 0 | P4: =IF(K4="Н",P3+1,P3+0) -> 2 | Q4: =IF(K4="П",Q3+1,Q3+0) -> 0 | R4: =L4+R3 -> 0 | S4: =M4+S3 -> 0 | T4: 2 | U4: =IF(J4="Дома",U3+1,U3+0) -> 1 | V4: =IF(J4="Дома",IF(K4="В",V3+1,V3+0),V3+0) -> 0 | W4: =IF(J4="Дома",IF(K4="Н",W3+1,W3+0),W3+0) -> 1 | X4: =IF(J4="Дома",IF(K4="П",X3+1,X3+0),X3+0) -> 0 | Y4: =IF(J4="Дома",Y3+L4,Y3+0) -> 0 | Z4: =IF(J4="Дома",Z3+M4,Z3+0) -> 0 | AA4: 1 | AB4: =IF(J4<>"Дома",AB3+1,AB3+0) -> 1 | AC4: =IF(J4<>"Дома",IF(K4="В",AC3+1,AC3+0),AC3+0) -> 0 | AD4: =IF(J4<>"Дома",IF(K4="Н",AD3+1,AD3+0),AD3+0) -> 1 | AE4: =IF(J4<>"Дома",IF(K4="П",AE3+1,AE3+0),AE3+0) -> 0 | AF4: =IF(J4<>"Дома",AF3+L4,AF3+0) -> 0 | AG4: =IF(J4<>"Дома",AG3+M4,AG3+0) -> 0 | AH4: 1 | AI4: =IF(J4="Дома",IF(L4=0,AI3+1,AI3),AI3) -> 1 | AJ4: =IF(J4="Дома",IF(L4=1,AJ3+1,AJ3),AJ3) -> 0 | AK4: =IF(J4="Дома",IF(L4=2,AK3+1,AK3),AK3) -> 0 | AL4: =IF(J4="Дома",IF(L4>=3,AL3+1,AL3),AL3) -> 0 | AM4: =IF(J4<>"Дома",IF(L4=0,AM3+1,AM3),AM3) -> 1 | AN4: =IF(J4<>"Дома",IF(L4=1,AN3+1,AN3),AN3) -> 0 | AO4: =IF(J4<>"Дома",IF(L4=2,AO3+1,AO3),AO3) -> 0 | AP4: =IF(J4<>"Дома",IF(L4>=3,AP3+1,AP3),AP3) -> 0 | AQ4: 0 | AR4: 0 | AS4: 0.1666666667 | AT4: Н | AU4: 0
A5: =Дома!B4 -> 2021.05.20 18:45 | B5: =Дома!A4 -> ИРАН: Первый дивизион | C5: =Дома!C4 -> Шахин Бушехр | D5: =Дома!D4 -> Бадеран Тегеран | E5: =CONCATENATE(Дома!E4,"-",Дома!F4) -> 1-1 | F5: Шахин Бушехр | G5: Бадеран Тегеран | H5: 1 | I5: 1 | J5: В гостях | K5: Н | L5: 1 | M5: 1 | N5: 3 | O5: 0 | P5: 3 | Q5: 0 | R5: 1 | S5: 1 | T5: 3 | U5: 1 | V5: 0 | W5: 1 | X5: 0 | Y5: 0 | Z5: 0 | AA5: 1 | AB5: 2 | AC5: 0 | AD5: 2 | AE5: 0 | AF5: 1 | AG5: 1 | AH5: 2 | AI5: 1 | AJ5: 0 | AK5: 0 | AL5: 0 | AM5: 1 | AN5: 1 | AO5: 0 | AP5: 0 | AQ5: 0.3333333333 | AR5: 0.3333333333 | AS5: 0.1833333333
A6: =Дома!B5 -> 2021.05.14 16:45 | B6: =Дома!A5 -> ИРАН: Первый дивизион | C6: =Дома!C5 -> Бадеран Тегеран | D6: =Дома!D5 -> Гол Рейхан | E6: =CONCATENATE(Дома!E5,"-",Дома!F5) -> 2-1 | F6: Бадеран Тегеран | G6: Гол Рейхан | H6: 2 | I6: 1 | J6: Дома | K6: В | L6: 2 | M6: 1 | N6: 4 | O6: 1 | P6: 3 | Q6: 0 | R6: 3 | S6: 2 | T6: 6 | U6: 2 | V6: 1 | W6: 1 | X6: 0 | Y6: 2 | Z6: 1 | AA6: 4 | AB6: 2 | AC6: 0 | AD6: 2 | AE6: 0 | AF6: 1 | AG6: 1 | AH6: 2 | AI6: 1 | AJ6: 0 | AK6: 1 | AL6: 0 | AM6: 1 | AN6: 1 | AO6: 0 | AP6: 0 | AQ6: 0.75 | AR6: 0.5 | AS6: 0.2666666667 | AT6: В | AU6: 3
A7: =Дома!B6 -> 2021.05.08 18:45 | B7: =Дома!A6 -> ИРАН: Первый дивизион | C7: =Дома!C6 -> Могхавемат | D7: =Дома!D6 -> Бадеран Тегеран | E7: =CONCATENATE(Дома!E6,"-",Дома!F6) -> 0-1 | F7: Могхавемат | G7: Бадеран Тегеран | H7: 0 | I7: 1 | J7: В гостях | K7: В | L7: 1 | M7: 0 | N7: 5 | O7: 2 | P7: 3 | Q7: 0 | R7: 4 | S7: 2 | T7: 9 | U7: 2 | V7: 1 | W7: 1 | X7: 0 | Y7: 2 | Z7: 1 | AA7: 4 | AB7: 3 | AC7: 1 | AD7: 2 | AE7: 0 | AF7: 2 | AG7: 1 | AH7: 5 | AI7: 1 | AJ7: 0 | AK7: 1 | AL7: 0 | AM7: 1 | AN7: 2 | AO7: 0 | AP7: 0 | AQ7: 0.8 | AR7: 0.4 | AS7: 0.3611111111
A8: =Дома!B7 -> 2021.04.26 18:45 | B8: =Дома!A7 -> ИРАН: Первый дивизион | C8: =Дома!C7 -> Бадеран Тегеран | D8: =Дома!D7 -> Хавадар | E8: =CONCATENATE(Дома!E7,"-",Дома!F7) -> 0-1 | F8: Бадеран Тегеран | G8: Хавадар | H8: 0 | I8: 1 | J8: Дома | K8: П | L8: 0 | M8: 1 | N8: 6 | O8: 2 | P8: 3 | Q8: 1 | R8: 4 | S8: 3 | T8: 9 | U8: 3 | V8: 1 | W8: 1 | X8: 1 | Y8: 2 | Z8: 2 | AA8: 4 | AB8: 3 | AC8: 1 | AD8: 2 | AE8: 0 | AF8: 2 | AG8: 1 | AH8: 5 | AI8: 2 | AJ8: 0 | AK8: 1 | AL8: 0 | AM8: 1 | AN8: 2 | AO8: 0 | AP8: 0 | AQ8: 0.6666666667 | AR8: 0.5 | AS8: 0.2777777778 | AT8: П | AU8: 1
A9: =Дома!B8 -> 2021.04.19 18:45 | B9: =Дома!A8 -> ИРАН: Первый дивизион | C9: =Дома!C8 -> Астара | D9: =Дома!D8 -> Бадеран Тегеран | E9: =CONCATENATE(Дома!E8,"-",Дома!F8) -> 0-1 | F9: Астара | G9: Бадеран Тегеран | H9: 0 | I9: 1 | J9: В гостях | K9: В | L9: 1 | M9: 0 | N9: 7 | O9: 3 | P9: 3 | Q9: 1 | R9: 5 | S9: 3 | T9: 12 | U9: 3 | V9: 1 | W9: 1 | X9: 1 | Y9: 2 | Z9: 2 | AA9: 4 | AB9: 4 | AC9: 2 | AD9: 2 | AE9: 0 | AF9: 3 | AG9: 1 | AH9: 8 | AI9: 2 | AJ9: 0 | AK9: 1 | AL9: 0 | AM9: 1 | AN9: 3 | AO9: 0 | AP9: 0 | AQ9: 0.7142857143 | AR9: 0.4285714286 | AS9: 0.325
A10: =Дома!B9 -> 2021.04.13 15:00 | B10: =Дома!A9 -> ИРАН: Первый дивизион | C10: =Дома!C9 -> Бадеран Тегеран | D10: =Дома!D9 -> Арман Гохар | E10: =CONCATENATE(Дома!E9,"-",Дома!F9) -> 2-0 | F10: Бадеран Тегеран | G10: Арман Гохар | H10: 2 | I10: 0 | J10: Дома | K10: В | L10: 2 | M10: 0 | N10: 8 | O10: 4 | P10: 3 | Q10: 1 | R10: 7 | S10: 3 | T10: 15 | U10: 4 | V10: 2 | W10: 1 | X10: 1 | Y10: 4 | Z10: 2 | AA10: 7 | AB10: 4 | AC10: 2 | AD10: 2 | AE10: 0 | AF10: 3 | AG10: 1 | AH10: 8 | AI10: 2 | AJ10: 0 | AK10: 2 | AL10: 0 | AM10: 1 | AN10: 3 | AO10: 0 | AP10: 0 | AQ10: 0.875 | AR10: 0.375 | AS10: 0.3916666667 | AT10: В | AU10: 2
A11: =Дома!B10 -> 2021.04.07 15:00 | B11: =Дома!A10 -> ИРАН: Первый дивизион | C11: =Дома!C10 -> Хейбар Хоррамабад | D11: =Дома!D10 -> Бадеран Тегеран | E11: =CONCATENATE(Дома!E10,"-",Дома!F10) -> 0-0 | F11: Хейбар Хоррамабад | G11: Бадеран Тегеран | H11: 0 | I11: 0 | J11: В гостях | K11: Н | L11: 0 | M11: 0 | N11: 9 | O11: 4 | P11: 4 | Q11: 1 | R11: 7 | S11: 3 | T11: 16 | U11: 4 | V11: 2 | W11: 1 | X11: 1 | Y11: 4 | Z11: 2 | AA11: 7 | AB11: 5 | AC11: 2 | AD11: 3 | AE11: 0 | AF11: 3 | AG11: 1 | AH11: 9 | AI11: 2 | AJ11: 0 | AK11: 2 | AL11: 0 | AM11: 2 | AN11: 3 | AO11: 0 | AP11: 0 | AQ11: 0.7777777778 | AR11: 0.3333333333 | AS11: 0.36
A12: =Дома!B11 -> 2021.03.14 14:30 | B12: =Дома!A11 -> ИРАН: Первый дивизион | C12: =Дома!C11 -> Бадеран Тегеран | D12: =Дома!D11 -> Эстеглал Хузестан | E12: =CONCATENATE(Дома!E11,"-",Дома!F11) -> 0-0 | F12: Бадеран Тегеран | G12: Эстеглал Хузестан | H12: 0 | I12: 0 | J12: Дома | K12: Н | L12: 0 | M12: 0 | N12: 10 | O12: 4 | P12: 5 | Q12: 1 | R12: 7 | S12: 3 | T12: 17 | U12: 5 | V12: 2 | W12: 2 | X12: 1 | Y12: 4 | Z12: 2 | AA12: 8 | AB12: 5 | AC12: 2 | AD12: 3 | AE12: 0 | AF12: 3 | AG12: 1 | AH12: 9 | AI12: 3 | AJ12: 0 | AK12: 2 | AL12: 0 | AM12: 2 | AN12: 3 | AO12: 0 | AP12: 0 | AQ12: 0.7 | AR12: 0.3 | AS12: 0.3466666667 | AT12: Н | AU12: 0

Sheet Гости (hidden)
A1: Чемпионат | B1: Дата/Время | C1: Дома | D1: Гости | E1: К1 в 1Т | F1: К2 в 1Т | G1: К1 во 2Т | H1: К2 во 2Т | I1: Где играли | J1: К1 Голов | K1: К2 Голов | L1: Забито | M1: Пропущено | N1: Результат | O1: Всего Игр | P1: Всего выиграно | Q1: Всего ничьих | R1: Всего проиграно | S1: Всего забито | T1: Всего пропущено | U1: Всего очков | V1: Дома игр | W1: Дома выиграно | X1: Дома ничьих | Y1: Дома проиграно | Z1: Дома забито | AA1: Дома пропущено | AB1: Дома очков | AC1: Гости игр | AD1: Гости выиграно | AE1: Гости ничьих | AF1: Гости проиграно | AG1: Гости забито | AH1: Гости пропущено | AI1: Гости очков | AJ1: Тотал | AL1: 1тз | AM1: 1тп | AN1: 2тз | AO1: 2тп | AP1: Мз | AQ1: Мп
A2: ИРАН: Первый дивизион | B2: 2021.06.02 17:35 | C2: Мес Керман | D2: Эстеглал Моласани | E2: 2 | F2: 1 | G2: 1 | H2: 1 | I2: Гости | J2: =IF(I2="","",E2+G2) -> 3 | K2: =IF(I2="","",F2+H2) -> 2 | L2: =IF(I2="","",IF(I2="Дома",J2,K2)) -> 2 | M2: =IF(I2="","",IF(I2="Дома",K2,J2)) -> 3 | N2: =IF(I2="","",IF(I2="Дома",IF(J2>K2,"В",IF(J2=K2,"Н","П")),IF(J2<K2,"В",IF(J2=K2,"Н","П")))) -> П | O2: =IF(I2="","",1) -> 1 | P2: =IF(I2="","",IF(N2="В",1,0)) -> 0 | Q2: =IF(I2="","",IF(N2="Н",1,0)) -> 0 | R2: =IF(I2="","",IF(N2="П",1,0)) -> 1 | S2: =IF(I2="","",L2) -> 2 | T2: =IF(I2="","",M2) -> 3 | U2: =IF(I2="","",P2*3+Q2) -> 0 | V2: =IF(I2="","",IF(I2="Дома",1,0)) -> 0 | W2: =IF(I2="","",IF(I2="Дома",IF(N2="В",1,0),0)) -> 0 | X2: =IF(I2="","",IF(I2="Дома",IF(N2="Н",1,0),0)) -> 0 | Y2: =IF(I2="","",IF(I2="Дома",IF(N2="П",1,0),0)) -> 0 | Z2: =IF(I2="","",IF(I2="Дома",L2,0)) -> 0 | AA2: =IF(I2="","",IF(I2="Дома",M2,0)) -> 0 | AB2: =IF(I2="","",IF(I2="Дома",W2*3+X2,0)) -> 0 | AC2: =IF(I2="","",IF(I2="Гости",1,0)) -> 1 | AD2: =IF(I2="","",IF(I2="Гости",IF(N2="В",1,0),0)) -> 0 | AE2: =IF(I2="","",IF(I2="Гости",IF(N2="Н",1,0),0)) -> 0 | AF2: =IF(I2="","",IF(I2="Гости",IF(N2="П",1,0),0)) -> 1 | AG2: =IF(I2="","",IF(I2="Гости",L2,0)) -> 2 | AH2: =IF(I2="","",IF(I2="Гости",M2,0)) -> 3 | AI2: =IF(I2="","",IF(I2="Гости",AD2*3+AE2,0)) -> 0 | AJ2: =IF(I2="Гости",L2+M2,"") -> 5 | AL2: =IF(I2="","",IF(I2="Дома",E2,F2)) -> 1 | AM2: =IF(I2="","",IF(I2="Дома",F2,E2)) -> 2 | AN2: =IF(I2="","",IF(I2="Дома",G2,H2)) -> 1 | AO2: =IF(I2="","",IF(I2="Дома",H2,G2)) -> 1 | AP2: =L2 -> 2 | AQ2: =M2 -> 3
A3: ИРАН: Первый дивизион | B3: 2021.05.26 19:10 | C3: Эстеглал Моласани | D3: Хуши-Талаи | E3: 0 | F3: 1 | G3: 1 | H3: 1 | I3: Дома | J3: =IF(I3="","",E3+G3) -> 1 | K3: =IF(I3="","",F3+H3) -> 2 | L3: =IF(I3="","",IF(I3="Дома",J3,K3)) -> 1 | M3: =IF(I3="","",IF(I3="Дома",K3,J3)) -> 2 | N3: =IF(I3="","",IF(I3="Дома",IF(J3>K3,"В",IF(J3=K3,"Н","П")),IF(J3<K3,"В",IF(J3=K3,"Н","П")))) -> П | O3: =IF(I3="","",O2+1) -> 2 | P3: =IF(I3="","",IF(N3="В",P2+1,P2)) -> 0 | Q3: =IF(I3="","",IF(N3="Н",Q2+1,Q2)) -> 0 | R3: =IF(I3="","",IF(N3="П",R2+1,R2)) -> 2 | S3: =IF(I3="","",S2+L3) -> 3 | T3: =IF(I3="","",T2+M3) -> 5 | U3: =IF(I3="","",P3*3+Q3) -> 0 | V3: =IF(I3="","",IF(I3="Дома",V2+1,V2+0)) -> 1 | W3: =IF(I3="","",IF(I3="Дома",IF(N3="В",W2+1,W2),W2)) -> 0 | X3: =IF(I3="","",IF(I3="Дома",IF(N3="Н",X2+1,X2),X2)) -> 0 | Y3: =IF(I3="","",IF(I3="Дома",IF(N3="П",Y2+1,Y2),Y2)) -> 1 | Z3: =IF(I3="","",IF(I3="Дома",L3+Z2,Z2)) -> 1 | AA3: =IF(I3="","",IF(I3="Дома",M3+AA2,AA2)) -> 2 | AB3: =IF(I3="","",IF(I3="Дома",W3*3+X3,AB2)) -> 0 | AC3: =IF(I3="","",IF(I3="Гости",AC2+1,AC2+0)) -> 1 | AD3: =IF(I3="","",IF(I3="Гости",IF(N3="В",AD2+1,AD2),AD2)) -> 0 | AE3: =IF(I3="","",IF(I3="Гости",IF(N3="Н",AE2+1,AE2),AE2)) -> 0 | AF3: =IF(I3="","",IF(I3="Гости",IF(N3="П",AF2+1,AF2),AF2)) -> 1 | AG3: =IF(I3="","",IF(I3="Гости",L3+AG2,AG2)) -> 2 | AH3: =IF(I3="","",IF(I3="Гости",M3+AH2,AH2)) -> 3 | AI3: =IF(I3="","",IF(I3="Гости",AD3*3+AE3,AI2)) -> 0 | AJ3: =IF(I3="Гости",L3+M3,"") ->  | AL3: =IF(I3="","",IF(I3="Дома",E3,F3)) -> 0 | AM3: =IF(I3="","",IF(I3="Дома",F3,E3)) -> 1 | AN3: =IF(I3="","",IF(I3="Дома",G3,H3)) -> 1 | AO3: =IF(I3="","",IF(I3="Дома",H3,G3)) -> 1 | AP3: =L3 -> 1 | AQ3: 2
A4: ИРАН: Первый дивизион | B4: 2021.05.20 17:40 | C4: Могхавемат | D4: Эстеглал Моласани | E4: 1 | F4: 0 | G4: 1 | H4: 1 | I4: Гости | J4: 2 | K4: 1 | L4: 1 | M4: 2 | N4: П | O4: 3 | P4: =IF(I4="","",IF(N4="В",P3+1,P3)) -> 0 | Q4: =IF(I4="","",IF(N4="Н",Q3+1,Q3)) -> 0 | R4: =IF(I4="","",IF(N4="П",R3+1,R3)) -> 3 | S4: =IF(I4="","",S3+L4) -> 4 | T4: =IF(I4="","",T3+M4) -> 7 | U4: 0 | V4: =IF(I4="","",IF(I4="Дома",V3+1,V3+0)) -> 1 | W4: =IF(I4="","",IF(I4="Дома",IF(N4="В",W3+1,W3),W3)) -> 0 | X4: =IF(I4="","",IF(I4="Дома",IF(N4="Н",X3+1,X3),X3)) -> 0 | Y4: =IF(I4="","",IF(I4="Дома",IF(N4="П",Y3+1,Y3),Y3)) -> 1 | Z4: =IF(I4="","",IF(I4="Дома",L4+Z3,Z3)) -> 1 | AA4: =IF(I4="","",IF(I4="Дома",M4+AA3,AA3)) -> 2 | AB4: =IF(I4="","",IF(I4="Дома",W4*3+X4,AB3)) -> 0 | AC4: =IF(I4="","",IF(I4="Гости",AC3+1,AC3+0)) -> 2 | AD4: =IF(I4="","",IF(I4="Гости",IF(N4="В",AD3+1,AD3),AD3)) -> 0 | AE4: =IF(I4="","",IF(I4="Гости",IF(N4="Н",AE3+1,AE3),AE3)) -> 0 | AF4: =IF(I4="","",IF(I4="Гости",IF(N4="П",AF3+1,AF3),AF3)) -> 2 | AG4: =IF(I4="","",IF(I4="Гости",L4+AG3,AG3)) -> 3 | AH4: =IF(I4="","",IF(I4="Гости",M4+AH3,AH3)) -> 5 | AI4: =IF(I4="","",IF(I4="Гости",AD4*3+AE4,AI3)) -> 0 | AJ4: 3 | AL4: 0 | AM4: 1 | AN4: 1 | AO4: 1 | AP4: 1 | AQ4: 2
A5: ИРАН: Первый дивизион | B5: 2021.05.14 19:00 | C5: Эстеглал Моласани | D5: Навад Урмия | E5: 0 | F5: 0 | G5: 1 | H5: 0 | I5: Дома | J5: 1 | K5: 0 | L5: 1 | M5: 0 | N5: В | O5: 4 | P5: 1 | Q5: 0 | R5: 3 | S5: 5 | T5: 7 | U5: 3 | V5: 2 | W5: 1 | X5: 0 | Y5: 1 | Z5: 2 | AA5: 2 | AB5: 3 | AC5: 2 | AD5: 0 | AE5: 0 | AF5: 2 | AG5: 3 | AH5: 5 | AI5: 0 | AL5: 0 | AM5: 0 | AN5: 1 | AO5: 0 | AP5: 1 | AQ5: 0
A6: ИРАН: Первый дивизион | B6: 2021.05.08 19:00 | C6: Гол Рейхан | D6: Эстеглал Моласани | E6: 0 | F6: 0 | G6: 1 | H6: 0 | I6: Гости | J6: 1 | K6: 0 | L6: 0 | M6: 1 | N6: П | O6: 5 | P6: 1 | Q6: 0 | R6: 4 | S6: 5 | T6: 8 | U6: 3 | V6: 2 | W6: 1 | X6: 0 | Y6: 1 | Z6: 2 | AA6: 2 | AB6: 3 | AC6: 3 | AD6: 0 | AE6: 0 | AF6: 3 | AG6: 3 | AH6: 6 | AI6: 0 | AJ6: 1 | AL6: 0 | AM6: 0 | AN6: 0 | AO6: 1 | AP6: 0 | AQ6: 1
A7: ИРАН: Первый дивизион | B7: 2021.04.26 18:45 | C7: Эстеглал Моласани | D7: Астара | E7: 1 | F7: 0 | G7: 0 | H7: 0 | I7: Дома | J7: 1 | K7: 0 | L7: 1 | M7: 0 | N7: В | O7: 6 | P7: 2 | Q7: 0 | R7: 4 | S7: 6 | T7: 8 | U7: 6 | V7: 3 | W7: 2 | X7: 0 | Y7: 1 | Z7: 3 | AA7: 2 | AB7: 6 | AC7: 3 | AD7: 0 | AE7: 0 | AF7: 3 | AG7: 3 | AH7: 6 | AI7: 0
A8: ИРАН: Первый дивизион | B8: 2021.04.19 20:30 | C8: Эстеглал Хузестан | D8: Эстеглал Моласани | E8: 2 | F8: 0 | G8: 1 | H8: 1 | I8: Гости | J8: 3 | K8: 1 | L8: 1 | M8: 3 | N8: П | O8: 7 | P8: 2 | Q8: 0 | R8: 5 | S8: 7 | T8: 11 | U8: 6 | V8: 3 | W8: 2 | X8: 0 | Y8: 1 | Z8: 3 | AA8: 2 | AB8: 6 | AC8: 4 | AD8: 0 | AE8: 0 | AF8: 4 | AG8: 4 | AH8: 9 | AI8: 0 | AJ8: 4 | AL8: =SUM(AL2:AL6)/5 -> 0.2 | AM8: =SUM(AM2:AM6)/5 -> 0.8 | AN8: 0.8 | AO8: 0.8 | AP8: 1 | AQ8: 1.6
A9: ИРАН: Первый дивизион | B9: 2021.04.13 15:30 | C9: Эстеглал Моласани | D9: Хейбар Хоррамабад | E9: 0 | F9: 1 | G9: 0 | H9: 0 | I9: Дома | J9: 0 | K9: 1 | L9: 0 | M9: 1 | N9: =IF(I9="","",IF(I9="Дома",IF(J9>K9,"В",IF(J9=K9,"Н","П")),IF(J9<K9,"В",IF(J9=K9,"Н","П")))) -> П | O9: 8 | P9: 2 | Q9: 0 | R9: 6 | S9: 7 | T9: 12 | U9: 6 | V9: 4 | W9: 2 | X9: 0 | Y9: 2 | Z9: 3 | AA9: 3 | AB9: 6 | AC9: 4 | AD9: 0 | AE9: 0 | AF9: 4 | AG9: 4 | AH9: 9 | AI9: 0
A10: ИРАН: Первый дивизион | B10: 2021.04.07 15:00 | C10: Хавадар | D10: Эстеглал Моласани | E10: 0 | F10: 0 | G10: 2 | H10: 1 | I10: Гости | J10: 2 | K10: 1 | L10: 1 | M10: 2 | N10: =IF(I10="","",IF(I10="Дома",IF(J10>K10,"В",IF(J10=K10,"Н","П")),IF(J10<K10,"В",IF(J10=K10,"Н","П")))) -> П | O10: 9 | P10: 2 | Q10: 0 | R10: 7 | S10: 8 | T10: 14 | U10: 6 | V10: 4 | W10: 2 | X10: 0 | Y10: 2 | Z10: 3 | AA10: 3 | AB10: 6 | AC10: 5 | AD10: 0 | AE10: 0 | AF10: 5 | AG10: 5 | AH10: 11 | AI10: 0 | AJ10: 3
A11: ИРАН: Первый дивизион | B11: 2021.03.17 15:00 | C11: Эстеглал Моласани | D11: Райка Баболь | E11: 0 | F11: 0 | G11: 1 | H11: 0 | I11: Дома | J11: 1 | K11: 0 | L11: 1 | M11: 0 | N11: В | O11: 10 | P11: 3 | Q11: 0 | R11: 7 | S11: 9 | T11: 14 | U11: 9 | V11: 5 | W11: 3 | X11: 0 | Y11: 2 | Z11: 4 | AA11: 3 | AB11: 9 | AC11: 5 | AD11: 0 | AE11: 0 | AF11: 5 | AG11: 5 | AH11: 11 | AI11: 0
A12: ИРАН: Кубок Ирана | B12: 2021.03.12 14:30 | C12: Эстеглал Моласани | D12: Shahin Bandar Ameri | E12: 0 | F12: 0 | G12: 0 | H12: 0 | I12: Дома | J12: 0 | K12: 0 | L12: 0 | M12: 0 | N12: Н | O12: 11 | P12: 3 | Q12: 1 | R12: 7 | S12: 9 | T12: 14 | U12: =IF(I12="","",P12*3+Q12) -> 10 | V12: 6 | W12: 3 | X12: 1 | Y12: 2 | Z12: 4 | AA12: 3 | AB12: 10 | AC12: 5 | AD12: 0 | AE12: 0 | AF12: 5 | AG12: 5 | AH12: 11 | AI12: 0
A13: ИРАН: Первый дивизион | B13: 2021.03.07 14:45 | C13: Эстеглал Моласани | D13: Шахин Бушехр | E13: 1 | F13: 1 | G13: 0 | H13: 0 | I13: Дома | J13: 1 | K13: 1 | L13: 1 | M13: 1 | N13: Н | O13: 12 | P13: 3 | Q13: 2 | R13: 7 | S13: 10 | T13: 15 | U13: 11 | V13: 7 | W13: 3 | X13: 2 | Y13: 2 | Z13: 5 | AA13: 4 | AB13: 11 | AC13: 5 | AD13: 0 | AE13: 0 | AF13: 5 | AG13: 5 | AH13: 11 | AI13: 0
A14: ИРАН: Первый дивизион | B14: 2021.03.02 14:00 | C14: Арман Гохар | D14: Эстеглал Моласани | E14: 0 | F14: 0 | G14: 2 | H14: 2 | I14: Гости | J14: 2 | K14: 2 | L14: 2 | M14: 2 | N14: Н | O14: 13 | P14: 3 | Q14: 3 | R14: 7 | S14: 12 | T14: 17 | U14: 12 | V14: 7 | W14: 3 | X14: 2 | Y14: 2 | Z14: 5 | AA14: 4 | AB14: 11 | AC14: 6 | AD14: 0 | AE14: 1 | AF14: 5 | AG14: 7 | AH14: 13 | AI14: 1 | AJ14: 4
A15: ИРАН: Первый дивизион | B15: 2021.02.20 14:30 | C15: Эстеглал Моласани | D15: Малаван | E15: 0 | F15: 0 | G15: 0 | H15: 0 | I15: Дома | J15: 0 | K15: 0 | L15: 0 | M15: 0 | N15: Н | O15: 14 | P15: 3 | Q15: 4 | R15: 7 | S15: 12 | T15: 17 | U15: 13 | V15: 8 | W15: 3 | X15: 3 | Y15: 2 | Z15: 5 | AA15: 4 | AB15: 12 | AC15: 6 | AD15: 0 | AE15: 1 | AF15: 5 | AG15: 7 | AH15: 13 | AI15: 1
A16: ИРАН: Первый дивизион | B16: 2021.02.14 13:30 | C16: Кашкай Шираз | D16: Эстеглал Моласани | E16: 2 | F16: 0 | G16: 1 | H16: 1 | I16: Гости | J16: 3 | K16: 1 | L16: 1 | M16: 3 | N16: П | O16: 15 | P16: 3 | Q16: 4 | R16: 8 | S16: 13 | T16: 20 | U16: 13 | V16: 8 | W16: 3 | X16: 3 | Y16: 2 | Z16: 5 | AA16: 4 | AB16: 12 | AC16: 7 | AD16: 0 | AE16: 1 | AF16: 6 | AG16: 8 | AH16: 16 | AI16: 1 | AJ16: 4
A17: ИРАН: Первый дивизион | B17: 2021.02.08 14:30 | C17: Эстеглал Моласани | D17: Чока Талеш | E17: 0 | F17: 0 | G17: 0 | H17: 0 | I17: Дома | J17: 0 | K17: 0 | L17: 0 | M17: 0 | N17: Н | O17: 16 | P17: 3 | Q17: 5 | R17: 8 | S17: 13 | T17: 20 | U17: 14 | V17: 9 | W17: 3 | X17: 4 | Y17: 2 | Z17: 5 | AA17: 4 | AB17: 13 | AC17: 7 | AD17: 0 | AE17: 1 | AF17: 6 | AG17: 8 | AH17: 16 | AI17: 1
A18: ИРАН: Первый дивизион | B18: 2021.02.01 13:30 | C18: Парс Джануби Джем | D18: Эстеглал Моласани | E18: 0 | F18: 1 | G18: 1 | H18: 0 | I18: Гости | J18: 1 | K18: 1 | L18: 1 | M18: 1 | N18: Н | O18: 17 | P18: 3 | Q18: 6 | R18: 8 | S18: 14 | T18: 21 | U18: 15 | V18: 9 | W18: 3 | X18: 4 | Y18: 2 | Z18: 5 | AA18: 4 | AB18: 13 | AC18: 8 | AD18: 0 | AE18: 2 | AF18: 6 | AG18: 9 | AH18: 17 | AI18: 2 | AJ18: 2
A19: ИРАН: Первый дивизион | B19: 2021.01.25 13:30 | C19: Эстеглал Моласани | D19: Бадеран Тегеран | E19: 1 | F19: 0 | G19: 0 | H19: 1 | I19: Дома | J19: 1 | K19: 1 | L19: 1 | M19: 1 | N19: Н | O19: 18 | P19: 3 | Q19: 7 | R19: 8 | S19: 15 | T19: 22 | U19: 16 | V19: 10 | W19: 3 | X19: 5 | Y19: 2 | Z19: 6 | AA19: 5 | AB19: 14 | AC19: 8 | AD19: 0 | AE19: 2 | AF19: 6 | AG19: 9 | AH19: 17 | AI19: 2
A20: ИРАН: Первый дивизион | B20: 2021.01.18 13:30 | C20: Эстеглал Моласани | D20: Мес Керман | E20: 0 | F20: 0 | G20: 1 | H20: 0 | I20: Дома | J20: 1 | K20: 0 | L20: 1 | M20: 0 | N20: В | O20: 19 | P20: 4 | Q20: 7 | R20: 8 | S20: 16 | T20: 22 | U20: 19 | V20: 11 | W20: 4 | X20: 5 | Y20: 2 | Z20: 7 | AA20: 5 | AB20: 17 | AC20: 8 | AD20: 0 | AE20: 2 | AF20: 6 | AG20: 9 | AH20: 17 | AI20: 2
A21: ИРАН: Первый дивизион | B21: 2021.01.11 13:30 | C21: Хуши-Талаи | D21: Эстеглал Моласани | E21: 1 | F21: 0 | G21: 1 | H21: 1 | I21: Гости | J21: 2 | K21: 1 | L21: 1 | M21: 2 | N21: П | O21: 20 | P21: 4 | Q21: 7 | R21: 9 | S21: 17 | T21: 24 | U21: 19 | V21: 11 | W21: 4 | X21: 5 | Y21: 2 | Z21: 7 | AA21: 5 | AB21: 17 | AC21: 9 | AD21: 0 | AE21: 2 | AF21: 7 | AG21: 10 | AH21: 19 | AI21: 2 | AJ21: 3
A22: ИРАН: Первый дивизион | B22: 2021.01.04 13:30 | C22: Эстеглал Моласани | D22: Могхавемат | E22: 1 | F22: 0 | G22: 0 | H22: 1 | I22: Дома | J22: 1 | K22: 1 | L22: 1 | M22: 1 | N22: Н | O22: 21 | P22: 4 | Q22: 8 | R22: 9 | S22: 18 | T22: 25 | U22: 20 | V22: 12 | W22: 4 | X22: 6 | Y22: 2 | Z22: 8 | AA22: 6 | AB22: 18 | AC22: 9 | AD22: 0 | AE22: 2 | AF22: 7 | AG22: 10 | AH22: 19 | AI22: 2
A23: ИРАН: Первый дивизион | B23: 2020.12.28 13:30 | C23: Навад Урмия | D23: Эстеглал Моласани | E23: 0 | F23: 0 | G23: 0 | H23: 1 | I23: Гости | J23: 0 | K23: 1 | L23: 1 | M23: 0 | N23: В | O23: 22 | P23: 5 | Q23: 8 | R23: 9 | S23: 19 | T23: 25 | U23: 23 | V23: 12 | W23: 4 | X23: 6 | Y23: 2 | Z23: 8 | AA23: 6 | AB23: 18 | AC23: 10 | AD23: 1 | AE23: 2 | AF23: 7 | AG23: 11 | AH23: 19 | AI23: 5 | AJ23: 1
A24: ИРАН: Первый дивизион | B24: 2020.12.22 13:30 | C24: Эстеглал Моласани | D24: Гол Рейхан | E24: 0 | F24: 0 | G24: 1 | H24: 0 | I24: Дома | J24: 1 | K24: 0 | L24: 1 | M24: 0 | N24: В | O24: 23 | P24: 6 | Q24: 8 | R24: 9 | S24: 20 | T24: 25 | U24: 26 | V24: 13 | W24: 5 | X24: 6 | Y24: 2 | Z24: 9 | AA24: 6 | AB24: 21 | AC24: 10 | AD24: 1 | AE24: 2 | AF24: 7 | AG24: 11 | AH24: 19 | AI24: 5
A25: ИРАН: Первый дивизион | B25: 2020.12.16 13:30 | C25: Астара | D25: Эстеглал Моласани | E25: 1 | F25: 1 | G25: 2 | H25: 0 | I25: Гости | J25: 3 | K25: 1 | L25: 1 | M25: 3 | N25: П | O25: 24 | P25: 6 | Q25: 8 | R25: 10 | S25: 21 | T25: 28 | U25: 26 | V25: 13 | W25: 5 | X25: 6 | Y25: 2 | Z25: 9 | AA25: 6 | AB25: 21 | AC25: 11 | AD25: 1 | AE25: 2 | AF25: 8 | AG25: 12 | AH25: 22 | AI25: 5 | AJ25: 4
A26: ИРАН: Первый дивизион | B26: 2020.12.10 14:00 | C26: Эстеглал Моласани | D26: Эстеглал Хузестан | E26: 1 | F26: 1 | G26: 0 | H26: 3 | I26: Дома | J26: 1 | K26: 4 | L26: 1 | M26: 4 | N26: П | O26: 25 | P26: 6 | Q26: 8 | R26: 11 | S26: 22 | T26: 32 | U26: 26 | V26: 14 | W26: 5 | X26: 6 | Y26: 3 | Z26: 10 | AA26: 10 | AB26: 21 | AC26: 11 | AD26: 1 | AE26: 2 | AF26: 8 | AG26: 12 | AH26: 22 | AI26: 5
A27: ИРАН: Первый дивизион | B27: 2020.02.02 13:30 | C27: Бадеран Тегеран | D27: Арман Гохар | E27: 1 | F27: 0 | G27: 3 | H27: 0 | I27: Дома | J27: 4 | K27: 0 | L27: 4 | M27: 0 | N27: В | O27: 26 | P27: 7 | Q27: 8 | R27: 11 | S27: 26 | T27: 32 | U27: 29 | V27: 15 | W27: 6 | X27: 6 | Y27: 3 | Z27: 14 | AA27: 10 | AB27: 24 | AC27: 11 | AD27: 1 | AE27: 2 | AF27: 8 | AG27: 12 | AH27: 22 | AI27: 5
J67: =IF(I67="","",E67+G67) ->  | K67: =IF(I67="","",F67+H67) ->  | L67: =IF(I67="","",IF(I67="Дома",J67,K67)) ->  | M67: =IF(I67="","",IF(I67="Дома",K67,J67)) ->  | O67: =IF(I67="","",O66+1) ->  | U67: =IF(I67="","",P67*3+Q67) ->  | AJ67: =IF(I67="Гости",L67+M67,"") -> 
P68: =IF(I68="","",IF(N68="В",P67+1,P67)) ->  | Q68: =IF(I68="","",IF(N68="Н",Q67+1,Q67)) ->  | R68: =IF(I68="","",IF(N68="П",R67+1,R67)) ->  | S68: =IF(I68="","",S67+L68) ->  | T68: =IF(I68="","",T67+M68) ->  | V68: =IF(I68="","",IF(I68="Дома",V67+1,V67+0)) ->  | W68: =IF(I68="","",IF(I68="Дома",IF(N68="В",W67+1,W67),W67)) ->  | X68: =IF(I68="","",IF(I68="Дома",IF(N68="Н",X67+1,X67),X67)) ->  | Y68: =IF(I68="","",IF(I68="Дома",IF(N68="П",Y67+1,Y67),Y67)) ->  | Z68: =IF(I68="","",IF(I68="Дома",L68+Z67,Z67)) ->  | AA68: =IF(I68="","",IF(I68="Дома",M68+AA67,AA67)) ->  | AB68: =IF(I68="","",IF(I68="Дома",W68*3+X68,AB67)) ->  | AC68: =IF(I68="","",IF(I68="Гости",AC67+1,AC67+0)) ->  | AD68: =IF(I68="","",IF(I68="Гости",IF(N68="В",AD67+1,AD67),AD67)) ->  | AE68: =IF(I68="","",IF(I68="Гости",IF(N68="Н",AE67+1,AE67),AE67)) ->  | AF68: =IF(I68="","",IF(I68="Гости",IF(N68="П",AF67+1,AF67),AF67)) ->  | AG68: =IF(I68="","",IF(I68="Гости",L68+AG67,AG67)) ->  | AH68: =IF(I68="","",IF(I68="Гости",M68+AH67,AH67)) ->  | AI68: =IF(I68="","",IF(I68="Гости",AD68*3+AE68,AI67)) -> 
N74: =IF(I74="","",IF(I74="Дома",IF(J74>K74,"В",IF(J74=K74,"Н","П")),IF(J74<K74,"В",IF(J74=K74,"Н","П")))) -> 
J131: =IF(I131="","",E131+G131) ->  | K131: =IF(I131="","",F131+H131) ->  | L131: =IF(I131="","",IF(I131="Дома",J131,K131)) ->  | M131: =IF(I131="","",IF(I131="Дома",K131,J131)) ->  | O131: =IF(I131="","",O130+1) ->  | U131: =IF(I131="","",P131*3+Q131) ->  | AJ131: =IF(I131="Гости",L131+M131,"") -> 
P132: =IF(I132="","",IF(N132="В",P131+1,P131)) ->  | Q132: =IF(I132="","",IF(N132="Н",Q131+1,Q131)) ->  | R132: =IF(I132="","",IF(N132="П",R131+1,R131)) ->  | S132: =IF(I132="","",S131+L132) ->  | T132: =IF(I132="","",T131+M132) ->  | V132: =IF(I132="","",IF(I132="Дома",V131+1,V131+0)) ->  | W132: =IF(I132="","",IF(I132="Дома",IF(N132="В",W131+1,W131),W131)) ->  | X132: =IF(I132="","",IF(I132="Дома",IF(N132="Н",X131+1,X131),X131)) ->  | Y132: =IF(I132="","",IF(I132="Дома",IF(N132="П",Y131+1,Y131),Y131)) ->  | Z132: =IF(I132="","",IF(I132="Дома",L132+Z131,Z131)) ->  | AA132: =IF(I132="","",IF(I132="Дома",M132+AA131,AA131)) ->  | AB132: =IF(I132="","",IF(I132="Дома",W132*3+X132,AB131)) ->  | AC132: =IF(I132="","",IF(I132="Гости",AC131+1,AC131+0)) ->  | AD132: =IF(I132="","",IF(I132="Гости",IF(N132="В",AD131+1,AD131),AD131)) ->  | AE132: =IF(I132="","",IF(I132="Гости",IF(N132="Н",AE131+1,AE131),AE131)) ->  | AF132: =IF(I132="","",IF(I132="Гости",IF(N132="П",AF131+1,AF131),AF131)) ->  | AG132: =IF(I132="","",IF(I132="Гости",L132+AG131,AG131)) ->  | AH132: =IF(I132="","",IF(I132="Гости",M132+AH131,AH131)) ->  | AI132: =IF(I132="","",IF(I132="Гости",AD132*3+AE132,AI131)) -> 
N138: =IF(I138="","",IF(I138="Дома",IF(J138>K138,"В",IF(J138=K138,"Н","П")),IF(J138<K138,"В",IF(J138=K138,"Н","П")))) -> 

Sheet Команда2 (hidden)
A1: Данные 10-и последних матчей 2 команды | N1: Всего | U1: Дома | AB1: В гостях | AI1: Забивают дома | AM1: Забивают в гостях
A2: Команда - 2 | D2: =IF(F3=F4,F3,IF(F3=G4,F3,G3)) -> Эстеглал Моласани | F2: Команда1 | G2: Команда2 | H2: Голы1 | I2: Голы2 | J2: Где играла | K2: Результат | L2: Забито | M2: Пропущено | N2: Игр | O2: В | P2: Н | Q2: П | R2: Забито | S2: Пропущено | T2: Очки | U2: Игр | V2: В | W2: Н | X2: П | Y2: Забито | Z2: Пропущено | AA2: Очки | AB2: Игр | AC2: В | AD2: Н | AE2: П | AF2: Забито | AG2: Пропущено | AH2: Очки | AI2: 0 | AJ2: 1 | AK2: 2 | AL2: 3+ | AM2: 0 | AN2: 1 | AO2: 2 | AP2: 3+ | AQ2: Забивают | AR2: Пропускают | AS2: Рейтинг | AT2: Серия | AU2: Забив
A3: =Гости!B2 -> 2021.06.02 17:35 | B3: =Гости!A2 -> ИРАН: Первый дивизион | C3: =Гости!C2 -> Мес Керман | D3: =Гости!D2 -> Эстеглал Моласани | E3: =CONCATENATE(Гости!E2,"-",Гости!F2) -> 2-1 | F3: =C3 -> Мес Керман | G3: =D3 -> Эстеглал Моласани | H3: =VALUE(LEFT(E3,FIND("-",E3,1)-1)) -> 2 | I3: =VALUE(LEFT(RIGHT(E3,LEN(E3)-FIND("-",E3,1)),2)) -> 1 | J3: =IF(F3=$D$2,"Дома","В гостях") -> В гостях | K3: =IF(J3="Дома",IF(H3>I3,"В",IF(H3=I3,"Н","П")),IF(H3<I3,"В",IF(H3=I3,"Н","П"))) -> П | L3: =IF(J3="Дома",H3,I3) -> 1 | M3: =IF(J3="Дома",I3,H3) -> 2 | N3: 1 | O3: =IF(K3="В",1,0) -> 0 | P3: =IF(K3="Н",1,0) -> 0 | Q3: =IF(K3="П",1,0) -> 1 | R3: =L3 -> 1 | S3: =M3 -> 2 | T3: =O3*3+P3 -> 0 | U3: =IF(J3="Дома",1,0) -> 0 | V3: =IF(J3="Дома",IF(K3="В",1,0),0) -> 0 | W3: =IF(J3="Дома",IF(K3="Н",1,0),0) -> 0 | X3: =IF(J3="Дома",IF(K3="П",1,0),0) -> 0 | Y3: =IF(J3="Дома",L3,0) -> 0 | Z3: =IF(J3="Дома",M3,0) -> 0 | AA3: =V3*3+W3 -> 0 | AB3: =IF(J3<>"Дома",1,0) -> 1 | AC3: =IF(J3<>"Дома",IF(K3="В",1,0),0) -> 0 | AD3: =IF(J3<>"Дома",IF(K3="Н",1,0),0) -> 0 | AE3: =IF(J3<>"Дома",IF(K3="П",1,0),0) -> 1 | AF3: =IF(J3<>"Дома",L3,0) -> 1 | AG3: =IF(J3<>"Дома",M3,0) -> 2 | AH3: =AC3*3+AD3 -> 0 | AI3: =IF(J3="Дома",IF(L3=0,1,0),0) -> 0 | AJ3: =IF(J3="Дома",IF(L3=1,1,0),0) -> 0 | AK3: =IF(J3="Дома",IF(L3=2,1,0),0) -> 0 | AL3: =IF(J3="Дома",IF(L3>=3,1,0),0) -> 0 | AM3: =IF(J3<>"Дома",IF(L3=0,1,0),0) -> 0 | AN3: =IF(J3<>"Дома",IF(L3=1,1,0),0) -> 1 | AO3: =IF(J3<>"Дома",IF(L3=2,1,0),0) -> 0 | AP3: =IF(J3<>"Дома",IF(L3>=3,1,0),0) -> 0 | AQ3: =R3/N3 -> 1 | AR3: =S3/N3 -> 2 | AS3: =(AA3/IF(U3<1,1,U3)+AH3/IF(AB3<1,1,AB3)*1.5+Y3/IF(U3<1,1,U3)+AF3/IF(AB3<1,1,AB3)*1.5-Z3/IF(U3<1,1,U3)*1.5-AG3/IF(AB3<1,1,AB3))/15 -> -0.03333333333 | AT3: =IF(J3="В гостях",IF(K3="В","В",IF(K3="Н","Н","П")),"") -> П | AU3: =IF(J3<>"Дома",L3+M3,"") -> 3
A4: =Гости!B3 -> 2021.05.26 19:10 | B4: =Гости!A3 -> ИРАН: Первый дивизион | C4: =Гости!C3 -> Эстеглал Моласани | D4: =Гости!D3 -> Хуши-Талаи | E4: =CONCATENATE(Гости!E3,"-",Гости!F3) -> 0-1 | F4: Эстеглал Моласани | G4: Хуши-Талаи | H4: 0 | I4: 1 | J4: Дома | K4: П | L4: 0 | M4: 1 | N4: =N3+1 -> 2 | O4: =IF(K4="В",O3+1,O3+0) -> 0 | P4: =IF(K4="Н",P3+1,P3+0) -> 0 | Q4: =IF(K4="П",Q3+1,Q3+0) -> 2 | R4: =L4+R3 -> 1 | S4: =M4+S3 -> 3 | T4: 0 | U4: =IF(J4="Дома",U3+1,U3+0) -> 1 | V4: =IF(J4="Дома",IF(K4="В",V3+1,V3+0),V3+0) -> 0 | W4: =IF(J4="Дома",IF(K4="Н",W3+1,W3+0),W3+0) -> 0 | X4: =IF(J4="Дома",IF(K4="П",X3+1,X3+0),X3+0) -> 1 | Y4: =IF(J4="Дома",Y3+L4,Y3+0) -> 0 | Z4: =IF(J4="Дома",Z3+M4,Z3+0) -> 1 | AA4: 0 | AB4: =IF(J4<>"Дома",AB3+1,AB3+0) -> 1 | AC4: =IF(J4<>"Дома",IF(K4="В",AC3+1,AC3+0),AC3+0) -> 0 | AD4: =IF(J4<>"Дома",IF(K4="Н",AD3+1,AD3+0),AD3+0) -> 0 | AE4: =IF(J4<>"Дома",IF(K4="П",AE3+1,AE3+0),AE3+0) -> 1 | AF4: =IF(J4<>"Дома",AF3+L4,AF3+0) -> 1 | AG4: =IF(J4<>"Дома",AG3+M4,AG3+0) -> 2 | AH4: 0 | AI4: =IF(J4="Дома",IF(L4=0,AI3+1,AI3),AI3) -> 1 | AJ4: =IF(J4="Дома",IF(L4=1,AJ3+1,AJ3),AJ3) -> 0 | AK4: =IF(J4="Дома",IF(L4=2,AK3+1,AK3),AK3) -> 0 | AL4: =IF(J4="Дома",IF(L4>=3,AL3+1,AL3),AL3) -> 0 | AM4: =IF(J4<>"Дома",IF(L4=0,AM3+1,AM3),AM3) -> 0 | AN4: =IF(J4<>"Дома",IF(L4=1,AN3+1,AN3),AN3) -> 1 | AO4: =IF(J4<>"Дома",IF(L4=2,AO3+1,AO3),AO3) -> 0 | AP4: =IF(J4<>"Дома",IF(L4>=3,AP3+1,AP3),AP3) -> 0 | AQ4: 0.5 | AR4: 1.5 | AS4: -0.1333333333
A5: =Гости!B4 -> 2021.05.20 17:40 | B5: =Гости!A4 -> ИРАН: Первый дивизион | C5: =Гости!C4 -> Могхавемат | D5: =Гости!D4 -> Эстеглал Моласани | E5: =CONCATENATE(Гости!E4,"-",Гости!F4) -> 1-0 | F5: Могхавемат | G5: Эстеглал Моласани | H5: 1 | I5: 0 | J5: В гостях | K5: П | L5: 0 | M5: 1 | N5: 3 | O5: 0 | P5: 0 | Q5: 3 | R5: 1 | S5: 4 | T5: 0 | U5: 1 | V5: 0 | W5: 0 | X5: 1 | Y5: 0 | Z5: 1 | AA5: 0 | AB5: 2 | AC5: 0 | AD5: 0 | AE5: 2 | AF5: 1 | AG5: 3 | AH5: 0 | AI5: 1 | AJ5: 0 | AK5: 0 | AL5: 0 | AM5: 1 | AN5: 1 | AO5: 0 | AP5: 0 | AQ5: 0.3333333333 | AR5: 1.333333333 | AS5: -0.15 | AT5: П | AU5: 1
A6: =Гости!B5 -> 2021.05.14 19:00 | B6: =Гости!A5 -> ИРАН: Первый дивизион | C6: =Гости!C5 -> Эстеглал Моласани | D6: =Гости!D5 -> Навад Урмия | E6: =CONCATENATE(Гости!E5,"-",Гости!F5) -> 0-0 | F6: Эстеглал Моласани | G6: Навад Урмия | H6: 0 | I6: 0 | J6: Дома | K6: Н | L6: 0 | M6: 0 | N6: 4 | O6: 0 | P6: 1 | Q6: 3 | R6: 1 | S6: 4 | T6: 1 | U6: 2 | V6: 0 | W6: 1 | X6: 1 | Y6: 0 | Z6: 1 | AA6: 1 | AB6: 2 | AC6: 0 | AD6: 0 | AE6: 2 | AF6: 1 | AG6: 3 | AH6: 0 | AI6: 2 | AJ6: 0 | AK6: 0 | AL6: 0 | AM6: 1 | AN6: 1 | AO6: 0 | AP6: 0 | AQ6: 0.25 | AR6: 1 | AS6: -0.06666666667
A7: =Гости!B6 -> 2021.05.08 19:00 | B7: =Гости!A6 -> ИРАН: Первый дивизион | C7: =Гости!C6 -> Гол Рейхан | D7: =Гости!D6 -> Эстеглал Моласани | E7: =CONCATENATE(Гости!E6,"-",Гости!F6) -> 0-0 | F7: Гол Рейхан | G7: Эстеглал Моласани | H7: 0 | I7: 0 | J7: В гостях | K7: Н | L7: 0 | M7: 0 | N7: 5 | O7: 0 | P7: 2 | Q7: 3 | R7: 1 | S7: 4 | T7: 2 | U7: 2 | V7: 0 | W7: 1 | X7: 1 | Y7: 0 | Z7: 1 | AA7: 1 | AB7: 3 | AC7: 0 | AD7: 1 | AE7: 2 | AF7: 1 | AG7: 3 | AH7: 1 | AI7: 2 | AJ7: 0 | AK7: 0 | AL7: 0 | AM7: 2 | AN7: 1 | AO7: 0 | AP7: 0 | AQ7: 0.2 | AR7: 0.8 | AS7: -0.01666666667 | AT7: Н | AU7: 0
A8: =Гости!B7 -> 2021.04.26 18:45 | B8: =Гости!A7 -> ИРАН: Первый дивизион | C8: =Гости!C7 -> Эстеглал Моласани | D8: =Гости!D7 -> Астара | E8: =CONCATENATE(Гости!E7,"-",Гости!F7) -> 1-0 | F8: Эстеглал Моласани | G8: Астара | H8: 1 | I8: 0 | J8: Дома | K8: В | L8: 1 | M8: 0 | N8: 6 | O8: 1 | P8: 2 | Q8: 3 | R8: 2 | S8: 4 | T8: 5 | U8: 3 | V8: 1 | W8: 1 | X8: 1 | Y8: 1 | Z8: 1 | AA8: 4 | AB8: 3 | AC8: 0 | AD8: 1 | AE8: 2 | AF8: 1 | AG8: 3 | AH8: 1 | AI8: 2 | AJ8: 1 | AK8: 0 | AL8: 0 | AM8: 2 | AN8: 1 | AO8: 0 | AP8: 0 | AQ8: 0.3333333333 | AR8: 0.6666666667 | AS8: 0.07777777778
A9: =Гости!B8 -> 2021.04.19 20:30 | B9: =Гости!A8 -> ИРАН: Первый дивизион | C9: =Гости!C8 -> Эстеглал Хузестан | D9: =Гости!D8 -> Эстеглал Моласани | E9: =CONCATENATE(Гости!E8,"-",Гости!F8) -> 2-0 | F9: Эстеглал Хузестан | G9: Эстеглал Моласани | H9: 2 | I9: 0 | J9: В гостях | K9: П | L9: 0 | M9: 2 | N9: 7 | O9: 1 | P9: 2 | Q9: 4 | R9: 2 | S9: 6 | T9: 5 | U9: 3 | V9: 1 | W9: 1 | X9: 1 | Y9: 1 | Z9: 1 | AA9: 4 | AB9: 4 | AC9: 0 | AD9: 1 | AE9: 3 | AF9: 1 | AG9: 5 | AH9: 1 | AI9: 2 | AJ9: 1 | AK9: 0 | AL9: 0 | AM9: 3 | AN9: 1 | AO9: 0 | AP9: 0 | AQ9: 0.2857142857 | AR9: 0.8571428571 | AS9: 0.04444444444 | AT9: П | AU9: 2
A10: =Гости!B9 -> 2021.04.13 15:30 | B10: =Гости!A9 -> ИРАН: Первый дивизион | C10: =Гости!C9 -> Эстеглал Моласани | D10: =Гости!D9 -> Хейбар Хоррамабад | E10: =CONCATENATE(Гости!E9,"-",Гости!F9) -> 0-1 | F10: Эстеглал Моласани | G10: Хейбар Хоррамабад | H10: 0 | I10: 1 | J10: Дома | K10: П | L10: 0 | M10: 1 | N10: 8 | O10: 1 | P10: 2 | Q10: 5 | R10: 2 | S10: 7 | T10: 5 | U10: 4 | V10: 1 | W10: 1 | X10: 2 | Y10: 1 | Z10: 2 | AA10: 4 | AB10: 4 | AC10: 0 | AD10: 1 | AE10: 3 | AF10: 1 | AG10: 5 | AH10: 1 | AI10: 3 | AJ10: 1 | AK10: 0 | AL10: 0 | AM10: 3 | AN10: 1 | AO10: 0 | AP10: 0 | AQ10: 0.25 | AR10: 0.875 | AS10: 0
A11: =Гости!B10 -> 2021.04.07 15:00 | B11: =Гости!A10 -> ИРАН: Первый дивизион | C11: =Гости!C10 -> Хавадар | D11: =Гости!D10 -> Эстеглал Моласани | E11: =CONCATENATE(Гости!E10,"-",Гости!F10) -> 0-0 | F11: Хавадар | G11: Эстеглал Моласани | H11: 0 | I11: 0 | J11: В гостях | K11: Н | L11: 0 | M11: 0 | N11: 9 | O11: 1 | P11: 3 | Q11: 5 | R11: 2 | S11: 7 | T11: 6 | U11: 4 | V11: 1 | W11: 1 | X11: 2 | Y11: 1 | Z11: 2 | AA11: 4 | AB11: 5 | AC11: 0 | AD11: 2 | AE11: 3 | AF11: 1 | AG11: 5 | AH11: 2 | AI11: 3 | AJ11: 1 | AK11: 0 | AL11: 0 | AM11: 4 | AN11: 1 | AO11: 0 | AP11: 0 | AQ11: 0.2222222222 | AR11: 0.7777777778 | AS11: 0.02666666667 | AT11: Н | AU11: 0
A12: =Гости!B11 -> 2021.03.17 15:00 | B12: =Гости!A11 -> ИРАН: Первый дивизион | C12: =Гости!C11 -> Эстеглал Моласани | D12: =Гости!D11 -> Райка Баболь | E12: =CONCATENATE(Гости!E11,"-",Гости!F11) -> 0-0 | F12: Эстеглал Моласани | G12: Райка Баболь | H12: 0 | I12: 0 | J12: Дома | K12: Н | L12: 0 | M12: 0 | N12: 10 | O12: 1 | P12: 4 | Q12: 5 | R12: 2 | S12: 7 | T12: 7 | U12: 5 | V12: 1 | W12: 2 | X12: 2 | Y12: 1 | Z12: 2 | AA12: 5 | AB12: 5 | AC12: 0 | AD12: 2 | AE12: 3 | AF12: 1 | AG12: 5 | AH12: 2 | AI12: 4 | AJ12: 1 | AK12: 0 | AL12: 0 | AM12: 4 | AN12: 1 | AO12: 0 | AP12: 0 | AQ12: 0.2 | AR12: 0.7 | AS12: 0.03333333333

Sheet ДомаДома (hidden)
A1: Чемпионат | B1: Дата/Время | C1: Дома | D1: Гости | E1: К1 в 1Т | F1: К2 в 1Т | G1: К1 во 2Т | H1: К2 во 2Т | I1: Где играли | J1: К1 Голов | K1: К2 Голов | L1: Забито | M1: Пропущено | N1: Результат | O1: Всего Игр | P1: Всего выиграно | Q1: Всего ничьих | R1: Всего проиграно | S1: Всего забито | T1: Всего пропущено | U1: Всего очков | V1: Дома игр | W1: Дома выиграно | X1: Дома ничьих | Y1: Дома проиграно | Z1: Дома забито | AA1: Дома пропущено | AB1: Дома очков | AC1: Гости игр | AD1: Гости выиграно | AE1: Гости ничьих | AF1: Гости проиграно | AG1: Гости забито | AH1: Гости пропущено | AI1: Гости очков
A2: ИРАН: Первый дивизион | B2: 2021.05.26 18:05 | C2: Бадеран Тегеран | D2: Навад Урмия | E2: 0 | F2: 0 | G2: 1 | H2: 0 | I2: Дома | J2: =IF(I2="","",E2+G2) -> 1 | K2: =IF(I2="","",F2+H2) -> 0 | L2: =IF(I2="","",IF(I2="Дома",J2,K2)) -> 1 | M2: =IF(I2="","",IF(I2="Дома",K2,J2)) -> 0 | N2: =IF(I2="","",IF(I2="Дома",IF(J2>K2,"В",IF(J2=K2,"Н","П")),IF(J2<K2,"В",IF(J2=K2,"Н","П")))) -> В | O2: =IF(I2="","",1) -> 1 | P2: =IF(I2="","",IF(N2="В",1,0)) -> 1 | Q2: =IF(I2="","",IF(N2="Н",1,0)) -> 0 | R2: =IF(I2="","",IF(N2="П",1,0)) -> 0 | S2: =IF(I2="","",L2) -> 1 | T2: =IF(I2="","",M2) -> 0 | U2: =IF(I2="","",P2*3+Q2) -> 3 | V2: =IF(I2="","",IF(I2="Дома",1,0)) -> 1 | W2: =IF(I2="","",IF(I2="Дома",IF(N2="В",1,0),0)) -> 1 | X2: =IF(I2="","",IF(I2="Дома",IF(N2="Н",1,0),0)) -> 0 | Y2: =IF(I2="","",IF(I2="Дома",IF(N2="П",1,0),0)) -> 0 | Z2: =IF(I2="","",IF(I2="Дома",L2,0)) -> 1 | AA2: =IF(I2="","",IF(I2="Дома",M2,0)) -> 0 | AB2: =IF(I2="","",IF(I2="Дома",W2*3+X2,0)) -> 3 | AC2: =IF(I2="","",IF(I2="Гости",1,0)) -> 0 | AD2: =IF(I2="","",IF(I2="Гости",IF(N2="В",1,0),0)) -> 0 | AE2: =IF(I2="","",IF(I2="Гости",IF(N2="Н",1,0),0)) -> 0 | AF2: =IF(I2="","",IF(I2="Гости",IF(N2="П",1,0),0)) -> 0 | AG2: =IF(I2="","",IF(I2="Гости",L2,0)) -> 0 | AH2: =IF(I2="","",IF(I2="Гости",M2,0)) -> 0 | AI2: =IF(I2="","",IF(I2="Гости",AD2*3+AE2,0)) -> 0
A3: ИРАН: Первый дивизион | B3: 2021.05.14 16:45 | C3: Бадеран Тегеран | D3: Гол Рейхан | E3: 2 | F3: 1 | G3: 0 | H3: 0 | I3: Дома | J3: =IF(I3="","",E3+G3) -> 2 | K3: =IF(I3="","",F3+H3) -> 1 | L3: =IF(I3="","",IF(I3="Дома",J3,K3)) -> 2 | M3: =IF(I3="","",IF(I3="Дома",K3,J3)) -> 1 | N3: =IF(I3="","",IF(I3="Дома",IF(J3>K3,"В",IF(J3=K3,"Н","П")),IF(J3<K3,"В",IF(J3=K3,"Н","П")))) -> В | O3: =IF(I3="","",O2+1) -> 2 | P3: =IF(I3="","",IF(N3="В",P2+1,P2)) -> 2 | Q3: =IF(I3="","",IF(N3="Н",Q2+1,Q2)) -> 0 | R3: =IF(I3="","",IF(N3="П",R2+1,R2)) -> 0 | S3: =IF(I3="","",S2+L3) -> 3 | T3: =IF(I3="","",T2+M3) -> 1 | U3: =IF(I3="","",P3*3+Q3) -> 6 | V3: =IF(I3="","",IF(I3="Дома",V2+1,V2+0)) -> 2 | W3: =IF(I3="","",IF(I3="Дома",IF(N3="В",W2+1,W2),W2)) -> 2 | X3: =IF(I3="","",IF(I3="Дома",IF(N3="Н",X2+1,X2),X2)) -> 0 | Y3: =IF(I3="","",IF(I3="Дома",IF(N3="П",Y2+1,Y2),Y2)) -> 0 | Z3: =IF(I3="","",IF(I3="Дома",L3+Z2,Z2)) -> 3 | AA3: =IF(I3="","",IF(I3="Дома",M3+AA2,AA2)) -> 1 | AB3: =IF(I3="","",IF(I3="Дома",W3*3+X3,AB2)) -> 6 | AC3: =IF(I3="","",IF(I3="Гости",AC2+1,AC2+0)) -> 0 | AD3: =IF(I3="","",IF(I3="Гости",IF(N3="В",AD2+1,AD2),AD2)) -> 0 | AE3: =IF(I3="","",IF(I3="Гости",IF(N3="Н",AE2+1,AE2),AE2)) -> 0 | AF3: =IF(I3="","",IF(I3="Гости",IF(N3="П",AF2+1,AF2),AF2)) -> 0 | AG3: =IF(I3="","",IF(I3="Гости",L3+AG2,AG2)) -> 0 | AH3: =IF(I3="","",IF(I3="Гости",M3+AH2,AH2)) -> 0 | AI3: =IF(I3="","",IF(I3="Гости",AD3*3+AE3,AI2)) -> 0
A4: ИРАН: Первый дивизион | B4: 2021.04.26 18:45 | C4: Бадеран Тегеран | D4: Хавадар | E4: 0 | F4: 1 | G4: 0 | H4: 1 | I4: Дома | J4: 0 | K4: 2 | L4: 0 | M4: 2 | N4: П | O4: 3 | P4: =IF(I4="","",IF(N4="В",P3+1,P3)) -> 2 | Q4: =IF(I4="","",IF(N4="Н",Q3+1,Q3)) -> 0 | R4: =IF(I4="","",IF(N4="П",R3+1,R3)) -> 1 | S4: =IF(I4="","",S3+L4) -> 3 | T4: =IF(I4="","",T3+M4) -> 3 | U4: 6 | V4: =IF(I4="","",IF(I4="Дома",V3+1,V3+0)) -> 3 | W4: =IF(I4="","",IF(I4="Дома",IF(N4="В",W3+1,W3),W3)) -> 2 | X4: =IF(I4="","",IF(I4="Дома",IF(N4="Н",X3+1,X3),X3)) -> 0 | Y4: =IF(I4="","",IF(I4="Дома",IF(N4="П",Y3+1,Y3),Y3)) -> 1 | Z4: =IF(I4="","",IF(I4="Дома",L4+Z3,Z3)) -> 3 | AA4: =IF(I4="","",IF(I4="Дома",M4+AA3,AA3)) -> 3 | AB4: =IF(I4="","",IF(I4="Дома",W4*3+X4,AB3)) -> 6 | AC4: =IF(I4="","",IF(I4="Гости",AC3+1,AC3+0)) -> 0 | AD4: =IF(I4="","",IF(I4="Гости",IF(N4="В",AD3+1,AD3),AD3)) -> 0 | AE4: =IF(I4="","",IF(I4="Гости",IF(N4="Н",AE3+1,AE3),AE3)) -> 0 | AF4: =IF(I4="","",IF(I4="Гости",IF(N4="П",AF3+1,AF3),AF3)) -> 0 | AG4: =IF(I4="","",IF(I4="Гости",L4+AG3,AG3)) -> 0 | AH4: =IF(I4="","",IF(I4="Гости",M4+AH3,AH3)) -> 0 | AI4: =IF(I4="","",IF(I4="Гости",AD4*3+AE4,AI3)) -> 0
A5: ИРАН: Первый дивизион | B5: 2021.04.13 15:00 | C5: Бадеран Тегеран | D5: Арман Гохар | E5: 2 | F5: 0 | G5: 0 | H5: 0 | I5: Дома | J5: 2 | K5: 0 | L5: 2 | M5: 0 | N5: В | O5: 4 | P5: 3 | Q5: 0 | R5: 1 | S5: 5 | T5: 3 | U5: 9 | V5: 4 | W5: 3 | X5: 0 | Y5: 1 | Z5: 5 | AA5: 3 | AB5: 9 | AC5: 0 | AD5: 0 | AE5: 0 | AF5: 0 | AG5: 0 | AH5: 0 | AI5: 0
A6: ИРАН: Первый дивизион | B6: 2021.03.14 14:30 | C6: Бадеран Тегеран | D6: Эстеглал Хузестан | E6: 0 | F6: 0 | G6: 0 | H6: 0 | I6: Дома | J6: 0 | K6: 0 | L6: 0 | M6: 0 | N6: Н | O6: 5 | P6: 3 | Q6: 1 | R6: 1 | S6: 5 | T6: 3 | U6: 10 | V6: 5 | W6: 3 | X6: 1 | Y6: 1 | Z6: 5 | AA6: 3 | AB6: 10 | AC6: 0 | AD6: 0 | AE6: 0 | AF6: 0 | AG6: 0 | AH6: 0 | AI6: 0
A7: ИРАН: Первый дивизион | B7: 2021.03.07 14:15 | C7: Бадеран Тегеран | D7: Малаван | E7: 1 | F7: 0 | G7: 2 | H7: 0 | I7: Дома | J7: 3 | K7: 0 | L7: 3 | M7: 0 | N7: В | O7: 6 | P7: 4 | Q7: 1 | R7: 1 | S7: 8 | T7: 3 | U7: 13 | V7: 6 | W7: 4 | X7: 1 | Y7: 1 | Z7: 8 | AA7: 3 | AB7: 13 | AC7: 0 | AD7: 0 | AE7: 0 | AF7: 0 | AG7: 0 | AH7: 0 | AI7: 0
A8: ИРАН: Первый дивизион | B8: 2021.02.20 14:00 | C8: Бадеран Тегеран | D8: Кашкай Шираз | E8: 1 | F8: 1 | G8: 0 | H8: 2 | I8: Дома | J8: 1 | K8: 3 | L8: 1 | M8: 3 | N8: П | O8: 7 | P8: 4 | Q8: 1 | R8: 2 | S8: 9 | T8: 6 | U8: 13 | V8: 7 | W8: 4 | X8: 1 | Y8: 2 | Z8: 9 | AA8: 6 | AB8: 13 | AC8: 0 | AD8: 0 | AE8: 0 | AF8: 0 | AG8: 0 | AH8: 0 | AI8: 0
A9: ИРАН: Первый дивизион | B9: 2021.02.07 13:30 | C9: Бадеран Тегеран | D9: Парс Джануби Джем | E9: 0 | F9: 0 | G9: 1 | H9: 0 | I9: Дома | J9: 1 | K9: 0 | L9: 1 | M9: 0 | N9: =IF(I9="","",IF(I9="Дома",IF(J9>K9,"В",IF(J9=K9,"Н","П")),IF(J9<K9,"В",IF(J9=K9,"Н","П")))) -> В | O9: 8 | P9: 5 | Q9: 1 | R9: 2 | S9: 10 | T9: 6 | U9: 16 | V9: 8 | W9: 5 | X9: 1 | Y9: 2 | Z9: 10 | AA9: 6 | AB9: 16 | AC9: 0 | AD9: 0 | AE9: 0 | AF9: 0 | AG9: 0 | AH9: 0 | AI9: 0
A10: ИРАН: Первый дивизион | B10: 2021.02.01 13:30 | C10: Бадеран Тегеран | D10: Мес Керман | E10: 1 | F10: 1 | G10: 1 | H10: 0 | I10: Дома | J10: 2 | K10: 1 | L10: 2 | M10: 1 | N10: =IF(I10="","",IF(I10="Дома",IF(J10>K10,"В",IF(J10=K10,"Н","П")),IF(J10<K10,"В",IF(J10=K10,"Н","П")))) -> В | O10: 9 | P10: 6 | Q10: 1 | R10: 2 | S10: 12 | T10: 7 | U10: 19 | V10: 9 | W10: 6 | X10: 1 | Y10: 2 | Z10: 12 | AA10: 7 | AB10: 19 | AC10: 0 | AD10: 0 | AE10: 0 | AF10: 0 | AG10: 0 | AH10: 0 | AI10: 0
A11: ИРАН: Первый дивизион | B11: 2021.01.18 13:30 | C11: Бадеран Тегеран | D11: Хуши-Талаи | E11: 1 | F11: 1 | G11: 0 | H11: 0 | I11: Дома | J11: 1 | K11: 1 | L11: 1 | M11: 1 | N11: Н | O11: 10 | P11: 6 | Q11: 2 | R11: 2 | S11: 13 | T11: 8 | U11: 20 | V11: 10 | W11: 6 | X11: 2 | Y11: 2 | Z11: 13 | AA11: 8 | AB11: 20 | AC11: 0 | AD11: 0 | AE11: 0 | AF11: 0 | AG11: 0 | AH11: 0 | AI11: 0
A12: ИРАН: Первый дивизион | B12: 2021.01.04 13:30 | C12: Бадеран Тегеран | D12: Шахин Бушехр | E12: 0 | F12: 0 | G12: 0 | H12: 0 | I12: Дома | J12: 0 | K12: 0 | L12: 0 | M12: 0 | N12: Н | O12: 11 | P12: 6 | Q12: 3 | R12: 2 | S12: 13 | T12: 8 | U12: =IF(I12="","",P12*3+Q12) -> 21 | V12: 11 | W12: 6 | X12: 3 | Y12: 2 | Z12: 13 | AA12: 8 | AB12: 21 | AC12: 0 | AD12: 0 | AE12: 0 | AF12: 0 | AG12: 0 | AH12: 0 | AI12: 0
A13: ИРАН: Первый дивизион | B13: 2020.12.22 13:30 | C13: Бадеран Тегеран | D13: Могхавемат | E13: 0 | F13: 0 | G13: 0 | H13: 1 | I13: Дома | J13: 0 | K13: 1 | L13: 0 | M13: 1 | N13: П | O13: 12 | P13: 6 | Q13: 3 | R13: 3 | S13: 13 | T13: 9 | U13: 21 | V13: 12 | W13: 6 | X13: 3 | Y13: 3 | Z13: 13 | AA13: 9 | AB13: 21 | AC13: 0 | AD13: 0 | AE13: 0 | AF13: 0 | AG13: 0 | AH13: 0 | AI13: 0
A14: ИРАН: Первый дивизион | B14: 2020.12.10 13:30 | C14: Бадеран Тегеран | D14: Астара | E14: 0 | F14: 0 | G14: 1 | H14: 0 | I14: Дома | J14: 1 | K14: 0 | L14: 1 | M14: 0 | N14: В | O14: 13 | P14: 7 | Q14: 3 | R14: 3 | S14: 14 | T14: 9 | U14: 24 | V14: 13 | W14: 7 | X14: 3 | Y14: 3 | Z14: 14 | AA14: 9 | AB14: 24 | AC14: 0 | AD14: 0 | AE14: 0 | AF14: 0 | AG14: 0 | AH14: 0 | AI14: 0
A15: ИРАН: Первый дивизион | B15: 2020.11.29 14:15 | C15: Бадеран Тегеран | D15: Хейбар Хоррамабад | E15: 1 | F15: 0 | G15: 0 | H15: 0 | I15: Дома | J15: 1 | K15: 0 | L15: 1 | M15: 0 | N15: В | O15: 14 | P15: 8 | Q15: 3 | R15: 3 | S15: 15 | T15: 9 | U15: 27 | V15: 14 | W15: 8 | X15: 3 | Y15: 3 | Z15: 15 | AA15: 9 | AB15: 27 | AC15: 0 | AD15: 0 | AE15: 0 | AF15: 0 | AG15: 0 | AH15: 0 | AI15: 0
A16: ИРАН: Первый дивизион | B16: 2020.08.08 18:30 | C16: Бадеран Тегеран | D16: Сепидруд Рашт | E16: 0 | F16: 0 | G16: 1 | H16: 0 | I16: Дома | J16: 1 | K16: 0 | L16: 1 | M16: 0 | N16: В | O16: 15 | P16: 9 | Q16: 3 | R16: 3 | S16: 16 | T16: 9 | U16: 30 | V16: 15 | W16: 9 | X16: 3 | Y16: 3 | Z16: 16 | AA16: 9 | AB16: 30 | AC16: 0 | AD16: 0 | AE16: 0 | AF16: 0 | AG16: 0 | AH16: 0 | AI16: 0
A17: ИРАН: Первый дивизион | B17: 2020.08.02 18:00 | C17: Бадеран Тегеран | D17: Навад Урмия | E17: 1 | F17: 0 | G17: 1 | H17: 0 | I17: Дома | J17: 2 | K17: 0 | L17: 2 | M17: 0 | N17: В | O17: 16 | P17: 10 | Q17: 3 | R17: 3 | S17: 18 | T17: 9 | U17: 33 | V17: 16 | W17: 10 | X17: 3 | Y17: 3 | Z17: 18 | AA17: 9 | AB17: 33 | AC17: 0 | AD17: 0 | AE17: 0 | AF17: 0 | AG17: 0 | AH17: 0 | AI17: 0
A18: ИРАН: Первый дивизион | B18: 2020.07.19 17:40 | C18: Бадеран Тегеран | D18: Могхавемат | E18: 1 | F18: 1 | G18: 2 | H18: 0 | I18: Дома | J18: 3 | K18: 1 | L18: 3 | M18: 1 | N18: В | O18: 17 | P18: 11 | Q18: 3 | R18: 3 | S18: 21 | T18: 10 | U18: 36 | V18: 17 | W18: 11 | X18: 3 | Y18: 3 | Z18: 21 | AA18: 10 | AB18: 36 | AC18: 0 | AD18: 0 | AE18: 0 | AF18: 0 | AG18: 0 | AH18: 0 | AI18: 0
A19: ИРАН: Первый дивизион | B19: 2020.07.06 18:20 | C19: Бадеран Тегеран | D19: Мес Керман | E19: 0 | F19: 0 | G19: 1 | H19: 2 | I19: Дома | J19: 1 | K19: 2 | L19: 1 | M19: 2 | N19: П | O19: 18 | P19: 11 | Q19: 3 | R19: 4 | S19: 22 | T19: 12 | U19: 36 | V19: 18 | W19: 11 | X19: 3 | Y19: 4 | Z19: 22 | AA19: 12 | AB19: 36 | AC19: 0 | AD19: 0 | AE19: 0 | AF19: 0 | AG19: 0 | AH19: 0 | AI19: 0
A20: ИРАН: Первый дивизион | B20: 2020.02.28 12:00 | C20: Бадеран Тегеран | D20: Damash Gilan | E20: 1 | F20: 1 | G20: 1 | H20: 0 | I20: Дома | J20: 2 | K20: 1 | L20: 2 | M20: 1 | N20: В | O20: 19 | P20: 12 | Q20: 3 | R20: 4 | S20: 24 | T20: 13 | U20: 39 | V20: 19 | W20: 12 | X20: 3 | Y20: 4 | Z20: 24 | AA20: 13 | AB20: 39 | AC20: 0 | AD20: 0 | AE20: 0 | AF20: 0 | AG20: 0 | AH20: 0 | AI20: 0
A21: ИРАН: Первый дивизион | B21: 2020.02.16 13:45 | C21: Бадеран Тегеран | D21: Кашкай Шираз | E21: 3 | F21: 0 | G21: 1 | H21: 3 | I21: Дома | J21: 4 | K21: 3 | L21: 4 | M21: 3 | N21: В | O21: 20 | P21: 13 | Q21: 3 | R21: 4 | S21: 28 | T21: 16 | U21: 42 | V21: 20 | W21: 13 | X21: 3 | Y21: 4 | Z21: 28 | AA21: 16 | AB21: 42 | AC21: 0 | AD21: 0 | AE21: 0 | AF21: 0 | AG21: 0 | AH21: 0 | AI21: 0
A22: ИРАН: Первый дивизион | B22: 2020.02.02 13:30 | C22: Бадеран Тегеран | D22: Арман Гохар | E22: 1 | F22: 0 | G22: 3 | H22: 0 | I22: Дома | J22: 4 | K22: 0 | L22: 4 | M22: 0 | N22: В | O22: 21 | P22: 14 | Q22: 3 | R22: 4 | S22: 32 | T22: 16 | U22: 45 | V22: 21 | W22: 14 | X22: 3 | Y22: 4 | Z22: 32 | AA22: 16 | AB22: 45 | AC22: 0 | AD22: 0 | AE22: 0 | AF22: 0 | AG22: 0 | AH22: 0 | AI22: 0
J67: =IF(I67="","",E67+G67) ->  | K67: =IF(I67="","",F67+H67) ->  | L67: =IF(I67="","",IF(I67="Дома",J67,K67)) ->  | M67: =IF(I67="","",IF(I67="Дома",K67,J67)) ->  | O67: =IF(I67="","",O66+1) ->  | U67: =IF(I67="","",P67*3+Q67) -> 
P68: =IF(I68="","",IF(N68="В",P67+1,P67)) ->  | Q68: =IF(I68="","",IF(N68="Н",Q67+1,Q67)) ->  | R68: =IF(I68="","",IF(N68="П",R67+1,R67)) ->  | S68: =IF(I68="","",S67+L68) ->  | T68: =IF(I68="","",T67+M68) ->  | V68: =IF(I68="","",IF(I68="Дома",V67+1,V67+0)) ->  | W68: =IF(I68="","",IF(I68="Дома",IF(N68="В",W67+1,W67),W67)) ->  | X68: =IF(I68="","",IF(I68="Дома",IF(N68="Н",X67+1,X67),X67)) ->  | Y68: =IF(I68="","",IF(I68="Дома",IF(N68="П",Y67+1,Y67),Y67)) ->  | Z68: =IF(I68="","",IF(I68="Дома",L68+Z67,Z67)) ->  | AA68: =IF(I68="","",IF(I68="Дома",M68+AA67,AA67)) ->  | AB68: =IF(I68="","",IF(I68="Дома",W68*3+X68,AB67)) ->  | AC68: =IF(I68="","",IF(I68="Гости",AC67+1,AC67+0)) ->  | AD68: =IF(I68="","",IF(I68="Гости",IF(N68="В",AD67+1,AD67),AD67)) ->  | AE68: =IF(I68="","",IF(I68="Гости",IF(N68="Н",AE67+1,AE67),AE67)) ->  | AF68: =IF(I68="","",IF(I68="Гости",IF(N68="П",AF67+1,AF67),AF67)) ->  | AG68: =IF(I68="","",IF(I68="Гости",L68+AG67,AG67)) ->  | AH68: =IF(I68="","",IF(I68="Гости",M68+AH67,AH67)) ->  | AI68: =IF(I68="","",IF(I68="Гости",AD68*3+AE68,AI67)) -> 
N74: =IF(I74="","",IF(I74="Дома",IF(J74>K74,"В",IF(J74=K74,"Н","П")),IF(J74<K74,"В",IF(J74=K74,"Н","П")))) -> 
J131: =IF(I131="","",E131+G131) ->  | K131: =IF(I131="","",F131+H131) ->  | L131: =IF(I131="","",IF(I131="Дома",J131,K131)) ->  | M131: =IF(I131="","",IF(I131="Дома",K131,J131)) ->  | O131: =IF(I131="","",O130+1) ->  | U131: =IF(I131="","",P131*3+Q131) -> 
P132: =IF(I132="","",IF(N132="В",P131+1,P131)) ->  | Q132: =IF(I132="","",IF(N132="Н",Q131+1,Q131)) ->  | R132: =IF(I132="","",IF(N132="П",R131+1,R131)) ->  | S132: =IF(I132="","",S131+L132) ->  | T132: =IF(I132="","",T131+M132) ->  | V132: =IF(I132="","",IF(I132="Дома",V131+1,V131+0)) ->  | W132: =IF(I132="","",IF(I132="Дома",IF(N132="В",W131+1,W131),W131)) ->  | X132: =IF(I132="","",IF(I132="Дома",IF(N132="Н",X131+1,X131),X131)) ->  | Y132: =IF(I132="","",IF(I132="Дома",IF(N132="П",Y131+1,Y131),Y131)) ->  | Z132: =IF(I132="","",IF(I132="Дома",L132+Z131,Z131)) ->  | AA132: =IF(I132="","",IF(I132="Дома",M132+AA131,AA131)) ->  | AB132: =IF(I132="","",IF(I132="Дома",W132*3+X132,AB131)) ->  | AC132: =IF(I132="","",IF(I132="Гости",AC131+1,AC131+0)) ->  | AD132: =IF(I132="","",IF(I132="Гости",IF(N132="В",AD131+1,AD131),AD131)) ->  | AE132: =IF(I132="","",IF(I132="Гости",IF(N132="Н",AE131+1,AE131),AE131)) ->  | AF132: =IF(I132="","",IF(I132="Гости",IF(N132="П",AF131+1,AF131),AF131)) ->  | AG132: =IF(I132="","",IF(I132="Гости",L132+AG131,AG131)) ->  | AH132: =IF(I132="","",IF(I132="Гости",M132+AH131,AH131)) ->  | AI132: =IF(I132="","",IF(I132="Гости",AD132*3+AE132,AI131)) -> 
N138: =IF(I138="","",IF(I138="Дома",IF(J138>K138,"В",IF(J138=K138,"Н","П")),IF(J138<K138,"В",IF(J138=K138,"Н","П")))) -> 

Sheet Predict2.5
I2: =ДомаДома!C2 -> Бадеран Тегеран | P2: =ГостиГости!D2 -> Эстеглал Моласани
L6: Predict Under or Over 2.5
B7: IncOver
L9: Прогноз №1 | P9: =Data!L14 -> Under2.5 | S9: =Data!O14 -> 2.333333333
L12: Прогноз №2 | P12: =Data!L16 -> Under2.5 | S12: =Data!O16 -> 2.5
L15: Прогноз №3 | P15: =Data!L18 -> Over2.5 | S15: =Data!O18 -> 2.688311688
L18: Прогноз №4 | P18: =Data!L20 -> Under2.5
D21: Добавить в Архив | L21: Прогноз №5 | P21: =Data!L22 -> 0.4 | Q21: =Data!M22 -> Un/Ov | R21: =Data!N22 -> 0.6
L25: =Data!I24 -> Коэффициент на ТМ/ТБ 2.5
K28: =Data!K27 -> Under 2.5 | P28: =Data!K28 -> Over 2.5
K30: Стартовый | M30: Текущий | P30: =K30 -> Стартовый | R30: =M30 -> Текущий
K32: =Data!I27 -> 1.48 | M32: =Data!M27 -> 1.66 | P32: =Data!I28 -> 2.6 | R32: =Data!M28 -> 2.22
K34: Вероятность по Буку | P34: =K34 -> Вероятность по Буку
K35: =1/K32 -> 0.6756756757 | M35: =1/M32 -> 0.6024096386 | P35: =1/P32 -> 0.3846153846 | R35: =1/R32 -> 0.4504504505
C199: Home | D199: Away | E199: Прогноз1 | F199: Прогноз2 | G199: Прогноз3 | H199: Прогноз4 | I199: Меньше | J199: Больше | K199: Кэф на ТМ | M199: Кэф на ТБ | O199: 13 | P199: 14 | Q199: 15 | R199: 16 | S199: 17 | T199: 18 | U199: 19 | V199: 20 | W199: 21 | X199: 22
C200: =I2 -> Бадеран Тегеран | D200: =P2 -> Эстеглал Моласани | E200: =P9 -> Under2.5 | F200: =P12 -> Under2.5 | G200: =P15 -> Over2.5 | H200: =P18 -> Under2.5 | I200: =P21 -> 0.4 | J200: =R21 -> 0.6 | K200: =K32 -> 1.48 | L200: =M32 -> 1.66 | M200: =P32 -> 2.6 | N200: =R32 -> 2.22

Sheet Прогноз
D1: =IF(L3=2,"Внесите все данные!","") -> 
B3: =Команда1!D2 -> Бадеран Тегеран | C3: мячи | D3: эквивалент | F3: =Команда2!D2 -> Эстеглал Моласани | G3: мячи | H3: эквивалент
B4: Забили дома | C4: =Команда1!Y7 -> 2 | D4: 1 | F4: Забили дома | G4: =Команда2!Y7 -> 0 | H4: 1 | J4: =C4*D4 -> 2 | M4: =G4*H4 -> 0
B5: Заб в гостях | C5: =Команда1!AF7 -> 2 | D5: 2 | F5: Заб в гостях | G5: =Команда2!AF7 -> 1 | H5: 2 | J5: =C5*D5 -> 4 | M5: =G5*H5 -> 2
B6: Проп дома | C6: =Команда1!Z7 -> 1 | D6: 2 | F6: Проп дома | G6: =Команда2!Z7 -> 1 | H6: 2 | J6: =C6*D6 -> 2 | M6: =G6*H6 -> 2
B7: Проп в гостях | C7: =Команда1!AG7 -> 1 | D7: 1 | F7: Проп в гостях | G7: =Команда2!AG7 -> 3 | H7: 1 | J7: =C7*D7 -> 1 | K7: =J9+K9 -> 2.666666667 | M7: =G7*H7 -> 3 | N7: =M9+N9 -> 1
F8: =Дома!B2 -> 2021.06.01 18:15 | G8: =INDEX(Список!A:D,MATCH(Прогноз!B3,Список!C:C,0),1) -> ИРАН: Первый дивизион
B9: предел кэфа | D9: 0.6 | F9: =INDEX(Список!A:D,MATCH(Прогноз!B3,Список!C:C,0),2) -> 2021.06.08 17:10 | J9: =IF(OR(J4=0,M7=0),0,J4/M7) -> 0.6666666667 | K9: =IF(OR(J5=0,M6=0),0,J5/M6) -> 2 | M9: =IF(OR(M4=0,J7=0),0,M4/J7) -> 0 | N9: =IF(OR(M5=0,J6=0),0,M5/J6) -> 1
C10: =B3 -> Бадеран Тегеран | D10: =F3 -> Эстеглал Моласани | G10: =B3 -> Бадеран Тегеран | H10: =F3 -> Эстеглал Моласани
B11: Кэф | C11: =K7 -> 2.666666667 | D11: =N7 -> 1 | F11: =Очные!AG1 -> 0
B12: Гол в 1м тайме: | C12: =IF(C11<D9,"ставим","не ставим") -> не ставим | D12: =IF(D11<D9,"ставим","не ставим") -> не ставим
O13: =IFERROR(IF(AND(OR(I17<1,J17<1),I18<3,0.99<K17,0.99<L17,2.99<K18),"1<2",IF(AND(OR(K17<1,L17<1),K18<3,0.99<I17,0.99<J17,2.99<I18),"1>2","")),"") ->  | P13: =IF(AND(OR(K17<1,L17<1),K18<3,0.99<I17,0.99<J17,2.99<I18),"1>2","") -> 
C14: =IF(AND(2.99<I18,0.99<I17,0.99<J17),"ставим","не ставим") -> не ставим | D14: =IF(O13="","не ставим",CONCATENATE("ставим"," ",O13)) -> не ставим | I14: 1тайм | K14: 2тайм | M14: Матч
I15: =Дома!AL8 -> 0.8 | J15: =Дома!AM8 -> 0.4 | K15: =Дома!AN8 -> 0.4 | L15: =Дома!AO8 -> 0.8 | M15: =Дома!AP8 -> 1.2 | N15: =Дома!AQ8 -> 1.2
I16: =Гости!AL8 -> 0.2 | J16: =Гости!AM8 -> 0.8 | K16: =Гости!AN8 -> 0.8 | L16: =Гости!AO8 -> 0.8 | M16: =Гости!AP8 -> 1 | N16: =Гости!AQ8 -> 1.6
I17: =SUM(I15:I16) -> 1 | J17: =SUM(J15:J16) -> 1.2 | K17: 1.2 | L17: 1.6 | M17: 2.2 | N17: 2.8
I18: =SUM(I17:J17) -> 2.2 | K18: =SUM(K17:L17) -> 2.8 | M18: =SUM(M17:N17) -> 5

Sheet ГостиГости (hidden)
A1: Чемпионат | B1: Дата/Время | C1: Дома | D1: Гости | E1: К1 в 1Т | F1: К2 в 1Т | G1: К1 во 2Т | H1: К2 во 2Т | I1: Где играли | J1: К1 Голов | K1: К2 Голов | L1: Забито | M1: Пропущено | N1: Результат | O1: Всего Игр | P1: Всего выиграно | Q1: Всего ничьих | R1: Всего проиграно | S1: Всего забито | T1: Всего пропущено | U1: Всего очков | V1: Дома игр | W1: Дома выиграно | X1: Дома ничьих | Y1: Дома проиграно | Z1: Дома забито | AA1: Дома пропущено | AB1: Дома очков | AC1: Гости игр | AD1: Гости выиграно | AE1: Гости ничьих | AF1: Гости проиграно | AG1: Гости забито | AH1: Гости пропущено | AI1: Гости очков
A2: ИРАН: Первый дивизион | B2: 2021.06.02 17:35 | C2: Мес Керман | D2: Эстеглал Моласани | E2: 2 | F2: 1 | G2: 1 | H2: 1 | I2: Гости | J2: =IF(I2="","",E2+G2) -> 3 | K2: =IF(I2="","",F2+H2) -> 2 | L2: =IF(I2="","",IF(I2="Дома",J2,K2)) -> 2 | M2: =IF(I2="","",IF(I2="Дома",K2,J2)) -> 3 | N2: =IF(I2="","",IF(I2="Дома",IF(J2>K2,"В",IF(J2=K2,"Н","П")),IF(J2<K2,"В",IF(J2=K2,"Н","П")))) -> П | O2: =IF(I2="","",1) -> 1 | P2: =IF(I2="","",IF(N2="В",1,0)) -> 0 | Q2: =IF(I2="","",IF(N2="Н",1,0)) -> 0 | R2: =IF(I2="","",IF(N2="П",1,0)) -> 1 | S2: =IF(I2="","",L2) -> 2 | T2: =IF(I2="","",M2) -> 3 | U2: =IF(I2="","",P2*3+Q2) -> 0 | V2: =IF(I2="","",IF(I2="Дома",1,0)) -> 0 | W2: =IF(I2="","",IF(I2="Дома",IF(N2="В",1,0),0)) -> 0 | X2: =IF(I2="","",IF(I2="Дома",IF(N2="Н",1,0),0)) -> 0 | Y2: =IF(I2="","",IF(I2="Дома",IF(N2="П",1,0),0)) -> 0 | Z2: =IF(I2="","",IF(I2="Дома",L2,0)) -> 0 | AA2: =IF(I2="","",IF(I2="Дома",M2,0)) -> 0 | AB2: =IF(I2="","",IF(I2="Дома",W2*3+X2,0)) -> 0 | AC2: =IF(I2="","",IF(I2="Гости",1,0)) -> 1 | AD2: =IF(I2="","",IF(I2="Гости",IF(N2="В",1,0),0)) -> 0 | AE2: =IF(I2="","",IF(I2="Гости",IF(N2="Н",1,0),0)) -> 0 | AF2: =IF(I2="","",IF(I2="Гости",IF(N2="П",1,0),0)) -> 1 | AG2: =IF(I2="","",IF(I2="Гости",L2,0)) -> 2 | AH2: =IF(I2="","",IF(I2="Гости",M2,0)) -> 3 | AI2: =IF(I2="","",IF(I2="Гости",AD2*3+AE2,0)) -> 0
A3: ИРАН: Первый дивизион | B3: 2021.05.20 17:40 | C3: Могхавемат | D3: Эстеглал Моласани | E3: 1 | F3: 0 | G3: 1 | H3: 1 | I3: Гости | J3: =IF(I3="","",E3+G3) -> 2 | K3: =IF(I3="","",F3+H3) -> 1 | L3: =IF(I3="","",IF(I3="Дома",J3,K3)) -> 1 | M3: =IF(I3="","",IF(I3="Дома",K3,J3)) -> 2 | N3: =IF(I3="","",IF(I3="Дома",IF(J3>K3,"В",IF(J3=K3,"Н","П")),IF(J3<K3,"В",IF(J3=K3,"Н","П")))) -> П | O3: =IF(I3="","",O2+1) -> 2 | P3: =IF(I3="","",IF(N3="В",P2+1,P2)) -> 0 | Q3: =IF(I3="","",IF(N3="Н",Q2+1,Q2)) -> 0 | R3: =IF(I3="","",IF(N3="П",R2+1,R2)) -> 2 | S3: =IF(I3="","",S2+L3) -> 3 | T3: =IF(I3="","",T2+M3) -> 5 | U3: =IF(I3="","",P3*3+Q3) -> 0 | V3: =IF(I3="","",IF(I3="Дома",V2+1,V2+0)) -> 0 | W3: =IF(I3="","",IF(I3="Дома",IF(N3="В",W2+1,W2),W2)) -> 0 | X3: =IF(I3="","",IF(I3="Дома",IF(N3="Н",X2+1,X2),X2)) -> 0 | Y3: =IF(I3="","",IF(I3="Дома",IF(N3="П",Y2+1,Y2),Y2)) -> 0 | Z3: =IF(I3="","",IF(I3="Дома",L3+Z2,Z2)) -> 0 | AA3: =IF(I3="","",IF(I3="Дома",M3+AA2,AA2)) -> 0 | AB3: =IF(I3="","",IF(I3="Дома",W3*3+X3,AB2)) -> 0 | AC3: =IF(I3="","",IF(I3="Гости",AC2+1,AC2+0)) -> 2 | AD3: =IF(I3="","",IF(I3="Гости",IF(N3="В",AD2+1,AD2),AD2)) -> 0 | AE3: =IF(I3="","",IF(I3="Гости",IF(N3="Н",AE2+1,AE2),AE2)) -> 0 | AF3: =IF(I3="","",IF(I3="Гости",IF(N3="П",AF2+1,AF2),AF2)) -> 2 | AG3: =IF(I3="","",IF(I3="Гости",L3+AG2,AG2)) -> 3 | AH3: =IF(I3="","",IF(I3="Гости",M3+AH2,AH2)) -> 5 | AI3: =IF(I3="","",IF(I3="Гости",AD3*3+AE3,AI2)) -> 0
A4: ИРАН: Первый дивизион | B4: 2021.05.08 19:00 | C4: Гол Рейхан | D4: Эстеглал Моласани | E4: 0 | F4: 0 | G4: 1 | H4: 0 | I4: Гости | J4: 1 | K4: 0 | L4: 0 | M4: 1 | N4: П | O4: 3 | P4: =IF(I4="","",IF(N4="В",P3+1,P3)) -> 0 | Q4: =IF(I4="","",IF(N4="Н",Q3+1,Q3)) -> 0 | R4: =IF(I4="","",IF(N4="П",R3+1,R3)) -> 3 | S4: =IF(I4="","",S3+L4) -> 3 | T4: =IF(I4="","",T3+M4) -> 6 | U4: 0 | V4: =IF(I4="","",IF(I4="Дома",V3+1,V3+0)) -> 0 | W4: =IF(I4="","",IF(I4="Дома",IF(N4="В",W3+1,W3),W3)) -> 0 | X4: =IF(I4="","",IF(I4="Дома",IF(N4="Н",X3+1,X3),X3)) -> 0 | Y4: =IF(I4="","",IF(I4="Дома",IF(N4="П",Y3+1,Y3),Y3)) -> 0 | Z4: =IF(I4="","",IF(I4="Дома",L4+Z3,Z3)) -> 0 | AA4: =IF(I4="","",IF(I4="Дома",M4+AA3,AA3)) -> 0 | AB4: =IF(I4="","",IF(I4="Дома",W4*3+X4,AB3)) -> 0 | AC4: =IF(I4="","",IF(I4="Гости",AC3+1,AC3+0)) -> 3 | AD4: =IF(I4="","",IF(I4="Гости",IF(N4="В",AD3+1,AD3),AD3)) -> 0 | AE4: =IF(I4="","",IF(I4="Гости",IF(N4="Н",AE3+1,AE3),AE3)) -> 0 | AF4: =IF(I4="","",IF(I4="Гости",IF(N4="П",AF3+1,AF3),AF3)) -> 3 | AG4: =IF(I4="","",IF(I4="Гости",L4+AG3,AG3)) -> 3 | AH4: =IF(I4="","",IF(I4="Гости",M4+AH3,AH3)) -> 6 | AI4: =IF(I4="","",IF(I4="Гости",AD4*3+AE4,AI3)) -> 0
A5: ИРАН: Первый дивизион | B5: 2021.04.19 20:30 | C5: Эстеглал Хузестан | D5: Эстеглал Моласани | E5: 2 | F5: 0 | G5: 1 | H5: 1 | I5: Гости | J5: 3 | K5: 1 | L5: 1 | M5: 3 | N5: П | O5: 4 | P5: 0 | Q5: 0 | R5: 4 | S5: 4 | T5: 9 | U5: 0 | V5: 0 | W5: 0 | X5: 0 | Y5: 0 | Z5: 0 | AA5: 0 | AB5: 0 | AC5: 4 | AD5: 0 | AE5: 0 | AF5: 4 | AG5: 4 | AH5: 9 | AI5: 0
A6: ИРАН: Первый дивизион | B6: 2021.04.07 15:00 | C6: Хавадар | D6: Эстеглал Моласани | E6: 0 | F6: 0 | G6: 2 | H6: 1 | I6: Гости | J6: 2 | K6: 1 | L6: 1 | M6: 2 | N6: П | O6: 5 | P6: 0 | Q6: 0 | R6: 5 | S6: 5 | T6: 11 | U6: 0 | V6: 0 | W6: 0 | X6: 0 | Y6: 0 | Z6: 0 | AA6: 0 | AB6: 0 | AC6: 5 | AD6: 0 | AE6: 0 | AF6: 5 | AG6: 5 | AH6: 11 | AI6: 0
A7: ИРАН: Первый дивизион | B7: 2021.03.02 14:00 | C7: Арман Гохар | D7: Эстеглал Моласани | E7: 0 | F7: 0 | G7: 2 | H7: 2 | I7: Гости | J7: 2 | K7: 2 | L7: 2 | M7: 2 | N7: Н | O7: 6 | P7: 0 | Q7: 1 | R7: 5 | S7: 7 | T7: 13 | U7: 1 | V7: 0 | W7: 0 | X7: 0 | Y7: 0 | Z7: 0 | AA7: 0 | AB7: 0 | AC7: 6 | AD7: 0 | AE7: 1 | AF7: 5 | AG7: 7 | AH7: 13 | AI7: 1
A8: ИРАН: Первый дивизион | B8: 2021.02.14 13:30 | C8: Кашкай Шираз | D8: Эстеглал Моласани | E8: 2 | F8: 0 | G8: 1 | H8: 1 | I8: Гости | J8: 3 | K8: 1 | L8: 1 | M8: 3 | N8: П | O8: 7 | P8: 0 | Q8: 1 | R8: 6 | S8: 8 | T8: 16 | U8: 1 | V8: 0 | W8: 0 | X8: 0 | Y8: 0 | Z8: 0 | AA8: 0 | AB8: 0 | AC8: 7 | AD8: 0 | AE8: 1 | AF8: 6 | AG8: 8 | AH8: 16 | AI8: 1
A9: ИРАН: Первый дивизион | B9: 2021.02.01 13:30 | C9: Парс Джануби Джем | D9: Эстеглал Моласани | E9: 0 | F9: 1 | G9: 1 | H9: 0 | I9: Гости | J9: 1 | K9: 1 | L9: 1 | M9: 1 | N9: =IF(I9="","",IF(I9="Дома",IF(J9>K9,"В",IF(J9=K9,"Н","П")),IF(J9<K9,"В",IF(J9=K9,"Н","П")))) -> Н | O9: 8 | P9: 0 | Q9: 2 | R9: 6 | S9: 9 | T9: 17 | U9: 2 | V9: 0 | W9: 0 | X9: 0 | Y9: 0 | Z9: 0 | AA9: 0 | AB9: 0 | AC9: 8 | AD9: 0 | AE9: 2 | AF9: 6 | AG9: 9 | AH9: 17 | AI9: 2
A10: ИРАН: Первый дивизион | B10: 2021.01.11 13:30 | C10: Хуши-Талаи | D10: Эстеглал Моласани | E10: 1 | F10: 0 | G10: 1 | H10: 1 | I10: Гости | J10: 2 | K10: 1 | L10: 1 | M10: 2 | N10: =IF(I10="","",IF(I10="Дома",IF(J10>K10,"В",IF(J10=K10,"Н","П")),IF(J10<K10,"В",IF(J10=K10,"Н","П")))) -> П | O10: 9 | P10: 0 | Q10: 2 | R10: 7 | S10: 10 | T10: 19 | U10: 2 | V10: 0 | W10: 0 | X10: 0 | Y10: 0 | Z10: 0 | AA10: 0 | AB10: 0 | AC10: 9 | AD10: 0 | AE10: 2 | AF10: 7 | AG10: 10 | AH10: 19 | AI10: 2
A11: ИРАН: Первый дивизион | B11: 2020.12.28 13:30 | C11: Навад Урмия | D11: Эстеглал Моласани | E11: 0 | F11: 0 | G11: 0 | H11: 1 | I11: Гости | J11: 0 | K11: 1 | L11: 1 | M11: 0 | N11: В | O11: 10 | P11: 1 | Q11: 2 | R11: 7 | S11: 11 | T11: 19 | U11: 5 | V11: 0 | W11: 0 | X11: 0 | Y11: 0 | Z11: 0 | AA11: 0 | AB11: 0 | AC11: 10 | AD11: 1 | AE11: 2 | AF11: 7 | AG11: 11 | AH11: 19 | AI11: 5
A12: ИРАН: Первый дивизион | B12: 2020.12.16 13:30 | C12: Астара | D12: Эстеглал Моласани | E12: 1 | F12: 1 | G12: 2 | H12: 0 | I12: Гости | J12: 3 | K12: 1 | L12: 1 | M12: 3 | N12: П | O12: 11 | P12: 1 | Q12: 2 | R12: 8 | S12: 12 | T12: 22 | U12: =IF(I12="","",P12*3+Q12) -> 5 | V12: 0 | W12: 0 | X12: 0 | Y12: 0 | Z12: 0 | AA12: 0 | AB12: 0 | AC12: 11 | AD12: 1 | AE12: 2 | AF12: 8 | AG12: 12 | AH12: 22 | AI12: 5
J67: =IF(I67="","",E67+G67) ->  | K67: =IF(I67="","",F67+H67) ->  | L67: =IF(I67="","",IF(I67="Дома",J67,K67)) ->  | M67: =IF(I67="","",IF(I67="Дома",K67,J67)) ->  | O67: =IF(I67="","",O66+1) ->  | U67: =IF(I67="","",P67*3+Q67) -> 
P68: =IF(I68="","",IF(N68="В",P67+1,P67)) ->  | Q68: =IF(I68="","",IF(N68="Н",Q67+1,Q67)) ->  | R68: =IF(I68="","",IF(N68="П",R67+1,R67)) ->  | S68: =IF(I68="","",S67+L68) ->  | T68: =IF(I68="","",T67+M68) ->  | V68: =IF(I68="","",IF(I68="Дома",V67+1,V67+0)) ->  | W68: =IF(I68="","",IF(I68="Дома",IF(N68="В",W67+1,W67),W67)) ->  | X68: =IF(I68="","",IF(I68="Дома",IF(N68="Н",X67+1,X67),X67)) ->  | Y68: =IF(I68="","",IF(I68="Дома",IF(N68="П",Y67+1,Y67),Y67)) ->  | Z68: =IF(I68="","",IF(I68="Дома",L68+Z67,Z67)) ->  | AA68: =IF(I68="","",IF(I68="Дома",M68+AA67,AA67)) ->  | AB68: =IF(I68="","",IF(I68="Дома",W68*3+X68,AB67)) ->  | AC68: =IF(I68="","",IF(I68="Гости",AC67+1,AC67+0)) ->  | AD68: =IF(I68="","",IF(I68="Гости",IF(N68="В",AD67+1,AD67),AD67)) ->  | AE68: =IF(I68="","",IF(I68="Гости",IF(N68="Н",AE67+1,AE67),AE67)) ->  | AF68: =IF(I68="","",IF(I68="Гости",IF(N68="П",AF67+1,AF67),AF67)) ->  | AG68: =IF(I68="","",IF(I68="Гости",L68+AG67,AG67)) ->  | AH68: =IF(I68="","",IF(I68="Гости",M68+AH67,AH67)) ->  | AI68: =IF(I68="","",IF(I68="Гости",AD68*3+AE68,AI67)) -> 
N74: =IF(I74="","",IF(I74="Дома",IF(J74>K74,"В",IF(J74=K74,"Н","П")),IF(J74<K74,"В",IF(J74=K74,"Н","П")))) -> 
J131: =IF(I131="","",E131+G131) ->  | K131: =IF(I131="","",F131+H131) ->  | L131: =IF(I131="","",IF(I131="Дома",J131,K131)) ->  | M131: =IF(I131="","",IF(I131="Дома",K131,J131)) ->  | O131: =IF(I131="","",O130+1) ->  | U131: =IF(I131="","",P131*3+Q131) -> 
P132: =IF(I132="","",IF(N132="В",P131+1,P131)) ->  | Q132: =IF(I132="","",IF(N132="Н",Q131+1,Q131)) ->  | R132: =IF(I132="","",IF(N132="П",R131+1,R131)) ->  | S132: =IF(I132="","",S131+L132) ->  | T132: =IF(I132="","",T131+M132) ->  | V132: =IF(I132="","",IF(I132="Дома",V131+1,V131+0)) ->  | W132: =IF(I132="","",IF(I132="Дома",IF(N132="В",W131+1,W131),W131)) ->  | X132: =IF(I132="","",IF(I132="Дома",IF(N132="Н",X131+1,X131),X131)) ->  | Y132: =IF(I132="","",IF(I132="Дома",IF(N132="П",Y131+1,Y131),Y131)) ->  | Z132: =IF(I132="","",IF(I132="Дома",L132+Z131,Z131)) ->  | AA132: =IF(I132="","",IF(I132="Дома",M132+AA131,AA131)) ->  | AB132: =IF(I132="","",IF(I132="Дома",W132*3+X132,AB131)) ->  | AC132: =IF(I132="","",IF(I132="Гости",AC131+1,AC131+0)) ->  | AD132: =IF(I132="","",IF(I132="Гости",IF(N132="В",AD131+1,AD131),AD131)) ->  | AE132: =IF(I132="","",IF(I132="Гости",IF(N132="Н",AE131+1,AE131),AE131)) ->  | AF132: =IF(I132="","",IF(I132="Гости",IF(N132="П",AF131+1,AF131),AF131)) ->  | AG132: =IF(I132="","",IF(I132="Гости",L132+AG131,AG131)) ->  | AH132: =IF(I132="","",IF(I132="Гости",M132+AH131,AH131)) ->  | AI132: =IF(I132="","",IF(I132="Гости",AD132*3+AE132,AI131)) -> 
N138: =IF(I138="","",IF(I138="Дома",IF(J138>K138,"В",IF(J138=K138,"Н","П")),IF(J138<K138,"В",IF(J138=K138,"Н","П")))) -> 

Sheet Очные (hidden)
A1: Бадеран Тегеран | B1: Эстеглал Моласани | G1: Результат К1 | H1: Забито К1 | I1: Пропущено К1 | J1: Выиграно К1 | K1: Ничьих К1 | L1: Проиграно К1 | M1: РезультатК2 | N1: Забито К2 | O1: Пропущено К2 | P1: Выиграно К2 | Q1: Ничьих К2 | R1: Пропущено К2 | S1: ХОЗЯЕВА | T1: Д | U1: Заб | V1: Проп | W1: Г | X1: Заб | Y1: Проп | Z1: ГОСТИ | AA1: Д | AB1: Заб | AC1: Проп | AD1: Г | AE1: Заб | AF1: Проп | AG1: =COUNTIF(AG2:AG6,"00") -> 0
A2: Первый дивизион (Иран) | B2: 2021.01.25 00:00 | C2: Эстеглал Моласани | D2: Бадеран Тегеран | E2: 1 | F2: 1 | G2: =IF(A2="","",IF(A1=C2,IF(E2>F2,"В",IF(E2=F2,"Н","П")),IF(E2<F2,"В",IF(E2=F2,"Н","П")))) -> Н | H2: =IF(A2="","",IF(A1=C2,E2,F2)) -> 1 | I2: =IF(A2="","",IF(A1=C2,F2,E2)) -> 1 | J2: =IF(A2="","",IF(G2="В",1,0)) -> 0 | K2: =IF(A2="","",IF(G2="Н",1,0)) -> 1 | L2: =IF(A2="","",IF(G2="П",1,0)) -> 0 | M2: =IF(A2="","",IF(B1=D2,IF(F2>E2,"В",IF(F2=E2,"Н","П")),IF(F2<E2,"В",IF(F2=E2,"Н","П")))) -> Н | N2: =IF(A2="","",IF(B1=D2,F2,E2)) -> 1 | O2: =IF(A2="","",IF(B1=D2,E2,F2)) -> 1 | P2: =IF(A2="","",IF(M2="В",1,0)) -> 0 | Q2: =IF(A2="","",IF(M2="Н",1,0)) -> 1 | R2: =IF(A2="","",IF(M2="П",1,0)) -> 0 | S2: =IF(A2="","",IF(C2=$A$1,"Дома",IF(D2=$A$1,"В Гостях",""))) -> В Гостях | T2: =IF(S2="Дома",G2,"") ->  | U2: =IF(S2="Дома",E2,"") ->  | V2: =IF(S2="Дома",F2,"") ->  | W2: =IF(S2="В Гостях",G2,"") -> Н | X2: =IF(S2="В Гостях",F2,"") -> 1 | Y2: =IF(S2="В Гостях",E2,"") -> 1 | Z2: =IF(A2="","",IF(D2=$A$1,"Дома",IF(C2=$A$1,"В Гостях",""))) -> Дома | AA2: =IF(Z2="Дома",M2,"") -> Н | AB2: =IF(Z2="Дома",E2,"") -> 1 | AC2: =IF(Z2="Дома",F2,"") -> 1 | AD2: =IF(Z2="В Гостях",M2,"") ->  | AE2: =IF(Z2="В Гостях",F2,"") ->  | AF2: =IF(Z2="В Гостях",E2,"") ->  | AG2: =IF(E2="","",CONCATENATE(E2,F2)) -> 11
G3: =IF(A3="","",IF($A$1=C3,IF(E3>F3,"В",IF(E3=F3,"Н","П")),IF(E3<F3,"В",IF(E3=F3,"Н","П")))) ->  | H3: =IF(A3="","",IF($A$1=C3,E3+H2,F3+H2)) ->  | I3: =IF(A3="","",IF($A$1=C3,F3+I2,E3+I2)) ->  | J3: =IF(A3="","",IF(G3="В",1+J2,0+J2)) ->  | K3: =IF(A3="","",IF(G3="Н",1+K2,0+K2)) ->  | L3: =IF(A3="","",IF(G3="П",1+L2,0+L2)) ->  | M3: =IF(A3="","",IF($B$1=D3,IF(F3>E3,"В",IF(F3=E3,"Н","П")),IF(F3<E3,"В",IF(F3=E3,"Н","П")))) ->  | N3: =IF(A3="","",IF($B$1=D3,F3+N2,E3+N2)) ->  | O3: =IF(A3="","",IF($B$1=D3,E3+O2,F3+O2)) ->  | P3: =IF(A3="","",IF(M3="В",1+P2,0+P2)) ->  | Q3: =IF(A3="","",IF(M3="Н",1+Q2,0+Q2)) ->  | R3: =IF(A3="","",IF(M3="П",1+R2,0+R2)) ->  | S3: =IF(A3="","",IF(C3=$A$1,"Дома",IF(D3=$A$1,"В Гостях",""))) ->  | T3: =IF(S3="Дома",G3,"") ->  | U3: =IF(S3="Дома",E3,"") ->  | V3: =IF(S3="Дома",F3,"") ->  | W3: =IF(S3="В Гостях",G3,"") ->  | X3: =IF(S3="В Гостях",F3,"") ->  | Y3: =IF(S3="В Гостях",E3,"") ->  | Z3: =IF(A3="","",IF(D3=$A$1,"Дома",IF(C3=$A$1,"В Гостях",""))) ->  | AA3: =IF(Z3="Дома",M3,"") ->  | AB3: =IF(Z3="Дома",E3,"") ->  | AC3: =IF(Z3="Дома",F3,"") ->  | AD3: =IF(Z3="В Гостях",M3,"") ->  | AE3: =IF(Z3="В Гостях",F3,"") ->  | AF3: =IF(Z3="В Гостях",E3,"") ->  | AG3: =IF(E3="","",CONCATENATE(E3,F3)) -> 
J4: =IF(A4="","",IF(G4="В",1+J3,0+J3)) ->  | K4: =IF(A4="","",IF(G4="Н",1+K3,0+K3)) ->  | L4: =IF(A4="","",IF(G4="П",1+L3,0+L3)) ->  | M4: =IF(A4="","",IF($B$1=D4,IF(F4>E4,"В",IF(F4=E4,"Н","П")),IF(F4<E4,"В",IF(F4=E4,"Н","П")))) ->  | N4: =IF(A4="","",IF($B$1=D4,F4+N3,E4+N3)) ->  | O4: =IF(A4="","",IF($B$1=D4,E4+O3,F4+O3)) ->  | P4: =IF(A4="","",IF(M4="В",1+P3,0+P3)) ->  | Q4: =IF(A4="","",IF(M4="Н",1+Q3,0+Q3)) ->  | R4: =IF(A4="","",IF(M4="П",1+R3,0+R3)) -> 
I8: =IF(A8="","",IF($A$1=C8,F8+I7,E8+I7)) -> 
G35: =IF(A35="","",IF($A$1=C35,IF(E35>F35,"В",IF(E35=F35,"Н","П")),IF(E35<F35,"В",IF(E35=F35,"Н","П")))) ->  | H35: =IF(A35="","",IF($A$1=C35,E35+H34,F35+H34)) ->  | I35: =IF(A35="","",IF($A$1=C35,F35+I34,E35+I34)) -> 
G67: =IF(A67="","",IF($A$1=C67,IF(E67>F67,"В",IF(E67=F67,"Н","П")),IF(E67<F67,"В",IF(E67=F67,"Н","П")))) ->  | H67: =IF(A67="","",IF($A$1=C67,E67+H66,F67+H66)) ->  | I67: =IF(A67="","",IF($A$1=C67,F67+I66,E67+I66)) ->  | S67: =IF(A67="","",IF(C67=$A$1,"Дома",IF(D67=$A$1,"В Гостях",""))) ->  | T67: =IF(S67="Дома",G67,"") ->  | U67: =IF(S67="Дома",E67,"") ->  | V67: =IF(S67="Дома",F67,"") ->  | W67: =IF(S67="В Гостях",G67,"") ->  | X67: =IF(S67="В Гостях",F67,"") ->  | Y67: =IF(S67="В Гостях",E67,"") ->  | Z67: =IF(A67="","",IF(D67=$A$1,"Дома",IF(C67=$A$1,"В Гостях",""))) ->  | AA67: =IF(Z67="Дома",M67,"") ->  | AB67: =IF(Z67="Дома",E67,"") ->  | AC67: =IF(Z67="Дома",F67,"") ->  | AD67: =IF(Z67="В Гостях",M67,"") ->  | AE67: =IF(Z67="В Гостях",F67,"") ->  | AF67: =IF(Z67="В Гостях",E67,"") -> 
J68: =IF(A68="","",IF(G68="В",1+J67,0+J67)) ->  | K68: =IF(A68="","",IF(G68="Н",1+K67,0+K67)) ->  | L68: =IF(A68="","",IF(G68="П",1+L67,0+L67)) ->  | M68: =IF(A68="","",IF($B$1=D68,IF(F68>E68,"В",IF(F68=E68,"Н","П")),IF(F68<E68,"В",IF(F68=E68,"Н","П")))) ->  | N68: =IF(A68="","",IF($B$1=D68,F68+N67,E68+N67)) ->  | O68: =IF(A68="","",IF($B$1=D68,E68+O67,F68+O67)) ->  | P68: =IF(A68="","",IF(M68="В",1+P67,0+P67)) ->  | Q68: =IF(A68="","",IF(M68="Н",1+Q67,0+Q67)) ->  | R68: =IF(A68="","",IF(M68="П",1+R67,0+R67)) -> 
G99: =IF(A99="","",IF($A$1=C99,IF(E99>F99,"В",IF(E99=F99,"Н","П")),IF(E99<F99,"В",IF(E99=F99,"Н","П")))) ->  | H99: =IF(A99="","",IF($A$1=C99,E99+H98,F99+H98)) ->  | I99: =IF(A99="","",IF($A$1=C99,F99+I98,E99+I98)) -> 
G131: =IF(A131="","",IF($A$1=C131,IF(E131>F131,"В",IF(E131=F131,"Н","П")),IF(E131<F131,"В",IF(E131=F131,"Н","П")))) ->  | H131: =IF(A131="","",IF($A$1=C131,E131+H130,F131+H130)) ->  | I131: =IF(A131="","",IF($A$1=C131,F131+I130,E131+I130)) ->  | S131: =IF(A131="","",IF(C131=$A$1,"Дома",IF(D131=$A$1,"В Гостях",""))) ->  | T131: =IF(S131="Дома",G131,"") ->  | U131: =IF(S131="Дома",E131,"") ->  | V131: =IF(S131="Дома",F131,"") ->  | W131: =IF(S131="В Гостях",G131,"") ->  | X131: =IF(S131="В Гостях",F131,"") ->  | Y131: =IF(S131="В Гостях",E131,"") ->  | Z131: =IF(A131="","",IF(D131=$A$1,"Дома",IF(C131=$A$1,"В Гостях",""))) ->  | AA131: =IF(Z131="Дома",M131,"") ->  | AB131: =IF(Z131="Дома",E131,"") ->  | AC131: =IF(Z131="Дома",F131,"") ->  | AD131: =IF(Z131="В Гостях",M131,"") ->  | AE131: =IF(Z131="В Гостях",F131,"") ->  | AF131: =IF(Z131="В Гостях",E131,"") -> 
J132: =IF(A132="","",IF(G132="В",1+J131,0+J131)) ->  | K132: =IF(A132="","",IF(G132="Н",1+K131,0+K131)) ->  | L132: =IF(A132="","",IF(G132="П",1+L131,0+L131)) ->  | M132: =IF(A132="","",IF($B$1=D132,IF(F132>E132,"В",IF(F132=E132,"Н","П")),IF(F132<E132,"В",IF(F132=E132,"Н","П")))) ->  | N132: =IF(A132="","",IF($B$1=D132,F132+N131,E132+N131)) ->  | O132: =IF(A132="","",IF($B$1=D132,E132+O131,F132+O131)) ->  | P132: =IF(A132="","",IF(M132="В",1+P131,0+P131)) ->  | Q132: =IF(A132="","",IF(M132="Н",1+Q131,0+Q131)) ->  | R132: =IF(A132="","",IF(M132="П",1+R131,0+R131)) -> 

Sheet ДомаГости (hidden)
A1: Чемпионат | B1: Дата/Время | C1: Дома | D1: Гости | E1: К1 в 1Т | F1: К2 в 1Т | G1: К1 во 2Т | H1: К2 во 2Т | I1: Где играли | J1: К1 Голов | K1: К2 Голов | L1: Забито | M1: Пропущено | N1: Результат | O1: Всего Игр | P1: Всего выиграно | Q1: Всего ничьих | R1: Всего проиграно | S1: Всего забито | T1: Всего пропущено | U1: Всего очков | V1: Дома игр | W1: Дома выиграно | X1: Дома ничьих | Y1: Дома проиграно | Z1: Дома забито | AA1: Дома пропущено | AB1: Дома очков | AC1: Гости игр | AD1: Гости выиграно | AE1: Гости ничьих | AF1: Гости проиграно | AG1: Гости забито | AH1: Гости пропущено | AI1: Гости очков
A2: ИРАН: Первый дивизион | B2: 2021.06.01 18:15 | C2: Хуши-Талаи | D2: Бадеран Тегеран | E2: 0 | F2: 0 | G2: 2 | H2: 0 | I2: Гости | J2: =IF(I2="","",E2+G2) -> 2 | K2: =IF(I2="","",F2+H2) -> 0 | L2: =IF(I2="","",IF(I2="Дома",J2,K2)) -> 0 | M2: =IF(I2="","",IF(I2="Дома",K2,J2)) -> 2 | N2: =IF(I2="","",IF(I2="Дома",IF(J2>K2,"В",IF(J2=K2,"Н","П")),IF(J2<K2,"В",IF(J2=K2,"Н","П")))) -> П | O2: =IF(I2="","",1) -> 1 | P2: =IF(I2="","",IF(N2="В",1,0)) -> 0 | Q2: =IF(I2="","",IF(N2="Н",1,0)) -> 0 | R2: =IF(I2="","",IF(N2="П",1,0)) -> 1 | S2: =IF(I2="","",L2) -> 0 | T2: =IF(I2="","",M2) -> 2 | U2: =IF(I2="","",P2*3+Q2) -> 0 | V2: =IF(I2="","",IF(I2="Дома",1,0)) -> 0 | W2: =IF(I2="","",IF(I2="Дома",IF(N2="В",1,0),0)) -> 0 | X2: =IF(I2="","",IF(I2="Дома",IF(N2="Н",1,0),0)) -> 0 | Y2: =IF(I2="","",IF(I2="Дома",IF(N2="П",1,0),0)) -> 0 | Z2: =IF(I2="","",IF(I2="Дома",L2,0)) -> 0 | AA2: =IF(I2="","",IF(I2="Дома",M2,0)) -> 0 | AB2: =IF(I2="","",IF(I2="Дома",W2*3+X2,0)) -> 0 | AC2: =IF(I2="","",IF(I2="Гости",1,0)) -> 1 | AD2: =IF(I2="","",IF(I2="Гости",IF(N2="В",1,0),0)) -> 0 | AE2: =IF(I2="","",IF(I2="Гости",IF(N2="Н",1,0),0)) -> 0 | AF2: =IF(I2="","",IF(I2="Гости",IF(N2="П",1,0),0)) -> 1 | AG2: =IF(I2="","",IF(I2="Гости",L2,0)) -> 0 | AH2: =IF(I2="","",IF(I2="Гости",M2,0)) -> 2 | AI2: =IF(I2="","",IF(I2="Гости",AD2*3+AE2,0)) -> 0
A3: ИРАН: Первый дивизион | B3: 2021.05.20 18:45 | C3: Шахин Бушехр | D3: Бадеран Тегеран | E3: 1 | F3: 1 | G3: 1 | H3: 0 | I3: Гости | J3: =IF(I3="","",E3+G3) -> 2 | K3: =IF(I3="","",F3+H3) -> 1 | L3: =IF(I3="","",IF(I3="Дома",J3,K3)) -> 1 | M3: =IF(I3="","",IF(I3="Дома",K3,J3)) -> 2 | N3: =IF(I3="","",IF(I3="Дома",IF(J3>K3,"В",IF(J3=K3,"Н","П")),IF(J3<K3,"В",IF(J3=K3,"Н","П")))) -> П | O3: =IF(I3="","",O2+1) -> 2 | P3: =IF(I3="","",IF(N3="В",P2+1,P2)) -> 0 | Q3: =IF(I3="","",IF(N3="Н",Q2+1,Q2)) -> 0 | R3: =IF(I3="","",IF(N3="П",R2+1,R2)) -> 2 | S3: =IF(I3="","",S2+L3) -> 1 | T3: =IF(I3="","",T2+M3) -> 4 | U3: =IF(I3="","",P3*3+Q3) -> 0 | V3: =IF(I3="","",IF(I3="Дома",V2+1,V2+0)) -> 0 | W3: =IF(I3="","",IF(I3="Дома",IF(N3="В",W2+1,W2),W2)) -> 0 | X3: =IF(I3="","",IF(I3="Дома",IF(N3="Н",X2+1,X2),X2)) -> 0 | Y3: =IF(I3="","",IF(I3="Дома",IF(N3="П",Y2+1,Y2),Y2)) -> 0 | Z3: =IF(I3="","",IF(I3="Дома",L3+Z2,Z2)) -> 0 | AA3: =IF(I3="","",IF(I3="Дома",M3+AA2,AA2)) -> 0 | AB3: =IF(I3="","",IF(I3="Дома",W3*3+X3,AB2)) -> 0 | AC3: =IF(I3="","",IF(I3="Гости",AC2+1,AC2+0)) -> 2 | AD3: =IF(I3="","",IF(I3="Гости",IF(N3="В",AD2+1,AD2),AD2)) -> 0 | AE3: =IF(I3="","",IF(I3="Гости",IF(N3="Н",AE2+1,AE2),AE2)) -> 0 | AF3: =IF(I3="","",IF(I3="Гости",IF(N3="П",AF2+1,AF2),AF2)) -> 2 | AG3: =IF(I3="","",IF(I3="Гости",L3+AG2,AG2)) -> 1 | AH3: =IF(I3="","",IF(I3="Гости",M3+AH2,AH2)) -> 4 | AI3: =IF(I3="","",IF(I3="Гости",AD3*3+AE3,AI2)) -> 0
A4: ИРАН: Первый дивизион | B4: 2021.05.08 18:45 | C4: Могхавемат | D4: Бадеран Тегеран | E4: 0 | F4: 1 | G4: 1 | H4: 1 | I4: Гости | J4: 1 | K4: 2 | L4: 2 | M4: 1 | N4: В | O4: 3 | P4: =IF(I4="","",IF(N4="В",P3+1,P3)) -> 1 | Q4: =IF(I4="","",IF(N4="Н",Q3+1,Q3)) -> 0 | R4: =IF(I4="","",IF(N4="П",R3+1,R3)) -> 2 | S4: =IF(I4="","",S3+L4) -> 3 | T4: =IF(I4="","",T3+M4) -> 5 | U4: 3 | V4: =IF(I4="","",IF(I4="Дома",V3+1,V3+0)) -> 0 | W4: =IF(I4="","",IF(I4="Дома",IF(N4="В",W3+1,W3),W3)) -> 0 | X4: =IF(I4="","",IF(I4="Дома",IF(N4="Н",X3+1,X3),X3)) -> 0 | Y4: =IF(I4="","",IF(I4="Дома",IF(N4="П",Y3+1,Y3),Y3)) -> 0 | Z4: =IF(I4="","",IF(I4="Дома",L4+Z3,Z3)) -> 0 | AA4: =IF(I4="","",IF(I4="Дома",M4+AA3,AA3)) -> 0 | AB4: =IF(I4="","",IF(I4="Дома",W4*3+X4,AB3)) -> 0 | AC4: =IF(I4="","",IF(I4="Гости",AC3+1,AC3+0)) -> 3 | AD4: =IF(I4="","",IF(I4="Гости",IF(N4="В",AD3+1,AD3),AD3)) -> 1 | AE4: =IF(I4="","",IF(I4="Гости",IF(N4="Н",AE3+1,AE3),AE3)) -> 0 | AF4: =IF(I4="","",IF(I4="Гости",IF(N4="П",AF3+1,AF3),AF3)) -> 2 | AG4: =IF(I4="","",IF(I4="Гости",L4+AG3,AG3)) -> 3 | AH4: =IF(I4="","",IF(I4="Гости",M4+AH3,AH3)) -> 5 | AI4: =IF(I4="","",IF(I4="Гости",AD4*3+AE4,AI3)) -> 3
A5: ИРАН: Первый дивизион | B5: 2021.04.19 18:45 | C5: Астара | D5: Бадеран Тегеран | E5: 0 | F5: 1 | G5: 0 | H5: 2 | I5: Гости | J5: 0 | K5: 3 | L5: 3 | M5: 0 | N5: В | O5: 4 | P5: 2 | Q5: 0 | R5: 2 | S5: 6 | T5: 5 | U5: 6 | V5: 0 | W5: 0 | X5: 0 | Y5: 0 | Z5: 0 | AA5: 0 | AB5: 0 | AC5: 4 | AD5: 2 | AE5: 0 | AF5: 2 | AG5: 6 | AH5: 5 | AI5: 6
A6: ИРАН: Первый дивизион | B6: 2021.04.07 15:00 | C6: Хейбар Хоррамабад | D6: Бадеран Тегеран | E6: 0 | F6: 0 | G6: 1 | H6: 0 | I6: Гости | J6: 1 | K6: 0 | L6: 0 | M6: 1 | N6: П | O6: 5 | P6: 2 | Q6: 0 | R6: 3 | S6: 6 | T6: 6 | U6: 6 | V6: 0 | W6: 0 | X6: 0 | Y6: 0 | Z6: 0 | AA6: 0 | AB6: 0 | AC6: 5 | AD6: 2 | AE6: 0 | AF6: 3 | AG6: 6 | AH6: 6 | AI6: 6
A7: ИРАН: Первый дивизион | B7: 2021.03.02 14:00 | C7: Райка Баболь | D7: Бадеран Тегеран | E7: 0 | F7: 2 | G7: 3 | H7: 0 | I7: Гости | J7: 3 | K7: 2 | L7: 2 | M7: 3 | N7: П | O7: 6 | P7: 2 | Q7: 0 | R7: 4 | S7: 8 | T7: 9 | U7: 6 | V7: 0 | W7: 0 | X7: 0 | Y7: 0 | Z7: 0 | AA7: 0 | AB7: 0 | AC7: 6 | AD7: 2 | AE7: 0 | AF7: 4 | AG7: 8 | AH7: 9 | AI7: 6
A8: ИРАН: Первый дивизион | B8: 2021.02.14 13:30 | C8: Чока Талеш | D8: Бадеран Тегеран | E8: 1 | F8: 1 | G8: 1 | H8: 3 | I8: Гости | J8: 2 | K8: 4 | L8: 4 | M8: 2 | N8: В | O8: 7 | P8: 3 | Q8: 0 | R8: 4 | S8: 12 | T8: 11 | U8: 9 | V8: 0 | W8: 0 | X8: 0 | Y8: 0 | Z8: 0 | AA8: 0 | AB8: 0 | AC8: 7 | AD8: 3 | AE8: 0 | AF8: 4 | AG8: 12 | AH8: 11 | AI8: 9
A9: ИРАН: Первый дивизион | B9: 2021.01.25 13:30 | C9: Эстеглал Моласани | D9: Бадеран Тегеран | E9: 1 | F9: 0 | G9: 0 | H9: 1 | I9: Гости | J9: 1 | K9: 1 | L9: 1 | M9: 1 | N9: =IF(I9="","",IF(I9="Дома",IF(J9>K9,"В",IF(J9=K9,"Н","П")),IF(J9<K9,"В",IF(J9=K9,"Н","П")))) -> Н | O9: 8 | P9: 3 | Q9: 1 | R9: 4 | S9: 13 | T9: 12 | U9: 10 | V9: 0 | W9: 0 | X9: 0 | Y9: 0 | Z9: 0 | AA9: 0 | AB9: 0 | AC9: 8 | AD9: 3 | AE9: 1 | AF9: 4 | AG9: 13 | AH9: 12 | AI9: 10
A10: ИРАН: Первый дивизион | B10: 2021.01.11 13:30 | C10: Навад Урмия | D10: Бадеран Тегеран | E10: 0 | F10: 0 | G10: 0 | H10: 2 | I10: Гости | J10: 0 | K10: 2 | L10: 2 | M10: 0 | N10: =IF(I10="","",IF(I10="Дома",IF(J10>K10,"В",IF(J10=K10,"Н","П")),IF(J10<K10,"В",IF(J10=K10,"Н","П")))) -> В | O10: 9 | P10: 4 | Q10: 1 | R10: 4 | S10: 15 | T10: 12 | U10: 13 | V10: 0 | W10: 0 | X10: 0 | Y10: 0 | Z10: 0 | AA10: 0 | AB10: 0 | AC10: 9 | AD10: 4 | AE10: 1 | AF10: 4 | AG10: 15 | AH10: 12 | AI10: 13
A11: ИРАН: Первый дивизион | B11: 2020.12.28 13:30 | C11: Гол Рейхан | D11: Бадеран Тегеран | E11: 1 | F11: 0 | G11: 0 | H11: 0 | I11: Гости | J11: 1 | K11: 0 | L11: 0 | M11: 1 | N11: П | O11: 10 | P11: 4 | Q11: 1 | R11: 5 | S11: 15 | T11: 13 | U11: 13 | V11: 0 | W11: 0 | X11: 0 | Y11: 0 | Z11: 0 | AA11: 0 | AB11: 0 | AC11: 10 | AD11: 4 | AE11: 1 | AF11: 5 | AG11: 15 | AH11: 13 | AI11: 13
A12: ИРАН: Первый дивизион | B12: 2020.12.16 13:30 | C12: Хавадар | D12: Бадеран Тегеран | E12: 1 | F12: 0 | G12: 0 | H12: 2 | I12: Гости | J12: 1 | K12: 2 | L12: 2 | M12: 1 | N12: В | O12: 11 | P12: 5 | Q12: 1 | R12: 5 | S12: 17 | T12: 14 | U12: =IF(I12="","",P12*3+Q12) -> 16 | V12: 0 | W12: 0 | X12: 0 | Y12: 0 | Z12: 0 | AA12: 0 | AB12: 0 | AC12: 11 | AD12: 5 | AE12: 1 | AF12: 5 | AG12: 17 | AH12: 14 | AI12: 16
A13: ИРАН: Первый дивизион | B13: 2020.12.05 13:45 | C13: Арман Гохар | D13: Бадеран Тегеран | E13: 0 | F13: 0 | G13: 0 | H13: 0 | I13: Гости | J13: 0 | K13: 0 | L13: 0 | M13: 0 | N13: Н | O13: 12 | P13: 5 | Q13: 2 | R13: 5 | S13: 17 | T13: 14 | U13: 17 | V13: 0 | W13: 0 | X13: 0 | Y13: 0 | Z13: 0 | AA13: 0 | AB13: 0 | AC13: 12 | AD13: 5 | AE13: 2 | AF13: 5 | AG13: 17 | AH13: 14 | AI13: 17
A14: ИРАН: Первый дивизион | B14: 2020.11.22 15:00 | C14: Эстеглал Хузестан | D14: Бадеран Тегеран | E14: 0 | F14: 0 | G14: 1 | H14: 0 | I14: Гости | J14: 1 | K14: 0 | L14: 0 | M14: 1 | N14: П | O14: 13 | P14: 5 | Q14: 2 | R14: 6 | S14: 17 | T14: 15 | U14: 17 | V14: 0 | W14: 0 | X14: 0 | Y14: 0 | Z14: 0 | AA14: 0 | AB14: 0 | AC14: 13 | AD14: 5 | AE14: 2 | AF14: 6 | AG14: 17 | AH14: 15 | AI14: 17
A15: ИРАН: Первый дивизион | B15: 2020.08.16 18:30 | C15: Мес Рафсанжан | D15: Бадеран Тегеран | E15: 0 | F15: 1 | G15: 1 | H15: 0 | I15: Гости | J15: 1 | K15: 1 | L15: 1 | M15: 1 | N15: Н | O15: 14 | P15: 5 | Q15: 3 | R15: 6 | S15: 18 | T15: 16 | U15: 18 | V15: 0 | W15: 0 | X15: 0 | Y15: 0 | Z15: 0 | AA15: 0 | AB15: 0 | AC15: 14 | AD15: 5 | AE15: 3 | AF15: 6 | AG15: 18 | AH15: 16 | AI15: 18
A16: ИРАН: Первый дивизион | B16: 2020.07.25 18:10 | C16: Гол Рейхан | D16: Бадеран Тегеран | E16: 0 | F16: 0 | G16: 1 | H16: 1 | I16: Гости | J16: 1 | K16: 1 | L16: 1 | M16: 1 | N16: Н | O16: 15 | P16: 5 | Q16: 4 | R16: 6 | S16: 19 | T16: 17 | U16: 19 | V16: 0 | W16: 0 | X16: 0 | Y16: 0 | Z16: 0 | AA16: 0 | AB16: 0 | AC16: 15 | AD16: 5 | AE16: 4 | AF16: 6 | AG16: 19 | AH16: 17 | AI16: 19
A17: ИРАН: Первый дивизион | B17: 2020.07.12 18:20 | C17: Хуши-Талаи | D17: Бадеран Тегеран | E17: 2 | F17: 1 | G17: 0 | H17: 2 | I17: Гости | J17: 2 | K17: 3 | L17: 3 | M17: 2 | N17: В | O17: 16 | P17: 6 | Q17: 4 | R17: 6 | S17: 22 | T17: 19 | U17: 22 | V17: 0 | W17: 0 | X17: 0 | Y17: 0 | Z17: 0 | AA17: 0 | AB17: 0 | AC17: 16 | AD17: 6 | AE17: 4 | AF17: 6 | AG17: 22 | AH17: 19 | AI17: 22
A18: ИРАН: Первый дивизион | B18: 2020.06.30 18:30 | C18: Малаван | D18: Бадеран Тегеран | E18: 0 | F18: 0 | G18: 2 | H18: 0 | I18: Гости | J18: 2 | K18: 0 | L18: 0 | M18: 2 | N18: П | O18: 17 | P18: 6 | Q18: 4 | R18: 7 | S18: 22 | T18: 21 | U18: 22 | V18: 0 | W18: 0 | X18: 0 | Y18: 0 | Z18: 0 | AA18: 0 | AB18: 0 | AC18: 17 | AD18: 6 | AE18: 4 | AF18: 7 | AG18: 22 | AH18: 21 | AI18: 22
A19: ИРАН: Первый дивизион | B19: 2020.02.23 13:45 | C19: Алюминиум Арак | D19: Бадеран Тегеран | E19: 0 | F19: 0 | G19: 1 | H19: 0 | I19: Гости | J19: 1 | K19: 0 | L19: 0 | M19: 1 | N19: П | O19: 18 | P19: 6 | Q19: 4 | R19: 8 | S19: 22 | T19: 22 | U19: 22 | V19: 0 | W19: 0 | X19: 0 | Y19: 0 | Z19: 0 | AA19: 0 | AB19: 0 | AC19: 18 | AD19: 6 | AE19: 4 | AF19: 8 | AG19: 22 | AH19: 22 | AI19: 22
A20: ИРАН: Первый дивизион | B20: 2020.02.08 13:30 | C20: Хавадар | D20: Бадеран Тегеран | E20: 0 | F20: 0 | G20: 2 | H20: 1 | I20: Гости | J20: 2 | K20: 1 | L20: 1 | M20: 2 | N20: П | O20: 19 | P20: 6 | Q20: 4 | R20: 9 | S20: 23 | T20: 24 | U20: 22 | V20: 0 | W20: 0 | X20: 0 | Y20: 0 | Z20: 0 | AA20: 0 | AB20: 0 | AC20: 19 | AD20: 6 | AE20: 4 | AF20: 9 | AG20: 23 | AH20: 24 | AI20: 22
J67: =IF(I67="","",E67+G67) ->  | K67: =IF(I67="","",F67+H67) ->  | L67: =IF(I67="","",IF(I67="Дома",J67,K67)) ->  | M67: =IF(I67="","",IF(I67="Дома",K67,J67)) ->  | O67: =IF(I67="","",O66+1) ->  | U67: =IF(I67="","",P67*3+Q67) -> 
P68: =IF(I68="","",IF(N68="В",P67+1,P67)) ->  | Q68: =IF(I68="","",IF(N68="Н",Q67+1,Q67)) ->  | R68: =IF(I68="","",IF(N68="П",R67+1,R67)) ->  | S68: =IF(I68="","",S67+L68) ->  | T68: =IF(I68="","",T67+M68) ->  | V68: =IF(I68="","",IF(I68="Дома",V67+1,V67+0)) ->  | W68: =IF(I68="","",IF(I68="Дома",IF(N68="В",W67+1,W67),W67)) ->  | X68: =IF(I68="","",IF(I68="Дома",IF(N68="Н",X67+1,X67),X67)) ->  | Y68: =IF(I68="","",IF(I68="Дома",IF(N68="П",Y67+1,Y67),Y67)) ->  | Z68: =IF(I68="","",IF(I68="Дома",L68+Z67,Z67)) ->  | AA68: =IF(I68="","",IF(I68="Дома",M68+AA67,AA67)) ->  | AB68: =IF(I68="","",IF(I68="Дома",W68*3+X68,AB67)) ->  | AC68: =IF(I68="","",IF(I68="Гости",AC67+1,AC67+0)) ->  | AD68: =IF(I68="","",IF(I68="Гости",IF(N68="В",AD67+1,AD67),AD67)) ->  | AE68: =IF(I68="","",IF(I68="Гости",IF(N68="Н",AE67+1,AE67),AE67)) ->  | AF68: =IF(I68="","",IF(I68="Гости",IF(N68="П",AF67+1,AF67),AF67)) ->  | AG68: =IF(I68="","",IF(I68="Гости",L68+AG67,AG67)) ->  | AH68: =IF(I68="","",IF(I68="Гости",M68+AH67,AH67)) ->  | AI68: =IF(I68="","",IF(I68="Гости",AD68*3+AE68,AI67)) -> 
N74: =IF(I74="","",IF(I74="Дома",IF(J74>K74,"В",IF(J74=K74,"Н","П")),IF(J74<K74,"В",IF(J74=K74,"Н","П")))) -> 
J131: =IF(I131="","",E131+G131) ->  | K131: =IF(I131="","",F131+H131) ->  | L131: =IF(I131="","",IF(I131="Дома",J131,K131)) ->  | M131: =IF(I131="","",IF(I131="Дома",K131,J131)) ->  | O131: =IF(I131="","",O130+1) ->  | U131: =IF(I131="","",P131*3+Q131) -> 
P132: =IF(I132="","",IF(N132="В",P131+1,P131)) ->  | Q132: =IF(I132="","",IF(N132="Н",Q131+1,Q131)) ->  | R132: =IF(I132="","",IF(N132="П",R131+1,R131)) ->  | S132: =IF(I132="","",S131+L132) ->  | T132: =IF(I132="","",T131+M132) ->  | V132: =IF(I132="","",IF(I132="Дома",V131+1,V131+0)) ->  | W132: =IF(I132="","",IF(I132="Дома",IF(N132="В",W131+1,W131),W131)) ->  | X132: =IF(I132="","",IF(I132="Дома",IF(N132="Н",X131+1,X131),X131)) ->  | Y132: =IF(I132="","",IF(I132="Дома",IF(N132="П",Y131+1,Y131),Y131)) ->  | Z132: =IF(I132="","",IF(I132="Дома",L132+Z131,Z131)) ->  | AA132: =IF(I132="","",IF(I132="Дома",M132+AA131,AA131)) ->  | AB132: =IF(I132="","",IF(I132="Дома",W132*3+X132,AB131)) ->  | AC132: =IF(I132="","",IF(I132="Гости",AC131+1,AC131+0)) ->  | AD132: =IF(I132="","",IF(I132="Гости",IF(N132="В",AD131+1,AD131),AD131)) ->  | AE132: =IF(I132="","",IF(I132="Гости",IF(N132="Н",AE131+1,AE131),AE131)) ->  | AF132: =IF(I132="","",IF(I132="Гости",IF(N132="П",AF131+1,AF131),AF131)) ->  | AG132: =IF(I132="","",IF(I132="Гости",L132+AG131,AG131)) ->  | AH132: =IF(I132="","",IF(I132="Гости",M132+AH131,AH131)) ->  | AI132: =IF(I132="","",IF(I132="Гости",AD132*3+AE132,AI131)) -> 
N138: =IF(I138="","",IF(I138="Дома",IF(J138>K138,"В",IF(J138=K138,"Н","П")),IF(J138<K138,"В",IF(J138=K138,"Н","П")))) -> 

Sheet ГостиДома (hidden)
A1: Чемпионат | B1: Дата/Время | C1: Дома | D1: Гости | E1: К1 в 1Т | F1: К2 в 1Т | G1: К1 во 2Т | H1: К2 во 2Т | I1: Где играли | J1: К1 Голов | K1: К2 Голов | L1: Забито | M1: Пропущено | N1: Результат | O1: Всего Игр | P1: Всего выиграно | Q1: Всего ничьих | R1: Всего проиграно | S1: Всего забито | T1: Всего пропущено | U1: Всего очков | V1: Дома игр | W1: Дома выиграно | X1: Дома ничьих | Y1: Дома проиграно | Z1: Дома забито | AA1: Дома пропущено | AB1: Дома очков | AC1: Гости игр | AD1: Гости выиграно | AE1: Гости ничьих | AF1: Гости проиграно | AG1: Гости забито | AH1: Гости пропущено | AI1: Гости очков
A2: ИРАН: Первый дивизион | B2: 2021.05.26 19:10 | C2: Эстеглал Моласани | D2: Хуши-Талаи | E2: 0 | F2: 1 | G2: 1 | H2: 1 | I2: Дома | J2: =IF(I2="","",E2+G2) -> 1 | K2: =IF(I2="","",F2+H2) -> 2 | L2: =IF(I2="","",IF(I2="Дома",J2,K2)) -> 1 | M2: =IF(I2="","",IF(I2="Дома",K2,J2)) -> 2 | N2: =IF(I2="","",IF(I2="Дома",IF(J2>K2,"В",IF(J2=K2,"Н","П")),IF(J2<K2,"В",IF(J2=K2,"Н","П")))) -> П | O2: =IF(I2="","",1) -> 1 | P2: =IF(I2="","",IF(N2="В",1,0)) -> 0 | Q2: =IF(I2="","",IF(N2="Н",1,0)) -> 0 | R2: =IF(I2="","",IF(N2="П",1,0)) -> 1 | S2: =IF(I2="","",L2) -> 1 | T2: =IF(I2="","",M2) -> 2 | U2: =IF(I2="","",P2*3+Q2) -> 0 | V2: =IF(I2="","",IF(I2="Дома",1,0)) -> 1 | W2: =IF(I2="","",IF(I2="Дома",IF(N2="В",1,0),0)) -> 0 | X2: =IF(I2="","",IF(I2="Дома",IF(N2="Н",1,0),0)) -> 0 | Y2: =IF(I2="","",IF(I2="Дома",IF(N2="П",1,0),0)) -> 1 | Z2: =IF(I2="","",IF(I2="Дома",L2,0)) -> 1 | AA2: =IF(I2="","",IF(I2="Дома",M2,0)) -> 2 | AB2: =IF(I2="","",IF(I2="Дома",W2*3+X2,0)) -> 0 | AC2: =IF(I2="","",IF(I2="Гости",1,0)) -> 0 | AD2: =IF(I2="","",IF(I2="Гости",IF(N2="В",1,0),0)) -> 0 | AE2: =IF(I2="","",IF(I2="Гости",IF(N2="Н",1,0),0)) -> 0 | AF2: =IF(I2="","",IF(I2="Гости",IF(N2="П",1,0),0)) -> 0 | AG2: =IF(I2="","",IF(I2="Гости",L2,0)) -> 0 | AH2: =IF(I2="","",IF(I2="Гости",M2,0)) -> 0 | AI2: =IF(I2="","",IF(I2="Гости",AD2*3+AE2,0)) -> 0
A3: ИРАН: Первый дивизион | B3: 2021.05.14 19:00 | C3: Эстеглал Моласани | D3: Навад Урмия | E3: 0 | F3: 0 | G3: 1 | H3: 0 | I3: Дома | J3: =IF(I3="","",E3+G3) -> 1 | K3: =IF(I3="","",F3+H3) -> 0 | L3: =IF(I3="","",IF(I3="Дома",J3,K3)) -> 1 | M3: =IF(I3="","",IF(I3="Дома",K3,J3)) -> 0 | N3: =IF(I3="","",IF(I3="Дома",IF(J3>K3,"В",IF(J3=K3,"Н","П")),IF(J3<K3,"В",IF(J3=K3,"Н","П")))) -> В | O3: =IF(I3="","",O2+1) -> 2 | P3: =IF(I3="","",IF(N3="В",P2+1,P2)) -> 1 | Q3: =IF(I3="","",IF(N3="Н",Q2+1,Q2)) -> 0 | R3: =IF(I3="","",IF(N3="П",R2+1,R2)) -> 1 | S3: =IF(I3="","",S2+L3) -> 2 | T3: =IF(I3="","",T2+M3) -> 2 | U3: =IF(I3="","",P3*3+Q3) -> 3 | V3: =IF(I3="","",IF(I3="Дома",V2+1,V2+0)) -> 2 | W3: =IF(I3="","",IF(I3="Дома",IF(N3="В",W2+1,W2),W2)) -> 1 | X3: =IF(I3="","",IF(I3="Дома",IF(N3="Н",X2+1,X2),X2)) -> 0 | Y3: =IF(I3="","",IF(I3="Дома",IF(N3="П",Y2+1,Y2),Y2)) -> 1 | Z3: =IF(I3="","",IF(I3="Дома",L3+Z2,Z2)) -> 2 | AA3: =IF(I3="","",IF(I3="Дома",M3+AA2,AA2)) -> 2 | AB3: =IF(I3="","",IF(I3="Дома",W3*3+X3,AB2)) -> 3 | AC3: =IF(I3="","",IF(I3="Гости",AC2+1,AC2+0)) -> 0 | AD3: =IF(I3="","",IF(I3="Гости",IF(N3="В",AD2+1,AD2),AD2)) -> 0 | AE3: =IF(I3="","",IF(I3="Гости",IF(N3="Н",AE2+1,AE2),AE2)) -> 0 | AF3: =IF(I3="","",IF(I3="Гости",IF(N3="П",AF2+1,AF2),AF2)) -> 0 | AG3: =IF(I3="","",IF(I3="Гости",L3+AG2,AG2)) -> 0 | AH3: =IF(I3="","",IF(I3="Гости",M3+AH2,AH2)) -> 0 | AI3: =IF(I3="","",IF(I3="Гости",AD3*3+AE3,AI2)) -> 0
A4: ИРАН: Первый дивизион | B4: 2021.04.26 18:45 | C4: Эстеглал Моласани | D4: Астара | E4: 1 | F4: 0 | G4: 0 | H4: 0 | I4: Дома | J4: 1 | K4: 0 | L4: 1 | M4: 0 | N4: В | O4: 3 | P4: =IF(I4="","",IF(N4="В",P3+1,P3)) -> 2 | Q4: =IF(I4="","",IF(N4="Н",Q3+1,Q3)) -> 0 | R4: =IF(I4="","",IF(N4="П",R3+1,R3)) -> 1 | S4: =IF(I4="","",S3+L4) -> 3 | T4: =IF(I4="","",T3+M4) -> 2 | U4: 6 | V4: =IF(I4="","",IF(I4="Дома",V3+1,V3+0)) -> 3 | W4: =IF(I4="","",IF(I4="Дома",IF(N4="В",W3+1,W3),W3)) -> 2 | X4: =IF(I4="","",IF(I4="Дома",IF(N4="Н",X3+1,X3),X3)) -> 0 | Y4: =IF(I4="","",IF(I4="Дома",IF(N4="П",Y3+1,Y3),Y3)) -> 1 | Z4: =IF(I4="","",IF(I4="Дома",L4+Z3,Z3)) -> 3 | AA4: =IF(I4="","",IF(I4="Дома",M4+AA3,AA3)) -> 2 | AB4: =IF(I4="","",IF(I4="Дома",W4*3+X4,AB3)) -> 6 | AC4: =IF(I4="","",IF(I4="Гости",AC3+1,AC3+0)) -> 0 | AD4: =IF(I4="","",IF(I4="Гости",IF(N4="В",AD3+1,AD3),AD3)) -> 0 | AE4: =IF(I4="","",IF(I4="Гости",IF(N4="Н",AE3+1,AE3),AE3)) -> 0 | AF4: =IF(I4="","",IF(I4="Гости",IF(N4="П",AF3+1,AF3),AF3)) -> 0 | AG4: =IF(I4="","",IF(I4="Гости",L4+AG3,AG3)) -> 0 | AH4: =IF(I4="","",IF(I4="Гости",M4+AH3,AH3)) -> 0 | AI4: =IF(I4="","",IF(I4="Гости",AD4*3+AE4,AI3)) -> 0
A5: ИРАН: Первый дивизион | B5: 2021.04.13 15:30 | C5: Эстеглал Моласани | D5: Хейбар Хоррамабад | E5: 0 | F5: 1 | G5: 0 | H5: 0 | I5: Дома | J5: 0 | K5: 1 | L5: 0 | M5: 1 | N5: П | O5: 4 | P5: 2 | Q5: 0 | R5: 2 | S5: 3 | T5: 3 | U5: 6 | V5: 4 | W5: 2 | X5: 0 | Y5: 2 | Z5: 3 | AA5: 3 | AB5: 6 | AC5: 0 | AD5: 0 | AE5: 0 | AF5: 0 | AG5: 0 | AH5: 0 | AI5: 0
A6: ИРАН: Первый дивизион | B6: 2021.03.17 15:00 | C6: Эстеглал Моласани | D6: Райка Баболь | E6: 0 | F6: 0 | G6: 1 | H6: 0 | I6: Дома | J6: 1 | K6: 0 | L6: 1 | M6: 0 | N6: В | O6: 5 | P6: 3 | Q6: 0 | R6: 2 | S6: 4 | T6: 3 | U6: 9 | V6: 5 | W6: 3 | X6: 0 | Y6: 2 | Z6: 4 | AA6: 3 | AB6: 9 | AC6: 0 | AD6: 0 | AE6: 0 | AF6: 0 | AG6: 0 | AH6: 0 | AI6: 0
A7: ИРАН: Кубок Ирана | B7: 2021.03.12 14:30 | C7: Эстеглал Моласани | D7: Shahin Bandar Ameri | E7: 0 | F7: 0 | G7: 0 | H7: 0 | I7: Дома | J7: 0 | K7: 0 | L7: 0 | M7: 0 | N7: Н | O7: 6 | P7: 3 | Q7: 1 | R7: 2 | S7: 4 | T7: 3 | U7: 10 | V7: 6 | W7: 3 | X7: 1 | Y7: 2 | Z7: 4 | AA7: 3 | AB7: 10 | AC7: 0 | AD7: 0 | AE7: 0 | AF7: 0 | AG7: 0 | AH7: 0 | AI7: 0
A8: ИРАН: Первый дивизион | B8: 2021.03.07 14:45 | C8: Эстеглал Моласани | D8: Шахин Бушехр | E8: 1 | F8: 1 | G8: 0 | H8: 0 | I8: Дома | J8: 1 | K8: 1 | L8: 1 | M8: 1 | N8: Н | O8: 7 | P8: 3 | Q8: 2 | R8: 2 | S8: 5 | T8: 4 | U8: 11 | V8: 7 | W8: 3 | X8: 2 | Y8: 2 | Z8: 5 | AA8: 4 | AB8: 11 | AC8: 0 | AD8: 0 | AE8: 0 | AF8: 0 | AG8: 0 | AH8: 0 | AI8: 0
A9: ИРАН: Первый дивизион | B9: 2021.02.20 14:30 | C9: Эстеглал Моласани | D9: Малаван | E9: 0 | F9: 0 | G9: 0 | H9: 0 | I9: Дома | J9: 0 | K9: 0 | L9: 0 | M9: 0 | N9: =IF(I9="","",IF(I9="Дома",IF(J9>K9,"В",IF(J9=K9,"Н","П")),IF(J9<K9,"В",IF(J9=K9,"Н","П")))) -> Н | O9: 8 | P9: 3 | Q9: 3 | R9: 2 | S9: 5 | T9: 4 | U9: 12 | V9: 8 | W9: 3 | X9: 3 | Y9: 2 | Z9: 5 | AA9: 4 | AB9: 12 | AC9: 0 | AD9: 0 | AE9: 0 | AF9: 0 | AG9: 0 | AH9: 0 | AI9: 0
A10: ИРАН: Первый дивизион | B10: 2021.02.08 14:30 | C10: Эстеглал Моласани | D10: Чока Талеш | E10: 0 | F10: 0 | G10: 0 | H10: 0 | I10: Дома | J10: 0 | K10: 0 | L10: 0 | M10: 0 | N10: =IF(I10="","",IF(I10="Дома",IF(J10>K10,"В",IF(J10=K10,"Н","П")),IF(J10<K10,"В",IF(J10=K10,"Н","П")))) -> Н | O10: 9 | P10: 3 | Q10: 4 | R10: 2 | S10: 5 | T10: 4 | U10: 13 | V10: 9 | W10: 3 | X10: 4 | Y10: 2 | Z10: 5 | AA10: 4 | AB10: 13 | AC10: 0 | AD10: 0 | AE10: 0 | AF10: 0 | AG10: 0 | AH10: 0 | AI10: 0
A11: ИРАН: Первый дивизион | B11: 2021.01.25 13:30 | C11: Эстеглал Моласани | D11: Бадеран Тегеран | E11: 1 | F11: 0 | G11: 0 | H11: 1 | I11: Дома | J11: 1 | K11: 1 | L11: 1 | M11: 1 | N11: Н | O11: 10 | P11: 3 | Q11: 5 | R11: 2 | S11: 6 | T11: 5 | U11: 14 | V11: 10 | W11: 3 | X11: 5 | Y11: 2 | Z11: 6 | AA11: 5 | AB11: 14 | AC11: 0 | AD11: 0 | AE11: 0 | AF11: 0 | AG11: 0 | AH11: 0 | AI11: 0
A12: ИРАН: Первый дивизион | B12: 2021.01.18 13:30 | C12: Эстеглал Моласани | D12: Мес Керман | E12: 0 | F12: 0 | G12: 1 | H12: 0 | I12: Дома | J12: 1 | K12: 0 | L12: 1 | M12: 0 | N12: В | O12: 11 | P12: 4 | Q12: 5 | R12: 2 | S12: 7 | T12: 5 | U12: =IF(I12="","",P12*3+Q12) -> 17 | V12: 11 | W12: 4 | X12: 5 | Y12: 2 | Z12: 7 | AA12: 5 | AB12: 17 | AC12: 0 | AD12: 0 | AE12: 0 | AF12: 0 | AG12: 0 | AH12: 0 | AI12: 0
A13: ИРАН: Первый дивизион | B13: 2021.01.04 13:30 | C13: Эстеглал Моласани | D13: Могхавемат | E13: 1 | F13: 0 | G13: 0 | H13: 1 | I13: Дома | J13: 1 | K13: 1 | L13: 1 | M13: 1 | N13: Н | O13: 12 | P13: 4 | Q13: 6 | R13: 2 | S13: 8 | T13: 6 | U13: 18 | V13: 12 | W13: 4 | X13: 6 | Y13: 2 | Z13: 8 | AA13: 6 | AB13: 18 | AC13: 0 | AD13: 0 | AE13: 0 | AF13: 0 | AG13: 0 | AH13: 0 | AI13: 0
A14: ИРАН: Первый дивизион | B14: 2020.12.22 13:30 | C14: Эстеглал Моласани | D14: Гол Рейхан | E14: 0 | F14: 0 | G14: 1 | H14: 0 | I14: Дома | J14: 1 | K14: 0 | L14: 1 | M14: 0 | N14: В | O14: 13 | P14: 5 | Q14: 6 | R14: 2 | S14: 9 | T14: 6 | U14: 21 | V14: 13 | W14: 5 | X14: 6 | Y14: 2 | Z14: 9 | AA14: 6 | AB14: 21 | AC14: 0 | AD14: 0 | AE14: 0 | AF14: 0 | AG14: 0 | AH14: 0 | AI14: 0
A15: ИРАН: Первый дивизион | B15: 2020.12.10 14:00 | C15: Эстеглал Моласани | D15: Эстеглал Хузестан | E15: 1 | F15: 1 | G15: 0 | H15: 3 | I15: Дома | J15: 1 | K15: 4 | L15: 1 | M15: 4 | N15: П | O15: 14 | P15: 5 | Q15: 6 | R15: 3 | S15: 10 | T15: 10 | U15: 21 | V15: 14 | W15: 5 | X15: 6 | Y15: 3 | Z15: 10 | AA15: 10 | AB15: 21 | AC15: 0 | AD15: 0 | AE15: 0 | AF15: 0 | AG15: 0 | AH15: 0 | AI15: 0
A16: ИРАН: Первый дивизион | B16: 2020.02.02 13:30 | C16: Бадеран Тегеран | D16: Арман Гохар | E16: 1 | F16: 0 | G16: 3 | H16: 0 | I16: Дома | J16: 4 | K16: 0 | L16: 4 | M16: 0 | N16: В | O16: 15 | P16: 6 | Q16: 6 | R16: 3 | S16: 14 | T16: 10 | U16: 24 | V16: 15 | W16: 6 | X16: 6 | Y16: 3 | Z16: 14 | AA16: 10 | AB16: 24 | AC16: 0 | AD16: 0 | AE16: 0 | AF16: 0 | AG16: 0 | AH16: 0 | AI16: 0
J67: =IF(I67="","",E67+G67) ->  | K67: =IF(I67="","",F67+H67) ->  | L67: =IF(I67="","",IF(I67="Дома",J67,K67)) ->  | M67: =IF(I67="","",IF(I67="Дома",K67,J67)) ->  | O67: =IF(I67="","",O66+1) ->  | U67: =IF(I67="","",P67*3+Q67) -> 
P68: =IF(I68="","",IF(N68="В",P67+1,P67)) ->  | Q68: =IF(I68="","",IF(N68="Н",Q67+1,Q67)) ->  | R68: =IF(I68="","",IF(N68="П",R67+1,R67)) ->  | S68: =IF(I68="","",S67+L68) ->  | T68: =IF(I68="","",T67+M68) ->  | V68: =IF(I68="","",IF(I68="Дома",V67+1,V67+0)) ->  | W68: =IF(I68="","",IF(I68="Дома",IF(N68="В",W67+1,W67),W67)) ->  | X68: =IF(I68="","",IF(I68="Дома",IF(N68="Н",X67+1,X67),X67)) ->  | Y68: =IF(I68="","",IF(I68="Дома",IF(N68="П",Y67+1,Y67),Y67)) ->  | Z68: =IF(I68="","",IF(I68="Дома",L68+Z67,Z67)) ->  | AA68: =IF(I68="","",IF(I68="Дома",M68+AA67,AA67)) ->  | AB68: =IF(I68="","",IF(I68="Дома",W68*3+X68,AB67)) ->  | AC68: =IF(I68="","",IF(I68="Гости",AC67+1,AC67+0)) ->  | AD68: =IF(I68="","",IF(I68="Гости",IF(N68="В",AD67+1,AD67),AD67)) ->  | AE68: =IF(I68="","",IF(I68="Гости",IF(N68="Н",AE67+1,AE67),AE67)) ->  | AF68: =IF(I68="","",IF(I68="Гости",IF(N68="П",AF67+1,AF67),AF67)) ->  | AG68: =IF(I68="","",IF(I68="Гости",L68+AG67,AG67)) ->  | AH68: =IF(I68="","",IF(I68="Гости",M68+AH67,AH67)) ->  | AI68: =IF(I68="","",IF(I68="Гости",AD68*3+AE68,AI67)) -> 
N74: =IF(I74="","",IF(I74="Дома",IF(J74>K74,"В",IF(J74=K74,"Н","П")),IF(J74<K74,"В",IF(J74=K74,"Н","П")))) -> 
J131: =IF(I131="","",E131+G131) ->  | K131: =IF(I131="","",F131+H131) ->  | L131: =IF(I131="","",IF(I131="Дома",J131,K131)) ->  | M131: =IF(I131="","",IF(I131="Дома",K131,J131)) ->  | O131: =IF(I131="","",O130+1) ->  | U131: =IF(I131="","",P131*3+Q131) -> 
P132: =IF(I132="","",IF(N132="В",P131+1,P131)) ->  | Q132: =IF(I132="","",IF(N132="Н",Q131+1,Q131)) ->  | R132: =IF(I132="","",IF(N132="П",R131+1,R131)) ->  | S132: =IF(I132="","",S131+L132) ->  | T132: =IF(I132="","",T131+M132) ->  | V132: =IF(I132="","",IF(I132="Дома",V131+1,V131+0)) ->  | W132: =IF(I132="","",IF(I132="Дома",IF(N132="В",W131+1,W131),W131)) ->  | X132: =IF(I132="","",IF(I132="Дома",IF(N132="Н",X131+1,X131),X131)) ->  | Y132: =IF(I132="","",IF(I132="Дома",IF(N132="П",Y131+1,Y131),Y131)) ->  | Z132: =IF(I132="","",IF(I132="Дома",L132+Z131,Z131)) ->  | AA132: =IF(I132="","",IF(I132="Дома",M132+AA131,AA131)) ->  | AB132: =IF(I132="","",IF(I132="Дома",W132*3+X132,AB131)) ->  | AC132: =IF(I132="","",IF(I132="Гости",AC131+1,AC131+0)) ->  | AD132: =IF(I132="","",IF(I132="Гости",IF(N132="В",AD131+1,AD131),AD131)) ->  | AE132: =IF(I132="","",IF(I132="Гости",IF(N132="Н",AE131+1,AE131),AE131)) ->  | AF132: =IF(I132="","",IF(I132="Гости",IF(N132="П",AF131+1,AF131),AF131)) ->  | AG132: =IF(I132="","",IF(I132="Гости",L132+AG131,AG131)) ->  | AH132: =IF(I132="","",IF(I132="Гости",M132+AH131,AH131)) ->  | AI132: =IF(I132="","",IF(I132="Гости",AD132*3+AE132,AI131)) -> 
N138: =IF(I138="","",IF(I138="Дома",IF(J138>K138,"В",IF(J138=K138,"Н","П")),IF(J138<K138,"В",IF(J138=K138,"Н","П")))) -> 

Sheet Лист1 (hidden)
D3: Дома\Дома | G3: Дома\Гости | J3: Дома | M3: 5 матчей дома | P3: Форма 5 | V3: Гости\Гости | Y3: Гости\Дома | AB3: Гости | AE3: 5 матчей гости | AH3: Форма 5
D4: =COUNT(ДомаДома!L2:L83) -> 21 | E4: =SUM(ДомаДома!L2:L57) -> 32 | G4: =COUNT(ДомаГости!L2:L108) -> 19 | H4: =SUM(ДомаГости!L2:L77) -> 23 | J4: =COUNT(Дома!L2:L140) -> 40 | K4: =SUM(Дома!L2:L84) -> 55 | M4: =COUNT(ДомаДома!L2:L6) -> 5 | N4: =SUM(ДомаДома!L2:L6) -> 5 | P4: =COUNT(Дома!L2:L6) -> 5 | Q4: =SUM(Дома!L2:L6) -> 6 | V4: =COUNT(ГостиГости!L2:L76) -> 11 | W4: =SUM(ГостиГости!L2:L76) -> 12 | Y4: =COUNT(ГостиДома!L2:L53) -> 15 | Z4: =SUM(ГостиДома!L2:L66) -> 14 | AB4: =COUNT(Гости!L2:L144) -> 26 | AC4: =SUM(Гости!L2:L140) -> 26 | AE4: =COUNT(ГостиГости!L2:L6) -> 5 | AF4: =SUM(ГостиГости!L2:L6) -> 5 | AH4: =COUNT(Гости!L2:L6) -> 5 | AI4: =SUM(Гости!L2:L6) -> 5
D6: Среднее\Вес | G6: Среднее\Вес | J6: Среднее\Вес | M6: Среднее\Вес | P6: Среднее\Вес | V6: Среднее\Вес | Y6: Среднее\Вес | AB6: Среднее\Вес | AE6: Среднее\Вес | AH6: Среднее\Вес
D7: =E4/D4 -> 1.523809524 | E7: 0.35 | G7: =H4/G4 -> 1.210526316 | H7: 0.05 | J7: =K4/J4 -> 1.375 | K7: 0.15 | M7: =N4/M4 -> 1 | N7: 0.2 | P7: =Q4/P4 -> 1.2 | Q7: 0.25 | V7: =W4/V4 -> 1.090909091 | W7: 0.35 | Y7: =Z4/Y4 -> 0.9333333333 | Z7: 0.05 | AB7: =AC4/AB4 -> 1 | AC7: 0.15 | AE7: =AF4/AE4 -> 1 | AF7: 0.2 | AH7: =AI4/AH4 -> 1 | AI7: 0.25
D9: =D7*E7 -> 0.5333333333 | G9: =G7*H7 -> 0.06052631579 | J9: =J7*K7 -> 0.20625 | M9: =M7*N7 -> 0.2 | P9: =P7*Q7 -> 0.3 | V9: =V7*W7 -> 0.3818181818 | Y9: =Y7*Z7 -> 0.04666666667 | AB9: =AB7*AC7 -> 0.15 | AE9: =AE7*AF7 -> 0.2 | AH9: =AH7*AI7 -> 0.25
I15: =D9*1+J9*1+M9*1+P9*1 -> 1.239583333 | R15: =1*I15/(I15*1+AA15*1) -> 0.5580185864 | S15: =1*AA15/(I15*1+AA15*1) -> 0.4419814136 | AA15: =V9*1+AB9*1+AE9*1+AH9*1 -> 0.9818181818

Sheet Data (hidden)
H3: Забито | K3: Пропущенно | Y3: Забито | AB3: Пропущенно
H4: Дома | I4: Гости | K4: Дома | L4: Гости | O4: =IF(O6>2.6,("Over2.5"),("")) ->  | P4: =IF(O6<2.4,("Under2.5"),("")) -> Under2.5 | Q4: =IF(AND(O6>2.4,O6<=2.6),("Over1.5-Under3.5"),("")) ->  | Y4: Дома | Z4: Гости | AB4: Дома | AC4: Гости
D5: =Дома!I2 -> Гости | E5: =Дома!L2 -> 0 | F5: =Дома!M2 -> 2 | H5: =IF(D5="Дома",E5,"") ->  | I5: =IF(D5="Гости",E5,"") -> 0 | K5: =IF(D5="Дома",F5,"") ->  | L5: =IF(D5="Гости",F5,"") -> 2 | O5: =(H11+AB11)/2 -> 1.95 | P5: =(Y11+K11)/2 -> 1.55 | U5: =Гости!I2 -> Гости | V5: =Гости!L2 -> 2 | W5: =Гости!M2 -> 3 | Y5: =IF(U5="Дома",V5,"") ->  | Z5: =IF(U5="Гости",V5,"") -> 2 | AB5: =IF(U5="Дома",W5,"") ->  | AC5: =IF(U5="Гости",W5,"") -> 3
D6: =Дома!I3 -> Дома | E6: =Дома!L3 -> 1 | F6: =Дома!M3 -> 0 | H6: =IF(D6="Дома",E6,"") -> 1 | I6: =IF(D6="Гости",E6,"") ->  | K6: =IF(D6="Дома",F6,"") -> 0 | L6: =IF(D6="Гости",F6,"") ->  | O6: =SUM(O5:P5)/1.5 -> 2.333333333 | U6: =Гости!I3 -> Дома | V6: =Гости!L3 -> 1 | W6: =Гости!M3 -> 2 | Y6: =IF(U6="Дома",V6,"") -> 1 | Z6: =IF(U6="Гости",V6,"") ->  | AB6: =IF(U6="Дома",W6,"") -> 2 | AC6: =IF(U6="Гости",W6,"") -> 
D7: =Дома!I4 -> Гости | E7: =Дома!L4 -> 1 | F7: =Дома!M4 -> 2 | H7: =IF(D7="Дома",E7,"") ->  | I7: 1 | L7: 2 | U7: =Гости!I4 -> Гости | V7: =Гости!L4 -> 1 | W7: =Гости!M4 -> 2 | Y7: =IF(U7="Дома",V7,"") ->  | Z7: 1 | AC7: 2
D8: =Дома!I5 -> Дома | E8: =Дома!L5 -> 2 | F8: =Дома!M5 -> 1 | H8: 2 | K8: 1 | U8: =Гости!I5 -> Дома | V8: =Гости!L5 -> 1 | W8: =Гости!M5 -> 0 | Y8: =IF(U8="Дома",V8,"") -> 1 | AB8: 0
D9: =Дома!I6 -> Гости | E9: =Дома!L6 -> 2 | F9: =Дома!M6 -> 1 | I9: 2 | L9: 1 | U9: =Гости!I6 -> Гости | V9: =Гости!L6 -> 0 | W9: =Гости!M6 -> 1 | Z9: 0 | AC9: 1
H10: =SUM(H5:H9)*1.5 -> 4.5 | I10: =SUM(I5:I9)*2 -> 6 | K10: =SUM(K5:K9)*1.5 -> 1.5 | L10: =SUM(L5:L9)*1 -> 5 | Y10: =SUM(Y5:Y9)*1.5 -> 3 | Z10: =SUM(Z5:Z9)*2 -> 6 | AB10: =SUM(AB5:AB9)*1.5 -> 3 | AC10: =SUM(AC5:AC9)*1 -> 6
H11: =SUM(H10:I10)/5 -> 2.1 | K11: =SUM(K10:L10)/5 -> 1.3 | Y11: =SUM(Y10:Z10)/5 -> 1.8 | AB11: =SUM(AB10:AC10)/5 -> 1.8
I14: Прогноз №1 | L14: =O4&P4&Q4 -> Under2.5 | O14: =O6 -> 2.333333333
C15: =SUM(E5:E9) -> 6 | D15: =MIN(C15:C16) -> 6 | E15: =MIN(F15:F16) -> 5 | F15: =SUM(V5:V9) -> 5
C16: =SUM(F5:F9) -> 6 | D16: =MAX(C15:C16) -> 6 | E16: =MAX(F15:F16) -> 8 | F16: =SUM(W5:W9) -> 8 | I16: Прогноз №2 | L16: =D22 -> Under2.5 | O16: =D20 -> 2.5
D18: =SUM(D15:E15)/5 -> 2.2 | I18: Прогноз №3 | L18: =D29 -> Over2.5 | O18: =D27 -> 2.688311688
D19: =SUM(D16:E16)/5 -> 2.8
D20: =AVERAGEA(D18:E19) -> 2.5 | I20: Прогноз №4 | L20: =P33 -> Under2.5 | O20: =O32 -> 1.5 | P20: =P32 -> 0.8333333333
D21: =IF(D20>=2.6,("Over2.5"),("")) ->  | E21: =IF(D20<2.6,("Under2.5"),("")) -> Under2.5
D22: =D21&E21 -> Under2.5 | I22: Прогноз №5 | L22: =1-N22 -> 0.4 | M22: Un/Ov | N22: =G42 -> 0.6
I24: Коэффициент на ТМ/ТБ 2.5 | X24: =(Y24+Z24)/2 -> 0.9264069264 | Y24: =AVERAGE(ГостиГости!L2:L37) -> 1.090909091 | Z24: =AVERAGE(ДомаДома!M2:M37) -> 0.7619047619
D25: =AVERAGE(ДомаДома!L2:L38) -> 1.523809524 | E25: =AVERAGE(ГостиГости!M2:M36) -> 2 | F25: =(D25+E25)/2 -> 1.761904762
I26: Стартовый | L26: Текущий
D27: =(F25+X24) -> 2.688311688 | I27: =Коэффициенты!B6 -> 1.48 | K27: Under 2.5 | M27: =Коэффициенты!C6 -> 1.66 | O27: =1/M27 -> 0.6024096386
D28: =IF(D27>=2.6,("Over2.5"),("")) -> Over2.5 | E28: =IF(D27<2.6,("Under2.5"),("")) ->  | I28: =Коэффициенты!B5 -> 2.6 | K28: Over 2.5 | M28: =Коэффициенты!C5 -> 2.22 | O28: =1/M28 -> 0.4504504505
D29: =D28&E28 -> Over2.5
X31: =SUM(V5:V9) -> 5 | Y31: =SUM(W5:W9) -> 8 | Z31: =(X31-X32-X33)/3 -> 1 | AA31: рейтинг атаки
D32: =SUM(E5:E9) -> 6 | E32: =SUM(F5:F9) -> 6 | H32: =(D32-D33-D34)/3 -> 1.333333333 | I32: рейтинг атаки | O32: =(H32+Z32)-1.5 -> 1.5 | P32: =(Z31+H33)-1.5 -> 0.8333333333 | X32: =MIN(V5:V9) -> 0 | Y32: =MIN(W5:W9) -> 0 | Z32: =(Y31-Y32-Y33)/3 -> 1.666666667 | AA32: рейтинг защиты
D33: =MIN(E5:E9) -> 0 | E33: =MIN(F5:F9) -> 0 | H33: =(E32-E33-E34)/3 -> 1.333333333 | I33: рейтинг защиты | O33: =SUM(O32:P32) -> 2.333333333 | P33: =P36&Q36 -> Under2.5 | X33: =MAX(V5:V9) -> 2 | Y33: =MAX(W5:W9) -> 3
D34: =MAX(E5:E9) -> 2 | E34: =MAX(F5:F9) -> 2
P36: =IF(O33>=2.6,("Over2.5"),("")) ->  | Q36: =IF(O33<2.6,("Under2.5"),("")) -> Under2.5
D37: =SUM(E5:F5) -> 2 | E37: =SUM(V5:W5) -> 5 | F37: =IF(D37>2.5,1,"") ->  | G37: =IF(E37>2.5,1,"") -> 1
D38: =SUM(E6:F6) -> 1 | E38: =SUM(V6:W6) -> 3 | F38: =IF(D38>2.5,1,"") ->  | G38: =IF(E38>2.5,1,"") -> 1
D39: 3 | E39: 3 | F39: 1 | G39: 1
D40: 3 | E40: 1 | F40: 1
D41: 3 | E41: 1 | F41: 1
F42: =SUM(F37:G41) -> 6 | G42: =F42/10 -> 0.6

Sheet Arhiv
A1: Home | B1: Away | C1: Прогноз 1 | D1: Прогноз 2 | E1: Прогноз 3 | F1: Прогноз 4 | G1: Прогноз 5 | I1: Кэф Букмекера на ТМ | K1: Кэф Букмекера на ТБ | M1: Количество
G2: Under | H2: Over | I2: Стартовый | J2: Текущий | K2: Стартовый | L2: Текущий | M2: Голов
A3: Америка МГ | B3: Ферровиарио | C3: Under2.5 | D3: Under2.5 | E3: Under2.5 | F3: Under2.5 | G3: 0.5 | H3: 0.5 | I3: 1.65 | J3: 1.72 | K3: 2.2 | L3: 2.07
A4: Shirak Gyumri | B4: Noah | C4: Under2.5 | D4: Under2.5 | E4: Under2.5 | F4: Under2.5 | G4: 0.7 | H4: 0.3 | I4: 1.85 | J4: 1.7 | K4: 1.85 | L4: 2.19
A5: BW Linz | B5: A. Klagenfurt | C5: Over1.5-Under3.5 | D5: Over2.5 | E5: Over2.5 | F5: Under2.5 | G5: 0.7 | H5: 0.3 | I5: 2.42 | J5: 2.6 | K5: 1.52 | L5: 1.47 | M5: 3
A6: Universitarios | B6: Saprissa | C6: Over2.5 | D6: Over2.5 | E6: Over2.5 | F6: Over2.5 | G6: 0.1 | H6: 0.9 | I6: 2.85 | J6: 3.6 | K6: 1.4 | L6: 1.28

Sheet ОчныеДГ (hidden)
A1: Бадеран Тегеран | B1: Эстеглал Моласани | G1: Результат К1 | H1: Забито К1 | I1: Пропущено К1 | J1: Выиграно К1 | K1: Ничьих К1 | L1: Проиграно К1 | M1: РезультатК2 | N1: Забито К2 | O1: Пропущено К2 | P1: Выиграно К2 | Q1: Ничьих К2 | R1: Пропущено К2
G2: =IF(A2="","",IF($A$1=C2,IF(E2>F2,"В",IF(E2=F2,"Н","П")),IF(E2<F2,"В",IF(E2=F2,"Н","П")))) ->  | H2: =IF(A2="","",IF($A$1=C2,E2,F2)) ->  | I2: =IF(A2="","",IF($A$1=C2,F2,E2)) ->  | J2: =IF(A2="","",IF(G2="В",1,0)) ->  | K2: =IF(A2="","",IF(G2="Н",1,0)) ->  | L2: =IF(A2="","",IF(G2="П",1,0)) ->  | M2: =IF(A2="","",IF(B1=D2,IF(F2>E2,"В",IF(F2=E2,"Н","П")),IF(F2<E2,"В",IF(F2=E2,"Н","П")))) ->  | N2: =IF(A2="","",IF(B1=D2,F2,E2)) ->  | O2: =IF(A2="","",IF(B1=D2,E2,F2)) ->  | P2: =IF(A2="","",IF(M2="В",1,0)) ->  | Q2: =IF(A2="","",IF(M2="Н",1,0)) ->  | R2: =IF(A2="","",IF(M2="П",1,0)) -> 
H3: =IF(A3="","",IF($A$1=C3,E3+H2,F3+H2)) ->  | I3: =IF(A3="","",IF($A$1=C3,F3+I2,E3+I2)) ->  | J3: =IF(A3="","",IF(G3="В",1+J2,0+J2)) ->  | K3: =IF(A3="","",IF(G3="Н",1+K2,0+K2)) ->  | L3: =IF(A3="","",IF(G3="П",1+L2,0+L2)) ->  | M3: =IF(A3="","",IF($B$1=D3,IF(F3>E3,"В",IF(F3=E3,"Н","П")),IF(F3<E3,"В",IF(F3=E3,"Н","П")))) ->  | N3: =IF(A3="","",IF($B$1=D3,F3+N2,E3+N2)) ->  | O3: =IF(A3="","",IF($B$1=D3,E3+O2,F3+O2)) ->  | P3: =IF(A3="","",IF(M3="В",1+P2,0+P2)) ->  | Q3: =IF(A3="","",IF(M3="Н",1+Q2,0+Q2)) ->  | R3: =IF(A3="","",IF(M3="П",1+R2,0+R2)) -> 
H4: =IF(A4="","",IF($A$1=C4,E4+H3,F4+H3)) ->  | I4: =IF(A4="","",IF($A$1=C4,F4+I3,E4+I3)) ->  | J4: =IF(A4="","",IF(G4="В",1+J3,0+J3)) ->  | K4: =IF(A4="","",IF(G4="Н",1+K3,0+K3)) ->  | L4: =IF(A4="","",IF(G4="П",1+L3,0+L3)) ->  | M4: =IF(A4="","",IF($B$1=D4,IF(F4>E4,"В",IF(F4=E4,"Н","П")),IF(F4<E4,"В",IF(F4=E4,"Н","П")))) ->  | N4: =IF(A4="","",IF($B$1=D4,F4+N3,E4+N3)) ->  | O4: =IF(A4="","",IF($B$1=D4,E4+O3,F4+O3)) ->  | P4: =IF(A4="","",IF(M4="В",1+P3,0+P3)) ->  | Q4: =IF(A4="","",IF(M4="Н",1+Q3,0+Q3)) ->  | R4: =IF(A4="","",IF(M4="П",1+R3,0+R3)) -> 
J7: =IF(A7="","",IF(G7="В",1+J6,0+J6)) ->  | K7: =IF(A7="","",IF(G7="Н",1+K6,0+K6)) ->  | L7: =IF(A7="","",IF(G7="П",1+L6,0+L6)) ->  | M7: =IF(A7="","",IF($B$1=D7,IF(F7>E7,"В",IF(F7=E7,"Н","П")),IF(F7<E7,"В",IF(F7=E7,"Н","П")))) ->  | N7: =IF(A7="","",IF($B$1=D7,F7+N6,E7+N6)) ->  | O7: =IF(A7="","",IF($B$1=D7,E7+O6,F7+O6)) ->  | P7: =IF(A7="","",IF(M7="В",1+P6,0+P6)) ->  | Q7: =IF(A7="","",IF(M7="Н",1+Q6,0+Q6)) ->  | R7: =IF(A7="","",IF(M7="П",1+R6,0+R6)) -> 
G34: =IF(A34="","",IF($A$1=C34,IF(E34>F34,"В",IF(E34=F34,"Н","П")),IF(E34<F34,"В",IF(E34=F34,"Н","П")))) -> 
G66: =IF(A66="","",IF($A$1=C66,IF(E66>F66,"В",IF(E66=F66,"Н","П")),IF(E66<F66,"В",IF(E66=F66,"Н","П")))) -> 
H68: =IF(A68="","",IF($A$1=C68,E68+H67,F68+H67)) ->  | I68: =IF(A68="","",IF($A$1=C68,F68+I67,E68+I67)) -> 
J71: =IF(A71="","",IF(G71="В",1+J70,0+J70)) ->  | K71: =IF(A71="","",IF(G71="Н",1+K70,0+K70)) ->  | L71: =IF(A71="","",IF(G71="П",1+L70,0+L70)) ->  | M71: =IF(A71="","",IF($B$1=D71,IF(F71>E71,"В",IF(F71=E71,"Н","П")),IF(F71<E71,"В",IF(F71=E71,"Н","П")))) ->  | N71: =IF(A71="","",IF($B$1=D71,F71+N70,E71+N70)) ->  | O71: =IF(A71="","",IF($B$1=D71,E71+O70,F71+O70)) ->  | P71: =IF(A71="","",IF(M71="В",1+P70,0+P70)) ->  | Q71: =IF(A71="","",IF(M71="Н",1+Q70,0+Q70)) ->  | R71: =IF(A71="","",IF(M71="П",1+R70,0+R70)) -> 
G98: =IF(A98="","",IF($A$1=C98,IF(E98>F98,"В",IF(E98=F98,"Н","П")),IF(E98<F98,"В",IF(E98=F98,"Н","П")))) -> 
G130: =IF(A130="","",IF($A$1=C130,IF(E130>F130,"В",IF(E130=F130,"Н","П")),IF(E130<F130,"В",IF(E130=F130,"Н","П")))) -> 
H132: =IF(A132="","",IF($A$1=C132,E132+H131,F132+H131)) ->  | I132: =IF(A132="","",IF($A$1=C132,F132+I131,E132+I131)) -> 
J135: =IF(A135="","",IF(G135="В",1+J134,0+J134)) ->  | K135: =IF(A135="","",IF(G135="Н",1+K134,0+K134)) ->  | L135: =IF(A135="","",IF(G135="П",1+L134,0+L134)) ->  | M135: =IF(A135="","",IF($B$1=D135,IF(F135>E135,"В",IF(F135=E135,"Н","П")),IF(F135<E135,"В",IF(F135=E135,"Н","П")))) ->  | N135: =IF(A135="","",IF($B$1=D135,F135+N134,E135+N134)) ->  | O135: =IF(A135="","",IF($B$1=D135,E135+O134,F135+O134)) ->  | P135: =IF(A135="","",IF(M135="В",1+P134,0+P134)) ->  | Q135: =IF(A135="","",IF(M135="Н",1+Q134,0+Q134)) ->  | R135: =IF(A135="","",IF(M135="П",1+R134,0+R134)) -> 

Sheet Коэффициенты (hidden)
A1: Идентификатор | B1: Стартовый | C1: Текущий
A2: П1 | B2: 1.64 | C2: 1.54 | E2: =1/C2 -> 0.6493506494 | F2: =1/C3 -> 0.2659574468 | G2: =1/C4 -> 0.1652892562
A3: X | B3: 3.2 | C3: 3.76
A4: П2 | B4: 5.6 | C4: 6.05
A5: ТБ2.5 | B5: 2.6 | C5: 2.22
A6: ТМ2.5 | B6: 1.48 | C6: 1.66
A7: ОЗ | B7: 2.4 | C7: 2.66
A8: ОНЗ | B8: 1.5 | C8: 1.45

Sheet Расчеты (hidden)
A1: 29bnCyUr
D3: Всего | K3: Дома | R3: На выезде | AC3: Пуассон | AG3: Дома | AM3: Гости | AS3: Ничья | AZ3: Пуассон | BD3: Дома | BJ3: Гости | BP3: Ничья
D4: Игр | E4: В | F4: Н | G4: П | H4: Забито | I4: Проп | J4: Очки | K4: Игр | L4: В | M4: Н | N4: П | O4: Забито | P4: Проп | Q4: Очки | R4: Игр | S4: В | T4: Н | U4: П | V4: Забито | W4: Проп | X4: Очки | AC4: =D12 -> 1.6875 | AD4: HG | AE4: AG | AF4: =D13 -> 0.5375 | AG4: Г1 | AH4: Г2 | AI4: Д | AJ4: Г | AK4: % | AL4: КФ | AM4: К1 | AN4: К2 | AO4: Д | AP4: Г | AQ4: % | AR4: КФ | AS4: К1 | AT4: К2 | AU4: Д | AV4: Гости | AW4: % | AX4: КФ | AZ4: =U112 ->  | BA4: HG | BB4: AG | BC4: =U114 ->  | BD4: Г1 | BE4: Г2 | BF4: Д | BG4: Г | BH4: % | BI4: КФ | BJ4: К1 | BK4: К2 | BL4: Д | BM4: Г | BN4: % | BO4: КФ | BP4: К1 | BQ4: К2 | BR4: Д | BS4: Гости | BT4: % | BU4: КФ
C5: Хозяева | D5: =Дома!O11 -> 10 | E5: =Дома!P11 -> 5 | F5: =Дома!Q11 -> 1 | G5: =Дома!R11 -> 4 | H5: =Дома!S11 -> 11 | I5: =Дома!T11 -> 9 | J5: =Дома!U11 -> 16 | K5: =Дома!V11 -> 5 | L5: =Дома!W11 -> 3 | M5: =Дома!X11 -> 1 | N5: =Дома!Y11 -> 1 | O5: =Дома!Z11 -> 5 | P5: =Дома!AA11 -> 3 | Q5: =Дома!AB11 -> 10 | R5: =Дома!AC11 -> 5 | S5: =Дома!AD11 -> 2 | T5: =Дома!AE11 -> 0 | U5: =Дома!AF11 -> 3 | V5: =Дома!AG11 -> 6 | W5: =Дома!AH11 -> 6 | X5: =Дома!AI11 -> 6 | AC5: 0 | AD5: =POISSON(AC5,AC4,FALSE)*100 -> 18.49813999 | AE5: =POISSON(AC5,AF4,FALSE)*100 -> 58.42069456 | AF5: 0 | AG5: 7 | AH5: 0 | AI5: =VLOOKUP(AG5,AC5:AE12,2) -> 0.1430223784 | AJ5: =VLOOKUP(AH5,AC5:AE12,3) -> 58.42069456 | AK5: =(AI5*AJ5)/100 -> 0.08355466683 | AL5: =100/AK5 -> 1196.82124 | AM5: 0 | AN5: 7 | AO5: =VLOOKUP(AM5,AC5:AE12,2) -> 18.49813999 | AP5: =VLOOKUP(AN5,AC5:AE12,3) -> 0.0001502399601 | AQ5: =(AO5*AP5)/100 -> 2.779159815e-05 | AR5: =100/AQ5 -> 3598209.771 | AS5: 0 | AT5: 0 | AU5: =VLOOKUP(AS5,AC5:AE12,2) -> 18.49813999 | AV5: =VLOOKUP(AT5,AC5:AE12,3) -> 58.42069456 | AW5: =(AU5*AV5)/100 -> 10.80674186 | AX5: =100/AW5 -> 9.253482804 | AZ5: 0 | BA5: =POISSON(AZ5,AZ4,FALSE)*100 ->  | BB5: =POISSON(AZ5,BC4,FALSE)*100 ->  | BC5: 0 | BD5: 7 | BE5: 0 | BF5: =VLOOKUP(BD5,AZ5:BB12,2) ->  | BG5: =VLOOKUP(BE5,AZ5:BB12,3) ->  | BH5: =(BF5*BG5)/100 ->  | BI5: =100/BH5 ->  | BJ5: 0 | BK5: 7 | BL5: =VLOOKUP(BJ5,AZ5:BB12,2) ->  | BM5: =VLOOKUP(BK5,AZ5:BB12,3) ->  | BN5: =(BL5*BM5)/100 ->  | BO5: =100/BN5 ->  | BP5: 0 | BQ5: 0 | BR5: =VLOOKUP(BP5,AZ5:BB12,2) ->  | BS5: =VLOOKUP(BQ5,AZ5:BB12,3) ->  | BT5: =(BR5*BS5)/100 ->  | BU5: =100/BT5 -> 
C6: Гости | D6: =Гости!O11 -> 10 | E6: =Гости!P11 -> 3 | F6: =Гости!Q11 -> 0 | G6: =Гости!R11 -> 7 | H6: =Гости!S11 -> 9 | I6: =Гости!T11 -> 14 | J6: =Гости!U11 -> 9 | K6: =Гости!V11 -> 5 | L6: =Гости!W11 -> 3 | M6: =Гости!X11 -> 0 | N6: =Гости!Y11 -> 2 | O6: =Гости!Z11 -> 4 | P6: =Гости!AA11 -> 3 | Q6: =Гости!AB11 -> 9 | R6: =Гости!AC11 -> 5 | S6: =Гости!AD11 -> 0 | T6: =Гости!AE11 -> 0 | U6: =Гости!AF11 -> 5 | V6: =Гости!AG11 -> 5 | W6: =Гости!AH11 -> 11 | X6: =Гости!AI11 -> 0 | AC6: 1 | AD6: =POISSON(AC6,AC4,FALSE)*100 -> 31.21561123 | AE6: =POISSON(AC6,AF4,FALSE)*100 -> 31.40112333 | AF6: 1 | AG6: 7 | AH6: 1 | AI6: =VLOOKUP(AG6,AC5:AE12,2) -> 0.1430223784 | AJ6: =VLOOKUP(AH6,AC5:AE12,3) -> 31.40112333 | AK6: 0.04491063342 | AL6: 2226.644168 | AM6: 1 | AN6: 7 | AO6: =VLOOKUP(AM6,AC5:AE12,2) -> 31.21561123 | AP6: =VLOOKUP(AN6,AC5:AE12,3) -> 0.0001502399601 | AQ6: 4.689832187e-05 | AR6: 2132272.457 | AS6: 1 | AT6: 1 | AU6: =VLOOKUP(AS6,AC5:AE12,2) -> 31.21561123 | AV6: =VLOOKUP(AT6,AC5:AE12,3) -> 31.40112333 | AW6: 9.802052581 | AX6: 10.20194487 | AZ6: 1 | BA6: =POISSON(AZ6,AZ4,FALSE)*100 ->  | BB6: =POISSON(AZ6,BC4,FALSE)*100 ->  | BC6: 1 | BD6: 7 | BE6: 1 | BF6: =VLOOKUP(BD6,AZ5:BB12,2) ->  | BG6: =VLOOKUP(BE6,AZ5:BB12,3) ->  | BJ6: 1 | BK6: 7 | BL6: =VLOOKUP(BJ6,AZ5:BB12,2) ->  | BM6: =VLOOKUP(BK6,AZ5:BB12,3) ->  | BP6: 1 | BQ6: 1 | BR6: =VLOOKUP(BP6,AZ5:BB12,2) ->  | BS6: =VLOOKUP(BQ6,AZ5:BB12,3) -> 
D7: Забивают | F7: Пропускают | H7: В/Н/П | I7: З/П | K7: Забивают | M7: Пропускают | O7: В/Н/П | P7: З/П | R7: Забивают | T7: Пропускают | V7: В/Н/П | W7: З/П | AC7: 2 | AD7: =POISSON(AC7,AC4,FALSE)*100 -> 26.33817198 | AE7: =POISSON(AC7,AF4,FALSE)*100 -> 8.439051894 | AF7: 2 | AG7: 7 | AH7: 2 | AI7: =VLOOKUP(AG7,AC5:AE12,2) -> 0.1430223784 | AJ7: =VLOOKUP(AH7,AC5:AE12,3) -> 8.439051894 | AK7: 0.01206973273 | AL7: 8285.187602 | AM7: 2 | AN7: 7 | AO7: =VLOOKUP(AM7,AC5:AE12,2) -> 26.33817198 | AP7: =VLOOKUP(AN7,AC5:AE12,3) -> 0.0001502399601 | AQ7: 3.957045908e-05 | AR7: 2527137.727 | AS7: 2 | AT7: 2 | AU7: =VLOOKUP(AS7,AC5:AE12,2) -> 26.33817198 | AV7: =VLOOKUP(AT7,AC5:AE12,3) -> 8.439051894 | AW7: 2.222692001 | AX7: 44.99048899 | AZ7: 2 | BA7: =POISSON(AZ7,AZ4,FALSE)*100 ->  | BB7: =POISSON(AZ7,BC4,FALSE)*100 ->  | BC7: 2 | BD7: 7 | BE7: 2 | BF7: =VLOOKUP(BD7,AZ5:BB12,2) ->  | BG7: =VLOOKUP(BE7,AZ5:BB12,3) ->  | BJ7: 2 | BK7: 7 | BL7: =VLOOKUP(BJ7,AZ5:BB12,2) ->  | BM7: =VLOOKUP(BK7,AZ5:BB12,3) ->  | BP7: 2 | BQ7: 2 | BR7: =VLOOKUP(BP7,AZ5:BB12,2) ->  | BS7: =VLOOKUP(BQ7,AZ5:BB12,3) -> 
C8: Хозяева | D8: =H5/D5 -> 1.1 | F8: =I5/D5 -> 0.9 | H8: =CONCATENATE(E5,"/",F5,"/",G5) -> 5/1/4 | I8: =CONCATENATE(H5,"/",I5) -> 11/9 | K8: =O5/K5 -> 1 | M8: =P5/K5 -> 0.6 | O8: =CONCATENATE(L5,"/",M5,"/",N5) -> 3/1/1 | P8: =CONCATENATE(O5,"/",P5) -> 5/3 | R8: =V5/R5 -> 1.2 | T8: =W5/R5 -> 1.2 | V8: =CONCATENATE(S5,"/",T5,"/",U5) -> 2/0/3 | W8: =CONCATENATE(V5,"/",W5) -> 6/6 | AC8: 3 | AD8: =POISSON(AC8,AC4,FALSE)*100 -> 14.81522174 | AE8: =POISSON(AC8,AF4,FALSE)*100 -> 1.511996798 | AF8: 3 | AG8: 7 | AH8: 3 | AI8: =VLOOKUP(AG8,AC5:AE12,2) -> 0.1430223784 | AJ8: =VLOOKUP(AH8,AC5:AE12,3) -> 1.511996798 | AK8: 0.002162493781 | AL8: 46242.90755 | AM8: 3 | AN8: 7 | AO8: =VLOOKUP(AM8,AC5:AE12,2) -> 14.81522174 | AP8: =VLOOKUP(AN8,AC5:AE12,3) -> 0.0001502399601 | AQ8: 2.225838323e-05 | AR8: 4492689.292 | AS8: 3 | AT8: 3 | AU8: =VLOOKUP(AS8,AC5:AE12,2) -> 14.81522174 | AV8: =VLOOKUP(AT8,AC5:AE12,3) -> 1.511996798 | AW8: 0.2240056783 | AX8: 446.417255 | AZ8: 3 | BA8: =POISSON(AZ8,AZ4,FALSE)*100 ->  | BB8: =POISSON(AZ8,BC4,FALSE)*100 ->  | BC8: 3 | BD8: 7 | BE8: 3 | BF8: =VLOOKUP(BD8,AZ5:BB12,2) ->  | BG8: =VLOOKUP(BE8,AZ5:BB12,3) ->  | BJ8: 3 | BK8: 7 | BL8: =VLOOKUP(BJ8,AZ5:BB12,2) ->  | BM8: =VLOOKUP(BK8,AZ5:BB12,3) ->  | BP8: 3 | BQ8: 3 | BR8: =VLOOKUP(BP8,AZ5:BB12,2) ->  | BS8: =VLOOKUP(BQ8,AZ5:BB12,3) -> 
C9: Гости | D9: =H6/D6 -> 0.9 | F9: =I6/D6 -> 1.4 | H9: =CONCATENATE(E6,"/",F6,"/",G6) -> 3/0/7 | I9: =CONCATENATE(H6,"/",I6) -> 9/14 | K9: =O6/K6 -> 0.8 | M9: =P6/K6 -> 0.6 | O9: =CONCATENATE(L6,"/",M6,"/",N6) -> 3/0/2 | P9: =CONCATENATE(O6,"/",P6) -> 4/3 | R9: =V6/R6 -> 1 | T9: =W6/R6 -> 2.2 | V9: =CONCATENATE(S6,"/",T6,"/",U6) -> 0/0/5 | W9: =CONCATENATE(V6,"/",W6) -> 5/11 | AC9: 4 | AD9: =POISSON(AC9,AC4,FALSE)*100 -> 6.250171671 | AE9: =POISSON(AC9,AF4,FALSE)*100 -> 0.2031745697 | AF9: 4 | AG9: 7 | AH9: 4 | AI9: =VLOOKUP(AG9,AC5:AE12,2) -> 0.1430223784 | AJ9: =VLOOKUP(AH9,AC5:AE12,3) -> 0.2031745697 | AK9: 0.0002905851019 | AL9: 344133.2655 | AM9: 4 | AN9: 7 | AO9: =VLOOKUP(AM9,AC5:AE12,2) -> 6.250171671 | AP9: =VLOOKUP(AN9,AC5:AE12,3) -> 0.0001502399601 | AQ9: 9.390255426e-06 | AR9: 10649337.58 | AS9: 4 | AT9: 4 | AU9: =VLOOKUP(AS9,AC5:AE12,2) -> 6.250171671 | AV9: =VLOOKUP(AT9,AC5:AE12,3) -> 0.2031745697 | AW9: 0.0126987594 | AX9: 7874.784999 | AZ9: 4 | BA9: =POISSON(AZ9,AZ4,FALSE)*100 ->  | BB9: =POISSON(AZ9,BC4,FALSE)*100 ->  | BC9: 4 | BD9: 7 | BE9: 4 | BF9: =VLOOKUP(BD9,AZ5:BB12,2) ->  | BG9: =VLOOKUP(BE9,AZ5:BB12,3) ->  | BJ9: 4 | BK9: 7 | BL9: =VLOOKUP(BJ9,AZ5:BB12,2) ->  | BM9: =VLOOKUP(BK9,AZ5:BB12,3) ->  | BP9: 4 | BQ9: 4 | BR9: =VLOOKUP(BP9,AZ5:BB12,2) ->  | BS9: =VLOOKUP(BQ9,AZ5:BB12,3) -> 
AC10: 5 | AD10: =POISSON(AC10,AC4,FALSE)*100 -> 2.109432939 | AE10: =POISSON(AC10,AF4,FALSE)*100 -> 0.02184126624 | AF10: 5 | AG10: 7 | AH10: 5 | AI10: =VLOOKUP(AG10,AC5:AE12,2) -> 0.1430223784 | AJ10: =VLOOKUP(AH10,AC5:AE12,3) -> 0.02184126624 | AK10: 3.123789845e-05 | AL10: 3201239.679 | AM10: 5 | AN10: 7 | AO10: =VLOOKUP(AM10,AC5:AE12,2) -> 2.109432939 | AP10: =VLOOKUP(AN10,AC5:AE12,3) -> 0.0001502399601 | AQ10: 3.169211206e-06 | AR10: 31553592.83 | AS10: 5 | AT10: 5 | AU10: =VLOOKUP(AS10,AC5:AE12,2) -> 2.109432939 | AV10: =VLOOKUP(AT10,AC5:AE12,3) -> 0.02184126624 | AW10: 0.0004607268644 | AX10: 217048.3376 | AZ10: 5 | BA10: =POISSON(AZ10,AZ4,FALSE)*100 ->  | BB10: =POISSON(AZ10,BC4,FALSE)*100 ->  | BC10: 5 | BD10: 7 | BE10: 5 | BF10: =VLOOKUP(BD10,AZ5:BB12,2) ->  | BG10: =VLOOKUP(BE10,AZ5:BB12,3) ->  | BJ10: 5 | BK10: 7 | BL10: =VLOOKUP(BJ10,AZ5:BB12,2) ->  | BM10: =VLOOKUP(BK10,AZ5:BB12,3) ->  | BP10: 5 | BQ10: 5 | BR10: =VLOOKUP(BP10,AZ5:BB12,2) ->  | BS10: =VLOOKUP(BQ10,AZ5:BB12,3) -> 
C11: =AVERAGE(Дома!L2:M11,Гости!L2:M11) -> 1.075 | D11: Ср.Тот | E11: Заб | F11: Счет1 | G11: Счет2 | H11: Счет5 | I11: Счет6 | J11: Итог | K11: 1й Гол | L11: ОЗ | M11: Тотал1 | N11: Серия | O11: ТБ2.5 | P11: Рейтинг | Q11: Мощь | R11: Голы | S11: Счет7 | AC11: 6 | AD11: =POISSON(AC11,AC4,FALSE)*100 -> 0.5932780141 | AE11: =POISSON(AC11,AF4,FALSE)*100 -> 0.001956613434 | AF11: 6 | AG11: 7 | AH11: 6 | AI11: =VLOOKUP(AG11,AC5:AE12,2) -> 0.1430223784 | AJ11: =VLOOKUP(AH11,AC5:AE12,3) -> 0.001956613434 | AK11: 2.798395069e-06 | AL11: 35734768.51 | AM11: 6 | AN11: 7 | AO11: =VLOOKUP(AM11,AC5:AE12,2) -> 0.5932780141 | AP11: =VLOOKUP(AN11,AC5:AE12,3) -> 0.0001502399601 | AQ11: 8.913406517e-07 | AR11: 112190552.3 | AS11: 6 | AT11: 6 | AU11: =VLOOKUP(AS11,AC5:AE12,2) -> 0.5932780141 | AV11: =VLOOKUP(AT11,AC5:AE12,3) -> 0.001956613434 | AW11: 1.160815732e-05 | AX11: 8614631.694 | AZ11: 6 | BA11: =POISSON(AZ11,AZ4,FALSE)*100 ->  | BB11: =POISSON(AZ11,BC4,FALSE)*100 ->  | BC11: 6 | BD11: 7 | BE11: 6 | BF11: =VLOOKUP(BD11,AZ5:BB12,2) ->  | BG11: =VLOOKUP(BE11,AZ5:BB12,3) ->  | BJ11: 6 | BK11: 7 | BL11: =VLOOKUP(BJ11,AZ5:BB12,2) ->  | BM11: =VLOOKUP(BK11,AZ5:BB12,3) ->  | BP11: 6 | BQ11: 6 | BR11: =VLOOKUP(BP11,AZ5:BB12,2) ->  | BS11: =VLOOKUP(BQ11,AZ5:BB12,3) -> 
C12: Хозяева | D12: =AVERAGE(K8,D8)+AVERAGE(T9,F9)-AVERAGE(1.25,C11) -> 1.6875 | E12: =AVERAGE(K8,D8) -> 1.05 | F12: =ROUND(AVERAGE(D12,E12),0) -> 1 | G12: =ROUND(D12,0) -> 2 | H12: =ROUND(SUM(Дома!L2:L8)/7,0) -> 1 | I12: =ROUND(SUM(Дома!L2:L8)/7,0) -> 1 | J12: =Дома!S11/Дома!T11 -> 1.222222222 | K12: =IF(J12>J13,"К1","К2") -> К1 | L12: =IF(M18>0.6,"1","0") -> 1 | M12: =((100/3.5)*D14)/100 -> 0.6357142857 | N12: =CONCATENATE(Дома!N2,Дома!N3,Дома!N4,Дома!N5,Дома!N6) -> ПВПВВ | O12: =CONCATENATE(Q21,R21,S21,T21,U21) -> --+++ | P12: =(Q5/K5+X5/R5*1.1+K8-M8*1.1+R8*1.1-T8)/12.6 -> 0.3 | Q12: =(K8-M8+D8-F8)/2 -> 0.3 | R12: =IF(E12>0.6,"Да","Нет") -> Да | S12: =AC13-1 -> 1 | AC12: 7 | AD12: =POISSON(AC12,AC4,FALSE)*100 -> 0.1430223784 | AE12: =POISSON(AC12,AF4,FALSE)*100 -> 0.0001502399601 | AF12: 7 | AG12: 6 | AH12: 0 | AI12: =VLOOKUP(AG12,AC5:AE12,2) -> 0.5932780141 | AJ12: =VLOOKUP(AH12,AC5:AE12,3) -> 58.42069456 | AK12: 0.3465971365 | AL12: 288.5194062 | AM12: 0 | AN12: 6 | AO12: =VLOOKUP(AM12,AC5:AE12,2) -> 18.49813999 | AP12: =VLOOKUP(AN12,AC5:AE12,3) -> 0.001956613434 | AQ12: 0.0003619370921 | AR12: 276291.1074 | AS12: 7 | AT12: 7 | AU12: =VLOOKUP(AS12,AC5:AE12,2) -> 0.1430223784 | AV12: =VLOOKUP(AT12,AC5:AE12,3) -> 0.0001502399601 | AW12: =(AU12*AV12)/100 -> 2.148767643e-07 | AX12: =100/AW12 -> 465383031.7 | AZ12: 7 | BA12: =POISSON(AZ12,AZ4,FALSE)*100 ->  | BB12: =POISSON(AZ12,BC4,FALSE)*100 ->  | BC12: 7 | BD12: 6 | BE12: 0 | BF12: =VLOOKUP(BD12,AZ5:BB12,2) ->  | BG12: =VLOOKUP(BE12,AZ5:BB12,3) ->  | BJ12: 0 | BK12: 6 | BL12: =VLOOKUP(BJ12,AZ5:BB12,2) ->  | BM12: =VLOOKUP(BK12,AZ5:BB12,3) ->  | BP12: 7 | BQ12: 7 | BR12: =VLOOKUP(BP12,AZ5:BB12,2) ->  | BS12: =VLOOKUP(BQ12,AZ5:BB12,3) -> 
C13: Гости | D13: =AVERAGE(R9,D9)+AVERAGE(M8,F8)-AVERAGE(1.25,C11) -> 0.5375 | E13: =AVERAGE(R9,D9) -> 0.95 | F13: =ROUND(AVERAGE(D13,E13),0) -> 1 | G13: =ROUND(D13,0) -> 1 | H13: =ROUND(SUM(Гости!L2:L8)/7-1,0) -> 0 | I13: =ROUND(SUM(Гости!L2:L8)/7,0) -> 1 | J13: =Гости!S11/Гости!T11 -> 0.6428571429 | K13: =IF(M18>M20,"К1","К2") -> К1 | L13: =IF(ROUND((V6/R6+P5/K5)/2,0)+M20>0.6,"1","0") -> 1 | M13: =IF(D14>2.85,IF(F12+F13>2,"ТБ 2","Нет"),IF(D14<2.2,IF(F12+F13<3,"ТМ 3","Нет"),"Нет")) -> Нет | N13: =CONCATENATE(Гости!N2,Гости!N3,Гости!N4,Гости!N5,Гости!N6) -> ПППВП | O13: =CONCATENATE(V21,W21,X21,Y21,Z21) -> +++-- | P13: =(Q6/K6+X6/R6*1.1+K9-M9*1.1+R9*1.1-T9)/12.6 -> 0.06666666667 | Q13: =(R9-T9+D8-F8)/2 -> -0.5 | R13: =IF(E13>0.6,"Да","Нет") -> Да | S13: =AF13-1 -> 0 | AC13: =MATCH(AD13,AD5:AD12,0) -> 2 | AD13: =MAX(AD5:AD12) -> 31.21561123 | AE13: =MAX(AE5:AE12) -> 58.42069456 | AF13: =MATCH(AE13,AE5:AE12,0) -> 1 | AG13: 6 | AH13: 1 | AI13: =VLOOKUP(AG13,AC5:AE12,2) -> 0.5932780141 | AJ13: =VLOOKUP(AH13,AC5:AE12,3) -> 31.40112333 | AK13: 0.1862959609 | AL13: 536.7802905 | AM13: 1 | AN13: 6 | AO13: =VLOOKUP(AM13,AC5:AE12,2) -> 31.21561123 | AP13: =VLOOKUP(AN13,AC5:AE12,3) -> 0.001956613434 | AQ13: 0.000610768843 | AR13: 163728.0637 | AZ13: =MATCH(BA13,BA5:BA12,0) ->  | BA13: =MAX(BA5:BA12) ->  | BB13: =MAX(BB5:BB12) ->  | BC13: =MATCH(BB13,BB5:BB12,0) ->  | BD13: 6 | BE13: 1 | BF13: =VLOOKUP(BD13,AZ5:BB12,2) ->  | BG13: =VLOOKUP(BE13,AZ5:BB12,3) ->  | BJ13: 1 | BK13: 6 | BL13: =VLOOKUP(BJ13,AZ5:BB12,2) ->  | BM13: =VLOOKUP(BK13,AZ5:BB12,3) -> 
D14: =D12+D13 -> 2.225 | E14: =MATCH(F14,#REF!,0) ->  | F14: =Очные!A1 -> Бадеран Тегеран | H14: =COUNT(#REF!) -> 0 | I14: =Очные!B1 -> Эстеглал Моласани | K14: =MATCH(I14,#REF!,0) ->  | L14: =IF(L12+L13=2,"Да","Нет") -> Да | P14: =(COUNTIF(Гости!AJ2:AJ11,">2,5")+COUNTIF(Дома!AJ2:AJ11,">2,5"))/COUNT(Дома!AJ2:AJ11,Гости!AJ2:AJ11) -> 0.5 | AG14: 6 | AH14: 2 | AI14: =VLOOKUP(AG14,AC5:AE12,2) -> 0.5932780141 | AJ14: =VLOOKUP(AH14,AC5:AE12,3) -> 8.439051894 | AK14: 0.05006703948 | AL14: 1997.322011 | AM14: 2 | AN14: 6 | AO14: =VLOOKUP(AM14,AC5:AE12,2) -> 26.33817198 | AP14: =VLOOKUP(AN14,AC5:AE12,3) -> 0.001956613434 | AQ14: 0.0005153362112 | AR14: 194048.0754 | BD14: 6 | BE14: 2 | BF14: =VLOOKUP(BD14,AZ5:BB12,2) ->  | BG14: =VLOOKUP(BE14,AZ5:BB12,3) ->  | BJ14: 2 | BK14: 6 | BL14: =VLOOKUP(BJ14,AZ5:BB12,2) ->  | BM14: =VLOOKUP(BK14,AZ5:BB12,3) -> 
AC15: Пуассон | AG15: 6 | AH15: 3 | AI15: =VLOOKUP(AG15,AC5:AE12,2) -> 0.5932780141 | AJ15: =VLOOKUP(AH15,AC5:AE12,3) -> 1.511996798 | AK15: 0.008970344574 | AL15: 11147.84378 | AM15: 3 | AN15: 6 | AO15: =VLOOKUP(AM15,AC5:AE12,2) -> 14.81522174 | AP15: =VLOOKUP(AN15,AC5:AE12,3) -> 0.001956613434 | AQ15: 0.0002898766188 | AR15: 344974.3563 | AZ15: Пуассон | BD15: 6 | BE15: 3 | BF15: =VLOOKUP(BD15,AZ5:BB12,2) ->  | BG15: =VLOOKUP(BE15,AZ5:BB12,3) ->  | BJ15: 3 | BK15: 6 | BL15: =VLOOKUP(BJ15,AZ5:BB12,2) ->  | BM15: =VLOOKUP(BK15,AZ5:BB12,3) -> 
E16: Миллер | Q16: EW-легкая победа, W-победа простая, D-ничья, L-проигрыш, HL-позорный проигрыш | AC16: ИД | AD16: % | AE16: КФ | AG16: 6 | AH16: 4 | AI16: =VLOOKUP(AG16,AC5:AE12,2) -> 0.5932780141 | AJ16: =VLOOKUP(AH16,AC5:AE12,3) -> 0.2031745697 | AK16: 0.001205390052 | AL16: 82960.69793 | AM16: 4 | AN16: 6 | AO16: =VLOOKUP(AM16,AC5:AE12,2) -> 6.250171671 | AP16: =VLOOKUP(AN16,AC5:AE12,3) -> 0.001956613434 | AQ16: 0.0001222916986 | AR16: 817716.9928 | AZ16: ИД | BA16: % | BB16: КФ | BD16: 6 | BE16: 4 | BF16: =VLOOKUP(BD16,AZ5:BB12,2) ->  | BG16: =VLOOKUP(BE16,AZ5:BB12,3) ->  | BJ16: 4 | BK16: 6 | BL16: =VLOOKUP(BJ16,AZ5:BB12,2) ->  | BM16: =VLOOKUP(BK16,AZ5:BB12,3) -> 
E17: 1 | F17: 2 | G17: 3 | H17: 4 | I17: Max | J17: Min | K17: Расчет | N17: Счет3 | O17: Счет4 | Q17: 1 | R17: 2 | S17: 3 | T17: 4 | U17: 5 | V17: 1 | W17: 2 | X17: 3 | Y17: 4 | Z17: 5 | AC17: 1 | AD17: =SUM(AK5:AK32) -> 65.53255809 | AE17: =100/AD17 -> 1.525959049 | AG17: 6 | AH17: 5 | AI17: =VLOOKUP(AG17,AC5:AE12,2) -> 0.5932780141 | AJ17: =VLOOKUP(AH17,AC5:AE12,3) -> 0.02184126624 | AK17: 0.0001295794306 | AL17: 771727.4226 | AM17: 5 | AN17: 6 | AO17: =VLOOKUP(AM17,AC5:AE12,2) -> 2.109432939 | AP17: =VLOOKUP(AN17,AC5:AE12,3) -> 0.001956613434 | AQ17: 4.127344827e-05 | AR17: 2422865.164 | AZ17: 1 | BA17: =SUM(BH5:BH32) ->  | BB17: =100/BA17 ->  | BD17: 6 | BE17: 5 | BF17: =VLOOKUP(BD17,AZ5:BB12,2) ->  | BG17: =VLOOKUP(BE17,AZ5:BB12,3) ->  | BJ17: 5 | BK17: 6 | BL17: =VLOOKUP(BJ17,AZ5:BB12,2) ->  | BM17: =VLOOKUP(BK17,AZ5:BB12,3) -> 
C18: Сила Атаки1 | E18: =Дома!L2 -> 0 | F18: =Дома!L3 -> 1 | G18: =Дома!L4 -> 1 | H18: =Дома!L5 -> 2 | I18: =MAX(E18:H18) -> 2 | J18: =MIN(E18:H18) -> 0 | K18: =E18+F18+G18+H18-I18-J18 -> 2 | L18: =K18/2 -> 1 | M18: =L18+L21-1.5 -> 1.5 | N18: =ROUNDDOWN(M18,0) -> 1 | O18: =ROUNDUP(M18,0) -> 2 | Q18: =IF(Дома!N2="В",IF(Дома!L2-Дома!M2>1,"EW","W"),"") ->  | R18: =IF(Дома!N3="В",IF(Дома!L3-Дома!M3>1,"EW","W"),"") -> W | S18: =IF(Дома!N4="В",IF(Дома!L4-Дома!M4>1,"EW","W"),"") ->  | T18: =IF(Дома!N5="В",IF(Дома!L5-Дома!M5>1,"EW","W"),"") -> W | U18: =IF(Дома!N6="В",IF(Дома!L6-Дома!M6>1,"EW","W"),"") -> W | V18: =IF(Гости!N2="В",IF(Гости!L2-Гости!M2>1,"EW","W"),"") ->  | W18: =IF(Гости!N3="В",IF(Гости!L3-Гости!M3>1,"EW","W"),"") ->  | X18: =IF(Гости!N4="В",IF(Гости!L4-Гости!M4>1,"EW","W"),"") ->  | Y18: =IF(Гости!N5="В",IF(Гости!L5-Гости!M5>1,"EW","W"),"") -> W | Z18: =IF(Гости!N6="В",IF(Гости!L6-Гости!M6>1,"EW","W"),"") ->  | AC18: Х | AD18: =SUM(AW5:AW12) -> 23.06866343 | AE18: 4.334884866 | AG18: 5 | AH18: 0 | AI18: =VLOOKUP(AG18,AC5:AE12,2) -> 2.109432939 | AJ18: =VLOOKUP(AH18,AC5:AE12,3) -> 58.42069456 | AK18: 1.232345374 | AL18: 81.14608298 | AM18: 0 | AN18: 5 | AO18: =VLOOKUP(AM18,AC5:AE12,2) -> 18.49813999 | AP18: =VLOOKUP(AN18,AC5:AE12,3) -> 0.02184126624 | AQ18: 0.004040228005 | AR18: 24751.07837 | AZ18: Х | BA18: =SUM(BT5:BT12) ->  | BD18: 5 | BE18: 0 | BF18: =VLOOKUP(BD18,AZ5:BB12,2) ->  | BG18: =VLOOKUP(BE18,AZ5:BB12,3) ->  | BJ18: 0 | BK18: 5 | BL18: =VLOOKUP(BJ18,AZ5:BB12,2) ->  | BM18: =VLOOKUP(BK18,AZ5:BB12,3) -> 
C19: Сила Обороны1 | E19: =Дома!M2 -> 2 | F19: =Дома!M3 -> 0 | G19: =Дома!M4 -> 2 | H19: =Дома!M5 -> 1 | I19: =MAX(E19:H19) -> 2 | J19: =MIN(E19:H19) -> 0 | K19: =E19+F19+G19+H19-I19-J19 -> 3 | L19: =K19/2 -> 1.5 | Q19: =IF(Дома!N2="П",IF(Дома!L2-Дома!M2<1,"HL","L"),"D") -> HL | R19: =IF(Дома!N3="П",IF(Дома!L3-Дома!M3<1,"HL","L"),"D") -> D | S19: =IF(Дома!N4="П",IF(Дома!L4-Дома!M4<1,"HL","L"),"D") -> HL | T19: =IF(Дома!N5="П",IF(Дома!L5-Дома!M5<1,"HL","L"),"D") -> D | U19: =IF(Дома!N6="П",IF(Дома!L6-Дома!M6<1,"HL","L"),"D") -> D | V19: =IF(Гости!N2="П",IF(Гости!L2-Гости!M2<1,"HL","L"),"D") -> HL | W19: =IF(Гости!N3="П",IF(Гости!L3-Гости!M3<1,"HL","L"),"D") -> HL | X19: =IF(Гости!N4="П",IF(Гости!L4-Гости!M4<1,"HL","L"),"D") -> HL | Y19: =IF(Гости!N5="П",IF(Гости!L5-Гости!M5<1,"HL","L"),"D") -> D | Z19: =IF(Гости!N6="П",IF(Гости!L6-Гости!M6<1,"HL","L"),"D") -> HL | AC19: 2 | AD19: =SUM(AQ5:AQ32) -> 11.3618177 | AE19: 8.801408602 | AG19: 5 | AH19: 1 | AI19: =VLOOKUP(AG19,AC5:AE12,2) -> 2.109432939 | AJ19: =VLOOKUP(AH19,AC5:AE12,3) -> 31.40112333 | AK19: 0.6623856386 | AL19: 150.9694567 | AM19: 1 | AN19: 5 | AO19: =VLOOKUP(AM19,AC5:AE12,2) -> 31.21561123 | AP19: =VLOOKUP(AN19,AC5:AE12,3) -> 0.02184126624 | AQ19: 0.006817884759 | AR19: 14667.3057 | AZ19: 2 | BA19: =SUM(BN5:BN32) ->  | BD19: 5 | BE19: 1 | BF19: =VLOOKUP(BD19,AZ5:BB12,2) ->  | BG19: =VLOOKUP(BE19,AZ5:BB12,3) ->  | BJ19: 1 | BK19: 5 | BL19: =VLOOKUP(BJ19,AZ5:BB12,2) ->  | BM19: =VLOOKUP(BK19,AZ5:BB12,3) -> 
C20: Сила Атаки2 | E20: =Гости!L2 -> 2 | F20: =Гости!L3 -> 1 | G20: =Гости!L4 -> 1 | H20: =Гости!L5 -> 1 | I20: =MAX(E20:H20) -> 2 | J20: =MIN(E20:H20) -> 1 | K20: =E20+F20+G20+H20-I20-J20 -> 2 | L20: =K20/2 -> 1 | M20: =L20+L19-1.5 -> 1 | N20: =ROUNDDOWN(M20,0) -> 1 | O20: =ROUNDUP(M20,0) -> 1 | Q20: =IF(Q18="",Q19,Q18) -> HL | R20: W | S20: HL | T20: W | U20: W | V20: HL | W20: HL | X20: HL | Y20: W | Z20: HL | AC20: ТБ1.5 | AD20: =100-AD21 -> 65.14825749 | AE20: 1.534960471 | AG20: 5 | AH20: 2 | AI20: =VLOOKUP(AG20,AC5:AE12,2) -> 2.109432939 | AJ20: =VLOOKUP(AH20,AC5:AE12,3) -> 8.439051894 | AK20: 0.1780161404 | AL20: 561.7468157 | AM20: 2 | AN20: 5 | AO20: =VLOOKUP(AM20,AC5:AE12,2) -> 26.33817198 | AP20: =VLOOKUP(AN20,AC5:AE12,3) -> 0.02184126624 | AQ20: 0.005752590265 | AR20: 17383.47343 | AZ20: ТБ1.5 | BA20: =100-BA21 ->  | BD20: 5 | BE20: 2 | BF20: =VLOOKUP(BD20,AZ5:BB12,2) ->  | BG20: =VLOOKUP(BE20,AZ5:BB12,3) ->  | BJ20: 2 | BK20: 5 | BL20: =VLOOKUP(BJ20,AZ5:BB12,2) ->  | BM20: =VLOOKUP(BK20,AZ5:BB12,3) -> 
C21: Сила Обороны2 | E21: =Гости!M2 -> 3 | F21: =Гости!M3 -> 2 | G21: =Гости!M4 -> 2 | H21: =Гости!M5 -> 0 | I21: =MAX(E21:H21) -> 3 | J21: =MIN(E21:H21) -> 0 | K21: =E21+F21+G21+H21-I21-J21 -> 4 | L21: =K21/2 -> 2 | Q21: =IF(Дома!L2+Дома!M2>2,"+","-") -> - | R21: =IF(Дома!L3+Дома!M3>2,"+","-") -> - | S21: =IF(Дома!L4+Дома!M4>2,"+","-") -> + | T21: =IF(Дома!L5+Дома!M5>2,"+","-") -> + | U21: =IF(Дома!L6+Дома!M6>2,"+","-") -> + | V21: =IF(Гости!L2+Гости!M2>2,"+","-") -> + | W21: =IF(Гости!L3+Гости!M3>2,"+","-") -> + | X21: =IF(Гости!L4+Гости!M4>2,"+","-") -> + | Y21: =IF(Гости!L5+Гости!M5>2,"+","-") -> - | Z21: =IF(Гости!L6+Гости!M6>2,"+","-") -> - | AC21: ТМ1.5 | AD21: =SUM(AK32+AQ32+AW5) -> 34.85174251 | AE21: 2.869296993 | AG21: 5 | AH21: 3 | AI21: =VLOOKUP(AG21,AC5:AE12,2) -> 2.109432939 | AJ21: =VLOOKUP(AH21,AC5:AE12,3) -> 1.511996798 | AK21: 0.03189455849 | AL21: 3135.331064 | AM21: 3 | AN21: 5 | AO21: =VLOOKUP(AM21,AC5:AE12,2) -> 14.81522174 | AP21: =VLOOKUP(AN21,AC5:AE12,3) -> 0.02184126624 | AQ21: 0.003235832024 | AR21: 30903.95276 | AZ21: ТМ1.5 | BA21: =SUM(BH32+BN32+BT5) ->  | BD21: 5 | BE21: 3 | BF21: =VLOOKUP(BD21,AZ5:BB12,2) ->  | BG21: =VLOOKUP(BE21,AZ5:BB12,3) ->  | BJ21: 3 | BK21: 5 | BL21: =VLOOKUP(BJ21,AZ5:BB12,2) ->  | BM21: =VLOOKUP(BK21,AZ5:BB12,3) -> 
AC22: ТБ2.5 | AD22: =100-AD23 -> 38.39819427 | AE22: 2.604289131 | AG22: 5 | AH22: 4 | AI22: =VLOOKUP(AG22,AC5:AE12,2) -> 2.109432939 | AJ22: =VLOOKUP(AH22,AC5:AE12,3) -> 0.2031745697 | AK22: 0.004285831296 | AL22: 23332.69629 | AM22: 4 | AN22: 5 | AO22: =VLOOKUP(AM22,AC5:AE12,2) -> 6.250171671 | AP22: =VLOOKUP(AN22,AC5:AE12,3) -> 0.02184126624 | AQ22: 0.001365116635 | AR22: 73253.81394 | AZ22: ТБ2.5 | BA22: =100-BA23 ->  | BD22: 5 | BE22: 4 | BF22: =VLOOKUP(BD22,AZ5:BB12,2) ->  | BG22: =VLOOKUP(BE22,AZ5:BB12,3) ->  | BJ22: 4 | BK22: 5 | BL22: =VLOOKUP(BJ22,AZ5:BB12,2) ->  | BM22: =VLOOKUP(BK22,AZ5:BB12,3) -> 
D23: Индикатор ТБ2.5 | J23: Среднее за 5 матчей Д/Г | M23: Расчет силы атаки/обороны 10 матчей | T23: 1 | U23: =L5/K5/(L5/K5+M5/K5+S6/R6+T6/R6) -> 0.75 | V23: =E5/D5/(E5/D5+F5/D5+E6/D6+F6/D6) -> 0.5555555556 | W23: =AVERAGE(U23,V23) -> 0.6527777778 | AC23: ТМ2.5 | AD23: =SUM(AK32+AK30+AQ30+AQ32+AW5+AW6) -> 61.60180573 | AE23: 1.623329037 | AG23: 4 | AH23: 0 | AI23: =VLOOKUP(AG23,AC5:AE12,2) -> 6.250171671 | AJ23: =VLOOKUP(AH23,AC5:AE12,3) -> 58.42069456 | AK23: 3.651393701 | AL23: 27.38680301 | AM23: 0 | AN23: 4 | AO23: =VLOOKUP(AM23,AC5:AE12,2) -> 18.49813999 | AP23: =VLOOKUP(AN23,AC5:AE12,3) -> 0.2031745697 | AQ23: 0.03758351633 | AR23: 2660.740925 | AZ23: ТМ2.5 | BA23: =SUM(BH32+BH30+BN30+BN32+BT5+BT6) ->  | BD23: 4 | BE23: 0 | BF23: =VLOOKUP(BD23,AZ5:BB12,2) ->  | BG23: =VLOOKUP(BE23,AZ5:BB12,3) ->  | BJ23: 0 | BK23: 4 | BL23: =VLOOKUP(BJ23,AZ5:BB12,2) ->  | BM23: =VLOOKUP(BK23,AZ5:BB12,3) -> 
D24: Заб | E24: Проп | F24: Набр | G24: Потер | J24: Тотал | K24: Заб | L24: Проп | M24: ЗабО | N24: ЗабДГ | O24: ПропО | P24: ПропДГ | Q24: Атака | R24: Оборона | T24: X | U24: =(M5/K5+T6/R6)/(L5/K5+M5/K5+S6/R6+T6/R6) -> 0.25 | V24: =(F5/D5+F6/D6)/(E5/D5+F5/D5+E6/D6+F6/D6) -> 0.1111111111 | W24: =AVERAGE(U24,V24) -> 0.1805555556 | AC24: ТБ3.5 | AD24: =100-AD25 -> 18.55856405 | AE24: 5.38834792 | AG24: 4 | AH24: 1 | AI24: =VLOOKUP(AG24,AC5:AE12,2) -> 6.250171671 | AJ24: =VLOOKUP(AH24,AC5:AE12,3) -> 31.40112333 | AK24: 1.962624114 | AL24: 50.95219164 | AM24: 1 | AN24: 4 | AO24: =VLOOKUP(AM24,AC5:AE12,2) -> 31.21561123 | AP24: =VLOOKUP(AN24,AC5:AE12,3) -> 0.2031745697 | AQ24: 0.0634221838 | AR24: 1576.735363 | AZ24: ТБ3.5 | BA24: =100-BA25 ->  | BD24: 4 | BE24: 1 | BF24: =VLOOKUP(BD24,AZ5:BB12,2) ->  | BG24: =VLOOKUP(BE24,AZ5:BB12,3) ->  | BJ24: 1 | BK24: 4 | BL24: =VLOOKUP(BJ24,AZ5:BB12,2) ->  | BM24: =VLOOKUP(BK24,AZ5:BB12,3) -> 
C25: Хозяева | D25: =Дома!Z6*1.5+Дома!AG6*2 -> 10.5 | E25: =Дома!AA6*1.5+Дома!AH6 -> 6.5 | F25: =D25/5 -> 2.1 | G25: =E25/5 -> 1.3 | I25: Хозяева | J25: =SUM(ДомаДома!L2:M6)/5 -> 1.6 | K25: =SUM(ДомаДома!L2:L6)/5 -> 1 | L25: =SUM(ДомаДома!M2:M6)/5 -> 0.6 | M25: =(SUM(Дома!L2:L11)/10) -> 1.1 | N25: =(SUM(ДомаДома!L2:L11)/10) -> 1.3 | O25: =(SUM(Дома!M2:M11)/10) -> 0.9 | P25: =(SUM(ДомаДома!M2:M11)/10) -> 0.8 | Q25: =((M25+N25)/2)/((O26+P26)/2) -> 0.7272727273 | R25: =((O25+P25)/2)/((M26+N26)/2) -> 0.85 | T25: 2 | U25: =S6/R6/(L5/K5+M5/K5+S6/R6+T6/R6) -> 0 | V25: =E6/D6/(E5/D5+F5/D5+E6/D6+F6/D6) -> 0.3333333333 | W25: =AVERAGE(U25,V25) -> 0.1666666667 | AC25: ТМ3.5 | AD25: =SUM(AK32+AK31+AK30+AK27+AQ32+AQ31+AQ30+AQ27+AW5+AW6) -> 81.44143595 | AE25: 1.227876189 | AG25: 4 | AH25: 2 | AI25: =VLOOKUP(AG25,AC5:AE12,2) -> 6.250171671 | AJ25: =VLOOKUP(AH25,AC5:AE12,3) -> 8.439051894 | AK25: 0.5274552308 | AL25: 189.5895503 | AM25: 2 | AN25: 4 | AO25: =VLOOKUP(AM25,AC5:AE12,2) -> 26.33817198 | AP25: =VLOOKUP(AN25,AC5:AE12,3) -> 0.2031745697 | AQ25: 0.05351246758 | AR25: 1868.723393 | AZ25: ТМ3.5 | BA25: =SUM(BH32+BH31+BH30+BH27+BN32+BN31+BN30+BN27+BT5+BT6) ->  | BD25: 4 | BE25: 2 | BF25: =VLOOKUP(BD25,AZ5:BB12,2) ->  | BG25: =VLOOKUP(BE25,AZ5:BB12,3) ->  | BJ25: 2 | BK25: 4 | BL25: =VLOOKUP(BJ25,AZ5:BB12,2) ->  | BM25: =VLOOKUP(BK25,AZ5:BB12,3) -> 
C26: Гости | D26: =Гости!Z6*1.5+Гости!AG6*2 -> 9 | E26: =Гости!AA6*1.5+Гости!AH6 -> 9 | F26: =D26/5 -> 1.8 | G26: =E26/5 -> 1.8 | I26: Гости | J26: =SUM(ГостиГости!L2:M6)/5 -> 3.2 | K26: =SUM(ГостиГости!L2:L6)/5 -> 1 | L26: =SUM(ГостиГости!M2:M6)/5 -> 2.2 | M26: =(SUM(Гости!L2:L11)/10) -> 0.9 | N26: =(SUM(ГостиГости!L2:L11)/10) -> 1.1 | O26: =(SUM(Гости!M2:M11)/10) -> 1.4 | P26: =(SUM(ГостиГости!M2:M11)/10) -> 1.9 | Q26: =((M26+N26)/2)/((O25+P25)/2) -> 1.176470588 | R26: =((O26+P26)/2)/((M25+N25)/2) -> 1.375 | W26: =IF(AND(W23-W25>0.27,F12>F13),"П1",IF(AND(W23>W25,F12>=F13),"1Х",IF(AND(W25-W23>0.12,F13>0),"П2",IF(AND(W25>W23,F13>=F12),"Х2","")))) -> 1Х | AC26: К1 Заб | AD26: =100-AD27 -> 81.50186199 | AE26: 1.226965833 | AG26: 4 | AH26: 3 | AI26: =VLOOKUP(AG26,AC5:AE12,2) -> 6.250171671 | AJ26: =VLOOKUP(AH26,AC5:AE12,3) -> 1.511996798 | AK26: 0.09450239551 | AL26: 1058.174234 | AM26: 3 | AN26: 4 | AO26: =VLOOKUP(AM26,AC5:AE12,2) -> 14.81522174 | AP26: =VLOOKUP(AN26,AC5:AE12,3) -> 0.2031745697 | AQ26: 0.03010076301 | AR26: 3322.174921 | AZ26: К1 Заб | BA26: =100-BA27 ->  | BD26: 4 | BE26: 3 | BF26: =VLOOKUP(BD26,AZ5:BB12,2) ->  | BG26: =VLOOKUP(BE26,AZ5:BB12,3) ->  | BJ26: 3 | BK26: 4 | BL26: =VLOOKUP(BJ26,AZ5:BB12,2) ->  | BM26: =VLOOKUP(BK26,AZ5:BB12,3) -> 
C27: =((F25+G26)/2+(F26+G25)/2)/2 -> 1.75 | AC27: К1 НЗ | AD27: =SUM(AQ32+AQ30+AQ27+AQ23+AQ18+AQ12+AQ5+AW5) -> 18.49813801 | AE27: 5.405949505 | AG27: 3 | AH27: 0 | AI27: =VLOOKUP(AG27,AC5:AE12,2) -> 14.81522174 | AJ27: =VLOOKUP(AH27,AC5:AE12,3) -> 58.42069456 | AK27: 8.65515544 | AL27: 11.55380752 | AM27: 0 | AN27: 3 | AO27: =VLOOKUP(AM27,AC5:AE12,2) -> 18.49813999 | AP27: =VLOOKUP(AN27,AC5:AE12,3) -> 1.511996798 | AQ27: 0.2796912843 | AR27: 357.5370618 | AZ27: К1 НЗ | BA27: =SUM(BN32+BN30+BN27+BN23+BN18+BN12+BN5+BT5) ->  | BD27: 3 | BE27: 0 | BF27: =VLOOKUP(BD27,AZ5:BB12,2) ->  | BG27: =VLOOKUP(BE27,AZ5:BB12,3) ->  | BJ27: 0 | BK27: 3 | BL27: =VLOOKUP(BJ27,AZ5:BB12,2) ->  | BM27: =VLOOKUP(BK27,AZ5:BB12,3) -> 
C28: =IF(C27>2.25,"ТБ 2,5","Нет ставки") -> Нет ставки | AC28: К2 Заб | AD28: =100-AD29 -> 41.60089192 | AE28: 2.403794616 | AG28: 3 | AH28: 1 | AI28: =VLOOKUP(AG28,AC5:AE12,2) -> 14.81522174 | AJ28: =VLOOKUP(AH28,AC5:AE12,3) -> 31.40112333 | AK28: 4.652146049 | AL28: 21.49545585 | AM28: 1 | AN28: 3 | AO28: =VLOOKUP(AM28,AC5:AE12,2) -> 31.21561123 | AP28: =VLOOKUP(AN28,AC5:AE12,3) -> 1.511996798 | AQ28: 0.4719790422 | AR28: 211.8738144 | AZ28: К2 Заб | BA28: =100-BA29 ->  | BD28: 3 | BE28: 1 | BF28: =VLOOKUP(BD28,AZ5:BB12,2) ->  | BG28: =VLOOKUP(BE28,AZ5:BB12,3) ->  | BJ28: 1 | BK28: 3 | BL28: =VLOOKUP(BJ28,AZ5:BB12,2) ->  | BM28: =VLOOKUP(BK28,AZ5:BB12,3) -> 
AC29: К2 НЗ | AD29: =SUM(AK32+AK30+AK27+AK23+AK18+AK12+AK5+AW5) -> 58.39910808 | AE29: 1.712354919 | AG29: 3 | AH29: 2 | AI29: =VLOOKUP(AG29,AC5:AE12,2) -> 14.81522174 | AJ29: =VLOOKUP(AH29,AC5:AE12,3) -> 8.439051894 | AK29: 1.250264251 | AL29: 79.98309153 | AM29: 2 | AN29: 3 | AO29: =VLOOKUP(AM29,AC5:AE12,2) -> 26.33817198 | AP29: =VLOOKUP(AN29,AC5:AE12,3) -> 1.511996798 | AQ29: 0.3982323169 | AR29: 251.109706 | AZ29: К2 НЗ | BA29: =SUM(BH32+BH30+BH27+BH23+BH18+BH12+BH5+BT5) ->  | BD29: 3 | BE29: 2 | BF29: =VLOOKUP(BD29,AZ5:BB12,2) ->  | BG29: =VLOOKUP(BE29,AZ5:BB12,3) ->  | BJ29: 2 | BK29: 3 | BL29: =VLOOKUP(BJ29,AZ5:BB12,2) ->  | BM29: =VLOOKUP(BK29,AZ5:BB12,3) -> 
C30: 1Х2 | G30: =IF(E34=G34,"Х",IF(E34>G34,LOOKUP(MAX(E34:G34)-MIN(E34:G34),{0;0.2;0.4},{"1Х";"П1";"П1"}),LOOKUP(MAX(E34:G34)-MIN(E34:G35),{0;0.2;0.4},{"Х2";"П2";"П2"}))) -> П1 | H30: Тотал | L30: Обе забьют | Q30: Очные всречи (5 матчей) | AC30: ОЗ | AD30: =100-AD31 -> 33.90949578 | AE30: 2.949026452 | AG30: 2 | AH30: 0 | AI30: =VLOOKUP(AG30,AC5:AE12,2) -> 26.33817198 | AJ30: =VLOOKUP(AH30,AC5:AE12,3) -> 58.42069456 | AK30: 15.386943 | AL30: 6.499016729 | AM30: 0 | AN30: 2 | AO30: =VLOOKUP(AM30,AC5:AE12,2) -> 18.49813999 | AP30: =VLOOKUP(AN30,AC5:AE12,3) -> 8.439051894 | AQ30: 1.561067633 | AR30: 64.05872357 | AZ30: ОЗ | BA30: =100-BA31 ->  | BD30: 2 | BE30: 0 | BF30: =VLOOKUP(BD30,AZ5:BB12,2) ->  | BG30: =VLOOKUP(BE30,AZ5:BB12,3) ->  | BJ30: 0 | BK30: 2 | BL30: =VLOOKUP(BJ30,AZ5:BB12,2) ->  | BM30: =VLOOKUP(BK30,AZ5:BB12,3) -> 
E31: маржа(%): | G31: =(E35+F35+G35)-1 -> 0.1008275261 | H31: маржа(%): | K31: =(J35+K35)-1 -> 0.06029106029 | L31: маржа(%): | O31: =(N35+O35)-1 -> 0.08333333333 | Q31: команды | R31: В | S31: Н | T31: П | U31: Забито | V31: Пропущено | W31: итог | X31: очки | AC31: ОНЗ | AD31: =SUM(AK32+AK30+AK27+AK23+AK18+AK12+AK5+AQ5+AQ12+AQ18+AQ23+AQ27+AQ30+AQ32+AW5) -> 66.09050422 | AE31: 1.513076669 | AG31: 2 | AH31: 1 | AI31: =VLOOKUP(AG31,AC5:AE12,2) -> 26.33817198 | AJ31: =VLOOKUP(AH31,AC5:AE12,3) -> 31.40112333 | AK31: 8.270481865 | AL31: 12.09119391 | AM31: 1 | AN31: 2 | AO31: =VLOOKUP(AM31,AC5:AE12,2) -> 31.21561123 | AP31: =VLOOKUP(AN31,AC5:AE13,3) -> 8.439051894 | AQ31: 2.634301631 | AR31: 37.96072508 | AZ31: ОНЗ | BA31: =SUM(BH32+BH30+BH27+BH23+BH18+BH12+BH5+BN5+BN12+BN18+BN23+BN27+BN30+BN32+BT5) ->  | BD31: 2 | BE31: 1 | BF31: =VLOOKUP(BD31,AZ5:BB12,2) ->  | BG31: =VLOOKUP(BE31,AZ5:BB12,3) ->  | BJ31: 1 | BK31: 2 | BL31: =VLOOKUP(BJ31,AZ5:BB12,2) ->  | BM31: =VLOOKUP(BK31,AZ5:BB13,3) -> 
C32: Линия: | E32: П1 | F32: Х | G32: П2 | H32: Линия: | J32: ТБ 2,5 | K32: ТМ 2,5 | L32: Линия: | N32: ОЗ-да | O32: ОЗ-нет | Q32: 1К | R32: =Очные!J6 ->  | S32: =Очные!K6 ->  | T32: =Очные!L6 ->  | U32: =Очные!H6 ->  | V32: =Очные!I6 ->  | W32: =U32/V32 ->  | X32: =R32*3+S32 ->  | AG32: 1 | AH32: 0 | AI32: =VLOOKUP(AG32,AC5:AE12,2) -> 31.21561123 | AJ32: =VLOOKUP(AH32,AC5:AE12,3) -> 58.42069456 | AK32: 18.23637689 | AL32: 5.483545365 | AM32: 0 | AN32: 1 | AO32: =VLOOKUP(AM32,AC5:AE12,2) -> 18.49813999 | AP32: =VLOOKUP(AN32,AC5:AE12,3) -> 31.40112333 | AQ32: 5.808623752 | AR32: 17.21578196 | AZ32: ТБ0.5 | BA32: =100-BA33 ->  | BB32: =100/BA32 ->  | BD32: 1 | BE32: 0 | BF32: =VLOOKUP(BD32,AZ5:BB12,2) ->  | BG32: =VLOOKUP(BE32,AZ5:BB12,3) ->  | BJ32: 0 | BK32: 1 | BL32: =VLOOKUP(BJ32,AZ5:BB12,2) ->  | BM32: =VLOOKUP(BK32,AZ5:BB12,3) -> 
C33: Коэф-ы бук-ов: | E33: =Коэффициенты!B2 -> 1.64 | F33: =Коэффициенты!B3 -> 3.2 | G33: =Коэффициенты!B4 -> 5.6 | H33: Коэф-ы бук-ов: | J33: =Коэффициенты!B5 -> 2.6 | K33: =Коэффициенты!B6 -> 1.48 | L33: Коэф-ы бук-ов: | N33: =Коэффициенты!B7 -> 2.4 | O33: =Коэффициенты!B8 -> 1.5 | Q33: 2К | R33: =Очные!P6 ->  | S33: =Очные!Q6 ->  | T33: =Очные!R6 ->  | U33: =Очные!N6 ->  | V33: =Очные!O6 ->  | W33: =U33/V33 ->  | X33: =R33*3+S33 ->  | AZ33: ТМ0.5 | BA33: =SUM(BT5) -> 
C34: Вероятность (%): | E34: =E35/(1+G31) -> 0.5539070227 | F34: =F35/(1+G31) -> 0.2838773492 | G34: =G35/(1+G31) -> 0.1622156281 | H34: Вероятность (%): | J34: =J35/(1+K31) -> 0.362745098 | K34: =K35/(1+K31) -> 0.637254902 | L34: Вероятность (%): | N34: =N35/(1+O31) -> 0.3846153846 | O34: =O35/(1+O31) -> 0.6153846154 | AZ34: ТБ4.5 | BA34: =100-BA35 -> 
C35: Вер. с маржой (%): | E35: =1/E33 -> 0.6097560976 | F35: =1/F33 -> 0.3125 | G35: =1/G33 -> 0.1785714286 | H35: Вер. с маржой (%): | J35: =1/J33 -> 0.3846153846 | K35: =1/K33 -> 0.6756756757 | L35: Вер. с маржой (%): | N35: =1/N33 -> 0.4166666667 | O35: =1/O33 -> 0.6666666667 | AZ35: ТМ4.5 | BA35: =SUM(BH32+BH31+BH30+BH28+BH27+BN32+BN31+BN30+BN28+BN27+BT5+BT6+BT7) -> 
C38: Тест №1 Анализ 10 игр команд дома и в гостях | K38: Последние три игры команд между собой | T38: Первая | X38: Вторая | AD38: =AVERAGE(W32,AN41) ->  | AE38: Вероятность голов | AK38: =AVERAGE(W33,AN42) ->  | AL38: Расчет ТС и Тотал от #YMA
C39: К1 | D39: К2 | E39: К1 | F39: К2 | G39: К1 | H39: К2 | K39: Команда дома | L39: Счёт | M39: Счёт | N39: Очки | O39: Команда победитель | P39: Команда в гостях | T39: Игра | U39: Дома | V39: Гости | W39: Очки | X39: Игра | Y39: Дома | Z39: Гости | AA39: Очки | AD39: Забьют хозяева | AE39: 1 | AF39: Вероятность | AG39: =_xlfn.POISSON.DIST(AE39,AD38,FALSE) ->  | AH39: Забьют гости | AI39: 1 | AJ39: Вероятность | AK39: =_xlfn.POISSON.DIST(AI39,AK38,FALSE) ->  | AL39: =O5 -> 5 | AM39: =P5 -> 3 | AN39: =K5 -> 5
C40: =IF(Дома!N2="П","Поражение",IF(Дома!N2="Н","Ничья","Победа")) -> Поражение | D40: =IF(Гости!N2="П","Поражение",IF(Гости!N2="Н","Ничья","Победа")) -> Поражение | E40: =IF(C40="Победа",2,IF(C40="Ничья",1,0)) -> 0 | F40: =IF(D40="Победа",2,IF(D40="Ничья",1,0)) -> 0 | G40: =IF(C40="Победа",1,0) -> 0 | H40: =IF(D40="Победа",1,0) -> 0 | K40: =IF(Очные!A1=Очные!C2,1,2) -> 2 | L40: =Очные!E2 -> 1 | M40: =Очные!F2 -> 1 | N40: =IF(L40>M40,3+(L40-M40),IF(L40=M40,1,IF(M40>L40,3+(M40-L40),0))) -> 1 | O40: =IF(L40>M40,K40,IF(M40>L40,P40,0)) -> 0 | P40: =IF(K40=2,1,2) -> 1 | T40: 1 игра | U40: =ДомаДома!L2 -> 1 | V40: =ДомаДома!M2 -> 0 | W40: =IF(U40>V40,2+(U40-V40),IF(U40=V40,1,0)) -> 3 | X40: 1 игра | Y40: =ГостиГости!M2 -> 3 | Z40: =ГостиГости!L2 -> 2 | AA40: =IF(Z40>Y40,2+(Z40-Y40),IF(Y40=Z40,1,0)) -> 0 | AE40: 2 | AG40: =_xlfn.POISSON.DIST(AE40,AD38,FALSE) ->  | AI40: 2 | AK40: =_xlfn.POISSON.DIST(AI40,AK38,FALSE) ->  | AL40: =V6 -> 5 | AM40: =W6 -> 11 | AN40: =R6 -> 5
C41: =IF(Дома!N3="П","Поражение",IF(Дома!N3="Н","Ничья","Победа")) -> Победа | D41: =IF(Гости!N3="П","Поражение",IF(Гости!N3="Н","Ничья","Победа")) -> Поражение | E41: 2 | F41: 0 | G41: 1 | H41: 0 | K41: =IF(Очные!A1=Очные!C3,1,2) -> 2 | L41: =Очные!E3 -> 0 | M41: =Очные!F3 -> 0 | N41: =IF(L41>M41,3+(L41-M41),IF(L41=M41,0,IF(M41>L41,3+(M41-L41),0))) -> 0 | O41: =IF(L41>M41,K41,IF(M41>L41,P41,0)) -> 0 | P41: =IF(K41=2,1,2) -> 1 | T41: 2 игра | U41: =ДомаДома!L3 -> 2 | V41: =ДомаДома!M3 -> 1 | W41: =IF(U41>V41,2+(U41-V41),IF(U41=V41,1,0)) -> 3 | X41: 2 игра | Y41: =ГостиГости!M3 -> 2 | Z41: =ГостиГости!L3 -> 1 | AA41: =IF(Z41>Y41,2+(Z41-Y41),IF(Y41=Z41,1,0)) -> 0 | AE41: 3 | AG41: =_xlfn.POISSON.DIST(AE41,AD38,FALSE) ->  | AI41: 3 | AK41: =_xlfn.POISSON.DIST(AI41,AK38,FALSE) ->  | AL41: =AL39/AN39 -> 1 | AM41: =AM39/AN39 -> 0.6 | AN41: =AVERAGE(AL41,AM42) -> 1.6
C42: =IF(Дома!N4="П","Поражение",IF(Дома!N4="Н","Ничья","Победа")) -> Поражение | D42: =IF(Гости!N4="П","Поражение",IF(Гости!N4="Н","Ничья","Победа")) -> Поражение | E42: 0 | F42: 0 | G42: 0 | H42: 0 | K42: =IF(Очные!A1=Очные!C4,1,2) -> 2 | L42: =Очные!E4 -> 0 | M42: =Очные!F4 -> 0 | N42: =IF(L42>M42,3+(L42-M42),IF(L42=M42,0,IF(M42>L42,3+(M42-L42),0))) -> 0 | O42: =IF(L42>M42,K42,IF(M42>L42,P42,0)) -> 0 | P42: =IF(K42=2,1,2) -> 1 | V42: Итог: | W42: =W40+W41 -> 6 | Z42: Итог: | AA42: =AA40+AA41 -> 0 | AE42: 4 | AG42: =_xlfn.POISSON.DIST(AE42,AD38,FALSE) ->  | AI42: 4 | AK42: =_xlfn.POISSON.DIST(AI42,AK38,FALSE) ->  | AL42: =AL40/AN40 -> 1 | AM42: =AM40/AN40 -> 2.2 | AN42: =AVERAGE(AL42,AM41) -> 0.8
C43: =IF(Дома!N5="П","Поражение",IF(Дома!N5="Н","Ничья","Победа")) -> Победа | D43: =IF(Гости!N5="П","Поражение",IF(Гости!N5="Н","Ничья","Победа")) -> Победа | E43: 2 | F43: 2 | G43: 1 | H43: 1 | L43: П1 | M43: Команды | N43: 1 | O43: 2 | P43: =IF(N46>O46,1,IF(N46=O46,0,2)) -> 1 | T43: 5 игра | U43: =ДомаДома!L6 -> 0 | V43: =ДомаДома!M6 -> 0 | W43: =IF(U43>V43,2+(U43-V43),IF(U43=V43,1,0)) -> 1 | X43: 5 игра | Y43: =ГостиГости!M6 -> 2 | Z43: =ГостиГости!L6 -> 1 | AA43: =IF(Z43>Y43,2+(Z43-Y43),IF(Y43=Z43,1,0)) -> 0 | AE43: 5 | AG43: =_xlfn.POISSON.DIST(AE43,AD38,FALSE) ->  | AI43: 5 | AK43: =_xlfn.POISSON.DIST(AI43,AK38,FALSE) ->  | AL43: =ROUND(AN41,0) -> 2 | AM43: =ROUND(AN42,0) -> 1 | AN43: =AN41+AN42 -> 2.4
C44: =IF(Дома!N6="П","Поражение",IF(Дома!N6="Н","Ничья","Победа")) -> Победа | D44: =IF(Гости!N6="П","Поражение",IF(Гости!N6="Н","Ничья","Победа")) -> Поражение | E44: 2 | F44: 0 | G44: 1 | H44: 0 | L44: П2 | M44: Очки | N44: =G61+IF(O40=1,N40,0)+IF(O41=1,N41,0)+IF(O42=1,N42,0) -> 7 | O44: =K61+IF(O40=2,N40,0)+IF(O41=2,N41,0)+IF(O42=2,N42,0) -> 0 | P44: =IF(P46=1,1,2)+IF(P47>0,99,0) -> 101 | T44: 6 игра | U44: =ДомаДома!L7 -> 3 | V44: =ДомаДома!M7 -> 0 | W44: =IF(U44>V44,2+(U44-V44),IF(U44=V44,1,0)) -> 5 | X44: 6 игра | Y44: =ГостиГости!M7 -> 2 | Z44: =ГостиГости!L7 -> 2 | AA44: =IF(Z44>Y44,2+(Z44-Y44),IF(Y44=Z44,1,0)) -> 1 | AE44: 0 | AG44: =_xlfn.POISSON.DIST(AE44,AD38,FALSE) ->  | AI44: 0 | AK44: =_xlfn.POISSON.DIST(AI44,AK38,FALSE) ->  | AL44: Ставка тотал | AN44: =IF(AN43>3,"ТБ 2,5",IF(AN43>2,"ТБ 1,5","ТМ 2,5")) -> ТБ 1,5
C45: =IF(Дома!N7="П","Поражение",IF(Дома!N7="Н","Ничья","Победа")) -> Поражение | D45: =IF(Гости!N7="П","Поражение",IF(Гости!N7="Н","Ничья","Победа")) -> Победа | E45: 0 | F45: 2 | G45: 0 | H45: 1 | L45: П1 | M45: Доп. Очки | N45: =IF(P50=1,1,0) -> 1 | V45: Итог: | W45: =SUM(W43:W44) -> 6 | Z45: Итог: | AA45: =AA43+AA44 -> 1 | AD45: 0.25 | AF45: Прогноз на матч | AK45: 0.35
C46: =IF(Дома!N8="П","Поражение",IF(Дома!N8="Н","Ничья","Победа")) -> Победа | D46: =IF(Гости!N8="П","Поражение",IF(Гости!N8="Н","Ничья","Победа")) -> Поражение | E46: 2 | F46: 0 | G46: 1 | H46: 0 | L46: П2 | M46: Итоговые: | N46: =SUM(N44,N45) -> 8 | O46: =SUM(O44,O45) -> 0 | T46: Сколько побед 10 игр: | W46: =E5 -> 5 | X46: Сколько побед за 10 игр: | AA46: =E6 -> 3 | AE46: =IF(AF46>0,1,0) -> 0 | AF46: =SUMIFS(AE39:AE44,AG39:AG44,">25%") -> 0 | AG46: =SUMIFS(AI39:AI44,AK39:AK44,">35%") -> 0 | AH46: =IF(AG46>0,1,0) -> 0 | AJ46: Обе забьют? | AM46: =IF(AE46+AH46=2,"Да","Нет") -> Нет
C47: =IF(Дома!N9="П","Поражение",IF(Дома!N9="Н","Ничья","Победа")) -> Победа | D47: =IF(Гости!N9="П","Поражение",IF(Гости!N9="Н","Ничья","Победа")) -> Поражение | E47: 2 | F47: 0 | G47: 1 | H47: 0 | L47: 1Х | M47: ИТОГОВЫЙ ВЫВОД: | O47: =IF(P43=1,M51,IF(P44=1,"X1",IF(P44=2,"2X",O51))) -> П1 | P47: =IF(P43=1,N46-O46,IF(P43=2,O46-N46,0)) -> 8 | T47: СОПЕРНИЧЕСТВО КОМАНД МЕЖДУ СОБОЙ | Z47: ИСХОД: | AF47: =IF(AF46>0,"Гол!","Нет") -> Нет | AG47: =IF(AG46>0,"Гол!","Нет") -> Нет
C48: =IF(Дома!N10="П","Поражение",IF(Дома!N10="Н","Ничья","Победа")) -> Поражение | D48: =IF(Гости!N10="П","Поражение",IF(Гости!N10="Н","Ничья","Победа")) -> Поражение | E48: 0 | F48: 0 | G48: 0 | H48: 0 | L48: Х2 | T48: Дома | U48: Счёт | V48: Счёт | W48: Очки | X48: Победа | Y48: Гости
C49: =IF(Дома!N11="П","Поражение",IF(Дома!N11="Н","Ничья","Победа")) -> Ничья | D49: =IF(Гости!N11="П","Поражение",IF(Гости!N11="Н","Ничья","Победа")) -> Победа | E49: 1 | F49: 2 | G49: 0 | H49: 1 | L49: Х1 | M49: Для команды 1 | O49: Для команды 2 | T49: =K40 -> 2 | U49: 1 | V49: 1 | W49: =IF(U49>V49,3+(U49-V49),IF(U49=V49,1,IF(V49>U49,3+(V49-U49),0))) -> 1 | X49: =IF(U49>V49,T49,IF(V49>U49,Y49,0)) -> 0 | Y49: =IF(T49=2,1,2) -> 1
C50: Среднее | E50: =SUM(E40:E49) -> 11 | F50: =SUM(F40:F49) -> 6 | G50: =SUM(G40:G49) -> 5 | H50: =SUM(H40:H49) -> 3 | L50: 2Х | M50: =IF(P43=1,P47,P49) -> 8 | O50: =IF(P43=2,P47,P48) -> 0 | P50: =IF(P52=P51,1,0) -> 1 | T50: 2 | U50: 0 | V50: 0 | W50: =IF(U50>V50,3+(U50-V50),IF(U50=V50,0,IF(V50>U50,3+(V50-U50),0))) -> 0 | X50: =IF(U50>V50,T50,IF(V50>U50,Y50,0)) -> 0 | Y50: =IF(T50=2,1,2) -> 1 | Z50: =IF(X57=1,AA56,AA55) -> П1 | AD50: ЗабитоДома | AE50: =Дома!Z16 -> 10 | AF50: ЗабитоГости | AG50: =Гости!AG16 -> 8 | AJ50: Оригинал | AK50: Дома Все игры | AN50: Гости все игры | AQ50: ДомаДома | AT50: ГостиГости
C51: Команда | D51: Очки | E51: Значение | F51: Число | G51: ИТОГ | H51: =IF(G52>G53,C52,IF(G52<G53,C53,"Х")) -> П1 | L51: Ф1 (+1) | M51: =IF(M50>12,"П1",IF(M50>7,"П1",IF(M50>4,"1X",IF(M50>0,"Ф1 (+1)",P45)))) -> П1 | O51: =IF(O50>13,"П2",IF(O50>7,"П2",IF(O50>4,"X2",IF(O50>0,"Ф2 (+1)","")))) ->  | P51: =IF(O40=0,1,0) -> 1 | T51: 2 | U51: 0 | V51: 0 | W51: =IF(U51>V51,3+(U51-V51),IF(U51=V51,0,IF(V51>U51,3+(V51-U51),0))) -> 0 | X51: =IF(U51>V51,T51,IF(V51>U51,Y51,0)) -> 0 | Y51: =IF(T51=2,1,2) -> 1 | AD51: ПропДома | AE51: =Дома!AA16 -> 6 | AF51: ПропГости | AG51: =Гости!AH16 -> 16 | AK51: Игр | AL51: Заб | AM51: Проп | AN51: Игр | AO51: Заб | AP51: Проп | AQ51: Игр | AR51: Заб | AS51: Проп | AT51: Игр | AU51: Заб | AV51: Проп
C52: П1 | D52: =E50 -> 11 | E52: =IF(D52>18,4,IF(D52>15,3,IF(D52>10,2,IF(D52>5,1,0)))) -> 2 | F52: =IF(G50>=9,3,IF(G50>=6,2,IF(G50>=4,1,0))) -> 1 | G52: =IF(D52>D53,1,0)+IF(E52>E53,1,0)+F52 -> 3 | L52: Ф2 (+1) | M52: 1 | N52: =IF(P47=0,P46,8) -> 8 | O52: 2 | P52: =IF(K40=O52,1,0) -> 1 | T52: Итоговые очки: | V52: Очки | W52: Динамика | X52: Итоговые очки | AD52: Всего игр | AE52: =Дома!O16 -> 15 | AF52: Всего игр | AG52: =Гости!O16 -> 15 | AK52: 0 | AL52: =Дома!L11 -> 0 | AM52: =Дома!M11 -> 0 | AN52: 0 | AO52: =Гости!L11 -> 1 | AP52: =Гости!M11 -> 0 | AQ52: 0 | AR52: =ДомаДома!L11 -> 1 | AS52: =ДомаДома!M11 -> 1 | AT52: 0 | AU52: =ГостиГости!L11 -> 1 | AV52: =ГостиГости!M11 -> 0
C53: П2 | D53: =F50 -> 6 | E53: =IF(D53>18,4,IF(D53>15,3,IF(D53>10,2,IF(D53>5,1,0)))) -> 1 | F53: =IF(H50>=9,3,IF(H50>=6,2,IF(H50>=4,1,0))) -> 0 | G53: =IF(D53>D52,1,0)+IF(E53>E52,1,0)+F53 -> 0 | T53: Команда 1 | V53: =W42+W45+IF(X49=1,W49,0)+IF(X50=1,W50,0)+IF(X51=1,W51,0) -> 12 | W53: =IF(W42>W45,2,IF(W42=W45,1,0)) -> 1 | X53: =IF(W53=2,V53+(V53*0.3),IF(W53=1,V53,IF(W53=0,V53-(V53*0.3),0)))+IF(W42>AA42,(V53*0.15),0)+V57 -> 13.8 | AD53: АЗД | AE53: =AE50/AE52 -> 0.6666666667 | AF53: БЗВ | AG53: =AG50/AG52 -> 0.5333333333 | AK53: 1 | AL53: =Дома!L10 -> 0 | AM53: =Дома!M10 -> 1 | AN53: 1 | AO53: =Гости!L10 -> 1 | AP53: =Гости!M10 -> 2 | AQ53: 1 | AR53: =ДомаДома!L10 -> 2 | AS53: =ДомаДома!M10 -> 1 | AT53: 1 | AU53: =ГостиГости!L10 -> 1 | AV53: =ГостиГости!M10 -> 2
T54: Команда 2 | V54: =AA42+AA45+IF(X49=2,W49,0)+IF(X50=2,W50,0)+IF(X51=2,W51,0) -> 1 | W54: =IF(AA42>AA45,2,IF(AA42=AA45,1,0)) -> 0 | X54: =IF(W54=2,V54+(V54*0.3),IF(W54=1,V54,IF(W54=0,V54-(V54*0.3),0)))+IF(AA42>W42,(V54*0.15),0)+W57 -> 0.5 | Z54: 1Х | AA54: ИТОГ | AD54: БПВ | AE54: =AG51/AG52 -> 1.066666667 | AF54: АПД | AG54: =AE51/AE52 -> 0.4 | AK54: 2 | AL54: =Дома!L9 -> 2 | AM54: =Дома!M9 -> 0 | AN54: 2 | AO54: =Гости!L9 -> 0 | AP54: =Гости!M9 -> 1 | AQ54: 2 | AR54: =ДомаДома!L9 -> 1 | AS54: =ДомаДома!M9 -> 0 | AT54: 2 | AU54: =ГостиГости!L9 -> 1 | AV54: =ГостиГости!M9 -> 1
D55: Последние 3 игры команды 1 ДОМА | H55: Последние 3 игры команды 2 в гостях | L55: Второй прогноз на Тоталы | Z55: Х2 | AA55: =IF(Y57<6,Z57,IF(Y57<10,Z55,T57)) -> П2 | AD55: А забьет | AE55: =(AE53+AE54)/2.5 -> 0.6933333333 | AF55: Б забьет | AG55: =(AG53+AG54)/2.5 -> 0.3733333333 | AK55: 3 | AL55: =Дома!L8 -> 3 | AM55: =Дома!M8 -> 0 | AN55: 3 | AO55: =Гости!L8 -> 1 | AP55: =Гости!M8 -> 3 | AQ55: 3 | AR55: =ДомаДома!L8 -> 1 | AS55: =ДомаДома!M8 -> 3 | AT55: 3 | AU55: =ГостиГости!L8 -> 1 | AV55: =ГостиГости!M8 -> 3
T56: П1 | U56: 2 | V56: 10BUH1 | W56: 10BUH2 | X56: КТО ПОБЕДИЛ | Y56: Разница | Z56: Ф1(+1) | AA56: =IF(Y57<6,Z56,IF(Y57<10,Z54,T56)) -> П1 | AD56: Примерный счет c округлением: | AK56: 4 | AL56: =Дома!L7 -> 0 | AM56: =Дома!M7 -> 2 | AN56: 4 | AO56: =Гости!L7 -> 1 | AP56: =Гости!M7 -> 0 | AQ56: 4 | AR56: =ДомаДома!L7 -> 3 | AS56: =ДомаДома!M7 -> 0 | AT56: 4 | AU56: =ГостиГости!L7 -> 2 | AV56: =ГостиГости!M7 -> 2
E57: КОМАНДА 1 | F57: гости | G57: Очки | I57: хозяева | J57: КОМАНДА 2 | K57: Очки | L57: Второй анализ. | N57: Команда 1 | O57: Команда 2 | P57: =N58*N59 -> 1.25 | T57: П2 | U57: 1 | V57: =IF(W46<=4,-(V53*0.2),IF(W46>=6,V53*0.1,IF(W46>=9,V53*0.2,0))) -> 0 | W57: =IF(AA46<=4,-(V54*0.2),IF(AA46>=6,V54*0.1,IF(AA46>=9,V54*0.2,0))) -> -0.2 | X57: =IF(X53>X54,1,IF(X53=X54,0,2)) -> 1 | Y57: =IF(X57=1,X53-X54,IF(X57=2,X54-X53,0)) -> 13.3 | Z57: Ф2(+1) | AD57: А забьет | AE57: =IF(AE55>0.5,1,0)+IF(AE55>0.7,1,0)+IF(AE55>0.9,1,0) -> 1 | AF57: Б забьет | AG57: =IF(AG55>0.5,1,0) + IF(AG55>0.7,1,0)+IF(AG55>0.9,1,0) -> 0 | AK57: 5 | AL57: =Дома!L6 -> 2 | AM57: =Дома!M6 -> 1 | AN57: 5 | AO57: =Гости!L6 -> 0 | AP57: =Гости!M6 -> 1 | AQ57: 5 | AR57: =ДомаДома!L6 -> 0 | AS57: =ДомаДома!M6 -> 0 | AT57: 5 | AU57: =ГостиГости!L6 -> 1 | AV57: =ГостиГости!M6 -> 2
D58: 1 игра | E58: =ДомаДома!L2 -> 1 | F58: =ДомаДома!M2 -> 0 | G58: =IF(E58>F58,2+(E58-F58),IF(E58=F58,1,0)) -> 3 | H58: 1 игра | I58: =ГостиГости!M2 -> 3 | J58: =ГостиГости!L2 -> 2 | K58: =IF(J58>I58,2+(J58-I58),IF(I58=J58,1,0)) -> 0 | L58: Забьёт в абстрактном матче | N58: =(E58+E59+E60+1+I58+I59+I60)/6 -> 1.666666667 | O58: =(J58+J59+J60+F58+F59+F60+1)/6 -> 1.166666667 | P58: =O58+O59 -> 1.595238095 | AK58: 6 | AL58: =Дома!L5 -> 2 | AM58: =Дома!M5 -> 1 | AN58: 6 | AO58: =Гости!L5 -> 1 | AP58: =Гости!M5 -> 0 | AQ58: 6 | AR58: =ДомаДома!L5 -> 2 | AS58: =ДомаДома!M5 -> 0 | AT58: 6 | AU58: =ГостиГости!L5 -> 1 | AV58: =ГостиГости!M5 -> 3
D59: 2 игра | E59: =ДомаДома!L3 -> 2 | F59: =ДомаДома!M3 -> 1 | G59: =IF(E59>F59,2+(E59-F59),IF(E59=F59,1,0)) -> 3 | H59: 2 игра | I59: =ГостиГости!M3 -> 2 | J59: =ГостиГости!L3 -> 1 | K59: =IF(J59>I59,2+(J59-I59),IF(I59=J59,1,0)) -> 0 | L59: Забьёт/пропустит в конкретном | N59: =(E58+E59+E60)/(F58+F59+F60+1) -> 0.75 | O59: =(J58+J59+J60)/(I58+I59+I60+1) -> 0.4285714286 | P59: =P57/P58 -> 0.7835820896 | AK59: 7 | AL59: =Дома!L4 -> 1 | AM59: =Дома!M4 -> 2 | AN59: 7 | AO59: =Гости!L4 -> 1 | AP59: =Гости!M4 -> 2 | AQ59: 7 | AR59: =ДомаДома!L4 -> 0 | AS59: =ДомаДома!M4 -> 2 | AT59: 7 | AU59: =ГостиГости!L4 -> 0 | AV59: =ГостиГости!M4 -> 1
D60: 3 игра | E60: =ДомаДома!L4 -> 0 | F60: =ДомаДома!M4 -> 2 | G60: =IF(E60>F60,2+(E60-F60),IF(E60=F60,1,0)) -> 0 | H60: 3 игра | I60: =ГостиГости!M4 -> 1 | J60: =ГостиГости!L4 -> 0 | K60: =IF(J60>I60,2+(J60-I60),IF(I60=J60,1,0)) -> 0 | L60: Забьёт в этом матче | N60: =P59 -> 0.7835820896 | O60: =P60 -> 1.276190476 | P60: =P58/P57 -> 1.276190476 | T60: Команда 1 | V60: ввод данных | Y60: Команда 2 | AA60: ввод данных | AK60: 8 | AL60: =Дома!L3 -> 1 | AM60: =Дома!M3 -> 0 | AN60: 8 | AO60: =Гости!L3 -> 1 | AP60: =Гости!M3 -> 2 | AQ60: 8 | AR60: =ДомаДома!L3 -> 2 | AS60: =ДомаДома!M3 -> 1 | AT60: 8 | AU60: =ГостиГости!L3 -> 1 | AV60: =ГостиГости!M3 -> 2
F61: Итого: | G61: =SUM(G58,G59,G60) +1 -> 7 | J61: Итого: | K61: =SUM(K58,K59,K60) -> 0 | L61: Счет матча | N61: =N58+N59+N60 -> 3.200248756 | O61: =O58+O59+O60 -> 2.871428571 | T61: Место в ТТ | V61: =E14 ->  | W61: из | X61: =H14 -> 0 | Y61: Место в ТТ | AA61: =K14 ->  | AB61: из | AC61: =H14 -> 0 | AK61: 9 | AL61: =Дома!L2 -> 0 | AM61: =Дома!M2 -> 2 | AN61: 9 | AO61: =Гости!L2 -> 2 | AP61: =Гости!M2 -> 3 | AQ61: 9 | AR61: =ДомаДома!L2 -> 1 | AS61: =ДомаДома!M2 -> 0 | AT61: 9 | AU61: =ГостиГости!L2 -> 2 | AV61: =ГостиГости!M2 -> 3
T62: Сколько мячей забито | V62: =OFFSET(#REF!,MATCH(Расчеты!F14,#REF!:#REF!,0),5) ->  | Y62: Сколько мячей забито | AA62: =OFFSET(#REF!,MATCH(I14,#REF!:#REF!,0),5) ->  | AJ62: 5из5 | AK62: 5 | AL62: =TREND(AL52:AL56,AK52:AK56,AK62) -> 1.9 | AM62: =TREND(AM52:AM56,AK52:AK56,AK62) -> 1.5 | AN62: 5 | AO62: =TREND(AO52:AO56,AN52:AN56,AN62) -> 0.8 | AP62: =TREND(AP52:AP56,AN52:AN56,AN62) -> 1.5 | AQ62: 5 | AR62: =TREND(AR52:AR56,AQ52:AQ56,AQ62) -> 2.5 | AS62: =TREND(AS52:AS56,AQ52:AQ56,AQ62) -> 1 | AT62: 5 | AU62: =TREND(AU52:AU56,AT52:AT56,AT62) -> 1.8 | AV62: =TREND(AV52:AV56,AT52:AT56,AT62) -> 3.1
T63: Забито за 3 игры дома | V63: =ДомаДома!S4 -> 3 | Y63: Забито за 3 игры в гостях | AA63: =ГостиГости!S4 -> 3 | AJ63: 5из10 | AK63: 5 | AL63: =TREND(AL52:AL61,AK52:AK61,AK63) -> 1.103030303 | AM63: =TREND(AM52:AM61,AK52:AK61,AK63) -> 0.9696969697 | AN63: 5 | AO63: =TREND(AO52:AO61,AN52:AN61,AN63) -> 0.9393939394 | AP63: =TREND(AP52:AP61,AN52:AN61,AN63) -> 1.472727273 | AQ63: 5 | AR63: =TREND(AR52:AR61,AQ52:AQ61,AQ63) -> 1.284848485 | AS63: =TREND(AS52:AS61,AQ52:AQ61,AQ63) -> 0.7757575758 | AT63: 5 | AU63: =TREND(AU52:AU61,AT52:AT61,AT63) -> 1.109090909 | AV63: =TREND(AV52:AV61,AT52:AT61,AT63) -> 1.981818182
C64: Тест №3 Общая теория | I64: Победа 1 | J64: Ничья | K64: Победа 2 | M64: ПРОГНОЗЫ НА ТОТАЛЫ | T64: Игр сыграно за сезон | V64: =OFFSET(#REF!,MATCH(Расчеты!F14,#REF!:#REF!,0),1) ->  | Y64: Игр сыграно за сезон | AA64: =OFFSET(#REF!,MATCH(I14,#REF!:#REF!,0),1) ->  | AJ64: 10из10 | AK64: 10 | AL64: =TREND(AL52:AL61,AK52:AK61,AK64) -> 1.133333333 | AM64: =TREND(AM52:AM61,AK52:AK61,AK64) -> 1.666666667 | AN64: 10 | AO64: =TREND(AO52:AO61,AN52:AN61,AN64) -> 1.333333333 | AP64: =TREND(AP52:AP61,AN52:AN61,AN64) -> 2.2 | AQ64: 10 | AR64: =TREND(AR52:AR61,AQ52:AQ61,AQ64) -> 1.133333333 | AS64: =TREND(AS52:AS61,AQ52:AQ61,AQ64) -> 0.5333333333 | AT64: 10 | AU64: =TREND(AU52:AU61,AT52:AT61,AT64) -> 1.2 | AV64: =TREND(AV52:AV61,AT52:AT61,AT64) -> 2.8
I65: =(E68+E67+E69)/13 -> 0.4615384615 | K65: =(H67+H68+H69)/13 -> 0.3076923077 | N65: Шансы => | O65: Забьёт | P65: Пропустит | Q65: примерный счёт | T65: Вероятный исход в процентах | Y65: РАСЧЁТ ДАННЫХ | AA65: Очки | AK65: Дома | AL65: Гости | AM65: Тотал | AN65: Дельта | AO65: К1 Заб | AP65: 2К Заб | AQ65: ОЗ | AR65: Тотал1 | AS65: Тотал2 | AT65: 1X2 | AU65: ОНЗ | AV65: Чет/нечет
C66: Расчёт команды 1 | E66: Число | F66: Расчёт команды 2 | H66: Число | I66: =(1+1-1)/3 -> 0.3333333333 | K66: =(1+1-1)/3 -> 0.3333333333 | M66: Команда 1 | O66: =P80 -> 0 | P66: =P79 -> 1 | Q66: =O78 -> 0 | T66: П1 | U66: Ничья | V66: П2 | W66: ТМ 2,5 | X66: ТБ2,5 | Y66: Команда1 | AA66: =T68+T70+IF(V62>AA62,T71,0) ->  | AJ66: 5_5 | AK66: =AVERAGE(AL62,AP62) -> 1.7 | AL66: =AVERAGE(AM62,AP62) -> 1.5 | AM66: =AK66+AL66 -> 3.2 | AN66: =AK66-AL66 -> 0.2 | AO66: =IF(AK66>1.5,"Да","-") -> Да | AP66: - | AQ66: =IF((AK66>1.5)*(AL66>1.5),"Да","-") -> - | AR66: =IF(AM66>=3.5,"ТБ2.5",IF(AM66>=2.5,"ТБ1.5",IF(AM66<=0.5,"ТМ2.5",IF(AM66<2,"ТМ3.5","-")))) -> ТБ1.5 | AS66: =IF(AM66>=4.5,"ТБ2.5",IF(AM66>=3.5,"ТБ1.5",IF(AM66<=0.5,"ТМ2.5",IF(AM66<1,"ТМ3.5","-")))) -> - | AT66: =IF(AN66>1.5,"П1",IF(AN66>1,"1X",IF(AN66<-1.5,"П2",IF(AN66<-1,"X2","-")))) -> - | AU66: =IF(AK66<-0.5,"Да",IF(AL66<-0.5,"Да","-")) -> - | AV66: =IF(ISEVEN(AM66*10),"Чет","Нечет") -> Чет
C67: Сколько Побед из 5 последних игр дома | E67: =ДомаДома!P6 -> 3 | F67: Сколько Побед из 5 последних игр в гостях | H67: =ГостиГости!P6 -> 0 | I67: =I65/I66 -> 1.384615385 | J67: 1 | K67: =K65/K66 -> 0.9230769231 | M67: Команда 2 | O67: =P66 -> 1 | P67: =O66 -> 0 | Q67: =P78 -> 0 | T67: =(AA66/T69)*100 ->  | U67: =100-(T67+V67) ->  | V67: =(AA67/T69)*100 ->  | W67: =100-X67 ->  | X67: =(AA68/W69)*100-10 ->  | Y67: Команда2 | AA67: =V68+V69+IF(AA62>V62,T71,0) ->  | AJ67: 5_10 | AK67: =AVERAGE(AL63,AP63) -> 1.287878788 | AL67: =AVERAGE(AM63,AP63) -> 1.221212121 | AM67: 2.509090909 | AN67: 0.06666666667 | AO67: - | AP67: - | AQ67: - | AR67: =IF(AM67>=3.5,"ТБ2.5",IF(AM67>=2.5,"ТБ1.5",IF(AM67<=0.5,"ТМ2.5",IF(AM67<2,"ТМ3.5","ТМ2")))) -> ТБ1.5 | AS67: =IF(AM67>=4.5,"ТБ2.5",IF(AM67>=3.5,"ТБ1.5",IF(AM67<=0.5,"ТМ2.5",IF(AM67<1,"ТМ3.5","-")))) -> - | AT67: =IF(AN67>1.5,"П1",IF(AN67>1,"1X",IF(AN67<-1.5,"П2",IF(AN67<-1,"X2","-")))) -> - | AU67: - | AV67: Нечет
C68: Сколько Побед из 5 последних игр вообще | E68: =Дома!P6 -> 3 | F68: Сколько Побед из 5 последних игр вообще | H68: =Гости!P6 -> 1 | I68: =((I72-I67)*I67)/3 -> 0.8875739645 | J68: =(I72-J67)*1/3 -> 0.7692307692 | K68: =((I72-K67)*K67)*1/3 -> 0.7337278107 | M68: Тотал матча: | N68: =IF(N75>3,"ТБ 2,5",IF(N75>2,"ТБ 1,5","ТМ 2,5")) -> ТМ 2,5 | T68: =X61-V61 ->  | V68: =AC61-AA61 ->  | W68: =(V64+AA64)/2 ->  | Y68: =(V62/V64)+V63/3 ->  | Z68: =AA62/AA64+AA63/3 ->  | AA68: =(Y68+Z68)/2 ->  | AJ68: 10_10 | AK68: =AVERAGE(AL64,AP64) -> 1.666666667 | AL68: =AVERAGE(AM64,AP64) -> 1.933333333 | AM68: 3.6 | AN68: -0.2666666667 | AO68: Да | AP68: Да | AQ68: Да | AR68: =IF(AM68>=3.5,"ТБ2.5",IF(AM68>=2.5,"ТБ1.5",IF(AM68<=0.5,"ТМ2.5",IF(AM68<2,"ТМ3.5","-")))) -> ТБ2.5 | AS68: ТБ1.5 | AT68: - | AU68: - | AV68: Чет
C69: Сколько Побед из 3 последних игр между командами | E69: =SUM(E70:E72) -> 0 | F69: Сколько Побед из 3 последних игр между командами | H69: =SUM(H70:H72) -> 3 | M69: =(E58+E59+E60)/3+O70/3 -> 1.333333333 | N69: =(I58+I59+I60)/3 -> 2 | T69: =X61-1+5+((V64+AA64)/2)+(((V62+AA64)/2)/2)-2 ->  | V69: =(AA63*3)/2 -> 4.5 | W69: =((W68/4)*3+(W68/2)+(W68)+(W68/5)*4)/W68 ->  | AJ69: 5_5 | AK69: =AVERAGE(AR62,AV62) -> 2.8 | AL69: =AVERAGE(AS62,AU62) -> 1.4 | AM69: 4.2 | AN69: 1.4 | AO69: Да | AP69: - | AQ69: - | AR69: =IF(AM69>=3.5,"ТБ2.5",IF(AM69>=2.5,"ТБ1.5",IF(AM69<=0.5,"ТМ2.5",IF(AM69<2,"ТМ3.5","-")))) -> ТБ2.5 | AS69: ТБ1.5 | AT69: 1X | AU69: - | AV69: Чет
E70: =IF(K40=1,1,0) -> 0 | H70: =IF(K40=2,1,0) -> 1 | M70: =(J58+J59+J60)/3+O71/3 -> 1.333333333 | N70: =(F58+F59+F60)/3 -> 1 | O70: =IF(K40=1,L40,M40)+IF(K41=1,L41,M41)+IF(K42=1,L42,M42) -> 1 | P70: команда 1 | T70: =(V63*3)/2 -> 4.5 | AJ70: 5_10 | AK70: =AVERAGE(AR63,AV63) -> 1.633333333 | AL70: =AVERAGE(AS63,AU63) -> 0.9424242424 | AM70: 2.575757576 | AN70: 0.6909090909 | AO70: Да | AP70: - | AQ70: - | AR70: =IF(AM70>=3.5,"ТБ2.5",IF(AM70>=2.5,"ТБ1.5",IF(AM70<=0.5,"ТМ2.5",IF(AM70<2,"ТМ3.5","ТМ2")))) -> ТБ1.5 | AS70: - | AT70: - | AU70: - | AV70: Нечет
D71: Тесты | E71: =IF(K41=1,1,0) -> 0 | H71: =IF(K41=2,1,0) -> 1 | O71: =IF(K40=2,L40,M40)+IF(K41=2,L41,M41)+IF(K42=2,L42,M42) -> 1 | P71: команда 2 | T71: =IF(V62>AA62,V62-AA62,IF(AA62>V62,AA62-V62,0)) ->  | AJ71: 10_10 | AK71: =AVERAGE(AR64,AV64) -> 1.966666667 | AL71: =AVERAGE(AS64,AU64) -> 0.8666666667 | AM71: 2.833333333 | AN71: 1.1 | AO71: Да | AP71: - | AQ71: - | AR71: =IF(AM71>=3.5,"ТБ2.5",IF(AM71>=2.5,"ТБ1.5",IF(AM71<=0.5,"ТМ2.5",IF(AM71<2,"ТМ3.5","-")))) -> ТБ1.5 | AS71: - | AT71: 1X | AU71: - | AV71: Чет
C72: №1 | D72: =IF(I68>K68,"П1",IF(K68>I68,"П2",0)) -> П1 | E72: =IF(K42=1,1,0) -> 0 | H72: =IF(K42=2,1,0) -> 1 | I72: =I67+J67+K67 -> 3.307692308
O73: =IF(O70>O71,O70/O71,O71/O70) -> 1 | P73: =IF(O70>O71,P70,P71) -> команда 2 | AJ73: Инверсия | AK73: Дома Все игры | AN73: Гости все игры | AQ73: ДомаДома | AT73: ГостиГости
C74: Общий прогноз | M74: =(M69*M70*O73)/3 -> 0.5925925926 | Q74: =IF(Q66=0,1,Q66) -> 1 | T74: Расчет матчей | AK74: Игр | AL74: Заб | AM74: Проп | AN74: Игр | AO74: Заб | AP74: Проп | AQ74: Игр | AR74: Заб | AS74: Проп | AT74: Игр | AU74: Заб | AV74: Проп
C75: № Теста | D75: прогноз: | M75: 0.5 | N75: =(((P79+P80)*M74)/(M70*N69)-N76)/1.75 -> -0.1587301587 | Q75: =IF(Q67=0,1,Q67) -> 1 | T75: Вводные данные | V75: Хозяева | X75: Гости | Z75: =IF(W81-Y81>0.23,"П1",IF(W81>Y81,"1X",IF(Y81-W81>0.24,"П2",IF(Y81>W81,"Х2","")))) -> П1 | AA75: Расчет | AK75: 0 | AL75: =Дома!L2 -> 0 | AM75: =Дома!M2 -> 2 | AN75: 0 | AO75: =Гости!L2 -> 2 | AP75: =Гости!M2 -> 3 | AQ75: 0 | AR75: =ДомаДома!L2 -> 1 | AS75: =ДомаДома!M2 -> 0 | AT75: 0 | AU75: =ГостиГости!L2 -> 2 | AV75: =ГостиГости!M2 -> 3
C76: Тест № 1 | D76: =H51 -> П1 | M76: 1.5 | N76: =(Q74/Q75)*(Q75/Q74)/2 -> 0.5 | O76: Примерный счёт | T76: Голов забито дома | U76: =Дома!Z11+Гости!Z11 -> 9 | V76: Забито дома | W76: =Дома!Z11 -> 5 | X76: Забито в гостях | Y76: =Гости!AG11 -> 5 | Z76: =IF(W81>=1,"Yes","No") -> Yes | AA76: Ср. забитых дома | AB76: =U76/U80/U81 -> 0.9 | AK76: 1 | AL76: =Дома!L3 -> 1 | AM76: =Дома!M3 -> 0 | AN76: 1 | AO76: =Гости!L3 -> 1 | AP76: =Гости!M3 -> 2 | AQ76: 1 | AR76: =ДомаДома!L3 -> 2 | AS76: =ДомаДома!M3 -> 1 | AT76: 1 | AU76: =ГостиГости!L3 -> 1 | AV76: =ГостиГости!M3 -> 2
C77: Тест № 2 | D77: =O47 -> П1 | M77: 2.5 | O77: =M69*N69*(O70/3)/3 -> 0.2962962963 | P77: =M70*N70*(O71/3)/3 -> 0.1481481481 | T77: Голов пропущено дома | U77: =Дома!AA11+Гости!AA11 -> 6 | V77: Пропущено дома | W77: =Дома!AA11 -> 3 | X77: Пропущено в гостях | Y77: =Гости!AH11 -> 11 | Z77: =IF(Y81>=1,"Yes","No") -> No | AA77: Ср. забитых в гостях | AB77: =U78/U80/U82 -> 1.1 | AK77: 2 | AL77: =Дома!L4 -> 1 | AM77: =Дома!M4 -> 2 | AN77: 2 | AO77: =Гости!L4 -> 1 | AP77: =Гости!M4 -> 2 | AQ77: 2 | AR77: =ДомаДома!L4 -> 0 | AS77: =ДомаДома!M4 -> 2 | AT77: 2 | AU77: =ГостиГости!L4 -> 0 | AV77: =ГостиГости!M4 -> 1
C78: Тест № 3 | D78: =IF(N61>O61,"П1",IF(O61>N61,"П2","Х")) -> П1 | M78: 3.5 | O78: =IF(O77>4.55,5,IF(O77>3.55,4,IF(O77>2.55,3,IF(O77>1.55,2,IF(O77>0.55,1,0))))) -> 0 | P78: =IF(P77>4.55,5,IF(P77>3.55,4,IF(P77>2.55,3,IF(P77>1.55,2,IF(P77>0.55,1,0))))) -> 0 | T78: Голов забито в гостях | U78: =Дома!AG11+Гости!AG11 -> 11 | V78: Матчей дома | W78: =Дома!V11 -> 5 | X78: Матчей в гостях | Y78: =Гости!AC11 -> 5 | Z78: команда 1 | AB78: команда 2 | AK78: 3 | AL78: =Дома!L5 -> 2 | AM78: =Дома!M5 -> 1 | AN78: 3 | AO78: =Гости!L5 -> 1 | AP78: =Гости!M5 -> 0 | AQ78: 3 | AR78: =ДомаДома!L5 -> 2 | AS78: =ДомаДома!M5 -> 0 | AT78: 3 | AU78: =ГостиГости!L5 -> 1 | AV78: =ГостиГости!M5 -> 3
C79: Тест № 4 | D79: =D72 -> П1 | P79: =IF(M70>=N70,N70,"0") -> 1 | Q79: к2 | T79: Голов пропущено в гостях | U79: =Дома!AH11+Гости!AH11 -> 17 | V79: Сила атаки | W79: =W76/W78 -> 1 | X79: Сила атаки | Y79: =Y76/Y78 -> 1 | Z79: атака | AA79: оборона | AB79: атака | AC79: оборона | AK79: 4 | AL79: =Дома!L6 -> 2 | AM79: =Дома!M6 -> 1 | AN79: 4 | AO79: =Гости!L6 -> 0 | AP79: =Гости!M6 -> 1 | AQ79: 4 | AR79: =ДомаДома!L6 -> 0 | AS79: =ДомаДома!M6 -> 0 | AT79: 4 | AU79: =ГостиГости!L6 -> 1 | AV79: =ГостиГости!M6 -> 2
C80: Тотал | D80: =N68 -> ТМ 2,5 | M80: =((P79+P80)*M74)/(M70*N69)+N76 -> 0.7222222222 | P80: =IF(M69>=N69,N69,"0") -> 0 | Q80: к1 | T80: Кол-во команд | U80: 2 | V80: Сила обороны | W80: =W77/W78 -> 0.6 | X80: Сила обороны | Y80: =Y77/Y78 -> 2.2 | Z80: =W79 -> 1 | AA80: =W80 -> 0.6 | AB80: =Y79 -> 1 | AC80: =Y80 -> 2.2 | AK80: 5 | AL80: =Дома!L7 -> 0 | AM80: =Дома!M7 -> 2 | AN80: 5 | AO80: =Гости!L7 -> 1 | AP80: =Гости!M7 -> 0 | AQ80: 5 | AR80: =ДомаДома!L7 -> 3 | AS80: =ДомаДома!M7 -> 0 | AT80: 5 | AU80: =ГостиГости!L7 -> 2 | AV80: =ГостиГости!M7 -> 2
T81: Игр сыграно дома | U81: =(Дома!V11+Гости!V11)/2 -> 5 | V81: Расчет голов | W81: =(AVERAGE(W79,Y80))-0.25 -> 1.35 | X81: Расчет голов | Y81: =(AVERAGE(Y79,W80))-0.5 -> 0.3 | AB81: Прогноз на матч | AK81: 6 | AL81: =Дома!L8 -> 3 | AM81: =Дома!M8 -> 0 | AN81: 6 | AO81: =Гости!L8 -> 1 | AP81: =Гости!M8 -> 3 | AQ81: 6 | AR81: =ДомаДома!L8 -> 1 | AS81: =ДомаДома!M8 -> 3 | AT81: 6 | AU81: =ГостиГости!L8 -> 1 | AV81: =ГостиГости!M8 -> 3
T82: Игр сыграно в гостях | U82: =(Дома!AC11+Гости!AC11)/2 -> 5 | AB82: =SUMIFS(U84:U89,W84:W89,">27,7%") -> 1 | AC82: =SUMIFS(Y84:Y89,AA84:AA89,">27,7%") -> 0 | AK82: 7 | AL82: =Дома!L9 -> 2 | AM82: =Дома!M9 -> 0 | AN82: 7 | AO82: =Гости!L9 -> 0 | AP82: =Гости!M9 -> 1 | AQ82: 7 | AR82: =ДомаДома!L9 -> 1 | AS82: =ДомаДома!M9 -> 0 | AT82: 7 | AU82: =ГостиГости!L9 -> 1 | AV82: =ГостиГости!M9 -> 1
T83: Расчитываем вероятность голов | AB83: =MAX(W84:W89) -> 0.3499743519 | AC83: =MAX(AA84:AA89) -> 0.7408182207 | AK83: 8 | AL83: =Дома!L10 -> 0 | AM83: =Дома!M10 -> 1 | AN83: 8 | AO83: =Гости!L10 -> 1 | AP83: =Гости!M10 -> 2 | AQ83: 8 | AR83: =ДомаДома!L10 -> 2 | AS83: =ДомаДома!M10 -> 1 | AT83: 8 | AU83: =ГостиГости!L10 -> 1 | AV83: =ГостиГости!M10 -> 2
C84: 15 матчей | D84: голы дома | E84: голы гости | F84: проп дома | G84: проп гости | H84: забито | I84: проп | J84: итог | T84: Забьют хозяева | U84: 1 | V84: Вероятность | W84: =_xlfn.POISSON.DIST(U84,W81,FALSE) -> 0.3499743519 | X84: Забьют гости | Y84: 1 | Z84: Вероятность | AA84: =_xlfn.POISSON.DIST(Y84,Y81,FALSE) -> 0.2222454662 | AK84: 9 | AL84: =Дома!L11 -> 0 | AM84: =Дома!M11 -> 0 | AN84: 9 | AO84: =Гости!L11 -> 1 | AP84: =Гости!M11 -> 0 | AQ84: 9 | AR84: =ДомаДома!L11 -> 1 | AS84: =ДомаДома!M11 -> 1 | AT84: 9 | AU84: =ГостиГости!L11 -> 1 | AV84: =ГостиГости!M11 -> 0
C85: =Очные!A1 -> Бадеран Тегеран | D85: =Дома!Z16 -> 10 | E85: =Дома!AG16 -> 12 | F85: =Дома!AA16 -> 6 | G85: =Дома!AH16 -> 11 | H85: =D85+E85 -> 22 | I85: =F85+G85 -> 17 | J85: =H85/I85 -> 1.294117647 | U85: 2 | W85: =_xlfn.POISSON.DIST(U85,W81,FALSE) -> 0.2362326875 | Y85: 2 | AA85: =_xlfn.POISSON.DIST(Y85,Y81,FALSE) -> 0.03333681993 | AJ85: 5из5 | AK85: 5 | AL85: =TREND(AL75:AL79,AK75:AK79,AK85) -> 2.7 | AM85: =TREND(AM75:AM79,AK75:AK79,AK85) -> 0.9 | AN85: 5 | AO85: =TREND(AO75:AO79,AN75:AN79,AN85) -> -0.2 | AP85: =TREND(AP75:AP79,AN75:AN79,AN85) -> -0.2 | AQ85: 5 | AR85: =TREND(AR75:AR79,AQ75:AQ79,AQ85) -> 0.4 | AS85: =TREND(AS75:AS79,AQ75:AQ79,AQ85) -> 0.3 | AT85: 5 | AU85: =TREND(AU75:AU79,AT75:AT79,AT85) -> 0.4 | AV85: =TREND(AV75:AV79,AT75:AT79,AT85) -> 1.9
C86: =Очные!B1 -> Эстеглал Моласани | D86: =Гости!Z16 -> 5 | E86: =Гости!AG16 -> 8 | F86: =Гости!AA16 -> 4 | G86: =Гости!AH16 -> 16 | H86: =D86+E86 -> 13 | I86: =F86+G86 -> 20 | J86: =H86/I86 -> 0.65 | U86: 3 | W86: =_xlfn.POISSON.DIST(U86,W81,FALSE) -> 0.1063047094 | Y86: 3 | AA86: =_xlfn.POISSON.DIST(Y86,Y81,FALSE) -> 0.003333681993 | AJ86: 5из10 | AK86: 5 | AL86: =TREND(AL75:AL84,AK75:AK84,AK86) -> 1.096969697 | AM86: =TREND(AM75:AM84,AK75:AK84,AK86) -> 0.8303030303 | AN86: 5 | AO86: =TREND(AO75:AO84,AN75:AN84,AN86) -> 0.8606060606 | AP86: =TREND(AP75:AP84,AN75:AN84,AN86) -> 1.327272727 | AQ86: 5 | AR86: =TREND(AR75:AR84,AQ75:AQ84,AQ86) -> 1.315151515 | AS86: =TREND(AS75:AS84,AQ75:AQ84,AQ86) -> 0.8242424242 | AT86: 5 | AU86: =TREND(AU75:AU84,AT75:AT84,AT86) -> 1.090909091 | AV86: =TREND(AV75:AV84,AT75:AT84,AT86) -> 1.818181818
C87: Первый гол : | G87: =IF(J85>=J86,"1 команда","2 команда") -> 1 команда | U87: 4 | W87: =_xlfn.POISSON.DIST(U87,W81,FALSE) -> 0.03587783942 | Y87: 4 | AA87: =_xlfn.POISSON.DIST(Y87,Y81,FALSE) -> 0.0002500261495 | AJ87: 10из10 | AK87: 10 | AL87: =TREND(AL75:AL84,AK75:AK84,AK87) -> 1.066666667 | AM87: =TREND(AM75:AM84,AK75:AK84,AK87) -> 0.1333333333 | AN87: 10 | AO87: =TREND(AO75:AO84,AN75:AN84,AN87) -> 0.4666666667 | AP87: =TREND(AP75:AP84,AN75:AN84,AN87) -> 0.6 | AQ87: 10 | AR87: =TREND(AR75:AR84,AQ75:AQ84,AQ87) -> 1.466666667 | AS87: =TREND(AS75:AS84,AQ75:AQ84,AQ87) -> 1.066666667 | AT87: 10 | AU87: =TREND(AU75:AU84,AT75:AT84,AT87) -> 1 | AV87: =TREND(AV75:AV84,AT75:AT84,AT87) -> 1
U88: 5 | W88: =_xlfn.POISSON.DIST(U88,W81,FALSE) -> 0.009687016642 | Y88: 5 | AA88: =_xlfn.POISSON.DIST(Y88,Y81,FALSE) -> 1.500156897e-05 | AK88: Дома | AL88: Гости | AM88: Тотал | AN88: Дельта | AO88: К1 Заб | AP88: 2К Заб | AQ88: ОЗ | AR88: Тотал1 | AS88: Тотал2 | AT88: 1X2 | AU88: ОНЗ | AV88: Чет/нечет
U89: 0 | W89: =_xlfn.POISSON.DIST(U89,W81,FALSE) -> 0.2592402606 | Y89: 0 | AA89: =_xlfn.POISSON.DIST(Y89,Y81,FALSE) -> 0.7408182207 | AJ89: 5_5 | AK89: =AVERAGE(AL85,AP85) -> 1.25 | AL89: =AVERAGE(AM85,AP85) -> 0.35 | AM89: =AK89+AL89 -> 1.6 | AN89: =AK89-AL89 -> 0.9 | AO89: =IF(AK89>1.5,"Да","-") -> - | AP89: - | AQ89: =IF((AK89>1.5)*(AL89>1.5),"Да","-") -> - | AR89: =IF(AM89>=3.5,"ТБ2.5",IF(AM89>=2.5,"ТБ1.5",IF(AM89<=0.5,"ТМ2.5",IF(AM89<2,"ТМ3.5","-")))) -> ТМ3.5 | AS89: =IF(AM89>=4.5,"ТБ2.5",IF(AM89>=3.5,"ТБ1.5",IF(AM89<=0.5,"ТМ2.5",IF(AM89<1,"ТМ3.5","-")))) -> - | AT89: =IF(AN89>1.5,"П1",IF(AN89>1,"1X",IF(AN89<-1.5,"П2",IF(AN89<-1,"X2","-")))) -> - | AU89: =IF(AK89<-0.5,"Да",IF(AL89<-0.5,"Да","-")) -> - | AV89: =IF(ISEVEN(AM89*10),"Чет","Нечет") -> Чет
AJ90: 5_10 | AK90: =AVERAGE(AL86,AP86) -> 1.212121212 | AL90: =AVERAGE(AM86,AP86) -> 1.078787879 | AM90: 2.290909091 | AN90: 0.1333333333 | AO90: - | AP90: - | AQ90: - | AR90: =IF(AM90>=3.5,"ТБ2.5",IF(AM90>=2.5,"ТБ1.5",IF(AM90<=0.5,"ТМ2.5",IF(AM90<2,"ТМ3.5","ТМ2")))) -> ТМ2 | AS90: =IF(AM90>=4.5,"ТБ2.5",IF(AM90>=3.5,"ТБ1.5",IF(AM90<=0.5,"ТМ2.5",IF(AM90<1,"ТМ3.5","-")))) -> - | AT90: =IF(AN90>1.5,"П1",IF(AN90>1,"1X",IF(AN90<-1.5,"П2",IF(AN90<-1,"X2","-")))) -> - | AU90: - | AV90: Чет
AJ91: 10_10 | AK91: =AVERAGE(AL87,AP87) -> 0.8333333333 | AL91: =AVERAGE(AM87,AP87) -> 0.3666666667 | AM91: 1.2 | AN91: 0.4666666667 | AO91: - | AP91: - | AQ91: - | AR91: =IF(AM91>=3.5,"ТБ2.5",IF(AM91>=2.5,"ТБ1.5",IF(AM91<=0.5,"ТМ2.5",IF(AM91<2,"ТМ3.5","-")))) -> ТМ3.5 | AS91: - | AT91: - | AU91: - | AV91: Чет
D92: Всего | K92: Дома | R92: На выезде | AJ92: 5_5 | AK92: =AVERAGE(AR85,AV85) -> 1.15 | AL92: =AVERAGE(AS85,AU85) -> 0.35 | AM92: 1.5 | AN92: 0.8 | AO92: - | AP92: - | AQ92: - | AR92: =IF(AM92>=3.5,"ТБ2.5",IF(AM92>=2.5,"ТБ1.5",IF(AM92<=0.5,"ТМ2.5",IF(AM92<2,"ТМ3.5","-")))) -> ТМ3.5 | AS92: - | AT92: - | AU92: - | AV92: Нечет
D93: Игр | E93: В | F93: Н | G93: П | H93: Забито | I93: Пропущено | J93: Очки | K93: Игр | L93: В | M93: Н | N93: П | O93: Забито | P93: Пропущено | Q93: Очки | R93: Игр | S93: В | T93: Н | U93: П | V93: Забито | W93: Пропущено | X93: Очки | AJ93: 5_10 | AK93: =AVERAGE(AR86,AV86) -> 1.566666667 | AL93: =AVERAGE(AS86,AU86) -> 0.9575757576 | AM93: 2.524242424 | AN93: 0.6090909091 | AO93: Да | AP93: - | AQ93: - | AR93: =IF(AM93>=3.5,"ТБ2.5",IF(AM93>=2.5,"ТБ1.5",IF(AM93<=0.5,"ТМ2.5",IF(AM93<2,"ТМ3.5","ТМ2")))) -> ТБ1.5 | AS93: - | AT93: - | AU93: - | AV93: Нечет
C94: Хозяева | D94: =Дома!O16 -> 15 | E94: =Дома!P16 -> 8 | F94: =Дома!Q16 -> 1 | G94: =Дома!R16 -> 6 | H94: =Дома!S16 -> 22 | I94: =Дома!T16 -> 17 | J94: =Дома!U16 -> 25 | K94: =Дома!V15 -> 7 | L94: =Дома!W16 -> 5 | M94: =Дома!X16 -> 1 | N94: =Дома!Y16 -> 2 | O94: =Дома!Z16 -> 10 | P94: =Дома!AA16 -> 6 | Q94: =Дома!AB16 -> 16 | R94: =Дома!AC16 -> 7 | S94: =Дома!AD16 -> 3 | T94: =Дома!AE16 -> 0 | U94: =Дома!AF16 -> 4 | V94: =Дома!AG16 -> 12 | W94: =Дома!AH16 -> 11 | X94: =Дома!AI16 -> 9 | AJ94: 10_10 | AK94: =AVERAGE(AR87,AV87) -> 1.233333333 | AL94: =AVERAGE(AS87,AU87) -> 1.033333333 | AM94: 2.266666667 | AN94: 0.2 | AO94: - | AP94: - | AQ94: - | AR94: =IF(AM94>=3.5,"ТБ2.5",IF(AM94>=2.5,"ТБ1.5",IF(AM94<=0.5,"ТМ2.5",IF(AM94<2,"ТМ3.5","-")))) -> - | AS94: - | AT94: - | AU94: - | AV94: Чет
C95: Гости | D95: =Гости!O16 -> 15 | E95: =Гости!P16 -> 3 | F95: =Гости!Q16 -> 4 | G95: =Гости!R16 -> 8 | H95: =Гости!S16 -> 13 | I95: =Гости!U16 -> 13 | J95: =Гости!U16 -> 13 | K95: =Гости!V16 -> 8 | L95: =Гости!W16 -> 3 | M95: =Гости!X16 -> 3 | N95: =Гости!Y16 -> 2 | O95: =Гости!Z16 -> 5 | P95: =Гости!AA16 -> 4 | Q95: =Гости!AB16 -> 12 | R95: =Гости!AC16 -> 7 | S95: =Гости!AD16 -> 0 | T95: =Гости!AE16 -> 1 | U95: =Гости!AF16 -> 6 | V95: =Гости!AG16 -> 8 | W95: =Гости!AH16 -> 16 | X95: =Гости!AI16 -> 1
D96: Забивают | E96: Пропускают | F96: Забивают | G96: Пропускают | H96: Забивают | I96: Пропускают | K96: Т1 | L96: Т2 | M96: Заб1 | N96: Заб2 | O96: Ср. заб. | P96: Счет | R96: Забьет гол | T96: Обе забьют?
C97: Хозяева | D97: =H94/D94 -> 1.466666667 | E97: =I94/D94 -> 1.133333333 | F97: =O94/K94 -> 1.428571429 | G97: =P94/K94 -> 0.8571428571 | H97: =V94/R94 -> 1.714285714 | I97: =W94/R94 -> 1.571428571 | K97: =AVERAGE(F97,D97)+AVERAGE(I98,E98)-AVERAGE(1.25,O97) -> 1.798809524 | L97: =AVERAGE(H98,D98)+AVERAGE(G97,E97)-AVERAGE(1.25,O97) -> 0.775 | M97: =AVERAGE(F97,D97) -> 1.447619048 | N97: =AVERAGE(H98,D98) -> 1.004761905 | O97: =AVERAGE(Дома!L2:M16,Гости!L2:M16) -> 1.2 | P97: =ROUND(AVERAGE(K97,M97),0) -> 2 | Q97: =ROUND(AVERAGE(L97,N97),0) -> 1 | R97: =IF(P97>1,"ДА","НЕТ") -> ДА | S97: =IF(Q97>=1,"ДА","НЕТ") -> ДА | T97: =IF(AND(R97="ДА",S97="ДА"),"ДА","НЕТ") -> ДА
C98: Гости | D98: =H95/D95 -> 0.8666666667 | E98: =I95/D95 -> 0.8666666667 | F98: =O95/K95 -> 0.625 | G98: =P95/K95 -> 0.5 | H98: =V95/R95 -> 1.142857143 | I98: =W95/R95 -> 2.285714286
C101: Исходы №1 | F101: Исходы №2 | I101: Исходы №3 | L101: Исходы №4
C102: П1 | D102: Х | E102: П2 | F102: П1 | G102: Х | H102: П2 | I102: П1 | J102: Х | K102: П2 | L102: П1 | M102: П2 | S102: =Очные!A1 -> Бадеран Тегеран | AB102: =Очные!B1 -> Эстеглал Моласани
C103: =SUM(Дома!J2:J6) -> 8 | D103: =(SUM(Дома!K2:K6)+SUM(Гости!J2:J6))/1.5 -> 8 | E103: =SUM(Гости!K2:K6) -> 5 | F103: =Дома!P6/5/(Дома!P6/5+Дома!Q6/5+Гости!P6/5+Гости!Q6/5) -> 0.75 | G103: =(Дома!Q6/5+Гости!Q6/5)/(Дома!P6/5+Дома!Q6/5+Гости!P6/5+Гости!Q6/5) -> 0 | H103: =Гости!P6/5/(Дома!P6/5+Дома!Q6/5+Гости!P6/5+Гости!Q6/5) -> 0.25 | I103: =Дома!S6+Дома!T6+Гости!S6+Гости!T6 -> 25 | J103: =Дома!S6+Дома!T6+Гости!S6+Гости!T6+ДомаДома!S6+ДомаДома!T6+ГостиГости!S6+ГостиГости!T6 -> 49 | K103: =ДомаДома!S6+ДомаДома!T6+ГостиГости!S6+ГостиГости!T6 -> 24 | L103: =E103+I103 -> 30 | M103: =C103+K103 -> 32 | T103: Матчей | U103: В | V103: Н | W103: П | X103: Заб | Y103: Проп | Z103: Очки | AA103: Место | AC103: Матчей | AD103: В | AE103: Н | AF103: П | AG103: Заб | AH103: Проп | AI103: Очки | AJ103: Место
C104: =C103/(C103+D103+E103) -> 0.380952381 | D104: =D103/(C103+D103+E103) -> 0.380952381 | E104: =E103/(C103+D103+E103) -> 0.2380952381 | I104: =I103/(I103+J103+K103) -> 0.2551020408 | J104: =J103/(I103+J103+K103) -> 0.5 | K104: =K103/(I103+J103+K103) -> 0.2448979592 | L104: =L103/(L103+M103) -> 0.4838709677 | M104: =M103/(L103+M103) -> 0.5161290323 | S104: Общая | T104: =INDEX(#REF!,MATCH(Расчеты!S102,#REF!,FALSE),1) ->  | U104: =INDEX(#REF!,MATCH(Расчеты!S102,#REF!,FALSE),1) ->  | V104: =INDEX(#REF!,MATCH(Расчеты!S102,#REF!,FALSE),1) ->  | W104: =INDEX(#REF!,MATCH(Расчеты!S102,#REF!,FALSE),1) ->  | X104: =INDEX(#REF!,MATCH(Расчеты!S102,#REF!,FALSE),1) ->  | Y104: =INDEX(#REF!,MATCH(Расчеты!S102,#REF!,FALSE),1) ->  | Z104: =INDEX(#REF!,MATCH(Расчеты!S102,#REF!,FALSE),1) ->  | AA104: =INDEX(#REF!,MATCH(Расчеты!S102,#REF!,FALSE),1) ->  | AB104: Общая | AC104: =INDEX(#REF!,MATCH(Расчеты!AB102,#REF!,FALSE),1) ->  | AD104: =INDEX(#REF!,MATCH(Расчеты!AB102,#REF!,FALSE),1) ->  | AE104: =INDEX(#REF!,MATCH(Расчеты!AB102,#REF!,FALSE),1) ->  | AF104: =INDEX(#REF!,MATCH(Расчеты!AB102,#REF!,FALSE),1) ->  | AG104: =INDEX(#REF!,MATCH(Расчеты!AB102,#REF!,FALSE),1) ->  | AH104: =INDEX(#REF!,MATCH(Расчеты!AB102,#REF!,FALSE),1) ->  | AI104: =INDEX(#REF!,MATCH(Расчеты!AB102,#REF!,FALSE),1) ->  | AJ104: =INDEX(#REF!,MATCH(Расчеты!AB102,#REF!,FALSE),1) -> 
C105: ДИ №1 | F105: ДИ №2 | I105: ДИ №3 | L105: ДИ №4 | S105: Дома | T105: =INDEX(#REF!,MATCH(S102,#REF!,FALSE),1) ->  | U105: =INDEX(#REF!,MATCH(S102,#REF!,FALSE),1) ->  | V105: =INDEX(#REF!,MATCH(S102,#REF!,FALSE),1) ->  | W105: =INDEX(#REF!,MATCH(S102,#REF!,FALSE),1) ->  | X105: =INDEX(#REF!,MATCH(S102,#REF!,FALSE),1) ->  | Y105: =INDEX(#REF!,MATCH(S102,#REF!,FALSE),1) ->  | Z105: =INDEX(#REF!,MATCH(S102,#REF!,FALSE),1) ->  | AA105: =INDEX(#REF!,MATCH(S102,#REF!,FALSE),1) ->  | AB105: Дома | AC105: =INDEX(#REF!,MATCH(AB102,#REF!,FALSE),1) ->  | AD105: =INDEX(#REF!,MATCH(AB102,#REF!,FALSE),1) ->  | AE105: =INDEX(#REF!,MATCH(AB102,#REF!,FALSE),1) ->  | AF105: =INDEX(#REF!,MATCH(AB102,#REF!,FALSE),1) ->  | AG105: =INDEX(#REF!,MATCH(AB102,#REF!,FALSE),1) ->  | AH105: =INDEX(#REF!,MATCH(AB102,#REF!,FALSE),1) ->  | AI105: =INDEX(#REF!,MATCH(AB102,#REF!,FALSE),1) ->  | AJ105: =INDEX(#REF!,MATCH(AB102,#REF!,FALSE),1) -> 
C106: 1Х | D106: 12 | E106: Х2 | F106: 1Х | G106: 12 | H106: Х2 | I106: 1Х | J106: 12 | K106: Х2 | L106: 1X2 | M106: ФОРА | S106: Гости | T106: =INDEX(#REF!,MATCH(S102,#REF!,FALSE),1) ->  | U106: =INDEX(#REF!,MATCH(S102,#REF!,FALSE),1) ->  | V106: =INDEX(#REF!,MATCH(S102,#REF!,FALSE),1) ->  | W106: =INDEX(#REF!,MATCH(S102,#REF!,FALSE),1) ->  | X106: =INDEX(#REF!,MATCH(S102,#REF!,FALSE),1) ->  | Y106: =INDEX(#REF!,MATCH(S102,#REF!,FALSE),1) ->  | Z106: =INDEX(#REF!,MATCH(S102,#REF!,FALSE),1) ->  | AA106: =INDEX(#REF!,MATCH(S102,#REF!,FALSE),1) ->  | AB106: Гости | AC106: =INDEX(#REF!,MATCH(AB102,#REF!,FALSE),1) ->  | AD106: =INDEX(#REF!,MATCH(AB102,#REF!,FALSE),1) ->  | AE106: =INDEX(#REF!,MATCH(AB102,#REF!,FALSE),1) ->  | AF106: =INDEX(#REF!,MATCH(AB102,#REF!,FALSE),1) ->  | AG106: =INDEX(#REF!,MATCH(AB102,#REF!,FALSE),1) ->  | AH106: =INDEX(#REF!,MATCH(AB102,#REF!,FALSE),1) ->  | AI106: =INDEX(#REF!,MATCH(AB102,#REF!,FALSE),1) ->  | AJ106: =INDEX(#REF!,MATCH(AB102,#REF!,FALSE),1) -> 
C107: =AVERAGE(C104,D104) -> 0.380952381 | D107: =AVERAGE(C104,E104) -> 0.3095238095 | E107: =AVERAGE(D104,E104) -> 0.3095238095 | F107: =AVERAGE(F103,G103) -> 0.375 | G107: =AVERAGE(F103,H103) -> 0.5 | H107: =AVERAGE(G103,H103) -> 0.125 | I107: =AVERAGE(I104,J104) -> 0.3775510204 | J107: =AVERAGE(I104,K104) -> 0.25 | K107: =AVERAGE(J104,K104) -> 0.3724489796 | L107: =IF(L104>M104,"1Х","Х2") -> Х2 | M107: =IF(L104>M104,"Ф1(0)","Ф2(0)") -> Ф2(0) | P107: Команды | Q107: Дмашние матчи | R107: Гостевые матчи | S107: Домашние голы | T107: Гостевые голы | U107: Среднее дома | V107: Среднее гости | W107: Атака дома | X107: Сила атаки дома | Y107: Сила атаки в гостях | Z107: взвешенная сила атаки дома | AA107: взвешенная сила атаки в гостях | AB107: Дома пропущенно | AC107: Пропущенно в гостях | AD107: среднее дома | AE107: среднее в гостях | AF107: защита дома | AG107: слабость дома | AH107: слабость гости | AI107: слабость дома | AJ107: слабость гости
C108: ТОТАЛЫ №1 | E108: ТОТАЛЫ №2 | G108: ТОТАЛЫ №3 | J108: З 1к | K108: П 1к | L108: З 2к | M108: П 2к | P108: =S102 -> Бадеран Тегеран | Q108: =T105 ->  | R108: =T106 ->  | S108: =X105 ->  | T108: =X106 ->  | U108: =S108/Q108 ->  | W108: =U108/V108 ->  | X108: =U108/U110 ->  | Y108: =V108/V110 ->  | Z108: =(U108+V108)/((U110+V110)) ->  | AA108: =(V108 + U108)/(U110 + V110) ->  | AB108: =Y105 ->  | AC108: =Y106 ->  | AD108: =AB108/Q108 ->  | AE108: =AC108/R108 ->  | AF108: =AE108/AD108 ->  | AG108: =AD108/AD110 ->  | AH108: =AE108/AE110 ->  | AI108: =(AD108 + AE108)/(AD110 +AE110) ->  | AJ108: =(AE108 + AD108)/(AD110 + AE110) -> 
C109: ТБ | D109: ТМ | E109: ТБ | F109: ТМ | G109: Тотал №1 | H109: Тотал №2 | I109: Тотал №3 | J109: =Дома!S6 -> 6 | K109: =Дома!T6 -> 6 | L109: =Гости!S6 -> 5 | M109: =Гости!T6 -> 8 | P109: =AB102 -> Эстеглал Моласани | Q109: =AC105 ->  | R109: =AC106 ->  | S109: =AG105 ->  | T109: =AG106 ->  | W109: =U109/V109 ->  | X109: =U109/U110 ->  | Y109: =V109/V110 ->  | Z109: =(U109 + V109)/(U110 + V110) ->  | AA109: =(V109 +U109)/(U110 + V110) ->  | AB109: =AH105 ->  | AC109: =AH106 ->  | AD109: =AB109/Q109 ->  | AE109: =AC109/R109 ->  | AF109: =AE109/AD109 ->  | AG109: =AD109/AD110 ->  | AH109: =AE109/AE110 ->  | AI109: =(AD109+AE109)/(AD110+AE110) ->  | AJ109: =(AE109 + AD109)/(AD110 + AE110) -> 
C110: =(Дома!S6+ДомаДома!T6+Гости!T6+ГостиГости!S6-0.2)/12 -> 1.816666667 | D110: =(Дома!T6+ДомаДома!S6+Гости!S6+ГостиГости!T6)/12 -> 2.25 | E110: =(Дома!T6+Гости!T6)/5 -> 2.8 | F110: =(Дома!S6+Гости!S6)/5 -> 2.2 | G110: =IF(AND(L112+M112<K109+L109/10-1,L112+M112<J109+L109/10-1),CONCATENATE("ТМ","("&((L112+M112)+(K109+M109)/50)&")"),CONCATENATE("ТБ","("&((L112+M112)+(J109+L109)/10-3&")"))) -> ТМ(2,48) | H110: =IF(AND(L112+M112+1<K109+L109/10,L112+M112+1<J109+K109/10),CONCATENATE("ТМ","("&((L112+M112+1)+(K109+M109)/50)&")"),CONCATENATE("ТБ","("&((L112+M112+0.5)+(J109+L109)/10-3&")"))) -> ТМ(3,48) | I110: =IF(AND(L112+M112<K109+L109/10-1,L112+M112<J109+L109/10-1),CONCATENATE("ТМ","("&((L112+M112)+(K109+M109)/50-1)&")"),CONCATENATE("ТБ","("&((L112+M112+0.5)+(J109+L109)/10-3&")"))) -> ТМ(1,48) | J110: З 1кд | K110: П 1кд | L110: З 2кг | M110: П 2кг | P110: Среднее | Q110: =SUM(Q108:Q109) ->  | R110: =SUM(R108:R109) ->  | S110: =SUM(S108:S109) ->  | T110: =SUM(T108:T109) ->  | W110: =U110/V110 ->  | X110: =U110/U110 ->  | Y110: =V110/V110 ->  | Z110: =U110/U110 ->  | AA110: =V110/V110 ->  | AB110: =AB108+AB109 ->  | AC110: =AC108+AC109 ->  | AD110: =AB110/Q110 ->  | AE110: =AC110/Q110 ->  | AF110: =AE110/AD110 ->  | AG110: =AD110/AD110 ->  | AH110: =AE110/AE110 ->  | AI110: =(AD110 +AE110)/(AD110 +AE110) ->  | AJ110: =(AE110 +AD110)/(AD110 + AE110) -> 
C111: =D110/(C110+D110) -> 0.5532786885 | D111: =C110/(C110+D110) -> 0.4467213115 | E111: =F110/(E110+F110) -> 0.44 | F111: =E110/(E110+F110) -> 0.56 | J111: =ДомаДома!S6 -> 5 | K111: =ДомаДома!T6 -> 3 | L111: =ГостиГости!S6 -> 5 | M111: =ГостиГости!T6 -> 11 | P111: =S102 -> Бадеран Тегеран | R111: голов | S111: сила | T111: слабость | U111: голов | V111: Результат 1 | X111: Результат 2 | Z111: ПРОГНОЗ №1 | AB111: МИНУТА
C112: ИТБ №1 | E112: ИТБ №2 | G112: ИТМ №1 | I112: ИТМ №1 | L112: =J109/5 -> 1.2 | M112: =L111/5 -> 1 | R112: =U110 ->  | S112: =Z108 ->  | T112: =AJ109 ->  | U112: =R112*S112*T112 ->  | V112: =AZ13-1 ->  | W112: =BC13-1 ->  | X112: =AZ13 ->  | Y112: =BC13 ->  | Z112: =IF(X116-Z116>25,1,IF(X116>Z116,"1X",IF(Z116-X116>25,2,IF(Z116>X116,"X2","")))) ->  | AB112: 90
C113: ИТБ1 | D113: ИТБ2 | E113: ИТБ1 | F113: ИТБ2 | G113: ИТМ1 | H113: ИТМ2 | I113: ИТМ1 | J113: ИТМ2 | P113: =AB102 -> Эстеглал Моласани | R113: голов | S113: сила | T113: слабость | U113: голов
C114: =C110/2 -> 0.9083333333 | D114: =D110/2+0.75 -> 1.875 | E114: =E110/2 -> 1.4 | F114: =F110/2.5 -> 0.88 | G114: =D114/2+0.35 -> 1.2875 | H114: =C114/2+0.75 -> 1.204166667 | I114: =F114/2+0.5 -> 0.94 | J114: =E114/2+0.5 -> 1.2 | R114: =V110 ->  | S114: =AA109 ->  | T114: =AJ108 ->  | U114: =R114*S114*T114 -> 
C115: =D114/(C114+D114) -> 0.6736526946 | D115: =C114/(C114+D114) -> 0.3263473054 | E115: =E114/(E114+F114) -> 0.6140350877 | F115: =F114/(E114+F114) -> 0.3859649123 | G115: =H114/(G114+H114) -> 0.483277592 | H115: =G114/(G114+H114) -> 0.516722408 | I115: =D115 -> 0.3263473054 | J115: =C115 -> 0.6736526946 | X115: 1 | Y115: X | Z115: 2 | AA115: МЕНЬШЕ 2,5 | AB115: БОЛЬШЕ 2,5
C116: =MAX(Дома!J2:J6) -> 2 | D116: =MIN(Дома!J2:J6) -> 1 | E116: 1к | F116: ТС | I116: В матче будет забито | V116: Шансы | X116: =BA17 ->  | Y116: =BA18 ->  | Z116: =BA19 ->  | AA116: =BA23 ->  | AB116: =BA22 -> 
C117: =MAX(Дома!K2:K6) -> 2 | D117: =MIN(Дома!K2:K6) -> 0 | I117: =E120+E121 -> 2 | J117: =E120+E121+1 -> 3 | V117: Величина | X117: =BB17 ->  | Y117: =BB18 ->  | Z117: =BB19 ->  | AA117: =BB23 ->  | AB117: =BB22 -> 
C118: =MAX(Гости!J2:J6) -> 3 | D118: =MIN(Гости!J2:J6) -> 1 | E118: 2к | F118: ТС №1 | G118: =E120 -> 2 | H118: =E121 -> 0 | I118: обе забьют | V118: =S102 -> Бадеран Тегеран | W118: =AB102 -> Эстеглал Моласани | X118: МОЖНО СТАВИТЬ | Y118: =IF(Y119>50,"OK",IF(Y119<50,"NO")) ->  | Z118: =IF(Z119>50,"OK",IF(Z119<50,"NO")) -> 
C119: =MAX(Гости!K2:K6) -> 2 | D119: =MIN(Гости!K2:K6) -> 0 | F119: ТС №2 | G119: =D119 -> 0 | H119: =D118 -> 1 | I119: =IF(G118-1=0,"НЕТ",IF(H118=0,"НЕТ","ДА")) -> НЕТ | J119: =IF(G118=0,"НЕТ",IF(G119=0,"НЕТ","ДА")) -> НЕТ | X119: % | Y119: =BA32 ->  | Z119: =BA20 ->  | AA119: =BA22 ->  | AB119: =BA24 ->  | AC119: =BA34 -> 
C120: =SUM(Дома!J2:J5)-C116-D116 -> 4 | D120: =C120/2 -> 2 | E120: =ROUND(D120+D123-1.5,0) -> 2 | F120: ТС №3 | G120: =G118-1 -> 1 | H120: =H118-1 -> -1 | I120: ДИСТАНЦИЯ | V120: =AB112*U112/90 ->  | W120: =AB112*U114/90 ->  | X120: БОЛЬШЕ | Y120: 0.5 | Z120: 1.5 | AA120: 2.5 | AB120: 3.5 | AC120: 4.5
C121: =SUM(Дома!K2:K5)-C117-D117 -> 0 | D121: =C121/2 -> 0 | E121: =ROUND(D121+D122-1.5,0) -> 0 | F121: ТС №4 | G121: =Дома!K2 -> 0 | H121: =Гости!J6 -> 1 | I121: =(J109-L109)+(K109-L109)+(L109-J109)+(M109-J109) -> 3 | J121: =(J111-L111)+(K111-L111)+(L111-J111)+(M111-J111) -> 4 | Y121: =BB32 ->  | Z121: =BB20 ->  | AA121: =BB22 ->  | AB121: =BB24 ->  | AC121: =BB34 -> 
C122: =SUM(Гости!J2:J5)-C118-D118 -> 3 | D122: =C122/2 -> 1.5 | F122: ТС №5 | G122: =G121-1 -> -1 | H122: =H121-1 -> 0 | I122: мотивация
C123: =SUM(Гости!K2:K5)-C119-D119 -> 3 | D123: =C123/2 -> 1.5 | F123: ТС №6 | G123: =G121+1 -> 1 | H123: =H121+1 -> 2 | I123: =IF(I121>J121,"Команда 1","Команда 2") -> Команда 2
